Workbook

Sheet Intro
B2: DEER2021 Water Heater Energy Use Calculator
B3: 2020-05-01 | C3: Updated for DEER2021 Update
B5: This version (4.00) adds several functionalities and updates TechIDs for: small storage and instantaneous water heaters (UEF-rated); heat pump water heaters; large storage and instantaneous water heaters (TE-rated).
B7: For details of the calculator updates see "DEER-WaterHeater-Documentation-v4.0.docx"
B10: Workbook Contents:
B11: Technologies
C12: New technologies are defined to support the new water heater measures. The technologies span three technology types: storage water heaters, instantaneous water heaters, and heat pump water heaters. These technologies can be rated by UEF, TE, and COP. The definition of these technology types have been expanded to include all of the parameters required by the calculation tool.
C13: The column labeled "Update" in this table indicates if the technology is included in the calculation process when the macro "Calculate All Results" is executed.
B14: Calculation
C15: All inputs and hourly calculations on the "TechCalc" are documented on this worksheet.
B16: TechCalc
C17: The worksheet calculates the hourly energy use for a selected water heater technology and for a selected building type and location. Indices for the technology type, building type and location are entered in cells C4-C6. Details of the calculations are listed on the "Calculation" worksheet.
B18: TechCalc
C19: The tab contains the annual results of the hourly simulations and is created by the "Calculate All Results" macro.
B20: Measure
C21: This tab defines the DEER water heater measures by specifying the measure technology, the minimum code-compliant technology and the size and fuel type of the pre-existing technology. The actual pre-existing technology is determined based on the size and fuel type along with the vintage of the building being simulated.
B22: EnergyImpact
C23: This tab accumulates the energy impacts (formatted in the ex ante specification) based on each measure definition; it is created by the macros on the EnImpacts-Com and EnImpacts-Res worksheets. The data in this worksheet is imported in the ex ante database.
B24: EnImpacts-Com & EnImpacts-Res
C25: These two worksheets calculate the energy impacts for a selected measure based on the measure definitions and the data in the TechResults worksheet. The macros on these worksheets loop through all measures and copy the energy impacts for each to the EnergyImpact worksheet.
B26: Tamb
C27: This worksheet contains the hourly ambient temperature for 6 space types and for the 16 climate zones. For the hourly simulation, each building type is assigned one of the space types and hourly values for the specified climate zone are retrieved under the Tamb column.
B28: Tmains
C29: This worksheet contains the mains water temperature based on the latest T-24 climate zone data. For the hourly simulations, mains water temperatures for the specified climate zone and month are retrieved from here.
B30: Hwgallons
C31: This workbook lists the hourly hot water load for each building type, consistent with the DEER2014 update. All hot water loads for the various building prototypes are converted to gallons of water at the hot water tank temperature. For residential buildings, a more detailed "Event" schedule is used to better capture peak loads. See http://www.nrel.gov/docs/fy10osti/47685.pdf for more information on the event schedule.
B32: PeakPeriod
C33: This workbook specifies the peak-period hours for each climate zone consistent with the DEER2014 update.
B34: lookup
C35: This worksheet contains lookup tables used throughout the calculator.
B36: wts_res_location
C37: This worksheet contains lookups for DEER2020 residential building weights by PA, climate zone, and vintage
B38: wts_com_vintage
C39: This worksheet contains lookups for DEER2020 commercial building weights by PA, climate zone, and vintage
B40: VintageUpdate
C41: This worksheet contains lookups for existing water heater technologies for residential and commercial vintages
A45: Version | B45: Update History:
B46: 2014-11-24 | C46: Fixed measure definition for NE-WtrHt-SmlStrg-HP-lte12kW-50G-2p40EF, which was using a 2.2 EF measure technology instead of the 2.4 as intended.
B48: 2014-11-29 | C48: Updated tech results field "therm" to include the BTU_aux annual therm usage. Prior to this, the aux BTUs were not included in the annual total.
B50: 2017-07-10 | C50: Updated technologies to include pre-existing efficiency levels from CLASS data
C51: Updated technologies to include available heat pump water heaters
C52: Updated measures to reflect pre-existing efficiency level and available heat pump water heaters
C53: Updated default HP technology parameters to better reflect current technologies
B55: 2018-08-30 | C55: Gas water heaters updated for new efficiency metric
C56: Energy impacts updated for DEER2020 vintage definitions
C57: Peak Period updated for DEER2020 peak period definition
A59: v.4.0 | B59: 2020-05-01 | C59: Update documentation can be found in DEER-WaterHeater-Documentation-v4.0.docx. Brief itemized updates are below
C60: All code and measure technologies updated for UEF efficiency metric
C61: New technology efficiency metrics (TE and COP) added to accommodate for commercial water heaters or water heaters that utilize TE and COP
C62: Changed "NumUnits" on TechCalc sheet to round up to nearest integer
C63: Added "Cap*NumUnits" on TechCalc sheet to pass calculator results for "NormUnit" = "CapOut-kBtuh"
C64: Added all previous calculator version TechIDs in Technologies worksheet, for version book keeping
C65: Updated residential and commercial weights to DEER2020
A66: v.4.1 | B66: 2020-06-01 | C66: Updated erroneous measureID names
C67: Added "Com" and "Res" weighted building types for PA = Any
C68: Revised v.4.0 MeasureID and TechID names to be in line with SW and PA offerings i.e., MeasureID and TechID naming conventions use UEFs/TEs that match current offerings, but the TechID input parameter UEF/TE may differ from the name
C69: Added Tier 3 measures (Res. TWH, Com. TWH, Com. Storage)
C70: Added HPWH measures according to SWWH WPs and introduced Com. Equivalents
A71: v.4.2 | B71: 2020-09-01 | C71: Fixed "Com" weights
A72: v.5.0 | B72: 2022-02-01 | C72: Commercial measures using "CapOut-kBtuh" have UES normalized using building HW load (and sizing factor)
C73: Ambient air temperature and mains water temperature updated using CZ2022 weather
C74: HPWH performance and capacity curves updated
C75: Residential HW profiles updated using profiles derived from CBECC-Res 2019
C76: Technology ID input parameters updated using new AHRI entries
C77: New specific boiler measureID
C78: All BldgTypes have tank temperature = 135F
C79: Added 8760 profile generator macro

Sheet 2023Measures
I4: Type | J4: Std | K4: Pre | L4: Fuel | M4: Measure ID | N4: Size | O4: Tier
I5: Storage | J5: Storage | K5: Storage | L5: Gas | M5: RG-WtrHt-SmlStrg-Gas-lte75kBtuh-30G-MD-0p64UEF | N5: 30 | O5: 1
I6: Storage | J6: Storage | K6: Storage | L6: Gas | M6: RG-WtrHt-SmlStrg-Gas-lte75kBtuh-40G-MD-0p64UEF | N6: 40 | O6: 1
I7: Storage | J7: Storage | K7: Storage | L7: Gas | M7: RG-WtrHt-SmlStrg-Gas-lte75kBtuh-50G-MD-0p64UEF | N7: 50 | O7: 1
I8: Storage | J8: Storage | K8: Storage | L8: Gas | M8: RG-WtrHt-SmlStrg-Gas-lte75kBtuh-30G-HI-0p68UEF | N8: 30 | O8: 1
I9: Storage | J9: Storage | K9: Storage | L9: Gas | M9: RG-WtrHt-SmlStrg-Gas-lte75kBtuh-40G-HI-0p68UEF | N9: 40 | O9: 1
I10: Storage | J10: Storage | K10: Storage | L10: Gas | M10: RG-WtrHt-SmlStrg-Gas-lte75kBtuh-50G-HI-0p68UEF | N10: 50 | O10: 1
I11: Storage | J11: Storage | K11: Storage | L11: Gas | M11: RG-WtrHt-SmlStrg-Gas-lte75kBtuh-30G-HI-0p78UEF | N11: 30 | O11: 2
I12: Storage | J12: Storage | K12: Storage | L12: Gas | M12: RG-WtrHt-SmlStrg-Gas-lte75kBtuh-40G-HI-0p78UEF | N12: 40 | O12: 2
I13: Storage | J13: Storage | K13: Storage | L13: Gas | M13: RG-WtrHt-SmlStrg-Gas-lte75kBtuh-50G-HI-0p78UEF | N13: 50 | O13: 2
I14: Storage | J14: Storage | K14: Storage | L14: Gas | M14: RG-WtrHt-SmlStrg-Gas-lte75kBtuh-30G-HI-0p88UEF | N14: 30 | O14: 3
I15: Storage | J15: Storage | K15: Storage | L15: Gas | M15: RG-WtrHt-SmlStrg-Gas-lte75kBtuh-40G-HI-0p88UEF | N15: 40 | O15: 3
I16: Storage | J16: Storage | K16: Storage | L16: Gas | M16: RG-WtrHt-SmlStrg-Gas-lte75kBtuh-50G-HI-0p88UEF | N16: 50 | O16: 3
I23: Type | J23: Std | K23: Pre | L23: Fuel | M23: Measure ID | N23: Size | O23: Tier
I24: Inst | J24: Storage | K24: Storage | L24: Gas | M24: RG-WtrHt-SmlInst-Gas-lt200kBtuh-lt2G-rep40G-MD-0p81UEF | O24: 1
I25: Inst | J25: Storage | K25: Storage | L25: Gas | M25: RG-WtrHt-SmlInst-Gas-lt200kBtuh-lt2G-rep40G-HI-0p81UEF | O25: 1
I26: Inst | J26: Storage | K26: Storage | L26: Gas | M26: RG-WtrHt-SmlInst-Gas-lt200kBtuh-lt2G-rep40G-MD-0p87UEF | O26: 2
I27: Inst | J27: Storage | K27: Storage | L27: Gas | M27: RG-WtrHt-SmlInst-Gas-lt200kBtuh-lt2G-rep40G-HI-0p87UEF | O27: 2
I28: Inst | J28: Storage | K28: Storage | L28: Gas | M28: RG-WtrHt-SmlInst-Gas-lt200kBtuh-lt2G-rep40G-HI-0p92UEF | O28: 3
I29: Inst | J29: Storage | K29: Storage | L29: Gas | M29: RG-WtrHt-SmlInst-Gas-lt200kBtuh-lt2G-rep40G-HI-0p96UEF | O29: 4
I30: Inst | J30: Inst | K30: Storage | L30: Gas | M30: RG-WtrHt-SmlInst-Gas-lt200kBtuh-lt2G-HI-0p87UEF | O30: 1
I31: Inst | J31: Inst | K31: Storage | L31: Gas | M31: RG-WtrHt-SmlInst-Gas-lt200kBtuh-lt2G-HI-0p92UEF | O31: 2
I32: Inst | J32: Inst | K32: Storage | L32: Gas | M32: RG-WtrHt-SmlInst-Gas-lt200kBtuh-lt2G-HI-0p96UEF | O32: 3
I36: Type | J36: Std | K36: Pre | L36: Fuel | M36: Measure ID | N36: Size | O36: Tier
I37: HPWH | J37: Storage | K37: Storage | L37: Switch | M37: RE-WtrHt-FuelSub-SmlStrg-HP-lte6kW-rep30G-3p30UEF-50g | N37: 50 | O37: 1
I38: HPWH | J38: Storage | K38: Storage | L38: Switch | M38: RE-WtrHt-FuelSub-SmlStrg-HP-lte6kW-rep40G-3p30UEF-50g | N38: 50 | O38: 1
I39: HPWH | J39: Storage | K39: Storage | L39: Switch | M39: RE-WtrHt-FuelSub-SmlStrg-HP-lte6kW-rep50G-3p30UEF-50g | N39: 50 | O39: 1
I40: HPWH | J40: Storage | K40: Storage | L40: Switch | M40: RE-WtrHt-FuelSub-SmlStrg-HP-lte6kW-rep30G-3p50UEF-50g | N40: 50 | O40: 2
I41: HPWH | J41: Storage | K41: Storage | L41: Switch | M41: RE-WtrHt-FuelSub-SmlStrg-HP-lte6kW-rep40G-3p50UEF-50g | N41: 50 | O41: 2
I42: HPWH | J42: Storage | K42: Storage | L42: Switch | M42: RE-WtrHt-FuelSub-SmlStrg-HP-lte6kW-rep50G-3p50UEF-50g | N42: 50 | O42: 2
I43: HPWH | J43: Storage | K43: Storage | L43: Switch | M43: RE-WtrHt-FuelSub-SmlStrg-HP-lte6kW-rep30G-3p75UEF-50g | N43: 50 | O43: 3
I44: HPWH | J44: Storage | K44: Storage | L44: Switch | M44: RE-WtrHt-FuelSub-SmlStrg-HP-lte6kW-rep40G-3p75UEF-50g | N44: 50 | O44: 3
I45: HPWH | J45: Storage | K45: Storage | L45: Switch | M45: RE-WtrHt-FuelSub-SmlStrg-HP-lte6kW-rep50G-3p75UEF-50g | N45: 50 | O45: 3
I46: HPWH | J46: Storage | K46: Storage | L46: Switch | M46: RE-WtrHt-FuelSub-SmlStrg-HP-lte6kW-rep60G-3p30UEF-65g | N46: 65 | O46: 1
I47: HPWH | J47: Storage | K47: Storage | L47: Switch | M47: RE-WtrHt-FuelSub-SmlStrg-HP-lte6kW-rep75G-3p30UEF-80g | N47: 80 | O47: 1
I48: HPWH | J48: Storage | K48: Storage | L48: Switch | M48: RE-WtrHt-FuelSub-SmlStrg-HP-lte6kW-rep60G-3p50UEF-65g | N48: 65 | O48: 2
I49: HPWH | J49: Storage | K49: Storage | L49: Switch | M49: RE-WtrHt-FuelSub-SmlStrg-HP-lte6kW-rep75G-3p50UEF-80g | N49: 80 | O49: 2
I50: HPWH | J50: Storage | K50: Storage | L50: Switch | M50: RE-WtrHt-FuelSub-SmlStrg-HP-lte6kW-rep60G-3p75UEF-65g | N50: 65 | O50: 3
I51: HPWH | J51: Storage | K51: Storage | L51: Switch | M51: RE-WtrHt-FuelSub-SmlStrg-HP-lte6kW-rep75G-3p75UEF-80g | N51: 80 | O51: 3
I55: Type | J55: Std | K55: Pre | L55: Fuel | M55: Measure ID | N55: Size | O55: Tier
I56: HPWH | J56: Storage | K56: Storage | L56: Electric | M56: RE-WtrHt-SmlStrg-HP-lte6kW-rep30G-3p30UEF-50g | N56: 50 | O56: 1
I57: HPWH | J57: Storage | K57: Storage | L57: Electric | M57: RE-WtrHt-SmlStrg-HP-lte6kW-rep40G-3p30UEF-50g | N57: 50 | O57: 1
I58: HPWH | J58: Storage | K58: Storage | L58: Electric | M58: RE-WtrHt-SmlStrg-HP-lte6kW-rep50G-3p30UEF-50g | N58: 50 | O58: 1
I59: HPWH | J59: Storage | K59: Storage | L59: Electric | M59: RE-WtrHt-SmlStrg-HP-lte6kW-rep30G-3p50UEF-50g | N59: 50 | O59: 2
I60: HPWH | J60: Storage | K60: Storage | L60: Electric | M60: RE-WtrHt-SmlStrg-HP-lte6kW-rep40G-3p50UEF-50g | N60: 50 | O60: 2
I61: HPWH | J61: Storage | K61: Storage | L61: Electric | M61: RE-WtrHt-SmlStrg-HP-lte6kW-rep50G-3p50UEF-50g | N61: 50 | O61: 2
I62: HPWH | J62: Storage | K62: Storage | L62: Electric | M62: RE-WtrHt-SmlStrg-HP-lte6kW-rep30G-3p75UEF-50g | N62: 50 | O62: 3
I63: HPWH | J63: Storage | K63: Storage | L63: Electric | M63: RE-WtrHt-SmlStrg-HP-lte6kW-rep40G-3p75UEF-50g | N63: 50 | O63: 3
I64: HPWH | J64: Storage | K64: Storage | L64: Electric | M64: RE-WtrHt-SmlStrg-HP-lte6kW-rep50G-3p75UEF-50g | N64: 50 | O64: 3
I65: HPWH | J65: HPWH | K65: Storage | L65: Electric | M65: RE-WtrHt-SmlStrg-HP-lte6kW-rep60G-3p30UEF-65g | N65: 65 | O65: 1
I66: HPWH | J66: HPWH | K66: Storage | L66: Electric | M66: RE-WtrHt-SmlStrg-HP-lte6kW-rep75G-3p30UEF-80g | N66: 80 | O66: 1
I67: HPWH | J67: HPWH | K67: Storage | L67: Electric | M67: RE-WtrHt-SmlStrg-HP-lte6kW-rep60G-3p50UEF-65g | N67: 65 | O67: 2
I68: HPWH | J68: HPWH | K68: Storage | L68: Electric | M68: RE-WtrHt-SmlStrg-HP-lte6kW-rep75G-3p50UEF-80g | N68: 80 | O68: 2
I69: HPWH | J69: HPWH | K69: Storage | L69: Electric | M69: RE-WtrHt-SmlStrg-HP-lte6kW-rep60G-3p75UEF-65g | N69: 65 | O69: 3
I70: HPWH | J70: HPWH | K70: Storage | L70: Electric | M70: RE-WtrHt-SmlStrg-HP-lte6kW-rep75G-3p75UEF-80g | N70: 80 | O70: 3
I77: Type | J77: Std | K77: Pre | L77: Fuel | M77: Measure ID | N77: Size | O77: Tier
I78: Storage | J78: Storage | K78: Storage | L78: Gas | M78: NG-WtrHt-SmlStrg-Gas-lte75kBtuh-30G-MD-0p64UEF | N78: 30 | O78: 1
I79: Storage | J79: Storage | K79: Storage | L79: Gas | M79: NG-WtrHt-SmlStrg-Gas-lte75kBtuh-40G-MD-0p64UEF | N79: 40 | O79: 1
I80: Storage | J80: Storage | K80: Storage | L80: Gas | M80: NG-WtrHt-SmlStrg-Gas-lte75kBtuh-50G-MD-0p64UEF | N80: 50 | O80: 1
I81: Storage | J81: Storage | K81: Storage | L81: Gas | M81: NG-WtrHt-SmlStrg-Gas-lte75kBtuh-30G-HI-0p68UEF | N81: 30 | O81: 1
I82: Storage | J82: Storage | K82: Storage | L82: Gas | M82: NG-WtrHt-SmlStrg-Gas-lte75kBtuh-40G-HI-0p68UEF | N82: 40 | O82: 1
I83: Storage | J83: Storage | K83: Storage | L83: Gas | M83: NG-WtrHt-SmlStrg-Gas-lte75kBtuh-50G-HI-0p68UEF | N83: 50 | O83: 1
I84: Storage | J84: Storage | K84: Storage | L84: Gas | M84: NG-WtrHt-SmlStrg-Gas-lte75kBtuh-30G-HI-0p78UEF | N84: 30 | O84: 2
I85: Storage | J85: Storage | K85: Storage | L85: Gas | M85: NG-WtrHt-SmlStrg-Gas-lte75kBtuh-40G-HI-0p78UEF | N85: 40 | O85: 2
I86: Storage | J86: Storage | K86: Storage | L86: Gas | M86: NG-WtrHt-SmlStrg-Gas-lte75kBtuh-50G-HI-0p78UEF | N86: 50 | O86: 2
I87: Storage | J87: Storage | K87: Storage | L87: Gas | M87: NG-WtrHt-SmlStrg-Gas-lte75kBtuh-30G-HI-0p88UEF | N87: 30 | O87: 3
I88: Storage | J88: Storage | K88: Storage | L88: Gas | M88: NG-WtrHt-SmlStrg-Gas-lte75kBtuh-40G-HI-0p88UEF | N88: 40 | O88: 3
I89: Storage | J89: Storage | K89: Storage | L89: Gas | M89: NG-WtrHt-SmlStrg-Gas-lte75kBtuh-50G-HI-0p88UEF | N89: 50 | O89: 3
I94: Type | J94: Std | K94: Pre | L94: Fuel | M94: Measure ID | N94: Size | O94: Tier
I95: Inst | J95: Storage | K95: Storage | L95: Gas | M95: NG-WtrHt-SmlInst-Gas-lt200kBtuh-lt2G-rep40G-MD-0p87UEF | O95: 2
I96: Inst | J96: Storage | K96: Storage | L96: Gas | M96: NG-WtrHt-SmlInst-Gas-lt200kBtuh-lt2G-rep40G-HI-0p87UEF | O96: 2
I97: Inst | J97: Storage | K97: Storage | L97: Gas | M97: NG-WtrHt-SmlInst-Gas-lt200kBtuh-lt2G-rep40G-MD-0p81UEF | O97: 1
I98: Inst | J98: Storage | K98: Storage | L98: Gas | M98: NG-WtrHt-SmlInst-Gas-lt200kBtuh-lt2G-rep40G-HI-0p81UEF | O98: 1
I99: Inst | J99: Storage | K99: Storage | L99: Gas | M99: NG-WtrHt-SmlInst-Gas-lt200kBtuh-lt2G-rep40G-HI-0p92UEF | O99: 3
I100: Inst | J100: Storage | K100: Storage | L100: Gas | M100: NG-WtrHt-SmlInst-Gas-lt200kBtuh-lt2G-rep40G-HI-0p96UEF | O100: 4
I101: Inst | J101: Inst | K101: Storage | L101: Gas | M101: NG-WtrHt-SmlInst-Gas-lt200kBtuh-lt2G-HI-0p87UEF | O101: 1
I102: Inst | J102: Inst | K102: Storage | L102: Gas | M102: NG-WtrHt-SmlInst-Gas-lt200kBtuh-lt2G-HI-0p92UEF | O102: 2
I103: Inst | J103: Inst | K103: Storage | L103: Gas | M103: NG-WtrHt-SmlInst-Gas-lt200kBtuh-lt2G-HI-0p96UEF | O103: 3
I107: Type | J107: Std | K107: Pre | L107: Fuel | M107: Measure ID | N107: Size | O107: Tier
I108: Storage | J108: Storage | K108: Storage | L108: Gas | M108: NG-WtrHt-LrgStrg-Gas-gt75kBtuh-0p90Et | N108: > 75 kBtuh | O108: 1
I109: Storage | J109: Storage | K109: Storage | L109: Gas | M109: NG-WtrHt-LrgStrg-Gas-gt75kBtuh-0p96Et | N109: > 75 kBtuh | O109: 2
I114: Type | J114: Std | K114: Pre | L114: Fuel | M114: Measure ID | N114: Size | O114: Tier
I115: Inst | J115: Storage | K115: Storage | L115: Gas | M115: NG-WtrHt-LrgInst-Gas-gte200kBtuh-lt2G-0p84Et | N115: > 200 kBtuh | O115: 1
I116: Inst | J116: Storage | K116: Storage | L116: Gas | M116: NG-WtrHt-LrgInst-Gas-gte200kBtuh-lt2G-0p90Et | N116: > 200 kBtuh | O116: 2
I117: Inst | J117: Storage | K117: Storage | L117: Gas | M117: NG-WtrHt-LrgInst-Gas-gte200kBtuh-lt2G-0p96Et | N117: > 200 kBtuh | O117: 3
I122: Type | J122: Std | K122: Pre | L122: Fuel | M122: Measure ID | N122: Size | O122: Tier
I123: Inst | J123: Storage | K123: Storage | L123: Gas | M123: NG-WtrHt-SmlInst-Gas-lt200kBtuh-lt2G-0p84Et | N123: < 200 kBtuh | O123: 1
I124: Inst | J124: Storage | K124: Storage | L124: Gas | M124: NG-WtrHt-SmlInst-Gas-lt200kBtuh-lt2G-0p90Et | N124: < 200 kBtuh | O124: 2
I125: Inst | J125: Storage | K125: Storage | L125: Gas | M125: NG-WtrHt-SmlInst-Gas-lt200kBtuh-lt2G-0p96Et | N125: < 200 kBtuh | O125: 3
I130: Type | J130: Std | K130: Pre | L130: Fuel | M130: Measure ID | N130: Size | O130: Tier
I131: Boiler | J131: Boiler | K131: Storage | L131: Gas | M131: NG-WtrHt-LrgBoiler-Gas-gte300kBtuh-0p84Et | N131: > 300 kBtuh | O131: 1
I132: Boiler | J132: Boiler | K132: Storage | L132: Gas | M132: NG-WtrHt-LrgBoiler-Gas-gte300kBtuh-0p90Et | N132: > 300 kBtuh | O132: 2
I133: Boiler | J133: Boiler | K133: Storage | L133: Gas | M133: NG-WtrHt-LrgBoiler-Gas-gte300kBtuh-0p96Et | N133: > 300 kBtuh | O133: 3
I139: Type | J139: Std | K139: Pre | L139: Fuel | M139: Measure ID | N139: Size | O139: Tier
I140: HPWH | J140: Storage | K140: Storage | L140: Switch | M140: NE-WtrHt-FuelSub-SmlStrg-HP-lte6kW-rep30G-3.30UEF-50g | N140: 50 | O140: 1
I141: HPWH | J141: Storage | K141: Storage | L141: Switch | M141: NE-WtrHt-FuelSub-SmlStrg-HP-lte6kW-rep40G-3.30UEF-50g | N141: 50 | O141: 1
I142: HPWH | J142: Storage | K142: Storage | L142: Switch | M142: NE-WtrHt-FuelSub-SmlStrg-HP-lte6kW-rep50G-3.30UEF-50g | N142: 50 | O142: 1
I143: HPWH | J143: Storage | K143: Storage | L143: Switch | M143: NE-WtrHt-FuelSub-SmlStrg-HP-lte6kW-rep30G-3.50UEF-50g | N143: 50 | O143: 2
I144: HPWH | J144: Storage | K144: Storage | L144: Switch | M144: NE-WtrHt-FuelSub-SmlStrg-HP-lte6kW-rep40G-3.50UEF-50g | N144: 50 | O144: 2
I145: HPWH | J145: Storage | K145: Storage | L145: Switch | M145: NE-WtrHt-FuelSub-SmlStrg-HP-lte6kW-rep50G-3.50UEF-50g | N145: 50 | O145: 2
I146: HPWH | J146: Storage | K146: Storage | L146: Switch | M146: NE-WtrHt-FuelSub-SmlStrg-HP-lte6kW-rep30G-3.75UEF-50g | N146: 50 | O146: 3
I147: HPWH | J147: Storage | K147: Storage | L147: Switch | M147: NE-WtrHt-FuelSub-SmlStrg-HP-lte6kW-rep40G-3.75UEF-50g | N147: 50 | O147: 3
I148: HPWH | J148: Storage | K148: Storage | L148: Switch | M148: NE-WtrHt-FuelSub-SmlStrg-HP-lte6kW-rep50G-3.75UEF-50g | N148: 50 | O148: 3
I149: HPWH | J149: Storage | K149: Storage | L149: Switch | M149: NE-WtrHt-FuelSub-SmlStrg-HP-lte6kW-rep60G-3.30UEF-65g | N149: 65 | O149: 1
I150: HPWH | J150: Storage | K150: Storage | L150: Switch | M150: NE-WtrHt-FuelSub-SmlStrg-HP-lte6kW-rep75G-3.30UEF-80g | N150: 80 | O150: 1
I151: HPWH | J151: Storage | K151: Storage | L151: Switch | M151: NE-WtrHt-FuelSub-SmlStrg-HP-lte6kW-rep60G-3.50UEF-65g | N151: 65 | O151: 2
I152: HPWH | J152: Storage | K152: Storage | L152: Switch | M152: NE-WtrHt-FuelSub-SmlStrg-HP-lte6kW-rep75G-3.50UEF-80g | N152: 80 | O152: 2
I153: HPWH | J153: Storage | K153: Storage | L153: Switch | M153: NE-WtrHt-FuelSub-SmlStrg-HP-lte6kW-rep60G-3.75UEF-65g | N153: 65 | O153: 3
I154: HPWH | J154: Storage | K154: Storage | L154: Switch | M154: NE-WtrHt-FuelSub-SmlStrg-HP-lte6kW-rep75G-3.75UEF-80g | N154: 80 | O154: 3
I155: HPWH | J155: Storage | K155: Storage | L155: Switch | M155: NE-WtrHt-FuelSub-LrgStrg-HP-gt6kW-120G-4p30COP | N155: 120 | O155: 1
I160: Type | J160: Std | K160: Pre | L160: Fuel | M160: Measure ID | N160: Size | O160: Tier
I161: HPWH | J161: Storage | K161: Storage | L161: Electric | M161: NE-WtrHt-SmlStrg-HP-lte6kW-rep30G-3p30UEF-50g | N161: 50 | O161: 1
I162: HPWH | J162: Storage | K162: Storage | L162: Electric | M162: NE-WtrHt-SmlStrg-HP-lte6kW-rep40G-3p30UEF-50g | N162: 50 | O162: 1
I163: HPWH | J163: Storage | K163: Storage | L163: Electric | M163: NE-WtrHt-SmlStrg-HP-lte6kW-rep50G-3p30UEF-50g | N163: 50 | O163: 1
I164: HPWH | J164: Storage | K164: Storage | L164: Electric | M164: NE-WtrHt-SmlStrg-HP-lte6kW-rep30G-3p50UEF-50g | N164: 50 | O164: 2
I165: HPWH | J165: Storage | K165: Storage | L165: Electric | M165: NE-WtrHt-SmlStrg-HP-lte6kW-rep40G-3p50UEF-50g | N165: 50 | O165: 2
I166: HPWH | J166: Storage | K166: Storage | L166: Electric | M166: NE-WtrHt-SmlStrg-HP-lte6kW-rep50G-3p50UEF-50g | N166: 50 | O166: 2
I167: HPWH | J167: Storage | K167: Storage | L167: Electric | M167: NE-WtrHt-SmlStrg-HP-lte6kW-rep30G-3p75UEF-50g | N167: 50 | O167: 3
I168: HPWH | J168: Storage | K168: Storage | L168: Electric | M168: NE-WtrHt-SmlStrg-HP-lte6kW-rep40G-3p75UEF-50g | N168: 50 | O168: 3
I169: HPWH | J169: Storage | K169: Storage | L169: Electric | M169: NE-WtrHt-SmlStrg-HP-lte6kW-rep50G-3p75UEF-50g | N169: 50 | O169: 3
I170: HPWH | J170: HPWH | K170: Storage | L170: Electric | M170: NE-WtrHt-SmlStrg-HP-lte6kW-rep60G-3p30UEF-65g | N170: 65 | O170: 1
I171: HPWH | J171: HPWH | K171: Storage | L171: Electric | M171: NE-WtrHt-SmlStrg-HP-lte6kW-rep75G-3p30UEF-80g | N171: 80 | O171: 1
I172: HPWH | J172: HPWH | K172: Storage | L172: Electric | M172: NE-WtrHt-SmlStrg-HP-lte6kW-rep60G-3p50UEF-65g | N172: 65 | O172: 2
I173: HPWH | J173: HPWH | K173: Storage | L173: Electric | M173: NE-WtrHt-SmlStrg-HP-lte6kW-rep75G-3p50UEF-80g | N173: 80 | O173: 2
I174: HPWH | J174: HPWH | K174: Storage | L174: Electric | M174: NE-WtrHt-SmlStrg-HP-lte6kW-rep60G-3p75UEF-65g | N174: 65 | O174: 3
I175: HPWH | J175: HPWH | K175: Storage | L175: Electric | M175: NE-WtrHt-SmlStrg-HP-lte6kW-rep75G-3p75UEF-80g | N175: 80 | O175: 3

Sheet Definitions
B2: Water Heater simulation
B4: The "TechCalc" tab calculates the hourly energy use for a specified technology, building type and location.
B5: These three specifications can be set using the pull-down lists at the top of the worksheet or indices can be specified in cells C9-C11.
B7: Technology Specifications
B8: The cells labeled with a green background are technology specifications for the selected technology.
B9: These values are read directly from the Technology table.
B11: The cells labeled with a yellow background are values that are calculated or looked up from other tables.
B12: Each value used in the calculation is listed below.
B14: HP Technology parameters
B15: COP | C15: The COP of the heat pump unit is calculated based on the technology EF and the tank temperature. See the accompanying documentation for details on the calculation.
B16: Frac Resist | C16: The value represents the fraction of time that a HP water heater reverts to electric resistance heating when the hourly volume of hot water use exceeds the HPMaxGal value. The value specified is based on the assumed diversity of the hot water usage profile; if the hot water draw within an hour that exceeds the HPMaxGal value use is spread throughout the hour, the FracResist value may be low since the HP will be able to keep up with a steady water draw. if the hot water draw within an hour that exceeds the HPMaxGal value use is concentrated within a fraction of the hour, the FracResist value may be higher since the HP will not be able to keep up with a high water draw.
B17: HPminT | C17: "Lockout" ambient temperature for compressor where electric heating element would override compressor. HPWH typically also have low water tankT compressor lockout at ~ 59F (i.e., if tank temp is less than 59F the HP mode will deactivate and ER will activate until water tank T is > 59F). This function is not incorporated in to the calculator.
B18: HPmaxT | C18: "Lockout" ambient temperature for compressor where electric heating element would override compressor
B19: HPmaxGal | C19: Maximum GPH that can be served by HPWH compressor without using electric heating element
B20: RE of ER backup | C20: If the HP must use backup electric resistance heat, the RE of the ER element is assumed to be 0.98
B22: Simulation Parameters
B23: Tamb Profile | C23: This value is the name of the ambient temperature profile associated with the specified building type.
B24: Ttank | C24: This is the assumed tank temperature based on the building type.
B25: Gal2BtuF | C25: The is the specific heat of water at the assumed tank temperature.
B26: BldgType Sector | C26: This value is "Res" or "Com", based on the specified building type. Special demand processing is conducted for Res building types.
B27: deliv capacity | C27: this is the calculated "delivery capacity" of the specified technology, or the amount of energy that can be delivered to the hot water.
B29: Load Profile Index | C29: This is the index of the hot water load profile.
B31: Number of Units (burner capacity based)
B32: Sizing Factor | D32: The sizing factor is based on the water heater fuel type and the building type specified.
B33: reqd capacity for peak volume | D33: this value is the capacity (in BTUh) needed to meet the peak hourly hot water volume, assuming standard conditions (100 F temperature rise).
B34: reqd capacity * Sizing Factor | D34: this value is the required capacity times the sizing factor
B35: equiv capacity of one unit | D35: the capacity of the water heater to meet a hot water load (in BTUh) is based on the storage volume and the burner capacity of the specified technology
B36: number of units needed: | D36: this value is the number of units needed to meet the building hot water demand, rounded up to the nearest whole integer
B38: Number of Units (volume based)
B39: Sizing Factor | D39: The sizing factor is based on the water heater fuel type and the building type specified.
B40: reqd volume for peak volume | D40: this value is the peak volume from the hourly hot water use profile.
B41: reqd volume * Sizing Factor | D41: this value is the required volume times the sizing factor
B42: equiv volume of one unit: | D42: the capacity of the water heater to meet a hot water load (in gallons) is based on the storage volume and the burner capacity of the specified technology
B43: number of units needed: | D43: this value is the (fractional) number of units needed to meet the building hot water demand
B45: number of units used: | D45: this value is the maximum of the "number of units needed" based on burner capacity and storage volume; for residential building types this value is set to 1.
B48: Hourly Values (columns D - Y)
B49: Peak-hr | C49: this column sets the peak period hours to 1, based on the selected climate zone. The sum-product of this column and the total hourly kWh column yields the energy use during the peak period.
B50: Tamb | C50: this column is the assumed ambient temperature (at the water heater location) and is based on the building type.
B51: Tmains | C51: this column is the assumed mains water temperature, based on the climate zone.
B52: hourly water volume | C52: this column is the hourly whole-building hot water requirement (gallons of water at Ttank temperature) based on the selected building type.
B53: Volume per Unit | C53: this column is the hot water load for one hot water heater.
B54: LoadHW | C54: this is the calculated hot water load in BTU/hr due to water use
B55: LoadUA | C55: this is the calculated hot water load in BTU/hr due to tank loss.
B56: LoadAux | C56: this is the calculated hot water load in BTU/hr due to the pilot light heating the water tank. For tankless water heaters, only the pilot light energy used while the heater is operating is used in the calculation. Value is zero or negative.
B57: LoadTot | C57: this is the total load that the water heater must deliver for the hour to meet the total load. If the previous hour had a delayed load, 80% of that load is added to the current hour load (some loss of load is assumed due to lower water delivery temperature the previous hour).
B58: Load Deliv | C58: this is the total load that the water heater must deliver for the hour limited by the capacity of the water heater.
B59: LoadDelayed | C59: For storage water heaters, this is the difference between the required load and the delivered load. Tankless water heaters do not utilize a delayed load.
B60: PLR | C60: This value is the total load divided by the delivery capacity, the fraction of the hour that the burner is on.
B61: Cap adj | C61: for HPWH, this column calculates the adjusted output capacity factor based on ambient WBT and tank temperature
B62: COP adj | C62: for HP water heaters, this column calculates the COP adjustment based on the hourly ambient WBT and tank temperature.
B63: EFF_hr | C63: For HP water heaters, this the COP * COPadj, for other water heaters this is the recovery efficiency.
B64: HP resist frac | C64: for HP water heaters, this is the fraction of the hourly load that is met with resistance heating.
B65: kWh_heat | C65: for HP water heaters, this is the energy use of the DX heating unit, for non-HP water heaters it is the energy use of the resistance elements.
B66: kWh_bu | C66: for HP water heaters, this is the energy use of the back-up resistance elements.
B67: kWh_aux | C67: the auxiliary kWh is the specified AuxW converted to kW for the hour
B68: kWh_vent | C68: the vent energy is the specified VentW converted to kW and multiplied by the fraction of the hour that the burner operates.
B69: kWh_tot | C69: this is the sum of the hourly electric loads
B70: therm | C70: for gas water heaters, this is the consumption of gas in therms used to meet the hot water load.

Sheet Technologies
A1: =COUNT(A17:A976) -> 95
A2: Number of Tech
A16: Index | B16: TechID | C16: WH Type | D16: EnergySource | E16: EffType | F16: DrawPattern | G16: Nom_Gallons | H16: Cap (kBtuh or kW) | I16: UEF/EF | J16: RE/TE (for non-HPWH) | K16: COP (for HPWH) | L16: TankUA | M16: Calc_TankUA | N16: HPMinT | O16: HPMaxT | P16: HPMaxGal | Q16: auxW | R16: auxVentW | S16: pilotBTUh | T16: pilotHtgEff | U16: Pre-existing Flag | V16: TechLevel | W16: Update? | X16: Note | Y16: Res/Com | Z16: In TechResults? | AA16: 8760 Flag
A17: 1 | B17: Stor_UEF-Gas-030gal-MD-0.64UEF | C17: Stor | D17: Gas | E17: UEF | F17: MD | G17: 30 | H17: 50 | I17: 0.65 | J17: 0.74 | K17: =IF(OR(C17="PkHP",C17="SpHP"),(I17-0.0043*VLOOKUP(F17,lookup!$AD$6:$AE$10,2,FALSE)-0.1513)/0.8407*(2.6-TechCalc!$N$4*0.0133333),#N/A) ->  | L17: 3.679191515 | M17: =IF(E17="EF",IF(D17="Elec",25.37*(1/I17-1),(J17/I17-1)/(24/41092-1/(I17*H17*1000))/67.5),IFERROR((1/I17-1/J17)/(lookup!AE$14*(24/VLOOKUP(F17,lookup!AD$6:AF$9,3,FALSE)-1/(J17*H17*1000))),#N/A)) -> 3.679191515 | Q17: =0 -> 0 | R17: =IF(AND(D17="Gas",J17>=0.84),50,0) -> 0 | S17: =IF(AND(D17="Gas",C17="Stor"),350,0) -> 350 | T17: =IF(S17>0,0.67,0) -> 0.67 | U17: =_xlfn.IFNA(VLOOKUP(B17,VintageUpdate!$Z:$Z,1,FALSE),_xlfn.IFNA(VLOOKUP(B17,VintageUpdate!$AF:$AF,1,FALSE),"No")) -> No | V17: Measure | W17: FALSE | X17: Tier 1 | Y17: Res | Z17: =IFERROR(MATCH(B17,TechResults!$B:$B,0),"No") -> 8070 | AA17: TRUE
A18: =A17+1 -> 2 | B18: Stor_UEF-Gas-030gal-HI-0.68UEF | C18: Stor | D18: Gas | E18: UEF | F18: HI | G18: 30 | H18: 60 | I18: 0.71 | J18: 0.78 | K18: =IF(OR(C18="PkHP",C18="SpHP"),(I18-0.0043*VLOOKUP(F18,lookup!$AD$6:$AE$10,2,FALSE)-0.1513)/0.8407*(2.6-TechCalc!$N$4*0.0133333),#N/A) ->  | L18: 3.824377491 | M18: =IF(E18="EF",IF(D18="Elec",25.37*(1/I18-1),(J18/I18-1)/(24/41092-1/(I18*H18*1000))/67.5),IFERROR((1/I18-1/J18)/(lookup!AE$14*(24/VLOOKUP(F18,lookup!AD$6:AF$9,3,FALSE)-1/(J18*H18*1000))),#N/A)) -> 3.824377491 | Q18: =0 -> 0 | R18: =IF(AND(D18="Gas",J18>=0.84),50,0) -> 0 | S18: =IF(AND(D18="Gas",C18="Stor"),350,0) -> 350 | T18: =IF(S18>0,0.67,0) -> 0.67 | U18: =_xlfn.IFNA(VLOOKUP(B18,VintageUpdate!$Z:$Z,1,FALSE),_xlfn.IFNA(VLOOKUP(B18,VintageUpdate!$AF:$AF,1,FALSE),"No")) -> No | V18: Measure | W18: FALSE | X18: Tier 1 | Y18: Res | Z18: =IFERROR(MATCH(B18,TechResults!$B:$B,0),"No") -> 8518 | AA18: FALSE
A19: =A18+1 -> 3 | B19: Stor_UEF-Gas-040gal-MD-0.64UEF | C19: Stor | D19: Gas | E19: UEF | F19: MD | G19: 40 | H19: 39 | I19: 0.65 | J19: 0.758 | K19: =IF(OR(C19="PkHP",C19="SpHP"),(I19-0.0043*VLOOKUP(F19,lookup!$AD$6:$AE$10,2,FALSE)-0.1513)/0.8407*(2.6-TechCalc!$N$4*0.0133333),#N/A) ->  | L19: 4.349444061 | M19: =IF(E19="EF",IF(D19="Elec",25.37*(1/I19-1),(J19/I19-1)/(24/41092-1/(I19*H19*1000))/67.5),IFERROR((1/I19-1/J19)/(lookup!AE$14*(24/VLOOKUP(F19,lookup!AD$6:AF$9,3,FALSE)-1/(J19*H19*1000))),#N/A)) -> 4.349444061 | Q19: =0 -> 0 | R19: 0 | S19: 350 | T19: 0.67 | U19: =_xlfn.IFNA(VLOOKUP(B19,VintageUpdate!$Z:$Z,1,FALSE),_xlfn.IFNA(VLOOKUP(B19,VintageUpdate!$AF:$AF,1,FALSE),"No")) -> No | V19: Measure | W19: FALSE | X19: Tier 1 | Y19: Res | Z19: =IFERROR(MATCH(B19,TechResults!$B:$B,0),"No") -> 8966 | AA19: FALSE
A20: 4 | B20: Stor_UEF-Gas-040gal-HI-0.68UEF | C20: Stor | D20: Gas | E20: UEF | F20: HI | G20: 40 | H20: 41.6 | I20: 0.7 | J20: 0.772 | K20: =IF(OR(C20="PkHP",C20="SpHP"),(I20-0.0043*VLOOKUP(F20,lookup!$AD$6:$AE$10,2,FALSE)-0.1513)/0.8407*(2.6-TechCalc!$N$4*0.0133333),#N/A) ->  | L20: 4.113262074 | M20: =IF(E20="EF",IF(D20="Elec",25.37*(1/I20-1),(J20/I20-1)/(24/41092-1/(I20*H20*1000))/67.5),IFERROR((1/I20-1/J20)/(lookup!AE$14*(24/VLOOKUP(F20,lookup!AD$6:AF$9,3,FALSE)-1/(J20*H20*1000))),#N/A)) -> 4.113262074 | Q20: =0 -> 0 | R20: 0 | S20: 350 | T20: 0.67 | U20: =_xlfn.IFNA(VLOOKUP(B20,VintageUpdate!$Z:$Z,1,FALSE),_xlfn.IFNA(VLOOKUP(B20,VintageUpdate!$AF:$AF,1,FALSE),"No")) -> No | V20: Measure | W20: FALSE | X20: Tier 1 | Y20: Res | Z20: =IFERROR(MATCH(B20,TechResults!$B:$B,0),"No") -> 9414 | AA20: FALSE
A21: 5 | B21: Stor_UEF-Gas-050gal-MD-0.64UEF | C21: Stor | D21: Gas | E21: UEF | F21: MD | G21: 50 | H21: 40.1 | I21: 0.65 | J21: 0.78 | K21: =IF(OR(C21="PkHP",C21="SpHP"),(I21-0.0043*VLOOKUP(F21,lookup!$AD$6:$AE$10,2,FALSE)-0.1513)/0.8407*(2.6-TechCalc!$N$4*0.0133333),#N/A) ->  | L21: 5.075160517 | M21: =IF(E21="EF",IF(D21="Elec",25.37*(1/I21-1),(J21/I21-1)/(24/41092-1/(I21*H21*1000))/67.5),IFERROR((1/I21-1/J21)/(lookup!AE$14*(24/VLOOKUP(F21,lookup!AD$6:AF$9,3,FALSE)-1/(J21*H21*1000))),#N/A)) -> 5.075160517 | Q21: =0 -> 0 | R21: 0 | S21: 350 | T21: 0.67 | U21: =_xlfn.IFNA(VLOOKUP(B21,VintageUpdate!$Z:$Z,1,FALSE),_xlfn.IFNA(VLOOKUP(B21,VintageUpdate!$AF:$AF,1,FALSE),"No")) -> No | V21: Measure | W21: FALSE | X21: Tier 1 | Y21: Res | Z21: =IFERROR(MATCH(B21,TechResults!$B:$B,0),"No") -> 9862 | AA21: FALSE
A22: 6 | B22: Stor_UEF-Gas-050gal-HI-0.68UEF | C22: Stor | D22: Gas | E22: UEF | F22: HI | G22: 50 | H22: 43.4 | I22: 0.7 | J22: 0.786 | K22: =IF(OR(C22="PkHP",C22="SpHP"),(I22-0.0043*VLOOKUP(F22,lookup!$AD$6:$AE$10,2,FALSE)-0.1513)/0.8407*(2.6-TechCalc!$N$4*0.0133333),#N/A) ->  | L22: 4.807290011 | M22: =IF(E22="EF",IF(D22="Elec",25.37*(1/I22-1),(J22/I22-1)/(24/41092-1/(I22*H22*1000))/67.5),IFERROR((1/I22-1/J22)/(lookup!AE$14*(24/VLOOKUP(F22,lookup!AD$6:AF$9,3,FALSE)-1/(J22*H22*1000))),#N/A)) -> 4.807290011 | Q22: =0 -> 0 | R22: 0 | S22: 350 | T22: 0.67 | U22: =_xlfn.IFNA(VLOOKUP(B22,VintageUpdate!$Z:$Z,1,FALSE),_xlfn.IFNA(VLOOKUP(B22,VintageUpdate!$AF:$AF,1,FALSE),"No")) -> No | V22: Measure | W22: FALSE | X22: Tier 1 | Y22: Res | Z22: =IFERROR(MATCH(B22,TechResults!$B:$B,0),"No") -> 10310 | AA22: FALSE
A23: 7 | B23: Stor_UEF-Gas-030gal-MD-0.60UEF | C23: Stor | D23: Gas | E23: UEF | F23: MD | G23: 30 | H23: 31.5 | I23: 0.6 | J23: 0.751 | K23: =IF(OR(C23="PkHP",C23="SpHP"),(I23-0.0043*VLOOKUP(F23,lookup!$AD$6:$AE$10,2,FALSE)-0.1513)/0.8407*(2.6-TechCalc!$N$4*0.0133333),#N/A) ->  | L23: 6.725401935 | M23: =IF(E23="EF",IF(D23="Elec",25.37*(1/I23-1),(J23/I23-1)/(24/41092-1/(I23*H23*1000))/67.5),IFERROR((1/I23-1/J23)/(lookup!AE$14*(24/VLOOKUP(F23,lookup!AD$6:AF$9,3,FALSE)-1/(J23*H23*1000))),#N/A)) -> 6.725401935 | Q23: =0 -> 0 | R23: 0 | S23: 350 | T23: 0.67 | U23: =_xlfn.IFNA(VLOOKUP(B23,VintageUpdate!$Z:$Z,1,FALSE),_xlfn.IFNA(VLOOKUP(B23,VintageUpdate!$AF:$AF,1,FALSE),"No")) -> No | V23: Code/Std | W23: FALSE | Y23: Res | Z23: =IFERROR(MATCH(B23,TechResults!$B:$B,0),"No") -> 10758 | AA23: FALSE
A24: 8 | B24: Stor_UEF-Gas-030gal-HI-0.65UEF | C24: Stor | D24: Gas | E24: UEF | F24: HI | G24: 30 | H24: 40 | I24: 0.65 | J24: 0.751 | K24: =IF(OR(C24="PkHP",C24="SpHP"),(I24-0.0043*VLOOKUP(F24,lookup!$AD$6:$AE$10,2,FALSE)-0.1513)/0.8407*(2.6-TechCalc!$N$4*0.0133333),#N/A) ->  | L24: 6.416355467 | M24: =IF(E24="EF",IF(D24="Elec",25.37*(1/I24-1),(J24/I24-1)/(24/41092-1/(I24*H24*1000))/67.5),IFERROR((1/I24-1/J24)/(lookup!AE$14*(24/VLOOKUP(F24,lookup!AD$6:AF$9,3,FALSE)-1/(J24*H24*1000))),#N/A)) -> 6.416355467 | Q24: =0 -> 0 | R24: 0 | S24: 350 | T24: 0.67 | U24: =_xlfn.IFNA(VLOOKUP(B24,VintageUpdate!$Z:$Z,1,FALSE),_xlfn.IFNA(VLOOKUP(B24,VintageUpdate!$AF:$AF,1,FALSE),"No")) -> No | V24: Code/Std | W24: FALSE | Y24: Res | Z24: =IFERROR(MATCH(B24,TechResults!$B:$B,0),"No") -> 11206 | AA24: FALSE
A25: 9 | B25: Stor_UEF-Gas-040gal-MD-0.58UEF | C25: Stor | D25: Gas | E25: UEF | F25: MD | G25: 40 | H25: 35 | I25: 0.59 | J25: 0.772 | K25: =IF(OR(C25="PkHP",C25="SpHP"),(I25-0.0043*VLOOKUP(F25,lookup!$AD$6:$AE$10,2,FALSE)-0.1513)/0.8407*(2.6-TechCalc!$N$4*0.0133333),#N/A) ->  | L25: 7.962505023 | M25: =IF(E25="EF",IF(D25="Elec",25.37*(1/I25-1),(J25/I25-1)/(24/41092-1/(I25*H25*1000))/67.5),IFERROR((1/I25-1/J25)/(lookup!AE$14*(24/VLOOKUP(F25,lookup!AD$6:AF$9,3,FALSE)-1/(J25*H25*1000))),#N/A)) -> 7.962505023 | Q25: =0 -> 0 | R25: 0 | S25: 350 | T25: 0.67 | U25: =_xlfn.IFNA(VLOOKUP(B25,VintageUpdate!$Z:$Z,1,FALSE),_xlfn.IFNA(VLOOKUP(B25,VintageUpdate!$AF:$AF,1,FALSE),"No")) -> No | V25: Code/Std | W25: FALSE | Y25: Res | Z25: =IFERROR(MATCH(B25,TechResults!$B:$B,0),"No") -> 11654 | AA25: FALSE
A26: 10 | B26: Stor_UEF-Gas-040gal-HI-0.64UEF | C26: Stor | D26: Gas | E26: UEF | F26: HI | G26: 40 | H26: 40 | I26: 0.64 | J26: 0.752 | K26: =IF(OR(C26="PkHP",C26="SpHP"),(I26-0.0043*VLOOKUP(F26,lookup!$AD$6:$AE$10,2,FALSE)-0.1513)/0.8407*(2.6-TechCalc!$N$4*0.0133333),#N/A) ->  | L26: 7.216062777 | M26: =IF(E26="EF",IF(D26="Elec",25.37*(1/I26-1),(J26/I26-1)/(24/41092-1/(I26*H26*1000))/67.5),IFERROR((1/I26-1/J26)/(lookup!AE$14*(24/VLOOKUP(F26,lookup!AD$6:AF$9,3,FALSE)-1/(J26*H26*1000))),#N/A)) -> 7.216062777 | Q26: =0 -> 0 | R26: 0 | S26: 350 | T26: 0.67 | U26: =_xlfn.IFNA(VLOOKUP(B26,VintageUpdate!$Z:$Z,1,FALSE),_xlfn.IFNA(VLOOKUP(B26,VintageUpdate!$AF:$AF,1,FALSE),"No")) -> No | V26: Code/Std | W26: FALSE | Y26: Res | Z26: =IFERROR(MATCH(B26,TechResults!$B:$B,0),"No") -> 12102 | AA26: FALSE
A27: 11 | B27: Stor_UEF-Gas-050gal-MD-0.56UEF | C27: Stor | D27: Gas | E27: UEF | F27: MD | G27: 50 | H27: 37 | I27: 0.58 | J27: 0.738 | K27: =IF(OR(C27="PkHP",C27="SpHP"),(I27-0.0043*VLOOKUP(F27,lookup!$AD$6:$AE$10,2,FALSE)-0.1513)/0.8407*(2.6-TechCalc!$N$4*0.0133333),#N/A) ->  | L27: 7.351805201 | M27: =IF(E27="EF",IF(D27="Elec",25.37*(1/I27-1),(J27/I27-1)/(24/41092-1/(I27*H27*1000))/67.5),IFERROR((1/I27-1/J27)/(lookup!AE$14*(24/VLOOKUP(F27,lookup!AD$6:AF$9,3,FALSE)-1/(J27*H27*1000))),#N/A)) -> 7.351805201 | Q27: =0 -> 0 | R27: 0 | S27: 350 | T27: 0.67 | U27: =_xlfn.IFNA(VLOOKUP(B27,VintageUpdate!$Z:$Z,1,FALSE),_xlfn.IFNA(VLOOKUP(B27,VintageUpdate!$AF:$AF,1,FALSE),"No")) -> No | V27: Code/Std | W27: FALSE | Y27: Res | Z27: =IFERROR(MATCH(B27,TechResults!$B:$B,0),"No") -> 12550 | AA27: FALSE
A28: 12 | B28: Stor_UEF-Gas-050gal-HI-0.63UEF | C28: Stor | D28: Gas | E28: UEF | F28: HI | G28: 50 | H28: 41.9 | I28: 0.64 | J28: 0.79 | K28: =IF(OR(C28="PkHP",C28="SpHP"),(I28-0.0043*VLOOKUP(F28,lookup!$AD$6:$AE$10,2,FALSE)-0.1513)/0.8407*(2.6-TechCalc!$N$4*0.0133333),#N/A) ->  | L28: 9.141447574 | M28: =IF(E28="EF",IF(D28="Elec",25.37*(1/I28-1),(J28/I28-1)/(24/41092-1/(I28*H28*1000))/67.5),IFERROR((1/I28-1/J28)/(lookup!AE$14*(24/VLOOKUP(F28,lookup!AD$6:AF$9,3,FALSE)-1/(J28*H28*1000))),#N/A)) -> 9.141447574 | Q28: =0 -> 0 | R28: 0 | S28: 350 | T28: 0.67 | U28: =_xlfn.IFNA(VLOOKUP(B28,VintageUpdate!$Z:$Z,1,FALSE),_xlfn.IFNA(VLOOKUP(B28,VintageUpdate!$AF:$AF,1,FALSE),"No")) -> No | V28: Code/Std | W28: FALSE | Y28: Res | Z28: =IFERROR(MATCH(B28,TechResults!$B:$B,0),"No") -> 12998 | AA28: FALSE
A29: 13 | B29: Stor_UEF-Gas-055gal-HI-0.61UEF | C29: Stor | D29: Gas | E29: UEF | F29: HI | G29: 55 | H29: 78 | I29: 0.61 | J29: 0.8 | K29: =IF(OR(C29="PkHP",C29="SpHP"),(I29-0.0043*VLOOKUP(F29,lookup!$AD$6:$AE$10,2,FALSE)-0.1513)/0.8407*(2.6-TechCalc!$N$4*0.0133333),#N/A) ->  | L29: 11.65 | M29: =IF(E29="EF",IF(D29="Elec",25.37*(1/I29-1),(J29/I29-1)/(24/41092-1/(I29*H29*1000))/67.5),IFERROR((1/I29-1/J29)/(lookup!AE$14*(24/VLOOKUP(F29,lookup!AD$6:AF$9,3,FALSE)-1/(J29*H29*1000))),#N/A)) -> 11.65298189 | Q29: =0 -> 0 | R29: 0 | S29: =IF(AND(D29="Gas",C29="Stor"),350,0) -> 350 | T29: =IF(S29>0,0.67,0) -> 0.67 | U29: =_xlfn.IFNA(VLOOKUP(B29,VintageUpdate!$Z:$Z,1,FALSE),_xlfn.IFNA(VLOOKUP(B29,VintageUpdate!$AF:$AF,1,FALSE),"No")) -> No | V29: Code/Std | W29: FALSE | Y29: Res | Z29: =IFERROR(MATCH(B29,TechResults!$B:$B,0),"No") -> 13446 | AA29: FALSE
A30: 14 | B30: Stor_UEF-Gas-075gal-HI-0.59UEF | C30: Stor | D30: Gas | E30: UEF | F30: HI | G30: 75 | H30: 75.6 | I30: 0.59 | J30: 0.71 | K30: =IF(OR(C30="PkHP",C30="SpHP"),(I30-0.0043*VLOOKUP(F30,lookup!$AD$6:$AE$10,2,FALSE)-0.1513)/0.8407*(2.6-TechCalc!$N$4*0.0133333),#N/A) ->  | L30: 8.62 | M30: =IF(E30="EF",IF(D30="Elec",25.37*(1/I30-1),(J30/I30-1)/(24/41092-1/(I30*H30*1000))/67.5),IFERROR((1/I30-1/J30)/(lookup!AE$14*(24/VLOOKUP(F30,lookup!AD$6:AF$9,3,FALSE)-1/(J30*H30*1000))),#N/A)) -> 8.619171205 | Q30: =0 -> 0 | R30: 0 | S30: 350 | T30: 0.67 | U30: =_xlfn.IFNA(VLOOKUP(B30,VintageUpdate!$Z:$Z,1,FALSE),_xlfn.IFNA(VLOOKUP(B30,VintageUpdate!$AF:$AF,1,FALSE),"No")) -> No | V30: Code/Std | W30: FALSE | Y30: Res | Z30: =IFERROR(MATCH(B30,TechResults!$B:$B,0),"No") -> 13894 | AA30: FALSE
A31: 15 | B31: Inst_UEF-Gas-lt200kBtuh-MD-0.87UEF | C31: Inst | D31: Gas | E31: UEF | F31: MD | G31: 0 | H31: 120 | I31: 0.9 | J31: 0.95 | K31: =IF(OR(C31="PkHP",C31="SpHP"),(I31-0.0043*VLOOKUP(F31,lookup!$AD$6:$AE$10,2,FALSE)-0.1513)/0.8407*(2.6-TechCalc!$N$4*0.0133333),#N/A) ->  | L31: 0 | M31: =IF(E31="EF",IF(D31="Elec",25.37*(1/I31-1),(J31/I31-1)/(24/41092-1/(I31*H31*1000))/67.5),IFERROR((1/I31-1/J31)/(lookup!AE$14*(24/VLOOKUP(F31,lookup!AD$6:AF$9,3,FALSE)-1/(J31*H31*1000))),#N/A)) -> 1.122694534 | Q31: =0 -> 0 | R31: 50 | S31: 0 | T31: 0 | U31: =_xlfn.IFNA(VLOOKUP(B31,VintageUpdate!$Z:$Z,1,FALSE),_xlfn.IFNA(VLOOKUP(B31,VintageUpdate!$AF:$AF,1,FALSE),"No")) -> No | V31: Measure | W31: FALSE | X31: Tier 1 | Y31: Res | Z31: =IFERROR(MATCH(B31,TechResults!$B:$B,0),"No") -> 14342 | AA31: FALSE
A32: 16 | B32: Inst_UEF-Gas-lt200kBtuh-HI-0.87UEF | C32: Inst | D32: Gas | E32: UEF | F32: HI | G32: 0 | H32: 163 | I32: 0.9 | J32: 0.92 | K32: =IF(OR(C32="PkHP",C32="SpHP"),(I32-0.0043*VLOOKUP(F32,lookup!$AD$6:$AE$10,2,FALSE)-0.1513)/0.8407*(2.6-TechCalc!$N$4*0.0133333),#N/A) ->  | L32: 0 | M32: =IF(E32="EF",IF(D32="Elec",25.37*(1/I32-1),(J32/I32-1)/(24/41092-1/(I32*H32*1000))/67.5),IFERROR((1/I32-1/J32)/(lookup!AE$14*(24/VLOOKUP(F32,lookup!AD$6:AF$9,3,FALSE)-1/(J32*H32*1000))),#N/A)) -> 0.7095282656 | Q32: =0 -> 0 | R32: =IF(AND(D32="Gas",J32>=0.84),50,0) -> 50 | S32: =IF(AND(D32="Gas",C32="Stor"),350,0) -> 0 | T32: =IF(S32>0,0.67,0) -> 0 | U32: =_xlfn.IFNA(VLOOKUP(B32,VintageUpdate!$Z:$Z,1,FALSE),_xlfn.IFNA(VLOOKUP(B32,VintageUpdate!$AF:$AF,1,FALSE),"No")) -> No | V32: Measure | W32: FALSE | X32: Tier 1 | Y32: Res | Z32: =IFERROR(MATCH(B32,TechResults!$B:$B,0),"No") -> 14790 | AA32: FALSE
A33: 17 | B33: Stor_UEF-ElecHP-050gal-3.30UEF | C33: PkHP | D33: Elec | E33: UEF | F33: MD-HI | G33: 50 | H33: 4.5 | I33: 3.42 | J33: N/A | K33: =IF(OR(C33="PkHP",C33="SpHP"),(I33-0.0043*VLOOKUP(F33,lookup!$AD$6:$AE$10,2,FALSE)-0.1513)/0.8407*(2.6-TechCalc!$N$4*0.0133333),#N/A) -> 2.826089407 | L33: =HPWH!$B$23 -> 4.369 | M33: =IF(E33="EF",IF(D33="Elec",25.37*(1/I33-1),(J33/I33-1)/(24/41092-1/(I33*H33*1000))/67.5),IFERROR((1/I33-1/J33)/(lookup!AE$14*(24/VLOOKUP(F33,lookup!AD$6:AF$9,3,FALSE)-1/(J33*H33*1000))),#N/A)) ->  | N33: 40 | O33: 120 | P33: =G33*(1/2) -> 25 | Q33: =0 -> 0 | R33: =IF(AND(D33="Gas",J33>=0.84),50,0) -> 0 | S33: =IF(AND(D33="Gas",C33="Stor"),350,0) -> 0 | T33: =IF(S33>0,0.67,0) -> 0 | U33: =_xlfn.IFNA(VLOOKUP(B33,VintageUpdate!$Z:$Z,1,FALSE),_xlfn.IFNA(VLOOKUP(B33,VintageUpdate!$AF:$AF,1,FALSE),"No")) -> No | V33: Measure | W33: FALSE | X33: Tier 1 | Y33: Res | Z33: =IFERROR(MATCH(B33,TechResults!$B:$B,0),"No") -> 15238 | AA33: FALSE
A34: 18 | B34: Stor_UEF-ElecHP-065gal-3.30UEF | C34: PkHP | D34: Elec | E34: UEF | F34: MD-HI | G34: 65 | H34: 4.5 | I34: 3.44 | J34: N/A | K34: =IF(OR(C34="PkHP",C34="SpHP"),(I34-0.0043*VLOOKUP(F34,lookup!$AD$6:$AE$10,2,FALSE)-0.1513)/0.8407*(2.6-TechCalc!$N$4*0.0133333),#N/A) -> 2.845121273 | L34: =HPWH!$B$23 -> 4.369 | M34: =IF(E34="EF",IF(D34="Elec",25.37*(1/I34-1),(J34/I34-1)/(24/41092-1/(I34*H34*1000))/67.5),IFERROR((1/I34-1/J34)/(lookup!AE$14*(24/VLOOKUP(F34,lookup!AD$6:AF$9,3,FALSE)-1/(J34*H34*1000))),#N/A)) ->  | N34: 40 | O34: 120 | P34: =G34*(1/2) -> 32.5 | Q34: =0 -> 0 | R34: 0 | S34: 0 | T34: 0 | U34: =_xlfn.IFNA(VLOOKUP(B34,VintageUpdate!$Z:$Z,1,FALSE),_xlfn.IFNA(VLOOKUP(B34,VintageUpdate!$AF:$AF,1,FALSE),"No")) -> No | V34: Measure | W34: FALSE | X34: Tier 1 | Y34: Res | Z34: =IFERROR(MATCH(B34,TechResults!$B:$B,0),"No") -> 15686 | AA34: FALSE
A35: 19 | B35: Stor_UEF-ElecHP-080gal-3.30UEF | C35: PkHP | D35: Elec | E35: UEF | F35: MD-HI | G35: 80 | H35: 4.5 | I35: 3.45 | J35: N/A | K35: =IF(OR(C35="PkHP",C35="SpHP"),(I35-0.0043*VLOOKUP(F35,lookup!$AD$6:$AE$10,2,FALSE)-0.1513)/0.8407*(2.6-TechCalc!$N$4*0.0133333),#N/A) -> 2.854637206 | L35: =HPWH!$B$23 -> 4.369 | M35: =IF(E35="EF",IF(D35="Elec",25.37*(1/I35-1),(J35/I35-1)/(24/41092-1/(I35*H35*1000))/67.5),IFERROR((1/I35-1/J35)/(lookup!AE$14*(24/VLOOKUP(F35,lookup!AD$6:AF$9,3,FALSE)-1/(J35*H35*1000))),#N/A)) ->  | N35: 40 | O35: 120 | P35: 40 | Q35: =0 -> 0 | R35: 0 | S35: 0 | T35: 0 | U35: =_xlfn.IFNA(VLOOKUP(B35,VintageUpdate!$Z:$Z,1,FALSE),_xlfn.IFNA(VLOOKUP(B35,VintageUpdate!$AF:$AF,1,FALSE),"No")) -> No | V35: Measure | W35: FALSE | X35: Tier 1 | Y35: Res | Z35: =IFERROR(MATCH(B35,TechResults!$B:$B,0),"No") -> 16134 | AA35: FALSE
A36: 20 | B36: Stor_UEF-ElecHP-050gal-3.50UEF | C36: PkHP | D36: Elec | E36: UEF | F36: MD-HI | G36: 50 | H36: 4.7 | I36: 3.52 | J36: N/A | K36: =IF(OR(C36="PkHP",C36="SpHP"),(I36-0.0043*VLOOKUP(F36,lookup!$AD$6:$AE$10,2,FALSE)-0.1513)/0.8407*(2.6-TechCalc!$N$4*0.0133333),#N/A) -> 2.921248738 | L36: =HPWH!$B$23 -> 4.369 | M36: =IF(E36="EF",IF(D36="Elec",25.37*(1/I36-1),(J36/I36-1)/(24/41092-1/(I36*H36*1000))/67.5),IFERROR((1/I36-1/J36)/(lookup!AE$14*(24/VLOOKUP(F36,lookup!AD$6:AF$9,3,FALSE)-1/(J36*H36*1000))),#N/A)) ->  | N36: 40 | O36: 120 | P36: 25 | Q36: =0 -> 0 | R36: 0 | S36: 0 | T36: 0 | U36: =_xlfn.IFNA(VLOOKUP(B36,VintageUpdate!$Z:$Z,1,FALSE),_xlfn.IFNA(VLOOKUP(B36,VintageUpdate!$AF:$AF,1,FALSE),"No")) -> No | V36: Measure | W36: FALSE | X36: Tier 2 | Y36: Res | Z36: =IFERROR(MATCH(B36,TechResults!$B:$B,0),"No") -> 16582 | AA36: FALSE
A37: 21 | B37: Stor_UEF-ElecHP-065gal-3.50UEF | C37: PkHP | D37: Elec | E37: UEF | F37: MD-HI | G37: 65 | H37: 3.4 | I37: 3.54 | J37: N/A | K37: =IF(OR(C37="PkHP",C37="SpHP"),(I37-0.0043*VLOOKUP(F37,lookup!$AD$6:$AE$10,2,FALSE)-0.1513)/0.8407*(2.6-TechCalc!$N$4*0.0133333),#N/A) -> 2.940280605 | L37: =HPWH!$B$23 -> 4.369 | M37: =IF(E37="EF",IF(D37="Elec",25.37*(1/I37-1),(J37/I37-1)/(24/41092-1/(I37*H37*1000))/67.5),IFERROR((1/I37-1/J37)/(lookup!AE$14*(24/VLOOKUP(F37,lookup!AD$6:AF$9,3,FALSE)-1/(J37*H37*1000))),#N/A)) ->  | N37: 40 | O37: 120 | P37: 32.5 | Q37: =0 -> 0 | R37: 0 | S37: 0 | T37: 0 | U37: =_xlfn.IFNA(VLOOKUP(B37,VintageUpdate!$Z:$Z,1,FALSE),_xlfn.IFNA(VLOOKUP(B37,VintageUpdate!$AF:$AF,1,FALSE),"No")) -> No | V37: Measure | W37: FALSE | X37: Tier 2 | Y37: Res | Z37: =IFERROR(MATCH(B37,TechResults!$B:$B,0),"No") -> 17030 | AA37: FALSE
A38: 22 | B38: Stor_UEF-ElecHP-080gal-3.50UEF | C38: PkHP | D38: Elec | E38: UEF | F38: MD-HI | G38: 80 | H38: 3.4 | I38: 3.61 | J38: N/A | K38: =IF(OR(C38="PkHP",C38="SpHP"),(I38-0.0043*VLOOKUP(F38,lookup!$AD$6:$AE$10,2,FALSE)-0.1513)/0.8407*(2.6-TechCalc!$N$4*0.0133333),#N/A) -> 3.006892137 | L38: =HPWH!$B$23 -> 4.369 | M38: =IF(E38="EF",IF(D38="Elec",25.37*(1/I38-1),(J38/I38-1)/(24/41092-1/(I38*H38*1000))/67.5),IFERROR((1/I38-1/J38)/(lookup!AE$14*(24/VLOOKUP(F38,lookup!AD$6:AF$9,3,FALSE)-1/(J38*H38*1000))),#N/A)) ->  | N38: 40 | O38: 120 | P38: 40 | Q38: =0 -> 0 | R38: 0 | S38: 0 | T38: 0 | U38: =_xlfn.IFNA(VLOOKUP(B38,VintageUpdate!$Z:$Z,1,FALSE),_xlfn.IFNA(VLOOKUP(B38,VintageUpdate!$AF:$AF,1,FALSE),"No")) -> No | V38: Measure | W38: FALSE | X38: Tier 2 | Y38: Res | Z38: =IFERROR(MATCH(B38,TechResults!$B:$B,0),"No") -> 17478 | AA38: FALSE
A39: 23 | B39: Stor_UEF-ElecHP-050gal-3.75UEF | C39: PkHP | D39: Elec | E39: UEF | F39: MD-HI | G39: 50 | H39: 3.8 | I39: 3.75 | J39: N/A | K39: =IF(OR(C39="PkHP",C39="SpHP"),(I39-0.0043*VLOOKUP(F39,lookup!$AD$6:$AE$10,2,FALSE)-0.1513)/0.8407*(2.6-TechCalc!$N$4*0.0133333),#N/A) -> 3.140115201 | L39: =HPWH!$B$23 -> 4.369 | M39: =IF(E39="EF",IF(D39="Elec",25.37*(1/I39-1),(J39/I39-1)/(24/41092-1/(I39*H39*1000))/67.5),IFERROR((1/I39-1/J39)/(lookup!AE$14*(24/VLOOKUP(F39,lookup!AD$6:AF$9,3,FALSE)-1/(J39*H39*1000))),#N/A)) ->  | N39: 40 | O39: 120 | P39: 25 | Q39: =0 -> 0 | R39: 0 | S39: 0 | T39: 0 | U39: =_xlfn.IFNA(VLOOKUP(B39,VintageUpdate!$Z:$Z,1,FALSE),_xlfn.IFNA(VLOOKUP(B39,VintageUpdate!$AF:$AF,1,FALSE),"No")) -> No | V39: Measure | W39: FALSE | X39: Tier 3 | Y39: Res | Z39: =IFERROR(MATCH(B39,TechResults!$B:$B,0),"No") -> 17926 | AA39: FALSE
A40: 24 | B40: Stor_UEF-ElecHP-065gal-3.75UEF | C40: PkHP | D40: Elec | E40: UEF | F40: MD-HI | G40: 65 | H40: 4.5 | I40: 3.85 | J40: N/A | K40: =IF(OR(C40="PkHP",C40="SpHP"),(I40-0.0043*VLOOKUP(F40,lookup!$AD$6:$AE$10,2,FALSE)-0.1513)/0.8407*(2.6-TechCalc!$N$4*0.0133333),#N/A) -> 3.235274532 | L40: =HPWH!$B$23 -> 4.369 | M40: =IF(E40="EF",IF(D40="Elec",25.37*(1/I40-1),(J40/I40-1)/(24/41092-1/(I40*H40*1000))/67.5),IFERROR((1/I40-1/J40)/(lookup!AE$14*(24/VLOOKUP(F40,lookup!AD$6:AF$9,3,FALSE)-1/(J40*H40*1000))),#N/A)) ->  | N40: 40 | O40: 120 | P40: 32.5 | Q40: =0 -> 0 | R40: 0 | S40: 0 | T40: 0 | U40: =_xlfn.IFNA(VLOOKUP(B40,VintageUpdate!$Z:$Z,1,FALSE),_xlfn.IFNA(VLOOKUP(B40,VintageUpdate!$AF:$AF,1,FALSE),"No")) -> No | V40: Measure | W40: FALSE | X40: Tier 3 | Y40: Res | Z40: =IFERROR(MATCH(B40,TechResults!$B:$B,0),"No") -> 18374 | AA40: FALSE
A41: 25 | B41: Stor_UEF-ElecHP-080gal-3.75UEF | C41: PkHP | D41: Elec | E41: UEF | F41: MD-HI | G41: 80 | H41: 4.5 | I41: 4 | J41: N/A | K41: =IF(OR(C41="PkHP",C41="SpHP"),(I41-0.0043*VLOOKUP(F41,lookup!$AD$6:$AE$10,2,FALSE)-0.1513)/0.8407*(2.6-TechCalc!$N$4*0.0133333),#N/A) -> 3.37801353 | L41: =HPWH!$B$23 -> 4.369 | M41: =IF(E41="EF",IF(D41="Elec",25.37*(1/I41-1),(J41/I41-1)/(24/41092-1/(I41*H41*1000))/67.5),IFERROR((1/I41-1/J41)/(lookup!AE$14*(24/VLOOKUP(F41,lookup!AD$6:AF$9,3,FALSE)-1/(J41*H41*1000))),#N/A)) ->  | N41: 40 | O41: 120 | P41: 40 | Q41: =0 -> 0 | R41: 0 | S41: 0 | T41: 0 | U41: =_xlfn.IFNA(VLOOKUP(B41,VintageUpdate!$Z:$Z,1,FALSE),_xlfn.IFNA(VLOOKUP(B41,VintageUpdate!$AF:$AF,1,FALSE),"No")) -> No | V41: Measure | W41: FALSE | X41: Tier 3 | Y41: Res | Z41: =IFERROR(MATCH(B41,TechResults!$B:$B,0),"No") -> 18822 | AA41: FALSE
A42: 26 | B42: Inst_UEF-Gas-lt200kBtuh-HI-0.92UEF | C42: Inst | D42: Gas | E42: UEF | F42: HI | G42: 0 | H42: 186 | I42: 0.93 | J42: 0.96 | K42: =IF(OR(C42="PkHP",C42="SpHP"),(I42-0.0043*VLOOKUP(F42,lookup!$AD$6:$AE$10,2,FALSE)-0.1513)/0.8407*(2.6-TechCalc!$N$4*0.0133333),#N/A) ->  | L42: 0 | M42: =IF(E42="EF",IF(D42="Elec",25.37*(1/I42-1),(J42/I42-1)/(24/41092-1/(I42*H42*1000))/67.5),IFERROR((1/I42-1/J42)/(lookup!AE$14*(24/VLOOKUP(F42,lookup!AD$6:AF$9,3,FALSE)-1/(J42*H42*1000))),#N/A)) -> 0.9849594449 | Q42: =0 -> 0 | R42: =IF(AND(D42="Gas",J42>=0.84),50,0) -> 50 | S42: =IF(AND(D42="Gas",C42="Stor"),350,0) -> 0 | T42: =IF(S42>0,0.67,0) -> 0 | U42: =_xlfn.IFNA(VLOOKUP(B42,VintageUpdate!$Z:$Z,1,FALSE),_xlfn.IFNA(VLOOKUP(B42,VintageUpdate!$AF:$AF,1,FALSE),"No")) -> No | V42: Measure | W42: FALSE | X42: Tier 2 - Consolidated draw pattern | Y42: Res | Z42: =IFERROR(MATCH(B42,TechResults!$B:$B,0),"No") -> 19270 | AA42: FALSE
A43: 27 | B43: Inst_UEF-Gas-lt200kBtuh-HI-0.96UEF | C43: Inst | D43: Gas | E43: UEF | F43: HI | G43: 0 | H43: 199 | I43: 0.96 | J43: 0.99 | K43: =IF(OR(C43="PkHP",C43="SpHP"),(I43-0.0043*VLOOKUP(F43,lookup!$AD$6:$AE$10,2,FALSE)-0.1513)/0.8407*(2.6-TechCalc!$N$4*0.0133333),#N/A) ->  | L43: 0 | M43: =IF(E43="EF",IF(D43="Elec",25.37*(1/I43-1),(J43/I43-1)/(24/41092-1/(I43*H43*1000))/67.5),IFERROR((1/I43-1/J43)/(lookup!AE$14*(24/VLOOKUP(F43,lookup!AD$6:AF$9,3,FALSE)-1/(J43*H43*1000))),#N/A)) -> 0.9243057652 | Q43: =0 -> 0 | R43: 50 | S43: 0 | T43: 0 | U43: =_xlfn.IFNA(VLOOKUP(B43,VintageUpdate!$Z:$Z,1,FALSE),_xlfn.IFNA(VLOOKUP(B43,VintageUpdate!$AF:$AF,1,FALSE),"No")) -> No | V43: Measure | W43: FALSE | X43: Tier 3 - Consolidated draw pattern | Y43: Res | Z43: =IFERROR(MATCH(B43,TechResults!$B:$B,0),"No") -> 19718 | AA43: FALSE
A44: 28 | B44: Stor_UEF-Gas-030gal-0.60UEF | C44: Stor | D44: Gas | E44: UEF | F44: HI | G44: 30 | H44: 38.7 | I44: 0.6 | J44: 0.751 | K44: =IF(OR(C44="PkHP",C44="SpHP"),(I44-0.0043*VLOOKUP(F44,lookup!$AD$6:$AE$10,2,FALSE)-0.1513)/0.8407*(2.6-TechCalc!$N$4*0.0133333),#N/A) ->  | L44: =L24 -> 6.416355467 | M44: =IF(E44="EF",IF(D44="Elec",25.37*(1/I44-1),(J44/I44-1)/(24/41092-1/(I44*H44*1000))/67.5),IFERROR((1/I44-1/J44)/(lookup!AE$14*(24/VLOOKUP(F44,lookup!AD$6:AF$9,3,FALSE)-1/(J44*H44*1000))),#N/A)) -> 10.41654911 | Q44: =0 -> 0 | R44: 0 | S44: 350 | T44: 0.67 | U44: =_xlfn.IFNA(VLOOKUP(B44,VintageUpdate!$Z:$Z,1,FALSE),_xlfn.IFNA(VLOOKUP(B44,VintageUpdate!$AF:$AF,1,FALSE),"No")) -> No | V44: Code/Std | W44: FALSE | X44: "Consolidated" offering | Y44: Res | Z44: =IFERROR(MATCH(B44,TechResults!$B:$B,0),"No") -> 20166 | AA44: FALSE
A45: 29 | B45: Stor_UEF-Gas-040gal-0.64UEF | C45: Stor | D45: Gas | E45: UEF | F45: HI | G45: 40 | H45: 38.7 | I45: 0.61 | J45: 0.759 | K45: =IF(OR(C45="PkHP",C45="SpHP"),(I45-0.0043*VLOOKUP(F45,lookup!$AD$6:$AE$10,2,FALSE)-0.1513)/0.8407*(2.6-TechCalc!$N$4*0.0133333),#N/A) ->  | L45: =L26 -> 7.216062777 | M45: =IF(E45="EF",IF(D45="Elec",25.37*(1/I45-1),(J45/I45-1)/(24/41092-1/(I45*H45*1000))/67.5),IFERROR((1/I45-1/J45)/(lookup!AE$14*(24/VLOOKUP(F45,lookup!AD$6:AF$9,3,FALSE)-1/(J45*H45*1000))),#N/A)) -> 9.995912032 | Q45: =0 -> 0 | R45: 0 | S45: 350 | T45: 0.67 | U45: =_xlfn.IFNA(VLOOKUP(B45,VintageUpdate!$Z:$Z,1,FALSE),_xlfn.IFNA(VLOOKUP(B45,VintageUpdate!$AF:$AF,1,FALSE),"No")) -> No | V45: Code/Std | W45: FALSE | X45: "Consolidated" offering | Y45: Res | Z45: =IFERROR(MATCH(B45,TechResults!$B:$B,0),"No") -> 20614 | AA45: FALSE
A46: 30 | B46: Stor_UEF-Gas-050gal-0.63UEF | C46: Stor | D46: Gas | E46: UEF | F46: HI | G46: 50 | H46: 39.4 | I46: 0.61 | J46: 0.764 | K46: =IF(OR(C46="PkHP",C46="SpHP"),(I46-0.0043*VLOOKUP(F46,lookup!$AD$6:$AE$10,2,FALSE)-0.1513)/0.8407*(2.6-TechCalc!$N$4*0.0133333),#N/A) ->  | L46: =L28 -> 9.141447574 | M46: =IF(E46="EF",IF(D46="Elec",25.37*(1/I46-1),(J46/I46-1)/(24/41092-1/(I46*H46*1000))/67.5),IFERROR((1/I46-1/J46)/(lookup!AE$14*(24/VLOOKUP(F46,lookup!AD$6:AF$9,3,FALSE)-1/(J46*H46*1000))),#N/A)) -> 10.24603742 | Q46: =0 -> 0 | R46: 0 | S46: 350 | T46: 0.67 | U46: =_xlfn.IFNA(VLOOKUP(B46,VintageUpdate!$Z:$Z,1,FALSE),_xlfn.IFNA(VLOOKUP(B46,VintageUpdate!$AF:$AF,1,FALSE),"No")) -> No | V46: Code/Std | W46: FALSE | X46: "Consolidated" offering | Y46: Res | Z46: =IFERROR(MATCH(B46,TechResults!$B:$B,0),"No") -> 21062 | AA46: FALSE
A47: 31 | B47: Stor_UEF-Gas-030gal-HI-0.78UEF | C47: Stor | D47: Gas | E47: UEF | F47: HI | G47: 30 | H47: 75.3 | I47: 0.88 | J47: 0.97 | K47: =IF(OR(C47="PkHP",C47="SpHP"),(I47-0.0043*VLOOKUP(F47,lookup!$AD$6:$AE$10,2,FALSE)-0.1513)/0.8407*(2.6-TechCalc!$N$4*0.0133333),#N/A) ->  | L47: 3.1 | M47: =IF(E47="EF",IF(D47="Elec",25.37*(1/I47-1),(J47/I47-1)/(24/41092-1/(I47*H47*1000))/67.5),IFERROR((1/I47-1/J47)/(lookup!AE$14*(24/VLOOKUP(F47,lookup!AD$6:AF$9,3,FALSE)-1/(J47*H47*1000))),#N/A)) -> 3.140854187 | Q47: =0 -> 0 | R47: 50 | S47: 350 | T47: 0.67 | U47: =_xlfn.IFNA(VLOOKUP(B47,VintageUpdate!$Z:$Z,1,FALSE),_xlfn.IFNA(VLOOKUP(B47,VintageUpdate!$AF:$AF,1,FALSE),"No")) -> No | V47: Measure | W47: FALSE | X47: Tier 2 | Y47: Res | Z47: =IFERROR(MATCH(B47,TechResults!$B:$B,0),"No") -> 21510 | AA47: FALSE
A48: 32 | B48: Stor_UEF-Gas-040gal-HI-0.78UEF | C48: Stor | D48: Gas | E48: UEF | F48: HI | G48: 40 | H48: 40 | I48: 0.83 | J48: 0.92 | K48: =IF(OR(C48="PkHP",C48="SpHP"),(I48-0.0043*VLOOKUP(F48,lookup!$AD$6:$AE$10,2,FALSE)-0.1513)/0.8407*(2.6-TechCalc!$N$4*0.0133333),#N/A) ->  | L48: 3.6 | M48: =IF(E48="EF",IF(D48="Elec",25.37*(1/I48-1),(J48/I48-1)/(24/41092-1/(I48*H48*1000))/67.5),IFERROR((1/I48-1/J48)/(lookup!AE$14*(24/VLOOKUP(F48,lookup!AD$6:AF$9,3,FALSE)-1/(J48*H48*1000))),#N/A)) -> 3.608885202 | Q48: =0 -> 0 | R48: 50 | S48: 350 | T48: 0.67 | U48: =_xlfn.IFNA(VLOOKUP(B48,VintageUpdate!$Z:$Z,1,FALSE),_xlfn.IFNA(VLOOKUP(B48,VintageUpdate!$AF:$AF,1,FALSE),"No")) -> No | V48: Measure | W48: FALSE | X48: Tier 2 | Y48: Res | Z48: =IFERROR(MATCH(B48,TechResults!$B:$B,0),"No") -> 21958 | AA48: FALSE
A49: 33 | B49: Stor_UEF-Gas-050gal-HI-0.78UEF | C49: Stor | D49: Gas | E49: UEF | F49: HI | G49: 50 | H49: 40 | I49: 0.8 | J49: 0.89 | K49: =IF(OR(C49="PkHP",C49="SpHP"),(I49-0.0043*VLOOKUP(F49,lookup!$AD$6:$AE$10,2,FALSE)-0.1513)/0.8407*(2.6-TechCalc!$N$4*0.0133333),#N/A) ->  | L49: 3.9 | M49: =IF(E49="EF",IF(D49="Elec",25.37*(1/I49-1),(J49/I49-1)/(24/41092-1/(I49*H49*1000))/67.5),IFERROR((1/I49-1/J49)/(lookup!AE$14*(24/VLOOKUP(F49,lookup!AD$6:AF$9,3,FALSE)-1/(J49*H49*1000))),#N/A)) -> 3.877769182 | Q49: =0 -> 0 | R49: 50 | S49: 350 | T49: 0.67 | U49: =_xlfn.IFNA(VLOOKUP(B49,VintageUpdate!$Z:$Z,1,FALSE),_xlfn.IFNA(VLOOKUP(B49,VintageUpdate!$AF:$AF,1,FALSE),"No")) -> No | V49: Measure | W49: FALSE | X49: Tier 2 | Y49: Res | Z49: =IFERROR(MATCH(B49,TechResults!$B:$B,0),"No") -> 22406 | AA49: FALSE
A50: 34 | B50: Inst_UEF-Gas-lt200kBtuh-MD-0.81UEF | C50: Inst | D50: Gas | E50: UEF | F50: MD | G50: 0 | H50: 140 | I50: 0.81 | J50: 0.84 | K50: =IF(OR(C50="PkHP",C50="SpHP"),(I50-0.0043*VLOOKUP(F50,lookup!$AD$6:$AE$10,2,FALSE)-0.1513)/0.8407*(2.6-TechCalc!$N$4*0.0133333),#N/A) ->  | L50: 0 | M50: =IF(E50="EF",IF(D50="Elec",25.37*(1/I50-1),(J50/I50-1)/(24/41092-1/(I50*H50*1000))/67.5),IFERROR((1/I50-1/J50)/(lookup!AE$14*(24/VLOOKUP(F50,lookup!AD$6:AF$9,3,FALSE)-1/(J50*H50*1000))),#N/A)) -> 0.8461815851 | Q50: =0 -> 0 | R50: 50 | S50: 0 | T50: 0 | U50: =_xlfn.IFNA(VLOOKUP(B50,VintageUpdate!$Z:$Z,1,FALSE),_xlfn.IFNA(VLOOKUP(B50,VintageUpdate!$AF:$AF,1,FALSE),"No")) -> No | V50: Code/Std | W50: FALSE | Y50: Res | Z50: =IFERROR(MATCH(B50,TechResults!$B:$B,0),"No") -> 22854 | AA50: FALSE
A51: 35 | B51: Inst_UEF-Gas-lt200kBtuh-HI-0.81UEF | C51: Inst | D51: Gas | E51: UEF | F51: HI | G51: 0 | H51: 190 | I51: 0.81 | J51: 0.84 | K51: =IF(OR(C51="PkHP",C51="SpHP"),(I51-0.0043*VLOOKUP(F51,lookup!$AD$6:$AE$10,2,FALSE)-0.1513)/0.8407*(2.6-TechCalc!$N$4*0.0133333),#N/A) ->  | L51: 0 | M51: =IF(E51="EF",IF(D51="Elec",25.37*(1/I51-1),(J51/I51-1)/(24/41092-1/(I51*H51*1000))/67.5),IFERROR((1/I51-1/J51)/(lookup!AE$14*(24/VLOOKUP(F51,lookup!AD$6:AF$9,3,FALSE)-1/(J51*H51*1000))),#N/A)) -> 1.294137114 | Q51: =0 -> 0 | R51: 50 | S51: 0 | T51: 0 | U51: =_xlfn.IFNA(VLOOKUP(B51,VintageUpdate!$Z:$Z,1,FALSE),_xlfn.IFNA(VLOOKUP(B51,VintageUpdate!$AF:$AF,1,FALSE),"No")) -> No | V51: Code/Std | W51: FALSE | Y51: Res | Z51: =IFERROR(MATCH(B51,TechResults!$B:$B,0),"No") -> 23302 | AA51: FALSE
A52: 36 | B52: Stor_UEF-Gas-030gal-HI-0.89UEF | C52: Stor | D52: Gas | E52: UEF | F52: HI | G52: 20 | H52: 76 | I52: 0.89 | J52: 0.96 | K52: =IF(OR(C52="PkHP",C52="SpHP"),(I52-0.0043*VLOOKUP(F52,lookup!$AD$6:$AE$10,2,FALSE)-0.1513)/0.8407*(2.6-TechCalc!$N$4*0.0133333),#N/A) ->  | L52: =M52 -> 2.440673837 | M52: =IF(E52="EF",IF(D52="Elec",25.37*(1/I52-1),(J52/I52-1)/(24/41092-1/(I52*H52*1000))/67.5),IFERROR((1/I52-1/J52)/(lookup!AE$14*(24/VLOOKUP(F52,lookup!AD$6:AF$9,3,FALSE)-1/(J52*H52*1000))),#N/A)) -> 2.440673837 | Q52: =0 -> 0 | R52: =IF(AND(D52="Gas",J52>=0.84),50,0) -> 50 | S52: =IF(AND(D52="Gas",C52="Stor"),350,0) -> 350 | T52: 0.67 | U52: =_xlfn.IFNA(VLOOKUP(B52,VintageUpdate!$Z:$Z,1,FALSE),_xlfn.IFNA(VLOOKUP(B52,VintageUpdate!$AF:$AF,1,FALSE),"No")) -> No | V52: Measure | W52: FALSE | X52: Tier 3 Gas storage (Res-Duty) | Y52: Res | Z52: =IFERROR(MATCH(B52,TechResults!$B:$B,0),"No") -> 23750 | AA52: FALSE
A53: 37 | B53: Stor_UEF-Gas-040gal-HI-0.90UEF | C53: Stor | D53: Gas | E53: UEF | F53: HI | G53: 33 | H53: 100 | I53: 0.9 | J53: 0.95 | K53: =IF(OR(C53="PkHP",C53="SpHP"),(I53-0.0043*VLOOKUP(F53,lookup!$AD$6:$AE$10,2,FALSE)-0.1513)/0.8407*(2.6-TechCalc!$N$4*0.0133333),#N/A) ->  | L53: =M53 -> 1.731046563 | M53: =IF(E53="EF",IF(D53="Elec",25.37*(1/I53-1),(J53/I53-1)/(24/41092-1/(I53*H53*1000))/67.5),IFERROR((1/I53-1/J53)/(lookup!AE$14*(24/VLOOKUP(F53,lookup!AD$6:AF$9,3,FALSE)-1/(J53*H53*1000))),#N/A)) -> 1.731046563 | Q53: =0 -> 0 | R53: =IF(AND(D53="Gas",J53>=0.84),50,0) -> 50 | S53: =IF(AND(D53="Gas",C53="Stor"),350,0) -> 350 | T53: 0.67 | U53: =_xlfn.IFNA(VLOOKUP(B53,VintageUpdate!$Z:$Z,1,FALSE),_xlfn.IFNA(VLOOKUP(B53,VintageUpdate!$AF:$AF,1,FALSE),"No")) -> No | V53: Measure | W53: FALSE | X53: Tier 3 Gas storage (Res-Duty) | Y53: Res | Z53: =IFERROR(MATCH(B53,TechResults!$B:$B,0),"No") -> 24198 | AA53: FALSE
A54: 38 | B54: Stor_UEF-Gas-050gal-HI-0.88UEF | C54: Stor | D54: Gas | E54: UEF | F54: HI | G54: 48 | H54: 86.3 | I54: 0.88 | J54: 0.94 | K54: =IF(OR(C54="PkHP",C54="SpHP"),(I54-0.0043*VLOOKUP(F54,lookup!$AD$6:$AE$10,2,FALSE)-0.1513)/0.8407*(2.6-TechCalc!$N$4*0.0133333),#N/A) ->  | L54: =M54 -> 2.1548202 | M54: =IF(E54="EF",IF(D54="Elec",25.37*(1/I54-1),(J54/I54-1)/(24/41092-1/(I54*H54*1000))/67.5),IFERROR((1/I54-1/J54)/(lookup!AE$14*(24/VLOOKUP(F54,lookup!AD$6:AF$9,3,FALSE)-1/(J54*H54*1000))),#N/A)) -> 2.1548202 | Q54: =0 -> 0 | R54: =IF(AND(D54="Gas",J54>=0.84),50,0) -> 50 | S54: =IF(AND(D54="Gas",C54="Stor"),350,0) -> 350 | T54: 0.67 | U54: =_xlfn.IFNA(VLOOKUP(B54,VintageUpdate!$Z:$Z,1,FALSE),_xlfn.IFNA(VLOOKUP(B54,VintageUpdate!$AF:$AF,1,FALSE),"No")) -> No | V54: Measure | W54: FALSE | X54: Tier 3 Gas storage (Res-Duty) | Y54: Res | Z54: =IFERROR(MATCH(B54,TechResults!$B:$B,0),"No") -> 24646 | AA54: FALSE
A55: 39 | B55: Stor_TE-Gas-gt75kBtuh-0.90Et | C55: Stor | D55: Gas | E55: TE | F55: N/A | G55: 79 | H55: 225 | I55: N/A | J55: 0.94 | K55: =IF(OR(C55="PkHP",C55="SpHP"),(I55-0.0043*VLOOKUP(F55,lookup!$AD$6:$AE$10,2,FALSE)-0.1513)/0.8407*(2.6-TechCalc!$N$4*0.0133333),#N/A) ->  | L55: 12.4 | M55: =IF(E55="EF",IF(D55="Elec",25.37*(1/I55-1),(J55/I55-1)/(24/41092-1/(I55*H55*1000))/67.5),IFERROR((1/I55-1/J55)/(lookup!AE$14*(24/VLOOKUP(F55,lookup!AD$6:AF$9,3,FALSE)-1/(J55*H55*1000))),#N/A)) ->  | Q55: =0 -> 0 | R55: 50 | S55: 350 | T55: 0.67 | U55: =_xlfn.IFNA(VLOOKUP(B55,VintageUpdate!$Z:$Z,1,FALSE),_xlfn.IFNA(VLOOKUP(B55,VintageUpdate!$AF:$AF,1,FALSE),"No")) -> No | V55: Measure | W55: FALSE | Y55: Com | Z55: =IFERROR(MATCH(B55,TechResults!$B:$B,0),"No") -> 3142 | AA55: FALSE
A56: 40 | B56: Stor_TE-Gas-gt75kBtuh-0.96Et | C56: Stor | D56: Gas | E56: TE | F56: N/A | G56: 75 | H56: 170.6 | I56: N/A | J56: 0.962 | K56: =IF(OR(C56="PkHP",C56="SpHP"),(I56-0.0043*VLOOKUP(F56,lookup!$AD$6:$AE$10,2,FALSE)-0.1513)/0.8407*(2.6-TechCalc!$N$4*0.0133333),#N/A) ->  | L56: 13.2 | M56: =IF(E56="EF",IF(D56="Elec",25.37*(1/I56-1),(J56/I56-1)/(24/41092-1/(I56*H56*1000))/67.5),IFERROR((1/I56-1/J56)/(lookup!AE$14*(24/VLOOKUP(F56,lookup!AD$6:AF$9,3,FALSE)-1/(J56*H56*1000))),#N/A)) ->  | Q56: =0 -> 0 | R56: 50 | S56: 350 | T56: 0.67 | U56: =_xlfn.IFNA(VLOOKUP(B56,VintageUpdate!$Z:$Z,1,FALSE),_xlfn.IFNA(VLOOKUP(B56,VintageUpdate!$AF:$AF,1,FALSE),"No")) -> No | V56: Measure | W56: FALSE | Y56: Com | Z56: =IFERROR(MATCH(B56,TechResults!$B:$B,0),"No") -> 3590 | AA56: FALSE
A57: 41 | B57: Stor_TE-Gas-gt75kBtuh-0.80Et | C57: Stor | D57: Gas | E57: TE | F57: N/A | G57: 83 | H57: 183.6 | I57: N/A | J57: 0.802 | K57: =IF(OR(C57="PkHP",C57="SpHP"),(I57-0.0043*VLOOKUP(F57,lookup!$AD$6:$AE$10,2,FALSE)-0.1513)/0.8407*(2.6-TechCalc!$N$4*0.0133333),#N/A) ->  | L57: 17 | M57: =IF(E57="EF",IF(D57="Elec",25.37*(1/I57-1),(J57/I57-1)/(24/41092-1/(I57*H57*1000))/67.5),IFERROR((1/I57-1/J57)/(lookup!AE$14*(24/VLOOKUP(F57,lookup!AD$6:AF$9,3,FALSE)-1/(J57*H57*1000))),#N/A)) ->  | Q57: =0 -> 0 | R57: 0 | S57: 350 | T57: 0.67 | U57: =_xlfn.IFNA(VLOOKUP(B57,VintageUpdate!$Z:$Z,1,FALSE),_xlfn.IFNA(VLOOKUP(B57,VintageUpdate!$AF:$AF,1,FALSE),"No")) -> Stor_TE-Gas-gt75kBtuh-0.80Et | V57: Code/Std | W57: FALSE | Y57: Com | Z57: =IFERROR(MATCH(B57,TechResults!$B:$B,0),"No") -> 6 | AA57: FALSE
A58: 42 | B58: Inst_TE-Gas-lt200kBtuh-0.80Et | C58: Inst | D58: Gas | E58: TE | F58: N/A | G58: 37 | H58: 199 | I58: N/A | J58: 0.8 | K58: =IF(OR(C58="PkHP",C58="SpHP"),(I58-0.0043*VLOOKUP(F58,lookup!$AD$6:$AE$10,2,FALSE)-0.1513)/0.8407*(2.6-TechCalc!$N$4*0.0133333),#N/A) ->  | L58: 12.9 | M58: =IF(E58="EF",IF(D58="Elec",25.37*(1/I58-1),(J58/I58-1)/(24/41092-1/(I58*H58*1000))/67.5),IFERROR((1/I58-1/J58)/(lookup!AE$14*(24/VLOOKUP(F58,lookup!AD$6:AF$9,3,FALSE)-1/(J58*H58*1000))),#N/A)) ->  | Q58: =0 -> 0 | R58: 0 | S58: 0 | T58: 0 | U58: =_xlfn.IFNA(VLOOKUP(B58,VintageUpdate!$Z:$Z,1,FALSE),_xlfn.IFNA(VLOOKUP(B58,VintageUpdate!$AF:$AF,1,FALSE),"No")) -> No | V58: Code/Std | W58: FALSE | X58: CFR doesn’t define com inst < 200 kBtuh | Y58: Com | Z58: =IFERROR(MATCH(B58,TechResults!$B:$B,0),"No") -> 454 | AA58: FALSE
A59: 43 | B59: Inst_TE-Gas-lt200kBtuh-0.84Et | C59: Inst | D59: Gas | E59: TE | F59: N/A | G59: 35 | H59: 199 | I59: N/A | J59: 0.84 | K59: =IF(OR(C59="PkHP",C59="SpHP"),(I59-0.0043*VLOOKUP(F59,lookup!$AD$6:$AE$10,2,FALSE)-0.1513)/0.8407*(2.6-TechCalc!$N$4*0.0133333),#N/A) ->  | L59: 10 | M59: =IF(E59="EF",IF(D59="Elec",25.37*(1/I59-1),(J59/I59-1)/(24/41092-1/(I59*H59*1000))/67.5),IFERROR((1/I59-1/J59)/(lookup!AE$14*(24/VLOOKUP(F59,lookup!AD$6:AF$9,3,FALSE)-1/(J59*H59*1000))),#N/A)) ->  | Q59: =0 -> 0 | R59: 50 | S59: 0 | T59: 0 | U59: =_xlfn.IFNA(VLOOKUP(B59,VintageUpdate!$Z:$Z,1,FALSE),_xlfn.IFNA(VLOOKUP(B59,VintageUpdate!$AF:$AF,1,FALSE),"No")) -> No | V59: Measure | W59: FALSE | Y59: Com | Z59: =IFERROR(MATCH(B59,TechResults!$B:$B,0),"No") -> 4038 | AA59: FALSE
A60: 44 | B60: Inst_TE-Gas-lt200kBtuh-0.90Et | C60: Inst | D60: Gas | E60: TE | F60: N/A | G60: 34 | H60: 150 | I60: N/A | J60: 0.943 | K60: =IF(OR(C60="PkHP",C60="SpHP"),(I60-0.0043*VLOOKUP(F60,lookup!$AD$6:$AE$10,2,FALSE)-0.1513)/0.8407*(2.6-TechCalc!$N$4*0.0133333),#N/A) ->  | L60: 9.3 | M60: =IF(E60="EF",IF(D60="Elec",25.37*(1/I60-1),(J60/I60-1)/(24/41092-1/(I60*H60*1000))/67.5),IFERROR((1/I60-1/J60)/(lookup!AE$14*(24/VLOOKUP(F60,lookup!AD$6:AF$9,3,FALSE)-1/(J60*H60*1000))),#N/A)) ->  | Q60: =0 -> 0 | R60: 50 | S60: 0 | T60: 0 | U60: =_xlfn.IFNA(VLOOKUP(B60,VintageUpdate!$Z:$Z,1,FALSE),_xlfn.IFNA(VLOOKUP(B60,VintageUpdate!$AF:$AF,1,FALSE),"No")) -> No | V60: Measure | W60: FALSE | Y60: Com | Z60: =IFERROR(MATCH(B60,TechResults!$B:$B,0),"No") -> 4486 | AA60: FALSE
A61: 45 | B61: Inst_TE-Gas-lt200kBtuh-0.96Et | C61: Inst | D61: Gas | E61: TE | F61: N/A | G61: 35 | H61: 199 | I61: N/A | J61: 0.96 | K61: =IF(OR(C61="PkHP",C61="SpHP"),(I61-0.0043*VLOOKUP(F61,lookup!$AD$6:$AE$10,2,FALSE)-0.1513)/0.8407*(2.6-TechCalc!$N$4*0.0133333),#N/A) ->  | L61: 8 | M61: =IF(E61="EF",IF(D61="Elec",25.37*(1/I61-1),(J61/I61-1)/(24/41092-1/(I61*H61*1000))/67.5),IFERROR((1/I61-1/J61)/(lookup!AE$14*(24/VLOOKUP(F61,lookup!AD$6:AF$9,3,FALSE)-1/(J61*H61*1000))),#N/A)) ->  | Q61: =0 -> 0 | R61: =IF(AND(D61="Gas",J61>=0.84),50,0) -> 50 | S61: =IF(AND(D61="Gas",C61="Stor"),350,0) -> 0 | T61: =IF(S61>0,0.67,0) -> 0 | U61: =_xlfn.IFNA(VLOOKUP(B61,VintageUpdate!$Z:$Z,1,FALSE),_xlfn.IFNA(VLOOKUP(B61,VintageUpdate!$AF:$AF,1,FALSE),"No")) -> No | V61: Measure | W61: FALSE | X61: But there are ES Com Inst < 200 kBtuh | Y61: Com | Z61: =IFERROR(MATCH(B61,TechResults!$B:$B,0),"No") -> 4934 | AA61: FALSE
A62: 46 | B62: Inst_TE-Gas-gte200kBtuh-0.80Et | C62: Inst | D62: Gas | E62: TE | F62: N/A | G62: 77 | H62: 399 | I62: N/A | J62: 0.8 | K62: =IF(OR(C62="PkHP",C62="SpHP"),(I62-0.0043*VLOOKUP(F62,lookup!$AD$6:$AE$10,2,FALSE)-0.1513)/0.8407*(2.6-TechCalc!$N$4*0.0133333),#N/A) ->  | L62: 19.5 | M62: =IF(E62="EF",IF(D62="Elec",25.37*(1/I62-1),(J62/I62-1)/(24/41092-1/(I62*H62*1000))/67.5),IFERROR((1/I62-1/J62)/(lookup!AE$14*(24/VLOOKUP(F62,lookup!AD$6:AF$9,3,FALSE)-1/(J62*H62*1000))),#N/A)) ->  | Q62: =0 -> 0 | R62: 0 | S62: 0 | T62: 0 | U62: =_xlfn.IFNA(VLOOKUP(B62,VintageUpdate!$Z:$Z,1,FALSE),_xlfn.IFNA(VLOOKUP(B62,VintageUpdate!$AF:$AF,1,FALSE),"No")) -> No | V62: Code/Std | W62: FALSE | Y62: Com | Z62: =IFERROR(MATCH(B62,TechResults!$B:$B,0),"No") -> 902 | AA62: FALSE
A63: 47 | B63: Inst_TE-Gas-gte200kBtuh-0.84Et | C63: Inst | D63: Gas | E63: TE | F63: N/A | G63: 125.5 | H63: 700 | I63: N/A | J63: 0.84 | K63: =IF(OR(C63="PkHP",C63="SpHP"),(I63-0.0043*VLOOKUP(F63,lookup!$AD$6:$AE$10,2,FALSE)-0.1513)/0.8407*(2.6-TechCalc!$N$4*0.0133333),#N/A) ->  | L63: 21.1 | M63: =IF(E63="EF",IF(D63="Elec",25.37*(1/I63-1),(J63/I63-1)/(24/41092-1/(I63*H63*1000))/67.5),IFERROR((1/I63-1/J63)/(lookup!AE$14*(24/VLOOKUP(F63,lookup!AD$6:AF$9,3,FALSE)-1/(J63*H63*1000))),#N/A)) ->  | Q63: =0 -> 0 | R63: 50 | S63: 0 | T63: 0 | U63: =_xlfn.IFNA(VLOOKUP(B63,VintageUpdate!$Z:$Z,1,FALSE),_xlfn.IFNA(VLOOKUP(B63,VintageUpdate!$AF:$AF,1,FALSE),"No")) -> No | V63: Measure | W63: FALSE | Y63: Com | Z63: =IFERROR(MATCH(B63,TechResults!$B:$B,0),"No") -> 5382 | AA63: FALSE
A64: 48 | B64: Inst_TE-Gas-gte200kBtuh-0.90Et | C64: Inst | D64: Gas | E64: TE | F64: N/A | G64: 125.5 | H64: 700 | I64: N/A | J64: 0.943 | K64: =IF(OR(C64="PkHP",C64="SpHP"),(I64-0.0043*VLOOKUP(F64,lookup!$AD$6:$AE$10,2,FALSE)-0.1513)/0.8407*(2.6-TechCalc!$N$4*0.0133333),#N/A) ->  | L64: 21.1 | M64: =IF(E64="EF",IF(D64="Elec",25.37*(1/I64-1),(J64/I64-1)/(24/41092-1/(I64*H64*1000))/67.5),IFERROR((1/I64-1/J64)/(lookup!AE$14*(24/VLOOKUP(F64,lookup!AD$6:AF$9,3,FALSE)-1/(J64*H64*1000))),#N/A)) ->  | Q64: =0 -> 0 | R64: 50 | S64: 0 | T64: 0 | U64: =_xlfn.IFNA(VLOOKUP(B64,VintageUpdate!$Z:$Z,1,FALSE),_xlfn.IFNA(VLOOKUP(B64,VintageUpdate!$AF:$AF,1,FALSE),"No")) -> No | V64: Measure | W64: FALSE | Y64: Com | Z64: =IFERROR(MATCH(B64,TechResults!$B:$B,0),"No") -> 5830 | AA64: FALSE
A65: 49 | B65: Inst_TE-Gas-gte200kBtuh-0.96Et | C65: Inst | D65: Gas | E65: TE | F65: N/A | G65: 61.4 | H65: 678 | I65: N/A | J65: 0.975 | K65: =IF(OR(C65="PkHP",C65="SpHP"),(I65-0.0043*VLOOKUP(F65,lookup!$AD$6:$AE$10,2,FALSE)-0.1513)/0.8407*(2.6-TechCalc!$N$4*0.0133333),#N/A) ->  | L65: 10.3 | M65: =IF(E65="EF",IF(D65="Elec",25.37*(1/I65-1),(J65/I65-1)/(24/41092-1/(I65*H65*1000))/67.5),IFERROR((1/I65-1/J65)/(lookup!AE$14*(24/VLOOKUP(F65,lookup!AD$6:AF$9,3,FALSE)-1/(J65*H65*1000))),#N/A)) ->  | Q65: =0 -> 0 | R65: 50 | S65: 0 | T65: 0 | U65: =_xlfn.IFNA(VLOOKUP(B65,VintageUpdate!$Z:$Z,1,FALSE),_xlfn.IFNA(VLOOKUP(B65,VintageUpdate!$AF:$AF,1,FALSE),"No")) -> No | V65: Measure | W65: FALSE | Y65: Com | Z65: =IFERROR(MATCH(B65,TechResults!$B:$B,0),"No") -> 6278 | AA65: FALSE
A66: 50 | B66: Blr_TE-Gas-gte300kBtuh-0.80Et | C66: Inst | D66: Gas | E66: TE | F66: N/A | G66: 4.1 | H66: 1167 | I66: N/A | J66: 0.84 | K66: =IF(OR(C66="PkHP",C66="SpHP"),(I66-0.0043*VLOOKUP(F66,lookup!$AD$6:$AE$10,2,FALSE)-0.1513)/0.8407*(2.6-TechCalc!$N$4*0.0133333),#N/A) ->  | L66: 12 | M66: =IF(E66="EF",IF(D66="Elec",25.37*(1/I66-1),(J66/I66-1)/(24/41092-1/(I66*H66*1000))/67.5),IFERROR((1/I66-1/J66)/(lookup!AE$14*(24/VLOOKUP(F66,lookup!AD$6:AF$9,3,FALSE)-1/(J66*H66*1000))),#N/A)) ->  | Q66: =0 -> 0 | R66: 50 | S66: 0 | T66: 0 | U66: =_xlfn.IFNA(VLOOKUP(B66,VintageUpdate!$Z:$Z,1,FALSE),_xlfn.IFNA(VLOOKUP(B66,VintageUpdate!$AF:$AF,1,FALSE),"No")) -> Blr_TE-Gas-gte300kBtuh-0.80Et | V66: Pre-existing | W66: FALSE | Y66: Com | Z66: =IFERROR(MATCH(B66,TechResults!$B:$B,0),"No") -> 6726 | AA66: FALSE
A67: 51 | B67: Blr_TE-Gas-gte300kBtuh-0.84Et | C67: Inst | D67: Gas | E67: TE | F67: N/A | G67: 7.6 | H67: 1706 | I67: N/A | J67: 0.857 | K67: =IF(OR(C67="PkHP",C67="SpHP"),(I67-0.0043*VLOOKUP(F67,lookup!$AD$6:$AE$10,2,FALSE)-0.1513)/0.8407*(2.6-TechCalc!$N$4*0.0133333),#N/A) ->  | L67: 17.6 | M67: =IF(E67="EF",IF(D67="Elec",25.37*(1/I67-1),(J67/I67-1)/(24/41092-1/(I67*H67*1000))/67.5),IFERROR((1/I67-1/J67)/(lookup!AE$14*(24/VLOOKUP(F67,lookup!AD$6:AF$9,3,FALSE)-1/(J67*H67*1000))),#N/A)) ->  | Q67: =0 -> 0 | R67: 50 | S67: 0 | T67: 0 | U67: =_xlfn.IFNA(VLOOKUP(B67,VintageUpdate!$Z:$Z,1,FALSE),_xlfn.IFNA(VLOOKUP(B67,VintageUpdate!$AF:$AF,1,FALSE),"No")) -> No | V67: Code/Std | W67: FALSE | Y67: Com | Z67: =IFERROR(MATCH(B67,TechResults!$B:$B,0),"No") -> 42118 | AA67: FALSE
A68: 52 | B68: Blr_TE-Gas-gte300kBtuh-0.90Et | C68: Inst | D68: Gas | E68: TE | F68: N/A | G68: 6.5 | H68: 1330 | I68: N/A | J68: 0.913 | K68: =IF(OR(C68="PkHP",C68="SpHP"),(I68-0.0043*VLOOKUP(F68,lookup!$AD$6:$AE$10,2,FALSE)-0.1513)/0.8407*(2.6-TechCalc!$N$4*0.0133333),#N/A) ->  | L68: 18.1 | M68: =IF(E68="EF",IF(D68="Elec",25.37*(1/I68-1),(J68/I68-1)/(24/41092-1/(I68*H68*1000))/67.5),IFERROR((1/I68-1/J68)/(lookup!AE$14*(24/VLOOKUP(F68,lookup!AD$6:AF$9,3,FALSE)-1/(J68*H68*1000))),#N/A)) ->  | Q68: =0 -> 0 | R68: 50 | S68: 0 | T68: 0 | U68: =_xlfn.IFNA(VLOOKUP(B68,VintageUpdate!$Z:$Z,1,FALSE),_xlfn.IFNA(VLOOKUP(B68,VintageUpdate!$AF:$AF,1,FALSE),"No")) -> No | V68: Measure | W68: FALSE | Y68: Com | Z68: =IFERROR(MATCH(B68,TechResults!$B:$B,0),"No") -> 7174 | AA68: FALSE
A69: 53 | B69: Blr_TE-Gas-gte300kBtuh-0.96Et | C69: Inst | D69: Gas | E69: TE | F69: N/A | G69: 25.8 | H69: 1081 | I69: N/A | J69: 0.962 | K69: =IF(OR(C69="PkHP",C69="SpHP"),(I69-0.0043*VLOOKUP(F69,lookup!$AD$6:$AE$10,2,FALSE)-0.1513)/0.8407*(2.6-TechCalc!$N$4*0.0133333),#N/A) ->  | L69: 8.3 | M69: =IF(E69="EF",IF(D69="Elec",25.37*(1/I69-1),(J69/I69-1)/(24/41092-1/(I69*H69*1000))/67.5),IFERROR((1/I69-1/J69)/(lookup!AE$14*(24/VLOOKUP(F69,lookup!AD$6:AF$9,3,FALSE)-1/(J69*H69*1000))),#N/A)) ->  | Q69: =0 -> 0 | R69: 50 | S69: 0 | T69: 0 | U69: =_xlfn.IFNA(VLOOKUP(B69,VintageUpdate!$Z:$Z,1,FALSE),_xlfn.IFNA(VLOOKUP(B69,VintageUpdate!$AF:$AF,1,FALSE),"No")) -> No | V69: Measure | W69: FALSE | Y69: Com | Z69: =IFERROR(MATCH(B69,TechResults!$B:$B,0),"No") -> 7622 | AA69: FALSE
A70: 54 | B70: Stor_UEF-Elec-030gal-MD-0.92UEF | C70: Stor | D70: Elec | E70: UEF | F70: MD | G70: 30 | H70: 5.5 | I70: 0.92 | J70: 0.98 | K70: =IF(OR(C70="PkHP",C70="SpHP"),(I70-0.0043*VLOOKUP(F70,lookup!$AD$6:$AE$10,2,FALSE)-0.1513)/0.8407*(2.6-TechCalc!$N$4*0.0133333),#N/A) ->  | L70: 1.66 | M70: =IF(E70="EF",IF(D70="Elec",25.37*(1/I70-1),(J70/I70-1)/(24/41092-1/(I70*H70*1000))/67.5),IFERROR((1/I70-1/J70)/(lookup!AE$14*(24/VLOOKUP(F70,lookup!AD$6:AF$9,3,FALSE)-1/(J70*H70*1000))),#N/A)) -> 1.657185214 | Q70: =0 -> 0 | R70: =IF(AND(D70="Gas",J70>=0.84),50,0) -> 0 | S70: =IF(AND(D70="Gas",C70="Stor"),350,0) -> 0 | T70: =IF(S70>0,0.67,0) -> 0 | U70: =_xlfn.IFNA(VLOOKUP(B70,VintageUpdate!$Z:$Z,1,FALSE),_xlfn.IFNA(VLOOKUP(B70,VintageUpdate!$AF:$AF,1,FALSE),"No")) -> No | V70: Code/Std | W70: FALSE | Y70: Res | Z70: =IFERROR(MATCH(B70,TechResults!$B:$B,0),"No") -> 25094 | AA70: FALSE
A71: 55 | B71: Stor_UEF-Elec-040gal-MD-0.92UEF | C71: Stor | D71: Elec | E71: UEF | F71: MD | G71: 40 | H71: 4.9 | I71: 0.93 | J71: 0.98 | K71: =IF(OR(C71="PkHP",C71="SpHP"),(I71-0.0043*VLOOKUP(F71,lookup!$AD$6:$AE$10,2,FALSE)-0.1513)/0.8407*(2.6-TechCalc!$N$4*0.0133333),#N/A) ->  | L71: 1.42 | M71: =IF(E71="EF",IF(D71="Elec",25.37*(1/I71-1),(J71/I71-1)/(24/41092-1/(I71*H71*1000))/67.5),IFERROR((1/I71-1/J71)/(lookup!AE$14*(24/VLOOKUP(F71,lookup!AD$6:AF$9,3,FALSE)-1/(J71*H71*1000))),#N/A)) -> 1.420376822 | Q71: =0 -> 0 | R71: 0 | S71: 0 | T71: 0 | U71: =_xlfn.IFNA(VLOOKUP(B71,VintageUpdate!$Z:$Z,1,FALSE),_xlfn.IFNA(VLOOKUP(B71,VintageUpdate!$AF:$AF,1,FALSE),"No")) -> No | V71: Code/Std | W71: FALSE | Y71: Res | Z71: =IFERROR(MATCH(B71,TechResults!$B:$B,0),"No") -> 25542 | AA71: FALSE
A72: 56 | B72: Stor_UEF-Elec-050gal-MD-0.92UEF | C72: Stor | D72: Elec | E72: UEF | F72: MD | G72: 50 | H72: 4.9 | I72: 0.93 | J72: 0.98 | K72: =IF(OR(C72="PkHP",C72="SpHP"),(I72-0.0043*VLOOKUP(F72,lookup!$AD$6:$AE$10,2,FALSE)-0.1513)/0.8407*(2.6-TechCalc!$N$4*0.0133333),#N/A) ->  | L72: 1.42 | M72: =IF(E72="EF",IF(D72="Elec",25.37*(1/I72-1),(J72/I72-1)/(24/41092-1/(I72*H72*1000))/67.5),IFERROR((1/I72-1/J72)/(lookup!AE$14*(24/VLOOKUP(F72,lookup!AD$6:AF$9,3,FALSE)-1/(J72*H72*1000))),#N/A)) -> 1.420376822 | Q72: =0 -> 0 | R72: 0 | S72: 0 | T72: 0 | U72: =_xlfn.IFNA(VLOOKUP(B72,VintageUpdate!$Z:$Z,1,FALSE),_xlfn.IFNA(VLOOKUP(B72,VintageUpdate!$AF:$AF,1,FALSE),"No")) -> No | V72: Code/Std | W72: FALSE | Y72: Res | Z72: =IFERROR(MATCH(B72,TechResults!$B:$B,0),"No") -> 25990 | AA72: FALSE
A73: 57 | B73: Stor_UEF-ElecHP-065gal-2.91UEF | C73: PkHP | D73: Elec | E73: UEF | F73: MD-HI | G73: 65 | H73: 4.3 | I73: 2.91 | J73: 2.46 | K73: =IF(OR(C73="PkHP",C73="SpHP"),(I73-0.0043*VLOOKUP(F73,lookup!$AD$6:$AE$10,2,FALSE)-0.1513)/0.8407*(2.6-TechCalc!$N$4*0.0133333),#N/A) -> 2.340776816 | L73: =HPWH!$B$23 -> 4.369 | M73: =IF(E73="EF",IF(D73="Elec",25.37*(1/I73-1),(J73/I73-1)/(24/41092-1/(I73*H73*1000))/67.5),IFERROR((1/I73-1/J73)/(lookup!AE$14*(24/VLOOKUP(F73,lookup!AD$6:AF$9,3,FALSE)-1/(J73*H73*1000))),#N/A)) ->  | N73: 40 | O73: 120 | P73: =G73*(1/2) -> 32.5 | Q73: =0 -> 0 | R73: =IF(AND(D73="Gas",J73>=0.84),50,0) -> 0 | S73: =IF(AND(D73="Gas",C73="Stor"),350,0) -> 0 | T73: =IF(S73>0,0.67,0) -> 0 | U73: =_xlfn.IFNA(VLOOKUP(B73,VintageUpdate!$Z:$Z,1,FALSE),_xlfn.IFNA(VLOOKUP(B73,VintageUpdate!$AF:$AF,1,FALSE),"No")) -> No | V73: Code/Std | W73: FALSE | Y73: Res | Z73: =IFERROR(MATCH(B73,TechResults!$B:$B,0),"No") -> 26438 | AA73: FALSE
A74: 58 | B74: Stor_UEF-ElecHP-080gal-3.00UEF | C74: PkHP | D74: Elec | E74: UEF | F74: MD-HI | G74: 80 | H74: 3.1 | I74: 3 | J74: 2.44 | K74: =IF(OR(C74="PkHP",C74="SpHP"),(I74-0.0043*VLOOKUP(F74,lookup!$AD$6:$AE$10,2,FALSE)-0.1513)/0.8407*(2.6-TechCalc!$N$4*0.0133333),#N/A) -> 2.426420214 | L74: =HPWH!$B$23 -> 4.369 | M74: =IF(E74="EF",IF(D74="Elec",25.37*(1/I74-1),(J74/I74-1)/(24/41092-1/(I74*H74*1000))/67.5),IFERROR((1/I74-1/J74)/(lookup!AE$14*(24/VLOOKUP(F74,lookup!AD$6:AF$9,3,FALSE)-1/(J74*H74*1000))),#N/A)) ->  | N74: 40 | O74: 120 | P74: =G74*(1/2) -> 40 | Q74: =0 -> 0 | R74: 0 | S74: 0 | T74: 0 | U74: =_xlfn.IFNA(VLOOKUP(B74,VintageUpdate!$Z:$Z,1,FALSE),_xlfn.IFNA(VLOOKUP(B74,VintageUpdate!$AF:$AF,1,FALSE),"No")) -> No | V74: Code/Std | W74: FALSE | Y74: Res | Z74: =IFERROR(MATCH(B74,TechResults!$B:$B,0),"No") -> 26886 | AA74: FALSE
A75: 59 | B75: Stor_COP-ElecHP-120gal-4.3COP | C75: PkHP | D75: Elec | E75: COP | F75: N/A | G75: 120 | H75: 12 | I75: N/A | J75: N/A | K75: 4.3 | L75: =HPWH!$B$23 -> 4.369 | M75: =IF(E75="EF",IF(D75="Elec",25.37*(1/I75-1),(J75/I75-1)/(24/41092-1/(I75*H75*1000))/67.5),IFERROR((1/I75-1/J75)/(lookup!AE$14*(24/VLOOKUP(F75,lookup!AD$6:AF$9,3,FALSE)-1/(J75*H75*1000))),#N/A)) ->  | N75: 40 | O75: 120 | P75: =G75*(1/2) -> 60 | Q75: =0 -> 0 | R75: =IF(AND(D75="Gas",J75>=0.84),50,0) -> 0 | S75: =IF(AND(D75="Gas",C75="Stor"),350,0) -> 0 | T75: =IF(S75>0,0.67,0) -> 0 | U75: =_xlfn.IFNA(VLOOKUP(B75,VintageUpdate!$Z:$Z,1,FALSE),_xlfn.IFNA(VLOOKUP(B75,VintageUpdate!$AF:$AF,1,FALSE),"No")) -> No | V75: Measure | W75: FALSE | Y75: Com | Z75: =IFERROR(MATCH(B75,TechResults!$B:$B,0),"No") -> 27334 | AA75: FALSE
A76: 60 | B76: Blr_TE-Gas-gte300kBtuh-0.77Et | C76: Inst | D76: Gas | E76: TE | F76: N/A | G76: 4.1 | H76: 1167 | I76: N/A | J76: 0.77 | K76: =IF(OR(C76="PkHP",C76="SpHP"),(I76-0.0043*VLOOKUP(F76,lookup!$AD$6:$AE$10,2,FALSE)-0.1513)/0.8407*(2.6-TechCalc!$N$4*0.0133333),#N/A) ->  | L76: 12 | M76: =IF(E76="EF",IF(D76="Elec",25.37*(1/I76-1),(J76/I76-1)/(24/41092-1/(I76*H76*1000))/67.5),IFERROR((1/I76-1/J76)/(lookup!AE$14*(24/VLOOKUP(F76,lookup!AD$6:AF$9,3,FALSE)-1/(J76*H76*1000))),#N/A)) ->  | Q76: =0 -> 0 | R76: =IF(AND(D76="Gas",J76>=0.84),50,0) -> 0 | S76: =IF(AND(D76="Gas",C76="Stor"),350,0) -> 0 | T76: =IF(S76>0,0.67,0) -> 0 | U76: =_xlfn.IFNA(VLOOKUP(B76,VintageUpdate!$Z:$Z,1,FALSE),_xlfn.IFNA(VLOOKUP(B76,VintageUpdate!$AF:$AF,1,FALSE),"No")) -> Blr_TE-Gas-gte300kBtuh-0.77Et | V76: Pre-existing | W76: FALSE | Y76: Com | Z76: =IFERROR(MATCH(B76,TechResults!$B:$B,0),"No") -> 1350 | AA76: FALSE
A77: 61 | B77: Blr_TE-Gas-gte300kBtuh-0.78Et | C77: Inst | D77: Gas | E77: TE | F77: N/A | G77: 4.1 | H77: 1167 | I77: N/A | J77: 0.78 | K77: =IF(OR(C77="PkHP",C77="SpHP"),(I77-0.0043*VLOOKUP(F77,lookup!$AD$6:$AE$10,2,FALSE)-0.1513)/0.8407*(2.6-TechCalc!$N$4*0.0133333),#N/A) ->  | L77: 12 | M77: =IF(E77="EF",IF(D77="Elec",25.37*(1/I77-1),(J77/I77-1)/(24/41092-1/(I77*H77*1000))/67.5),IFERROR((1/I77-1/J77)/(lookup!AE$14*(24/VLOOKUP(F77,lookup!AD$6:AF$9,3,FALSE)-1/(J77*H77*1000))),#N/A)) ->  | Q77: =0 -> 0 | R77: 0 | S77: 0 | T77: 0 | U77: =_xlfn.IFNA(VLOOKUP(B77,VintageUpdate!$Z:$Z,1,FALSE),_xlfn.IFNA(VLOOKUP(B77,VintageUpdate!$AF:$AF,1,FALSE),"No")) -> Blr_TE-Gas-gte300kBtuh-0.78Et | V77: Pre-existing | W77: FALSE | Y77: Com | Z77: =IFERROR(MATCH(B77,TechResults!$B:$B,0),"No") -> 1798 | AA77: FALSE
A78: 62 | B78: Stor_TE-Gas-gt75kBtuh-0.77Et | C78: Stor | D78: Gas | E78: TE | F78: N/A | G78: 83 | H78: 183.6 | I78: N/A | J78: 0.77 | K78: =IF(OR(C78="PkHP",C78="SpHP"),(I78-0.0043*VLOOKUP(F78,lookup!$AD$6:$AE$10,2,FALSE)-0.1513)/0.8407*(2.6-TechCalc!$N$4*0.0133333),#N/A) ->  | L78: 17 | M78: =IF(E78="EF",IF(D78="Elec",25.37*(1/I78-1),(J78/I78-1)/(24/41092-1/(I78*H78*1000))/67.5),IFERROR((1/I78-1/J78)/(lookup!AE$14*(24/VLOOKUP(F78,lookup!AD$6:AF$9,3,FALSE)-1/(J78*H78*1000))),#N/A)) ->  | Q78: =0 -> 0 | R78: 0 | S78: 350 | T78: 0.67 | U78: =_xlfn.IFNA(VLOOKUP(B78,VintageUpdate!$Z:$Z,1,FALSE),_xlfn.IFNA(VLOOKUP(B78,VintageUpdate!$AF:$AF,1,FALSE),"No")) -> Stor_TE-Gas-gt75kBtuh-0.77Et | V78: Pre-existing | W78: FALSE | Y78: Com | Z78: =IFERROR(MATCH(B78,TechResults!$B:$B,0),"No") -> 2246 | AA78: FALSE
A79: 63 | B79: Stor_TE-Gas-gt75kBtuh-0.78Et | C79: Stor | D79: Gas | E79: TE | F79: N/A | G79: 83 | H79: 183.6 | I79: N/A | J79: 0.78 | K79: =IF(OR(C79="PkHP",C79="SpHP"),(I79-0.0043*VLOOKUP(F79,lookup!$AD$6:$AE$10,2,FALSE)-0.1513)/0.8407*(2.6-TechCalc!$N$4*0.0133333),#N/A) ->  | L79: 17 | M79: =IF(E79="EF",IF(D79="Elec",25.37*(1/I79-1),(J79/I79-1)/(24/41092-1/(I79*H79*1000))/67.5),IFERROR((1/I79-1/J79)/(lookup!AE$14*(24/VLOOKUP(F79,lookup!AD$6:AF$9,3,FALSE)-1/(J79*H79*1000))),#N/A)) ->  | Q79: =0 -> 0 | R79: 0 | S79: 350 | T79: 0.67 | U79: =_xlfn.IFNA(VLOOKUP(B79,VintageUpdate!$Z:$Z,1,FALSE),_xlfn.IFNA(VLOOKUP(B79,VintageUpdate!$AF:$AF,1,FALSE),"No")) -> Stor_TE-Gas-gt75kBtuh-0.78Et | V79: Pre-existing | W79: FALSE | Y79: Com | Z79: =IFERROR(MATCH(B79,TechResults!$B:$B,0),"No") -> 2694 | AA79: FALSE
A80: 64 | B80: Stor_EF-Elec-030gal-0.89EF | C80: Stor | D80: Elec | E80: EF | F80: N/A | G80: 30 | H80: 4.5 | I80: 0.8904 | J80: 0.98 | K80: =IF(OR(C80="PkHP",C80="SpHP"),(I80-0.0043*VLOOKUP(F80,lookup!$AD$6:$AE$10,2,FALSE)-0.1513)/0.8407*(2.6-TechCalc!$N$4*0.0133333),#N/A) ->  | L80: 3.1228 | M80: =IF(E80="EF",IF(D80="Elec",25.37*(1/I80-1),(J80/I80-1)/(24/41092-1/(I80*H80*1000))/67.5),IFERROR((1/I80-1/J80)/(lookup!AE$14*(24/VLOOKUP(F80,lookup!AD$6:AF$9,3,FALSE)-1/(J80*H80*1000))),#N/A)) -> 3.122812219 | Q80: =0 -> 0 | R80: =IF(AND(D80="Gas",J80>=0.84),50,0) -> 0 | S80: =IF(AND(D80="Gas",C80="Stor"),350,0) -> 0 | T80: =IF(S80>0,0.67,0) -> 0 | U80: =_xlfn.IFNA(VLOOKUP(B80,VintageUpdate!$Z:$Z,1,FALSE),_xlfn.IFNA(VLOOKUP(B80,VintageUpdate!$AF:$AF,1,FALSE),"No")) -> Stor_EF-Elec-030gal-0.89EF | V80: Pre-existing | W80: FALSE | Z80: =IFERROR(MATCH(B80,TechResults!$B:$B,0),"No") -> 27782 | AA80: FALSE
A81: 65 | B81: Stor_EF-Elec-030gal-0.91EF | C81: Stor | D81: Elec | E81: EF | F81: N/A | G81: 30 | H81: 4.5 | I81: 0.91 | J81: 0.98 | K81: =IF(OR(C81="PkHP",C81="SpHP"),(I81-0.0043*VLOOKUP(F81,lookup!$AD$6:$AE$10,2,FALSE)-0.1513)/0.8407*(2.6-TechCalc!$N$4*0.0133333),#N/A) ->  | L81: 2.509120879 | M81: =IF(E81="EF",IF(D81="Elec",25.37*(1/I81-1),(J81/I81-1)/(24/41092-1/(I81*H81*1000))/67.5),IFERROR((1/I81-1/J81)/(lookup!AE$14*(24/VLOOKUP(F81,lookup!AD$6:AF$9,3,FALSE)-1/(J81*H81*1000))),#N/A)) -> 2.509120879 | Q81: =0 -> 0 | R81: =IF(AND(D81="Gas",J81>=0.84),50,0) -> 0 | S81: =IF(AND(D81="Gas",C81="Stor"),350,0) -> 0 | T81: =IF(S81>0,0.67,0) -> 0 | U81: =_xlfn.IFNA(VLOOKUP(B81,VintageUpdate!$Z:$Z,1,FALSE),_xlfn.IFNA(VLOOKUP(B81,VintageUpdate!$AF:$AF,1,FALSE),"No")) -> Stor_EF-Elec-030gal-0.91EF | V81: Pre-existing | W81: FALSE | Z81: =IFERROR(MATCH(B81,TechResults!$B:$B,0),"No") -> 28230 | AA81: FALSE
A82: 66 | B82: Stor_EF-Elec-030gal-0.93EF | C82: Stor | D82: Elec | E82: EF | F82: N/A | G82: 30 | H82: 4.5 | I82: 0.9304 | J82: 0.98 | K82: =IF(OR(C82="PkHP",C82="SpHP"),(I82-0.0043*VLOOKUP(F82,lookup!$AD$6:$AE$10,2,FALSE)-0.1513)/0.8407*(2.6-TechCalc!$N$4*0.0133333),#N/A) ->  | L82: 1.8978 | M82: =IF(E82="EF",IF(D82="Elec",25.37*(1/I82-1),(J82/I82-1)/(24/41092-1/(I82*H82*1000))/67.5),IFERROR((1/I82-1/J82)/(lookup!AE$14*(24/VLOOKUP(F82,lookup!AD$6:AF$9,3,FALSE)-1/(J82*H82*1000))),#N/A)) -> 1.897841788 | Q82: =0 -> 0 | R82: 0 | S82: 0 | T82: 0 | U82: =_xlfn.IFNA(VLOOKUP(B82,VintageUpdate!$Z:$Z,1,FALSE),_xlfn.IFNA(VLOOKUP(B82,VintageUpdate!$AF:$AF,1,FALSE),"No")) -> Stor_EF-Elec-030gal-0.93EF | V82: Pre-existing | W82: FALSE | Z82: =IFERROR(MATCH(B82,TechResults!$B:$B,0),"No") -> 28678 | AA82: FALSE
A83: =A82+1 -> 67 | B83: Stor_EF-Elec-040gal-0.88EF | C83: Stor | D83: Elec | E83: EF | F83: N/A | G83: 40 | H83: 4.5 | I83: 0.8772 | J83: 0.98 | K83: =IF(OR(C83="PkHP",C83="SpHP"),(I83-0.0043*VLOOKUP(F83,lookup!$AD$6:$AE$10,2,FALSE)-0.1513)/0.8407*(2.6-TechCalc!$N$4*0.0133333),#N/A) ->  | L83: 3.5516 | M83: =IF(E83="EF",IF(D83="Elec",25.37*(1/I83-1),(J83/I83-1)/(24/41092-1/(I83*H83*1000))/67.5),IFERROR((1/I83-1/J83)/(lookup!AE$14*(24/VLOOKUP(F83,lookup!AD$6:AF$9,3,FALSE)-1/(J83*H83*1000))),#N/A)) -> 3.551568627 | Q83: =0 -> 0 | R83: 0 | S83: 0 | T83: 0 | U83: =_xlfn.IFNA(VLOOKUP(B83,VintageUpdate!$Z:$Z,1,FALSE),_xlfn.IFNA(VLOOKUP(B83,VintageUpdate!$AF:$AF,1,FALSE),"No")) -> Stor_EF-Elec-040gal-0.88EF | V83: Pre-existing | W83: FALSE | Z83: =IFERROR(MATCH(B83,TechResults!$B:$B,0),"No") -> 29126 | AA83: FALSE
A84: 68 | B84: Stor_EF-Elec-040gal-0.90EF | C84: Stor | D84: Elec | E84: EF | F84: N/A | G84: 40 | H84: 4.5 | I84: 0.9 | J84: 0.98 | K84: =IF(OR(C84="PkHP",C84="SpHP"),(I84-0.0043*VLOOKUP(F84,lookup!$AD$6:$AE$10,2,FALSE)-0.1513)/0.8407*(2.6-TechCalc!$N$4*0.0133333),#N/A) ->  | L84: 2.818888889 | M84: =IF(E84="EF",IF(D84="Elec",25.37*(1/I84-1),(J84/I84-1)/(24/41092-1/(I84*H84*1000))/67.5),IFERROR((1/I84-1/J84)/(lookup!AE$14*(24/VLOOKUP(F84,lookup!AD$6:AF$9,3,FALSE)-1/(J84*H84*1000))),#N/A)) -> 2.818888889 | Q84: =0 -> 0 | R84: 0 | S84: 0 | T84: 0 | U84: =_xlfn.IFNA(VLOOKUP(B84,VintageUpdate!$Z:$Z,1,FALSE),_xlfn.IFNA(VLOOKUP(B84,VintageUpdate!$AF:$AF,1,FALSE),"No")) -> Stor_EF-Elec-040gal-0.90EF | V84: Pre-existing | W84: FALSE | Z84: =IFERROR(MATCH(B84,TechResults!$B:$B,0),"No") -> 29574 | AA84: FALSE
A85: 69 | B85: Stor_EF-Elec-040gal-0.92EF | C85: Stor | D85: Elec | E85: EF | F85: N/A | G85: 40 | H85: 4.5 | I85: 0.9172 | J85: 0.98 | K85: =IF(OR(C85="PkHP",C85="SpHP"),(I85-0.0043*VLOOKUP(F85,lookup!$AD$6:$AE$10,2,FALSE)-0.1513)/0.8407*(2.6-TechCalc!$N$4*0.0133333),#N/A) ->  | L85: 2.2903 | M85: =IF(E85="EF",IF(D85="Elec",25.37*(1/I85-1),(J85/I85-1)/(24/41092-1/(I85*H85*1000))/67.5),IFERROR((1/I85-1/J85)/(lookup!AE$14*(24/VLOOKUP(F85,lookup!AD$6:AF$9,3,FALSE)-1/(J85*H85*1000))),#N/A)) -> 2.290270388 | Q85: =0 -> 0 | R85: 0 | S85: 0 | T85: 0 | U85: =_xlfn.IFNA(VLOOKUP(B85,VintageUpdate!$Z:$Z,1,FALSE),_xlfn.IFNA(VLOOKUP(B85,VintageUpdate!$AF:$AF,1,FALSE),"No")) -> Stor_EF-Elec-040gal-0.92EF | V85: Pre-existing | W85: FALSE | Z85: =IFERROR(MATCH(B85,TechResults!$B:$B,0),"No") -> 30022 | AA85: FALSE
A86: 70 | B86: Stor_EF-Elec-050gal-0.86EF | C86: Stor | D86: Elec | E86: EF | F86: N/A | G86: 50 | H86: 5 | I86: 0.864 | J86: 0.98 | K86: =IF(OR(C86="PkHP",C86="SpHP"),(I86-0.0043*VLOOKUP(F86,lookup!$AD$6:$AE$10,2,FALSE)-0.1513)/0.8407*(2.6-TechCalc!$N$4*0.0133333),#N/A) ->  | L86: 3.9934 | M86: =IF(E86="EF",IF(D86="Elec",25.37*(1/I86-1),(J86/I86-1)/(24/41092-1/(I86*H86*1000))/67.5),IFERROR((1/I86-1/J86)/(lookup!AE$14*(24/VLOOKUP(F86,lookup!AD$6:AF$9,3,FALSE)-1/(J86*H86*1000))),#N/A)) -> 3.993425926 | Q86: =0 -> 0 | R86: 0 | S86: 0 | T86: 0 | U86: =_xlfn.IFNA(VLOOKUP(B86,VintageUpdate!$Z:$Z,1,FALSE),_xlfn.IFNA(VLOOKUP(B86,VintageUpdate!$AF:$AF,1,FALSE),"No")) -> Stor_EF-Elec-050gal-0.86EF | V86: Pre-existing | W86: FALSE | Z86: =IFERROR(MATCH(B86,TechResults!$B:$B,0),"No") -> 30470 | AA86: FALSE
A87: 71 | B87: Stor_EF-Elec-050gal-0.88EF | C87: Stor | D87: Elec | E87: EF | F87: N/A | G87: 51 | H87: 5 | I87: 0.88 | J87: 0.98 | K87: =IF(OR(C87="PkHP",C87="SpHP"),(I87-0.0043*VLOOKUP(F87,lookup!$AD$6:$AE$10,2,FALSE)-0.1513)/0.8407*(2.6-TechCalc!$N$4*0.0133333),#N/A) ->  | L87: 3.459545455 | M87: =IF(E87="EF",IF(D87="Elec",25.37*(1/I87-1),(J87/I87-1)/(24/41092-1/(I87*H87*1000))/67.5),IFERROR((1/I87-1/J87)/(lookup!AE$14*(24/VLOOKUP(F87,lookup!AD$6:AF$9,3,FALSE)-1/(J87*H87*1000))),#N/A)) -> 3.459545455 | Q87: =0 -> 0 | R87: 0 | S87: 0 | T87: 0 | U87: =_xlfn.IFNA(VLOOKUP(B87,VintageUpdate!$Z:$Z,1,FALSE),_xlfn.IFNA(VLOOKUP(B87,VintageUpdate!$AF:$AF,1,FALSE),"No")) -> Stor_EF-Elec-050gal-0.88EF | V87: Pre-existing | W87: FALSE | Z87: =IFERROR(MATCH(B87,TechResults!$B:$B,0),"No") -> 30918 | AA87: FALSE
A88: 72 | B88: Stor_EF-Elec-050gal-0.90EF | C88: Stor | D88: Elec | E88: EF | F88: N/A | G88: 50 | H88: 5 | I88: 0.904 | J88: 0.98 | K88: =IF(OR(C88="PkHP",C88="SpHP"),(I88-0.0043*VLOOKUP(F88,lookup!$AD$6:$AE$10,2,FALSE)-0.1513)/0.8407*(2.6-TechCalc!$N$4*0.0133333),#N/A) ->  | L88: 2.6942 | M88: =IF(E88="EF",IF(D88="Elec",25.37*(1/I88-1),(J88/I88-1)/(24/41092-1/(I88*H88*1000))/67.5),IFERROR((1/I88-1/J88)/(lookup!AE$14*(24/VLOOKUP(F88,lookup!AD$6:AF$9,3,FALSE)-1/(J88*H88*1000))),#N/A)) -> 2.694159292 | Q88: =0 -> 0 | R88: 0 | S88: 0 | T88: 0 | U88: =_xlfn.IFNA(VLOOKUP(B88,VintageUpdate!$Z:$Z,1,FALSE),_xlfn.IFNA(VLOOKUP(B88,VintageUpdate!$AF:$AF,1,FALSE),"No")) -> Stor_EF-Elec-050gal-0.90EF | V88: Pre-existing | W88: FALSE | Z88: =IFERROR(MATCH(B88,TechResults!$B:$B,0),"No") -> 31366 | AA88: FALSE
A89: 73 | B89: Stor_EF-Elec-050gal-0.92EF | C89: Stor | D89: Elec | E89: EF | F89: N/A | G89: 50 | H89: 4.5 | I89: 0.9172 | J89: 0.98 | K89: =IF(OR(C89="PkHP",C89="SpHP"),(I89-0.0043*VLOOKUP(F89,lookup!$AD$6:$AE$10,2,FALSE)-0.1513)/0.8407*(2.6-TechCalc!$N$4*0.0133333),#N/A) ->  | L89: 2.290270388 | M89: =IF(E89="EF",IF(D89="Elec",25.37*(1/I89-1),(J89/I89-1)/(24/41092-1/(I89*H89*1000))/67.5),IFERROR((1/I89-1/J89)/(lookup!AE$14*(24/VLOOKUP(F89,lookup!AD$6:AF$9,3,FALSE)-1/(J89*H89*1000))),#N/A)) -> 2.290270388 | Q89: =0 -> 0 | R89: 0 | S89: 0 | T89: 0 | U89: =_xlfn.IFNA(VLOOKUP(B89,VintageUpdate!$Z:$Z,1,FALSE),_xlfn.IFNA(VLOOKUP(B89,VintageUpdate!$AF:$AF,1,FALSE),"No")) -> Stor_EF-Elec-050gal-0.92EF | V89: Pre-existing | W89: FALSE | Z89: =IFERROR(MATCH(B89,TechResults!$B:$B,0),"No") -> 31814 | AA89: FALSE
A90: 74 | B90: Stor_EF-Elec-060gal-0.85EF | C90: Stor | D90: Elec | E90: EF | F90: N/A | G90: 60 | H90: 5.5 | I90: 0.8508 | J90: 0.98 | K90: =IF(OR(C90="PkHP",C90="SpHP"),(I90-0.0043*VLOOKUP(F90,lookup!$AD$6:$AE$10,2,FALSE)-0.1513)/0.8407*(2.6-TechCalc!$N$4*0.0133333),#N/A) ->  | L90: 4.449 | M90: =IF(E90="EF",IF(D90="Elec",25.37*(1/I90-1),(J90/I90-1)/(24/41092-1/(I90*H90*1000))/67.5),IFERROR((1/I90-1/J90)/(lookup!AE$14*(24/VLOOKUP(F90,lookup!AD$6:AF$9,3,FALSE)-1/(J90*H90*1000))),#N/A)) -> 4.448993888 | Q90: =0 -> 0 | R90: 0 | S90: 0 | T90: 0 | U90: =_xlfn.IFNA(VLOOKUP(B90,VintageUpdate!$Z:$Z,1,FALSE),_xlfn.IFNA(VLOOKUP(B90,VintageUpdate!$AF:$AF,1,FALSE),"No")) -> Stor_EF-Elec-060gal-0.85EF | V90: Pre-existing | W90: FALSE | Z90: =IFERROR(MATCH(B90,TechResults!$B:$B,0),"No") -> 32262 | AA90: FALSE
A91: 75 | B91: Stor_EF-Elec-060gal-0.87EF | C91: Stor | D91: Elec | E91: EF | F91: N/A | G91: 60 | H91: 5.5 | I91: 0.87 | J91: 0.98 | K91: =IF(OR(C91="PkHP",C91="SpHP"),(I91-0.0043*VLOOKUP(F91,lookup!$AD$6:$AE$10,2,FALSE)-0.1513)/0.8407*(2.6-TechCalc!$N$4*0.0133333),#N/A) ->  | L91: 3.79091954 | M91: =IF(E91="EF",IF(D91="Elec",25.37*(1/I91-1),(J91/I91-1)/(24/41092-1/(I91*H91*1000))/67.5),IFERROR((1/I91-1/J91)/(lookup!AE$14*(24/VLOOKUP(F91,lookup!AD$6:AF$9,3,FALSE)-1/(J91*H91*1000))),#N/A)) -> 3.79091954 | Q91: =0 -> 0 | R91: 0 | S91: 0 | T91: 0 | U91: =_xlfn.IFNA(VLOOKUP(B91,VintageUpdate!$Z:$Z,1,FALSE),_xlfn.IFNA(VLOOKUP(B91,VintageUpdate!$AF:$AF,1,FALSE),"No")) -> Stor_EF-Elec-060gal-0.87EF | V91: Pre-existing | W91: FALSE | Z91: =IFERROR(MATCH(B91,TechResults!$B:$B,0),"No") -> 32710 | AA91: FALSE
A92: 76 | B92: Stor_EF-Elec-060gal-0.89EF | C92: Stor | D92: Elec | E92: EF | F92: N/A | G92: 60 | H92: 5.5 | I92: 0.8908 | J92: 0.98 | K92: =IF(OR(C92="PkHP",C92="SpHP"),(I92-0.0043*VLOOKUP(F92,lookup!$AD$6:$AE$10,2,FALSE)-0.1513)/0.8407*(2.6-TechCalc!$N$4*0.0133333),#N/A) ->  | L92: 3.11 | M92: =IF(E92="EF",IF(D92="Elec",25.37*(1/I92-1),(J92/I92-1)/(24/41092-1/(I92*H92*1000))/67.5),IFERROR((1/I92-1/J92)/(lookup!AE$14*(24/VLOOKUP(F92,lookup!AD$6:AF$9,3,FALSE)-1/(J92*H92*1000))),#N/A)) -> 3.110017961 | Q92: =0 -> 0 | R92: 0 | S92: 0 | T92: 0 | U92: =_xlfn.IFNA(VLOOKUP(B92,VintageUpdate!$Z:$Z,1,FALSE),_xlfn.IFNA(VLOOKUP(B92,VintageUpdate!$AF:$AF,1,FALSE),"No")) -> Stor_EF-Elec-060gal-0.89EF | V92: Pre-existing | W92: FALSE | Z92: =IFERROR(MATCH(B92,TechResults!$B:$B,0),"No") -> 33158 | AA92: FALSE
A93: 77 | B93: Stor_EF-Elec-075gal-0.83EF | C93: Stor | D93: Elec | E93: EF | F93: N/A | G93: 75 | H93: 5.5 | I93: 0.831 | J93: 0.98 | K93: =IF(OR(C93="PkHP",C93="SpHP"),(I93-0.0043*VLOOKUP(F93,lookup!$AD$6:$AE$10,2,FALSE)-0.1513)/0.8407*(2.6-TechCalc!$N$4*0.0133333),#N/A) ->  | L93: 5.1595 | M93: =IF(E93="EF",IF(D93="Elec",25.37*(1/I93-1),(J93/I93-1)/(24/41092-1/(I93*H93*1000))/67.5),IFERROR((1/I93-1/J93)/(lookup!AE$14*(24/VLOOKUP(F93,lookup!AD$6:AF$9,3,FALSE)-1/(J93*H93*1000))),#N/A)) -> 5.159482551 | Q93: =0 -> 0 | R93: 0 | S93: 0 | T93: 0 | U93: =_xlfn.IFNA(VLOOKUP(B93,VintageUpdate!$Z:$Z,1,FALSE),_xlfn.IFNA(VLOOKUP(B93,VintageUpdate!$AF:$AF,1,FALSE),"No")) -> Stor_EF-Elec-075gal-0.83EF | V93: Pre-existing | W93: FALSE | Z93: =IFERROR(MATCH(B93,TechResults!$B:$B,0),"No") -> 33606 | AA93: FALSE
A94: 78 | B94: Stor_EF-Elec-075gal-0.85EF | C94: Stor | D94: Elec | E94: EF | F94: N/A | G94: 75 | H94: 5.5 | I94: 0.85 | J94: 0.98 | K94: =IF(OR(C94="PkHP",C94="SpHP"),(I94-0.0043*VLOOKUP(F94,lookup!$AD$6:$AE$10,2,FALSE)-0.1513)/0.8407*(2.6-TechCalc!$N$4*0.0133333),#N/A) ->  | L94: 4.477058824 | M94: =IF(E94="EF",IF(D94="Elec",25.37*(1/I94-1),(J94/I94-1)/(24/41092-1/(I94*H94*1000))/67.5),IFERROR((1/I94-1/J94)/(lookup!AE$14*(24/VLOOKUP(F94,lookup!AD$6:AF$9,3,FALSE)-1/(J94*H94*1000))),#N/A)) -> 4.477058824 | Q94: =0 -> 0 | R94: 0 | S94: 0 | T94: 0 | U94: =_xlfn.IFNA(VLOOKUP(B94,VintageUpdate!$Z:$Z,1,FALSE),_xlfn.IFNA(VLOOKUP(B94,VintageUpdate!$AF:$AF,1,FALSE),"No")) -> Stor_EF-Elec-075gal-0.85EF | V94: Pre-existing | W94: FALSE | Z94: =IFERROR(MATCH(B94,TechResults!$B:$B,0),"No") -> 34054 | AA94: FALSE
A95: 79 | B95: Stor_EF-Elec-075gal-0.87EF | C95: Stor | D95: Elec | E95: EF | F95: N/A | G95: 75 | H95: 5.5 | I95: 0.871 | J95: 0.98 | K95: =IF(OR(C95="PkHP",C95="SpHP"),(I95-0.0043*VLOOKUP(F95,lookup!$AD$6:$AE$10,2,FALSE)-0.1513)/0.8407*(2.6-TechCalc!$N$4*0.0133333),#N/A) ->  | L95: 3.7574 | M95: =IF(E95="EF",IF(D95="Elec",25.37*(1/I95-1),(J95/I95-1)/(24/41092-1/(I95*H95*1000))/67.5),IFERROR((1/I95-1/J95)/(lookup!AE$14*(24/VLOOKUP(F95,lookup!AD$6:AF$9,3,FALSE)-1/(J95*H95*1000))),#N/A)) -> 3.757439724 | Q95: =0 -> 0 | R95: 0 | S95: 0 | T95: 0 | U95: =_xlfn.IFNA(VLOOKUP(B95,VintageUpdate!$Z:$Z,1,FALSE),_xlfn.IFNA(VLOOKUP(B95,VintageUpdate!$AF:$AF,1,FALSE),"No")) -> Stor_EF-Elec-075gal-0.87EF | V95: Pre-existing | W95: FALSE | Z95: =IFERROR(MATCH(B95,TechResults!$B:$B,0),"No") -> 34502 | AA95: FALSE
A96: 80 | B96: Stor_EF-Gas-030gal-0.57EF | C96: Stor | D96: Gas | E96: EF | F96: N/A | G96: 30 | H96: 30 | I96: 0.57 | J96: 0.758 | K96: =IF(OR(C96="PkHP",C96="SpHP"),(I96-0.0043*VLOOKUP(F96,lookup!$AD$6:$AE$10,2,FALSE)-0.1513)/0.8407*(2.6-TechCalc!$N$4*0.0133333),#N/A) ->  | L96: 9.297 | M96: =IF(E96="EF",IF(D96="Elec",25.37*(1/I96-1),(J96/I96-1)/(24/41092-1/(I96*H96*1000))/67.5),IFERROR((1/I96-1/J96)/(lookup!AE$14*(24/VLOOKUP(F96,lookup!AD$6:AF$9,3,FALSE)-1/(J96*H96*1000))),#N/A)) -> 9.29702278 | Q96: =0 -> 0 | R96: 0 | S96: 350 | T96: 0.67 | U96: =_xlfn.IFNA(VLOOKUP(B96,VintageUpdate!$Z:$Z,1,FALSE),_xlfn.IFNA(VLOOKUP(B96,VintageUpdate!$AF:$AF,1,FALSE),"No")) -> Stor_EF-Gas-030gal-0.57EF | V96: Pre-existing | W96: FALSE | Z96: =IFERROR(MATCH(B96,TechResults!$B:$B,0),"No") -> 34950 | AA96: FALSE
A97: 81 | B97: Stor_EF-Gas-030gal-0.59EF | C97: Stor | D97: Gas | E97: EF | F97: N/A | G97: 30 | H97: 30 | I97: 0.59 | J97: 0.758 | K97: =IF(OR(C97="PkHP",C97="SpHP"),(I97-0.0043*VLOOKUP(F97,lookup!$AD$6:$AE$10,2,FALSE)-0.1513)/0.8407*(2.6-TechCalc!$N$4*0.0133333),#N/A) ->  | L97: 7.996191548 | M97: =IF(E97="EF",IF(D97="Elec",25.37*(1/I97-1),(J97/I97-1)/(24/41092-1/(I97*H97*1000))/67.5),IFERROR((1/I97-1/J97)/(lookup!AE$14*(24/VLOOKUP(F97,lookup!AD$6:AF$9,3,FALSE)-1/(J97*H97*1000))),#N/A)) -> 7.996191548 | Q97: =0 -> 0 | R97: 0 | S97: 350 | T97: 0.67 | U97: =_xlfn.IFNA(VLOOKUP(B97,VintageUpdate!$Z:$Z,1,FALSE),_xlfn.IFNA(VLOOKUP(B97,VintageUpdate!$AF:$AF,1,FALSE),"No")) -> Stor_EF-Gas-030gal-0.59EF | V97: Pre-existing | W97: FALSE | Z97: =IFERROR(MATCH(B97,TechResults!$B:$B,0),"No") -> 35398 | AA97: FALSE
A98: 82 | B98: Stor_EF-Gas-030gal-0.61EF | C98: Stor | D98: Gas | E98: EF | F98: N/A | G98: 30 | H98: 30 | I98: 0.613 | J98: 0.758 | K98: =IF(OR(C98="PkHP",C98="SpHP"),(I98-0.0043*VLOOKUP(F98,lookup!$AD$6:$AE$10,2,FALSE)-0.1513)/0.8407*(2.6-TechCalc!$N$4*0.0133333),#N/A) ->  | L98: =L23 -> 6.725401935 | M98: =IF(E98="EF",IF(D98="Elec",25.37*(1/I98-1),(J98/I98-1)/(24/41092-1/(I98*H98*1000))/67.5),IFERROR((1/I98-1/J98)/(lookup!AE$14*(24/VLOOKUP(F98,lookup!AD$6:AF$9,3,FALSE)-1/(J98*H98*1000))),#N/A)) -> 6.615945095 | Q98: =0 -> 0 | R98: 0 | S98: 350 | T98: 0.67 | U98: =_xlfn.IFNA(VLOOKUP(B98,VintageUpdate!$Z:$Z,1,FALSE),_xlfn.IFNA(VLOOKUP(B98,VintageUpdate!$AF:$AF,1,FALSE),"No")) -> Stor_EF-Gas-030gal-0.61EF | V98: Pre-existing | W98: FALSE | Z98: =IFERROR(MATCH(B98,TechResults!$B:$B,0),"No") -> 35846 | AA98: FALSE
A99: 83 | B99: Stor_EF-Gas-040gal-0.57EF | C99: Stor | D99: Gas | E99: EF | F99: N/A | G99: 40 | H99: 40 | I99: 0.57 | J99: 0.758 | K99: =IF(OR(C99="PkHP",C99="SpHP"),(I99-0.0043*VLOOKUP(F99,lookup!$AD$6:$AE$10,2,FALSE)-0.1513)/0.8407*(2.6-TechCalc!$N$4*0.0133333),#N/A) ->  | L99: 9.0454 | M99: =IF(E99="EF",IF(D99="Elec",25.37*(1/I99-1),(J99/I99-1)/(24/41092-1/(I99*H99*1000))/67.5),IFERROR((1/I99-1/J99)/(lookup!AE$14*(24/VLOOKUP(F99,lookup!AD$6:AF$9,3,FALSE)-1/(J99*H99*1000))),#N/A)) -> 9.04540767 | Q99: =0 -> 0 | R99: 0 | S99: 350 | T99: 0.67 | U99: =_xlfn.IFNA(VLOOKUP(B99,VintageUpdate!$Z:$Z,1,FALSE),_xlfn.IFNA(VLOOKUP(B99,VintageUpdate!$AF:$AF,1,FALSE),"No")) -> Stor_EF-Gas-040gal-0.57EF | V99: Pre-existing | W99: FALSE | Z99: =IFERROR(MATCH(B99,TechResults!$B:$B,0),"No") -> 36294 | AA99: FALSE
A100: 84 | B100: Stor_EF-Gas-040gal-0.58EF | C100: Stor | D100: Gas | E100: EF | F100: N/A | G100: 40 | H100: 40 | I100: 0.58 | J100: 0.758 | K100: =IF(OR(C100="PkHP",C100="SpHP"),(I100-0.0043*VLOOKUP(F100,lookup!$AD$6:$AE$10,2,FALSE)-0.1513)/0.8407*(2.6-TechCalc!$N$4*0.0133333),#N/A) ->  | L100: 8.4048 | M100: =IF(E100="EF",IF(D100="Elec",25.37*(1/I100-1),(J100/I100-1)/(24/41092-1/(I100*H100*1000))/67.5),IFERROR((1/I100-1/J100)/(lookup!AE$14*(24/VLOOKUP(F100,lookup!AD$6:AF$9,3,FALSE)-1/(J100*H100*1000))),#N/A)) -> 8.40484351 | Q100: =0 -> 0 | R100: 0 | S100: 350 | T100: 0.67 | U100: =_xlfn.IFNA(VLOOKUP(B100,VintageUpdate!$Z:$Z,1,FALSE),_xlfn.IFNA(VLOOKUP(B100,VintageUpdate!$AF:$AF,1,FALSE),"No")) -> Stor_EF-Gas-040gal-0.58EF | V100: Pre-existing | W100: FALSE | Z100: =IFERROR(MATCH(B100,TechResults!$B:$B,0),"No") -> 36742 | AA100: FALSE
A101: 85 | B101: Stor_EF-Gas-040gal-0.59EF | C101: Stor | D101: Gas | E101: EF | F101: N/A | G101: 40 | H101: 40 | I101: 0.594 | J101: 0.758 | K101: =IF(OR(C101="PkHP",C101="SpHP"),(I101-0.0043*VLOOKUP(F101,lookup!$AD$6:$AE$10,2,FALSE)-0.1513)/0.8407*(2.6-TechCalc!$N$4*0.0133333),#N/A) ->  | L101: 7.5471 | M101: =IF(E101="EF",IF(D101="Elec",25.37*(1/I101-1),(J101/I101-1)/(24/41092-1/(I101*H101*1000))/67.5),IFERROR((1/I101-1/J101)/(lookup!AE$14*(24/VLOOKUP(F101,lookup!AD$6:AF$9,3,FALSE)-1/(J101*H101*1000))),#N/A)) -> 7.547101434 | Q101: =0 -> 0 | R101: 0 | S101: 350 | T101: 0.67 | U101: =_xlfn.IFNA(VLOOKUP(B101,VintageUpdate!$Z:$Z,1,FALSE),_xlfn.IFNA(VLOOKUP(B101,VintageUpdate!$AF:$AF,1,FALSE),"No")) -> Stor_EF-Gas-040gal-0.59EF | V101: Pre-existing | W101: FALSE | Z101: =IFERROR(MATCH(B101,TechResults!$B:$B,0),"No") -> 37190 | AA101: FALSE
A102: 86 | B102: Stor_EF-Gas-040gal-0.60EF | C102: Stor | D102: Gas | E102: EF | F102: N/A | G102: 40 | H102: 40 | I102: 0.6 | J102: 0.758 | K102: =IF(OR(C102="PkHP",C102="SpHP"),(I102-0.0043*VLOOKUP(F102,lookup!$AD$6:$AE$10,2,FALSE)-0.1513)/0.8407*(2.6-TechCalc!$N$4*0.0133333),#N/A) ->  | L102: =L25 -> 7.962505023 | M102: =IF(E102="EF",IF(D102="Elec",25.37*(1/I102-1),(J102/I102-1)/(24/41092-1/(I102*H102*1000))/67.5),IFERROR((1/I102-1/J102)/(lookup!AE$14*(24/VLOOKUP(F102,lookup!AD$6:AF$9,3,FALSE)-1/(J102*H102*1000))),#N/A)) -> 7.192692464 | Q102: =0 -> 0 | R102: 0 | S102: 350 | T102: 0.67 | U102: =_xlfn.IFNA(VLOOKUP(B102,VintageUpdate!$Z:$Z,1,FALSE),_xlfn.IFNA(VLOOKUP(B102,VintageUpdate!$AF:$AF,1,FALSE),"No")) -> Stor_EF-Gas-040gal-0.60EF | V102: Pre-existing | W102: FALSE | Z102: =IFERROR(MATCH(B102,TechResults!$B:$B,0),"No") -> 37638 | AA102: FALSE
A103: 87 | B103: Stor_EF-Gas-050gal-0.57EF | C103: Stor | D103: Gas | E103: EF | F103: N/A | G103: 50 | H103: 40 | I103: 0.57 | J103: 0.763 | K103: =IF(OR(C103="PkHP",C103="SpHP"),(I103-0.0043*VLOOKUP(F103,lookup!$AD$6:$AE$10,2,FALSE)-0.1513)/0.8407*(2.6-TechCalc!$N$4*0.0133333),#N/A) ->  | L103: =M103 -> 9.285977023 | M103: =IF(E103="EF",IF(D103="Elec",25.37*(1/I103-1),(J103/I103-1)/(24/41092-1/(I103*H103*1000))/67.5),IFERROR((1/I103-1/J103)/(lookup!AE$14*(24/VLOOKUP(F103,lookup!AD$6:AF$9,3,FALSE)-1/(J103*H103*1000))),#N/A)) -> 9.285977023 | Q103: =0 -> 0 | R103: 0 | S103: 350 | T103: 0.67 | U103: =_xlfn.IFNA(VLOOKUP(B103,VintageUpdate!$Z:$Z,1,FALSE),_xlfn.IFNA(VLOOKUP(B103,VintageUpdate!$AF:$AF,1,FALSE),"No")) -> Stor_EF-Gas-050gal-0.57EF | V103: Pre-existing | W103: FALSE | Z103: =IFERROR(MATCH(B103,TechResults!$B:$B,0),"No") -> 38086 | AA103: FALSE
A104: 88 | B104: Stor_EF-Gas-050gal-0.58EF | C104: Stor | D104: Gas | E104: EF | F104: N/A | G104: 50 | H104: 40 | I104: 0.575 | J104: 0.763 | K104: =IF(OR(C104="PkHP",C104="SpHP"),(I104-0.0043*VLOOKUP(F104,lookup!$AD$6:$AE$10,2,FALSE)-0.1513)/0.8407*(2.6-TechCalc!$N$4*0.0133333),#N/A) ->  | L104: =M104 -> 8.960425723 | M104: =IF(E104="EF",IF(D104="Elec",25.37*(1/I104-1),(J104/I104-1)/(24/41092-1/(I104*H104*1000))/67.5),IFERROR((1/I104-1/J104)/(lookup!AE$14*(24/VLOOKUP(F104,lookup!AD$6:AF$9,3,FALSE)-1/(J104*H104*1000))),#N/A)) -> 8.960425723 | Q104: =0 -> 0 | R104: 0 | S104: 350 | T104: 0.67 | U104: =_xlfn.IFNA(VLOOKUP(B104,VintageUpdate!$Z:$Z,1,FALSE),_xlfn.IFNA(VLOOKUP(B104,VintageUpdate!$AF:$AF,1,FALSE),"No")) -> Stor_EF-Gas-050gal-0.58EF | V104: Pre-existing | W104: FALSE | Z104: =IFERROR(MATCH(B104,TechResults!$B:$B,0),"No") -> 38534 | AA104: FALSE
A105: 89 | B105: Stor_EF-Gas-050gal-0.59EF | C105: Stor | D105: Gas | E105: EF | F105: N/A | G105: 50 | H105: 40 | I105: 0.59 | J105: 0.763 | K105: =IF(OR(C105="PkHP",C105="SpHP"),(I105-0.0043*VLOOKUP(F105,lookup!$AD$6:$AE$10,2,FALSE)-0.1513)/0.8407*(2.6-TechCalc!$N$4*0.0133333),#N/A) ->  | L105: =$L$28 -> 9.141447574 | M105: =IF(E105="EF",IF(D105="Elec",25.37*(1/I105-1),(J105/I105-1)/(24/41092-1/(I105*H105*1000))/67.5),IFERROR((1/I105-1/J105)/(lookup!AE$14*(24/VLOOKUP(F105,lookup!AD$6:AF$9,3,FALSE)-1/(J105*H105*1000))),#N/A)) -> 8.019468508 | Q105: =0 -> 0 | R105: 0 | S105: 350 | T105: 0.67 | U105: =_xlfn.IFNA(VLOOKUP(B105,VintageUpdate!$Z:$Z,1,FALSE),_xlfn.IFNA(VLOOKUP(B105,VintageUpdate!$AF:$AF,1,FALSE),"No")) -> Stor_EF-Gas-050gal-0.59EF | V105: Pre-existing | W105: FALSE | Z105: =IFERROR(MATCH(B105,TechResults!$B:$B,0),"No") -> 38982 | AA105: FALSE
A106: 90 | B106: Stor_EF-Gas-060gal-0.56EF | C106: Stor | D106: Gas | E106: EF | F106: N/A | G106: 60 | H106: 55 | I106: 0.556 | J106: 0.76 | K106: =IF(OR(C106="PkHP",C106="SpHP"),(I106-0.0043*VLOOKUP(F106,lookup!$AD$6:$AE$10,2,FALSE)-0.1513)/0.8407*(2.6-TechCalc!$N$4*0.0133333),#N/A) ->  | L106: 9.8587 | M106: =IF(E106="EF",IF(D106="Elec",25.37*(1/I106-1),(J106/I106-1)/(24/41092-1/(I106*H106*1000))/67.5),IFERROR((1/I106-1/J106)/(lookup!AE$14*(24/VLOOKUP(F106,lookup!AD$6:AF$9,3,FALSE)-1/(J106*H106*1000))),#N/A)) -> 9.858729087 | Q106: =0 -> 0 | R106: 0 | S106: 350 | T106: 0.67 | U106: =_xlfn.IFNA(VLOOKUP(B106,VintageUpdate!$Z:$Z,1,FALSE),_xlfn.IFNA(VLOOKUP(B106,VintageUpdate!$AF:$AF,1,FALSE),"No")) -> Stor_EF-Gas-060gal-0.56EF | V106: Pre-existing | W106: FALSE | Z106: =IFERROR(MATCH(B106,TechResults!$B:$B,0),"No") -> 39430 | AA106: FALSE
A107: 91 | B107: Stor_EF-Gas-060gal-0.57EF | C107: Stor | D107: Gas | E107: EF | F107: N/A | G107: 60 | H107: 55 | I107: 0.57 | J107: 0.76 | K107: =IF(OR(C107="PkHP",C107="SpHP"),(I107-0.0043*VLOOKUP(F107,lookup!$AD$6:$AE$10,2,FALSE)-0.1513)/0.8407*(2.6-TechCalc!$N$4*0.0133333),#N/A) ->  | L107: 8.943594576 | M107: =IF(E107="EF",IF(D107="Elec",25.37*(1/I107-1),(J107/I107-1)/(24/41092-1/(I107*H107*1000))/67.5),IFERROR((1/I107-1/J107)/(lookup!AE$14*(24/VLOOKUP(F107,lookup!AD$6:AF$9,3,FALSE)-1/(J107*H107*1000))),#N/A)) -> 8.943594576 | Q107: =0 -> 0 | R107: 0 | S107: 350 | T107: 0.67 | U107: =_xlfn.IFNA(VLOOKUP(B107,VintageUpdate!$Z:$Z,1,FALSE),_xlfn.IFNA(VLOOKUP(B107,VintageUpdate!$AF:$AF,1,FALSE),"No")) -> Stor_EF-Gas-060gal-0.57EF | V107: Pre-existing | W107: FALSE | Z107: =IFERROR(MATCH(B107,TechResults!$B:$B,0),"No") -> 39878 | AA107: FALSE
A108: 92 | B108: Stor_EF-Gas-075gal-0.48EF | C108: Stor | D108: Gas | E108: EF | F108: N/A | G108: 75 | H108: 70 | I108: 0.48 | J108: 0.76 | K108: =IF(OR(C108="PkHP",C108="SpHP"),(I108-0.0043*VLOOKUP(F108,lookup!$AD$6:$AE$10,2,FALSE)-0.1513)/0.8407*(2.6-TechCalc!$N$4*0.0133333),#N/A) ->  | L108: 15.591 | M108: =IF(E108="EF",IF(D108="Elec",25.37*(1/I108-1),(J108/I108-1)/(24/41092-1/(I108*H108*1000))/67.5),IFERROR((1/I108-1/J108)/(lookup!AE$14*(24/VLOOKUP(F108,lookup!AD$6:AF$9,3,FALSE)-1/(J108*H108*1000))),#N/A)) -> 15.59097678 | Q108: =0 -> 0 | R108: 0 | S108: 350 | T108: 0.67 | U108: =_xlfn.IFNA(VLOOKUP(B108,VintageUpdate!$Z:$Z,1,FALSE),_xlfn.IFNA(VLOOKUP(B108,VintageUpdate!$AF:$AF,1,FALSE),"No")) -> Stor_EF-Gas-075gal-0.48EF | V108: Pre-existing | W108: FALSE | Z108: =IFERROR(MATCH(B108,TechResults!$B:$B,0),"No") -> 40326 | AA108: FALSE
A109: 93 | B109: Stor_EF-Gas-075gal-0.50EF | C109: Stor | D109: Gas | E109: EF | F109: N/A | G109: 75 | H109: 70 | I109: 0.5 | J109: 0.76 | K109: =IF(OR(C109="PkHP",C109="SpHP"),(I109-0.0043*VLOOKUP(F109,lookup!$AD$6:$AE$10,2,FALSE)-0.1513)/0.8407*(2.6-TechCalc!$N$4*0.0133333),#N/A) ->  | L109: 14.02932 | M109: =IF(E109="EF",IF(D109="Elec",25.37*(1/I109-1),(J109/I109-1)/(24/41092-1/(I109*H109*1000))/67.5),IFERROR((1/I109-1/J109)/(lookup!AE$14*(24/VLOOKUP(F109,lookup!AD$6:AF$9,3,FALSE)-1/(J109*H109*1000))),#N/A)) -> 13.86845637 | Q109: =0 -> 0 | R109: 0 | S109: 350 | T109: 0.67 | U109: =_xlfn.IFNA(VLOOKUP(B109,VintageUpdate!$Z:$Z,1,FALSE),_xlfn.IFNA(VLOOKUP(B109,VintageUpdate!$AF:$AF,1,FALSE),"No")) -> Stor_EF-Gas-075gal-0.50EF | V109: Pre-existing | W109: FALSE | Z109: =IFERROR(MATCH(B109,TechResults!$B:$B,0),"No") -> 40774 | AA109: FALSE
A110: 94 | B110: Stor_EF-Gas-075gal-0.52EF | C110: Stor | D110: Gas | E110: EF | F110: N/A | G110: 75 | H110: 70 | I110: 0.52 | J110: 0.76 | K110: =IF(OR(C110="PkHP",C110="SpHP"),(I110-0.0043*VLOOKUP(F110,lookup!$AD$6:$AE$10,2,FALSE)-0.1513)/0.8407*(2.6-TechCalc!$N$4*0.0133333),#N/A) ->  | L110: 12.28497771 | M110: =IF(E110="EF",IF(D110="Elec",25.37*(1/I110-1),(J110/I110-1)/(24/41092-1/(I110*H110*1000))/67.5),IFERROR((1/I110-1/J110)/(lookup!AE$14*(24/VLOOKUP(F110,lookup!AD$6:AF$9,3,FALSE)-1/(J110*H110*1000))),#N/A)) -> 12.28497771 | Q110: =0 -> 0 | R110: 0 | S110: 350 | T110: 0.67 | U110: =_xlfn.IFNA(VLOOKUP(B110,VintageUpdate!$Z:$Z,1,FALSE),_xlfn.IFNA(VLOOKUP(B110,VintageUpdate!$AF:$AF,1,FALSE),"No")) -> Stor_EF-Gas-075gal-0.52EF | V110: Pre-existing | W110: FALSE | Z110: =IFERROR(MATCH(B110,TechResults!$B:$B,0),"No") -> 41222 | AA110: FALSE
A111: 95 | B111: Stor_EF-Gas-075gal-0.53EF | C111: Stor | D111: Gas | E111: EF | F111: N/A | G111: 75 | H111: 70 | I111: 0.528 | J111: 0.76 | K111: =IF(OR(C111="PkHP",C111="SpHP"),(I111-0.0043*VLOOKUP(F111,lookup!$AD$6:$AE$10,2,FALSE)-0.1513)/0.8407*(2.6-TechCalc!$N$4*0.0133333),#N/A) ->  | L111: 11.6868 | M111: =IF(E111="EF",IF(D111="Elec",25.37*(1/I111-1),(J111/I111-1)/(24/41092-1/(I111*H111*1000))/67.5),IFERROR((1/I111-1/J111)/(lookup!AE$14*(24/VLOOKUP(F111,lookup!AD$6:AF$9,3,FALSE)-1/(J111*H111*1000))),#N/A)) -> 11.68680677 | Q111: =0 -> 0 | R111: 0 | S111: 350 | T111: 0.67 | U111: =_xlfn.IFNA(VLOOKUP(B111,VintageUpdate!$Z:$Z,1,FALSE),_xlfn.IFNA(VLOOKUP(B111,VintageUpdate!$AF:$AF,1,FALSE),"No")) -> Stor_EF-Gas-075gal-0.53EF | V111: Pre-existing | W111: FALSE | Z111: =IFERROR(MATCH(B111,TechResults!$B:$B,0),"No") -> 41670 | AA111: FALSE

Sheet TechCalc
F2: Technology Parameters | J2: HPWH Technology parameters | M2: Simulation Parameters | Q2: Capacity Sizing Parameters | W2: Volume Sizing Parameters | AC2: Number of Technologies
F3: Type | G3: =OFFSET(Technologies!C$16,$C$9,0) -> Stor | J3: HPminT | K3: =OFFSET(Technologies!N16,$C$9,0) -> 0 | L3: F | M3: Tamb Profile | N3: =VLOOKUP(D10,lookup!$B$6:$C$33,2,FALSE) -> DMo | O3: =MATCH(N3,Tamb!$F$7:$R$7,0) -> 1 | Q3: Sizing Factor | T3: 1.2 | W3: Sizing Factor | Z3: =+T3 -> 1.2 | AC3: =Technologies!$A$1 -> 95
F4: UEF/EF | G4: =OFFSET(Technologies!I16,$C$9,0) -> 0.528 | J4: HPmaxT | K4: =OFFSET(Technologies!O16,$C$9,0) -> 0 | L4: F | M4: Ttank: | N4: =VLOOKUP(D10,lookup!$B$6:$D$33,3,FALSE) -> 135 | O4: F | Q4: reqd capacity for peak volume | T4: =E26*(100)*N5 -> 34270.91795 | U4: Btu/hr | W4: reqd volume for peak volume | Z4: =+E26 -> 41.79380238 | AA4: gallons
F5: Fuel | G5: =OFFSET(Technologies!D$16,$C$9,0) -> Gas | H5: =IF(G5="Elec",3413,1000) -> 1000 | J5: HPmaxGal | K5: =OFFSET(Technologies!P$16,$C$9,0) -> 0 | L5: gallons | M5: Gal2BtuF | N5: =8.23-(N4-120)*0.03/15 -> 8.2 | O5: Btu/gal-F | Q5: reqd capacity * Sizing Factor | T5: =+T4*T3 -> 41125.10154 | U5: Btu/hr | W5: reqd volume * Sizing Factor | Z5: =+Z4*Z3 -> 50.15256285 | AA5: gallons
F6: Volume | G6: =OFFSET(Technologies!G$16,$C$9,0) -> 75 | H6: gallons | J6: COP | K6: =IF(OR(G3="PkHP",G3="SpHP"),OFFSET(Technologies!$K$16,TechInd,0),"") ->  | M6: BldgType Sector | N6: =VLOOKUP(D10,lookup!$B$6:$I$33,8,FALSE) -> Res | O6: =VLOOKUP(D10,lookup!$B$6:$M$33,12,FALSE) -> 1200 | Q6: equiv capacity of one unit | T6: =+H5*G7*IF(OR(G3="PkHP",G3="SpHP"),K8,G8)+$G$6*0.8*$N$5*(N4-E23) -> 99727.85183 | U6: Btu/hr | W6: equiv volume of one unit: | Z6: =$G$6*0.8+$G$7*$H$5*IF(OR(G3="PkHP",G3="SpHP"),K8,$G$8)/(100)/$N$5 -> 124.8780488 | AA6: gallons
F7: Cap | G7: =OFFSET(Technologies!H$16,$C$9,0) -> 70 | H7: kW or kBtu/h | J7: Frac Resist | K7: 0.1 | M7: Output Cap | N7: =T5 -> 41125.10154 | O7: Btu/hr | S7: number of units needed: | T7: =+T5/T6 -> 0.4123732817 | Y7: number of units needed: | Z7: =+Z5/Z6 -> 0.4016123197
B8: Input Spec | C8: Index | F8: RE/TE | G8: =OFFSET(Technologies!J16,$C$9,0) -> 0.76 | H8: TE for Com. WHs | J8: RE of ER backup | K8: 0.98 | M8: Demand Profile: | N8: FALSE
B9: TechIndex | C9: 95 | D9: =OFFSET(Technologies!W16,$C$9,0) -> FALSE | E9: =OFFSET(Technologies!AA16,$C$9,0) -> FALSE | F9: Draw Pattern | G9: =OFFSET(Technologies!F16,$C$9,0) -> N/A | M9: Load Profile Index: | N9: =MATCH(D10,HWgal!C7:AD7,0) -> 26 | S9: number of units used: | T9: =IF(N6="Res",1,IF(G3="Stor",T7,Z7)) -> 1
B10: BldgType | C10: 28 | D10: =INDEX(lookup!$B$37:$B$64,C10) -> DMo | F10: Tank UA | G10: =OFFSET(Technologies!L$16,$C$9,0) -> 11.6868 | H10: Btu/hr-F | M10: Storage Cap | N10: =IFERROR(0.8*(N4-E23)*G6*N5*T9,0) -> 46527.85183 | O10: Btu/hr
B11: CZindex | C11: 16 | D11: =INDEX(lookup!$O$6:$O$21,C11) -> CZ16 | F11: Aux W | G11: =OFFSET(Technologies!Q$16,$C$9,0) -> 0 | H11: watts
F12: Vent W | G12: =OFFSET(Technologies!R$16,$C$9,0) -> 0 | H12: watts | J12: Annual Results
F13: Aux Btu | G13: =OFFSET(Technologies!S$16,$C$9,0) -> 350 | H13: Btu/hr | J13: TechIndex | K13: TechID | L13: BldgType | M13: BldgLoc | N13: kWh | O13: kW | P13: therm | Q13: kWh_heat | R13: kWh_bu | S13: kWh_aux | T13: kWh_vent | U13: therm_aux | V13: NumUnits_Each | W13: NumUnits_CapOut-kBtuh | X13: MeasArea | Y13: PkCapHrs | Z13: EFLH
F14: Aux Eff | G14: =OFFSET(Technologies!T$16,$C$9,0) -> 0.67 | J14: =+TechInd -> 95 | K14: =OFFSET(Technologies!B$16,$C$9,0) -> Stor_EF-Gas-075gal-0.53EF | L14: =+D10 -> DMo | M14: =+D11 -> CZ16 | N14: =+Y27 -> 0 | O14: =SUMPRODUCT(Y29:Y8788,D29:D8788)/15 -> 0 | P14: =SUM(Z29:Z8788)+U14 -> 232.2170025 | Q14: =+U27 -> 0 | R14: =+V27 -> 0 | S14: =+W27 -> 0 | T14: =+X27 -> 0 | U14: =+G13*0.0876*$T$9 -> 30.66 | V14: =+T9 -> 1 | W14: =N7/1000 -> 41.12510154 | X14: =+O6 -> 1200 | Y14: =+M26 -> 0 | Z14: =+Q27 -> 372.481322
D23: Min Mains Temp | E23: =MIN(G29:G8788) -> 40.43119546
D24: DeltaT @ peak gal/hr | E24: =$N$4-INDEX($G$29:$G$8788,MATCH(MAX($H$29:$H$8788),$H$29:$H$8788,0)) -> 86.05686133
D25: gal/day: | E25: =SUM(H29:H8788)/365 -> 36.30696834 | H25: =SUM(H29:H8788) -> 13252.04344 | I25: =SUM(I29:I8788) -> 13252.04344 | P25: Heater sized to satisfy peak hourly load
D26: Peak gal/hr: | E26: =MAX(H29:H8788) -> 41.79380238 | H26: hourly | J26: =J27/M27 -> 0.584359836 | K26: =K27/M27 -> 0.5497422303 | L26: =L27/M27 -> -0.1341020664 | O26: =COUNTIF($O$29:$O$8788,N7) -> 0 | P26: =+P27/M27 -> 0 | V26: =IFERROR(V27/(U27+V27),0) -> 0
D27: gal/SqFt-yr: | E27: =SUM(H29:H8788)/O6 -> 11.04336954 | H27: water | I27: Volume | J27: =SUM(J29:J8788) -> 8951418.086 | K27: =SUM(K29:K8788) -> 8421134.102 | L27: =SUM(L29:L8788) -> -2054220 | M27: =SUM(M29:M8788) -> 15318332.19 | O27: =SUM(O29:O8788) -> 15318332.19 | P27: =SUM(P29:P8788) -> 0 | Q27: =SUM(Q29:Q8788) -> 372.481322 | S27: =AVERAGE(S29:S8788) -> 0.76 | T27: =SUM(T29:T8788) -> 0 | U27: =SUM(U29:U8788) -> 0 | V27: 0 | W27: 0 | X27: 0 | Y27: 0 | Z27: =SUM(Z29:Z8788) -> 201.5570025
A28: Day | B28: Hour | C28: Month | D28: Peak-hr | E28: Tamb_DB | F28: Tamb_WB | G28: Tmains | H28: volume | I28: per Unit | J28: LoadHW | K28: LoadUA | L28: LoadAux | M28: LoadTot | N28: Cap_adj | O28: Load Deliv | P28: LoadDelayed | Q28: PLR | R28: COP adj | S28: EFF_hr | T28: HP resist frac | U28: kWh_heat | V28: kWh_bu | W28: kWh_aux | X28: kWh_vent | Y28: kWh_tot | Z28: therm
A29: 1 | B29: 1 | C29: 1 | D29: =INDEX('Peak Period'!$F$6:$U$8765,$B29,$C$11) -> 0 | E29: =INDEX(Tamb!$F$8:$V$140167,($C$11-1)*8760+B29,$O$3) -> 26 | F29: =INDEX(Tamb!$F$8:$V$140167,($C$11-1)*8760+B29,$O$3+1) -> 26 | G29: =INDEX(Tmains!$D$32:$S$396,$A29,CZind) -> 45.67743169 | H29: =INDEX(HWgal!$C$8:$AE$8767,$B29,$N$9)*60 -> 0 | I29: =H29/$T$9 -> 0 | J29: =H29*$N$5*($N$4-$G29) -> 0 | K29: =($N$4-$E29)*$G$10*$T$9 -> 1273.8612 | L29: =-$G$14*$G$13*$T$9 -> -234.5 | M29: =MAX(J29+K29+L29,0) -> 1039.3612 | N29: =IF(OR($G$3="PkHP",$G$3="SpHP"),(HPWH!$Q$31+HPWH!$Q$32*CONVERT(F29,"F","C")+HPWH!$Q$33*CONVERT(F29,"F","C")^2+HPWH!$Q$34*CONVERT($N$4,"F","C")+HPWH!$Q$35*CONVERT($N$4,"F","C")^2+HPWH!$Q$36*CONVERT($N$4,"F","C")*CONVERT(F29,"F","C")),1) -> 1 | O29: =M29 -> 1039.3612 | P29: =MAX(M29-$N$7-N29,0) -> 0 | Q29: =M29/$N$7 -> 0.02527315827 | R29: =IF(OR($G$3="PkHP",$G$3="SpHP"),(HPWH!$P$31+HPWH!$P$32*CONVERT(F29,"F","C")+HPWH!$P$33*CONVERT(F29,"F","C")^2+HPWH!$P$34*CONVERT($N$4,"F","C")+HPWH!$P$35*CONVERT($N$4,"F","C")^2+HPWH!$P$36*CONVERT($N$4,"F","C")*CONVERT(F29,"F","C")),1) -> 1 | S29: =IF(OR($G$3="PkHP",$G$3="SpHP"),$K$6*R29,$G$8*R29) -> 0.76 | T29: =IF(OR($G$3="PkHP",$G$3="SpHP"),IF(OR(E29<$K$3,E29>$K$4,N29<Q29),1,IF(I29>$K$5,$K$7,0)),0) -> 0 | U29: =IF($G$5="Elec",M29*(1-T29)/S29/3413,0) -> 0 | V29: =IF($G$5="Elec",M29*T29/$K$8/3413,0) -> 0 | W29: =$G$11/1000*$T$9 -> 0 | X29: =$G$12*Q29/1000*$T$9 -> 0 | Y29: =U29+V29+W29+X29 -> 0 | Z29: =IF($G$5="Gas",O29/S29/100000,0) -> 0.01367580526
A30: =IF(MOD(B30,24)=1,A29+1,A29) -> 1 | B30: 2 | C30: 1 | D30: =INDEX('Peak Period'!$F$6:$U$8765,$B30,$C$11) -> 0 | E30: =INDEX(Tamb!$F$8:$V$140167,($C$11-1)*8760+B30,$O$3) -> 28 | F30: =INDEX(Tamb!$F$8:$V$140167,($C$11-1)*8760+B30,$O$3+1) -> 27 | G30: =INDEX(Tmains!$D$32:$S$396,$A30,CZind) -> 45.67743169 | H30: =INDEX(HWgal!$C$8:$AE$8767,$B30,$N$9)*60 -> 0 | I30: =H30/$T$9 -> 0 | J30: 0 | K30: =($N$4-$E30)*$G$10*$T$9 -> 1250.4876 | L30: =-$G$14*$G$13*$T$9 -> -234.5 | M30: =MAX(J30+K30+L30+P29*0.8,0) -> 1015.9876 | N30: =IF(OR($G$3="PkHP",$G$3="SpHP"),(HPWH!$Q$31+HPWH!$Q$32*CONVERT(F30,"F","C")+HPWH!$Q$33*CONVERT(F30,"F","C")^2+HPWH!$Q$34*CONVERT($N$4,"F","C")+HPWH!$Q$35*CONVERT($N$4,"F","C")^2+HPWH!$Q$36*CONVERT($N$4,"F","C")*CONVERT(F30,"F","C")),1) -> 1 | O30: =M30 -> 1015.9876 | P30: =MAX(M30-$N$7-N30,0) -> 0 | Q30: =M30/$N$7 -> 0.02470480466 | R30: =IF(OR($G$3="PkHP",$G$3="SpHP"),(HPWH!$P$31+HPWH!$P$32*CONVERT(F30,"F","C")+HPWH!$P$33*CONVERT(F30,"F","C")^2+HPWH!$P$34*CONVERT($N$4,"F","C")+HPWH!$P$35*CONVERT($N$4,"F","C")^2+HPWH!$P$36*CONVERT($N$4,"F","C")*CONVERT(F30,"F","C")),1) -> 1 | S30: =IF(OR($G$3="PkHP",$G$3="SpHP"),$K$6*R30,$G$8*R30) -> 0.76 | T30: =IF(OR($G$3="PkHP",$G$3="SpHP"),IF(OR(E30<$K$3,E30>$K$4,N30<Q30),1,IF(I30>$K$5,$K$7,0)),0) -> 0 | U30: =IF($G$5="Elec",M30*(1-T30)/S30/3413,0) -> 0 | V30: =IF($G$5="Elec",M30*T30/$K$8/3413,0) -> 0 | W30: =$G$11/1000*$T$9 -> 0 | X30: =$G$12*Q30/1000*$T$9 -> 0 | Y30: =U30+V30+W30+X30 -> 0 | Z30: =IF($G$5="Gas",O30/S30/100000,0) -> 0.01336825789
A31: =IF(MOD(B31,24)=1,A30+1,A30) -> 1 | B31: 3 | C31: 1 | D31: =INDEX('Peak Period'!$F$6:$U$8765,$B31,$C$11) -> 0 | E31: =INDEX(Tamb!$F$8:$V$140167,($C$11-1)*8760+B31,$O$3) -> 28 | F31: =INDEX(Tamb!$F$8:$V$140167,($C$11-1)*8760+B31,$O$3+1) -> 28 | G31: =INDEX(Tmains!$D$32:$S$396,$A31,CZind) -> 45.67743169 | H31: =INDEX(HWgal!$C$8:$AE$8767,$B31,$N$9)*60 -> 0 | I31: 0 | J31: 0 | K31: 1250.4876 | L31: -234.5 | M31: =MAX(J31+K31+L31+P30*0.8,0) -> 1015.9876 | N31: =IF(OR($G$3="PkHP",$G$3="SpHP"),(HPWH!$Q$31+HPWH!$Q$32*CONVERT(F31,"F","C")+HPWH!$Q$33*CONVERT(F31,"F","C")^2+HPWH!$Q$34*CONVERT($N$4,"F","C")+HPWH!$Q$35*CONVERT($N$4,"F","C")^2+HPWH!$Q$36*CONVERT($N$4,"F","C")*CONVERT(F31,"F","C")),1) -> 1 | O31: 1015.9876 | P31: 0 | Q31: 0.02470480466 | R31: =IF(OR($G$3="PkHP",$G$3="SpHP"),(HPWH!$P$31+HPWH!$P$32*CONVERT(F31,"F","C")+HPWH!$P$33*CONVERT(F31,"F","C")^2+HPWH!$P$34*CONVERT($N$4,"F","C")+HPWH!$P$35*CONVERT($N$4,"F","C")^2+HPWH!$P$36*CONVERT($N$4,"F","C")*CONVERT(F31,"F","C")),1) -> 1 | S31: 0.76 | T31: 0 | U31: 0 | V31: 0 | W31: 0 | X31: 0 | Y31: 0 | Z31: 0.01336825789
A32: 1 | B32: 4 | C32: 1 | D32: =INDEX('Peak Period'!$F$6:$U$8765,$B32,$C$11) -> 0 | E32: =INDEX(Tamb!$F$8:$V$140167,($C$11-1)*8760+B32,$O$3) -> 28 | F32: =INDEX(Tamb!$F$8:$V$140167,($C$11-1)*8760+B32,$O$3+1) -> 27 | G32: =INDEX(Tmains!$D$32:$S$396,$A32,CZind) -> 45.67743169 | H32: =INDEX(HWgal!$C$8:$AE$8767,$B32,$N$9)*60 -> 0 | I32: 0 | J32: 0 | K32: 1250.4876 | L32: -234.5 | M32: 1015.9876 | N32: =IF(OR($G$3="PkHP",$G$3="SpHP"),(HPWH!$Q$31+HPWH!$Q$32*CONVERT(F32,"F","C")+HPWH!$Q$33*CONVERT(F32,"F","C")^2+HPWH!$Q$34*CONVERT($N$4,"F","C")+HPWH!$Q$35*CONVERT($N$4,"F","C")^2+HPWH!$Q$36*CONVERT($N$4,"F","C")*CONVERT(F32,"F","C")),1) -> 1 | O32: 1015.9876 | P32: 0 | Q32: 0.02470480466 | R32: =IF(OR($G$3="PkHP",$G$3="SpHP"),(HPWH!$P$31+HPWH!$P$32*CONVERT(F32,"F","C")+HPWH!$P$33*CONVERT(F32,"F","C")^2+HPWH!$P$34*CONVERT($N$4,"F","C")+HPWH!$P$35*CONVERT($N$4,"F","C")^2+HPWH!$P$36*CONVERT($N$4,"F","C")*CONVERT(F32,"F","C")),1) -> 1 | S32: 0.76 | T32: 0 | U32: 0 | V32: 0 | W32: 0 | X32: 0 | Y32: 0 | Z32: 0.01336825789
A33: 1 | B33: 5 | C33: 1 | D33: =INDEX('Peak Period'!$F$6:$U$8765,$B33,$C$11) -> 0 | E33: =INDEX(Tamb!$F$8:$V$140167,($C$11-1)*8760+B33,$O$3) -> 29 | F33: =INDEX(Tamb!$F$8:$V$140167,($C$11-1)*8760+B33,$O$3+1) -> 29 | G33: =INDEX(Tmains!$D$32:$S$396,$A33,CZind) -> 45.67743169 | H33: =INDEX(HWgal!$C$8:$AE$8767,$B33,$N$9)*60 -> 0 | I33: 0 | J33: 0 | K33: 1238.8008 | L33: -234.5 | M33: 1004.3008 | N33: =IF(OR($G$3="PkHP",$G$3="SpHP"),(HPWH!$Q$31+HPWH!$Q$32*CONVERT(F33,"F","C")+HPWH!$Q$33*CONVERT(F33,"F","C")^2+HPWH!$Q$34*CONVERT($N$4,"F","C")+HPWH!$Q$35*CONVERT($N$4,"F","C")^2+HPWH!$Q$36*CONVERT($N$4,"F","C")*CONVERT(F33,"F","C")),1) -> 1 | O33: 1004.3008 | P33: 0 | Q33: 0.02442062785 | R33: =IF(OR($G$3="PkHP",$G$3="SpHP"),(HPWH!$P$31+HPWH!$P$32*CONVERT(F33,"F","C")+HPWH!$P$33*CONVERT(F33,"F","C")^2+HPWH!$P$34*CONVERT($N$4,"F","C")+HPWH!$P$35*CONVERT($N$4,"F","C")^2+HPWH!$P$36*CONVERT($N$4,"F","C")*CONVERT(F33,"F","C")),1) -> 1 | S33: 0.76 | T33: 0 | U33: 0 | V33: 0 | W33: 0 | X33: 0 | Y33: 0 | Z33: 0.01321448421
A34: 1 | B34: 6 | C34: 1 | D34: =INDEX('Peak Period'!$F$6:$U$8765,$B34,$C$11) -> 0 | E34: =INDEX(Tamb!$F$8:$V$140167,($C$11-1)*8760+B34,$O$3) -> 29 | F34: =INDEX(Tamb!$F$8:$V$140167,($C$11-1)*8760+B34,$O$3+1) -> 29 | G34: =INDEX(Tmains!$D$32:$S$396,$A34,CZind) -> 45.67743169 | H34: =INDEX(HWgal!$C$8:$AE$8767,$B34,$N$9)*60 -> 0 | I34: 0 | J34: 0 | K34: 1238.8008 | L34: -234.5 | M34: 1004.3008 | N34: =IF(OR($G$3="PkHP",$G$3="SpHP"),(HPWH!$Q$31+HPWH!$Q$32*CONVERT(F34,"F","C")+HPWH!$Q$33*CONVERT(F34,"F","C")^2+HPWH!$Q$34*CONVERT($N$4,"F","C")+HPWH!$Q$35*CONVERT($N$4,"F","C")^2+HPWH!$Q$36*CONVERT($N$4,"F","C")*CONVERT(F34,"F","C")),1) -> 1 | O34: 1004.3008 | P34: 0 | Q34: 0.02442062785 | R34: =IF(OR($G$3="PkHP",$G$3="SpHP"),(HPWH!$P$31+HPWH!$P$32*CONVERT(F34,"F","C")+HPWH!$P$33*CONVERT(F34,"F","C")^2+HPWH!$P$34*CONVERT($N$4,"F","C")+HPWH!$P$35*CONVERT($N$4,"F","C")^2+HPWH!$P$36*CONVERT($N$4,"F","C")*CONVERT(F34,"F","C")),1) -> 1 | S34: 0.76 | T34: 0 | U34: 0 | V34: 0 | W34: 0 | X34: 0 | Y34: 0 | Z34: 0.01321448421
A35: 1 | B35: 7 | C35: 1 | D35: =INDEX('Peak Period'!$F$6:$U$8765,$B35,$C$11) -> 0 | E35: =INDEX(Tamb!$F$8:$V$140167,($C$11-1)*8760+B35,$O$3) -> 28 | F35: =INDEX(Tamb!$F$8:$V$140167,($C$11-1)*8760+B35,$O$3+1) -> 28 | G35: =INDEX(Tmains!$D$32:$S$396,$A35,CZind) -> 45.67743169 | H35: =INDEX(HWgal!$C$8:$AE$8767,$B35,$N$9)*60 -> 16.15845025 | I35: 16.15845025 | J35: 11835.17707 | K35: 1250.4876 | L35: -234.5 | M35: 12851.16467 | N35: =IF(OR($G$3="PkHP",$G$3="SpHP"),(HPWH!$Q$31+HPWH!$Q$32*CONVERT(F35,"F","C")+HPWH!$Q$33*CONVERT(F35,"F","C")^2+HPWH!$Q$34*CONVERT($N$4,"F","C")+HPWH!$Q$35*CONVERT($N$4,"F","C")^2+HPWH!$Q$36*CONVERT($N$4,"F","C")*CONVERT(F35,"F","C")),1) -> 1 | O35: 12851.16467 | P35: 0 | Q35: 0.3124895547 | R35: =IF(OR($G$3="PkHP",$G$3="SpHP"),(HPWH!$P$31+HPWH!$P$32*CONVERT(F35,"F","C")+HPWH!$P$33*CONVERT(F35,"F","C")^2+HPWH!$P$34*CONVERT($N$4,"F","C")+HPWH!$P$35*CONVERT($N$4,"F","C")^2+HPWH!$P$36*CONVERT($N$4,"F","C")*CONVERT(F35,"F","C")),1) -> 1 | S35: 0.76 | T35: 0 | U35: 0 | V35: 0 | W35: 0 | X35: 0 | Y35: 0 | Z35: 0.169094272
A36: 1 | B36: 8 | C36: 1 | D36: =INDEX('Peak Period'!$F$6:$U$8765,$B36,$C$11) -> 0 | E36: =INDEX(Tamb!$F$8:$V$140167,($C$11-1)*8760+B36,$O$3) -> 28 | F36: =INDEX(Tamb!$F$8:$V$140167,($C$11-1)*8760+B36,$O$3+1) -> 28 | G36: =INDEX(Tmains!$D$32:$S$396,$A36,CZind) -> 45.67743169 | H36: =INDEX(HWgal!$C$8:$AE$8767,$B36,$N$9)*60 -> 3.143478565 | I36: 3.143478565 | J36: 2302.425347 | K36: 1250.4876 | L36: -234.5 | M36: 3318.412947 | N36: =IF(OR($G$3="PkHP",$G$3="SpHP"),(HPWH!$Q$31+HPWH!$Q$32*CONVERT(F36,"F","C")+HPWH!$Q$33*CONVERT(F36,"F","C")^2+HPWH!$Q$34*CONVERT($N$4,"F","C")+HPWH!$Q$35*CONVERT($N$4,"F","C")^2+HPWH!$Q$36*CONVERT($N$4,"F","C")*CONVERT(F36,"F","C")),1) -> 1 | O36: 3318.412947 | P36: 0 | Q36: 0.0806906931 | R36: =IF(OR($G$3="PkHP",$G$3="SpHP"),(HPWH!$P$31+HPWH!$P$32*CONVERT(F36,"F","C")+HPWH!$P$33*CONVERT(F36,"F","C")^2+HPWH!$P$34*CONVERT($N$4,"F","C")+HPWH!$P$35*CONVERT($N$4,"F","C")^2+HPWH!$P$36*CONVERT($N$4,"F","C")*CONVERT(F36,"F","C")),1) -> 1 | S36: 0.76 | T36: 0 | U36: 0 | V36: 0 | W36: 0 | X36: 0 | Y36: 0 | Z36: 0.04366332825
A37: 1 | B37: 9 | C37: 1 | D37: =INDEX('Peak Period'!$F$6:$U$8765,$B37,$C$11) -> 0 | E37: =INDEX(Tamb!$F$8:$V$140167,($C$11-1)*8760+B37,$O$3) -> 28 | F37: =INDEX(Tamb!$F$8:$V$140167,($C$11-1)*8760+B37,$O$3+1) -> 28 | G37: =INDEX(Tmains!$D$32:$S$396,$A37,CZind) -> 45.67743169 | H37: =INDEX(HWgal!$C$8:$AE$8767,$B37,$N$9)*60 -> 0 | I37: 0 | J37: 0 | K37: 1250.4876 | L37: -234.5 | M37: 1015.9876 | N37: =IF(OR($G$3="PkHP",$G$3="SpHP"),(HPWH!$Q$31+HPWH!$Q$32*CONVERT(F37,"F","C")+HPWH!$Q$33*CONVERT(F37,"F","C")^2+HPWH!$Q$34*CONVERT($N$4,"F","C")+HPWH!$Q$35*CONVERT($N$4,"F","C")^2+HPWH!$Q$36*CONVERT($N$4,"F","C")*CONVERT(F37,"F","C")),1) -> 1 | O37: 1015.9876 | P37: 0 | Q37: 0.02470480466 | R37: =IF(OR($G$3="PkHP",$G$3="SpHP"),(HPWH!$P$31+HPWH!$P$32*CONVERT(F37,"F","C")+HPWH!$P$33*CONVERT(F37,"F","C")^2+HPWH!$P$34*CONVERT($N$4,"F","C")+HPWH!$P$35*CONVERT($N$4,"F","C")^2+HPWH!$P$36*CONVERT($N$4,"F","C")*CONVERT(F37,"F","C")),1) -> 1 | S37: 0.76 | T37: 0 | U37: 0 | V37: 0 | W37: 0 | X37: 0 | Y37: 0 | Z37: 0.01336825789
A38: 1 | B38: 10 | C38: 1 | D38: =INDEX('Peak Period'!$F$6:$U$8765,$B38,$C$11) -> 0 | E38: =INDEX(Tamb!$F$8:$V$140167,($C$11-1)*8760+B38,$O$3) -> 28 | F38: =INDEX(Tamb!$F$8:$V$140167,($C$11-1)*8760+B38,$O$3+1) -> 28 | G38: =INDEX(Tmains!$D$32:$S$396,$A38,CZind) -> 45.67743169 | H38: =INDEX(HWgal!$C$8:$AE$8767,$B38,$N$9)*60 -> 0 | I38: 0 | J38: 0 | K38: 1250.4876 | L38: -234.5 | M38: 1015.9876 | N38: =IF(OR($G$3="PkHP",$G$3="SpHP"),(HPWH!$Q$31+HPWH!$Q$32*CONVERT(F38,"F","C")+HPWH!$Q$33*CONVERT(F38,"F","C")^2+HPWH!$Q$34*CONVERT($N$4,"F","C")+HPWH!$Q$35*CONVERT($N$4,"F","C")^2+HPWH!$Q$36*CONVERT($N$4,"F","C")*CONVERT(F38,"F","C")),1) -> 1 | O38: 1015.9876 | P38: 0 | Q38: 0.02470480466 | R38: =IF(OR($G$3="PkHP",$G$3="SpHP"),(HPWH!$P$31+HPWH!$P$32*CONVERT(F38,"F","C")+HPWH!$P$33*CONVERT(F38,"F","C")^2+HPWH!$P$34*CONVERT($N$4,"F","C")+HPWH!$P$35*CONVERT($N$4,"F","C")^2+HPWH!$P$36*CONVERT($N$4,"F","C")*CONVERT(F38,"F","C")),1) -> 1 | S38: 0.76 | T38: 0 | U38: 0 | V38: 0 | W38: 0 | X38: 0 | Y38: 0 | Z38: 0.01336825789
A39: 1 | B39: 11 | C39: 1 | D39: =INDEX('Peak Period'!$F$6:$U$8765,$B39,$C$11) -> 0 | E39: =INDEX(Tamb!$F$8:$V$140167,($C$11-1)*8760+B39,$O$3) -> 28 | F39: =INDEX(Tamb!$F$8:$V$140167,($C$11-1)*8760+B39,$O$3+1) -> 28 | G39: =INDEX(Tmains!$D$32:$S$396,$A39,CZind) -> 45.67743169 | H39: =INDEX(HWgal!$C$8:$AE$8767,$B39,$N$9)*60 -> 0 | I39: 0 | J39: 0 | K39: 1250.4876 | L39: -234.5 | M39: 1015.9876 | N39: =IF(OR($G$3="PkHP",$G$3="SpHP"),(HPWH!$Q$31+HPWH!$Q$32*CONVERT(F39,"F","C")+HPWH!$Q$33*CONVERT(F39,"F","C")^2+HPWH!$Q$34*CONVERT($N$4,"F","C")+HPWH!$Q$35*CONVERT($N$4,"F","C")^2+HPWH!$Q$36*CONVERT($N$4,"F","C")*CONVERT(F39,"F","C")),1) -> 1 | O39: 1015.9876 | P39: 0 | Q39: 0.02470480466 | R39: =IF(OR($G$3="PkHP",$G$3="SpHP"),(HPWH!$P$31+HPWH!$P$32*CONVERT(F39,"F","C")+HPWH!$P$33*CONVERT(F39,"F","C")^2+HPWH!$P$34*CONVERT($N$4,"F","C")+HPWH!$P$35*CONVERT($N$4,"F","C")^2+HPWH!$P$36*CONVERT($N$4,"F","C")*CONVERT(F39,"F","C")),1) -> 1 | S39: 0.76 | T39: 0 | U39: 0 | V39: 0 | W39: 0 | X39: 0 | Y39: 0 | Z39: 0.01336825789
A40: 1 | B40: 12 | C40: 1 | D40: =INDEX('Peak Period'!$F$6:$U$8765,$B40,$C$11) -> 0 | E40: =INDEX(Tamb!$F$8:$V$140167,($C$11-1)*8760+B40,$O$3) -> 28 | F40: =INDEX(Tamb!$F$8:$V$140167,($C$11-1)*8760+B40,$O$3+1) -> 28 | G40: =INDEX(Tmains!$D$32:$S$396,$A40,CZind) -> 45.67743169 | H40: =INDEX(HWgal!$C$8:$AE$8767,$B40,$N$9)*60 -> 0 | I40: 0 | J40: 0 | K40: 1250.4876 | L40: -234.5 | M40: 1015.9876 | N40: =IF(OR($G$3="PkHP",$G$3="SpHP"),(HPWH!$Q$31+HPWH!$Q$32*CONVERT(F40,"F","C")+HPWH!$Q$33*CONVERT(F40,"F","C")^2+HPWH!$Q$34*CONVERT($N$4,"F","C")+HPWH!$Q$35*CONVERT($N$4,"F","C")^2+HPWH!$Q$36*CONVERT($N$4,"F","C")*CONVERT(F40,"F","C")),1) -> 1 | O40: 1015.9876 | P40: 0 | Q40: 0.02470480466 | R40: =IF(OR($G$3="PkHP",$G$3="SpHP"),(HPWH!$P$31+HPWH!$P$32*CONVERT(F40,"F","C")+HPWH!$P$33*CONVERT(F40,"F","C")^2+HPWH!$P$34*CONVERT($N$4,"F","C")+HPWH!$P$35*CONVERT($N$4,"F","C")^2+HPWH!$P$36*CONVERT($N$4,"F","C")*CONVERT(F40,"F","C")),1) -> 1 | S40: 0.76 | T40: 0 | U40: 0 | V40: 0 | W40: 0 | X40: 0 | Y40: 0 | Z40: 0.01336825789
A41: 1 | B41: 13 | C41: 1 | D41: =INDEX('Peak Period'!$F$6:$U$8765,$B41,$C$11) -> 0 | E41: =INDEX(Tamb!$F$8:$V$140167,($C$11-1)*8760+B41,$O$3) -> 28 | F41: =INDEX(Tamb!$F$8:$V$140167,($C$11-1)*8760+B41,$O$3+1) -> 28 | G41: =INDEX(Tmains!$D$32:$S$396,$A41,CZind) -> 45.67743169 | H41: =INDEX(HWgal!$C$8:$AE$8767,$B41,$N$9)*60 -> 0 | I41: 0 | J41: 0 | K41: 1250.4876 | L41: -234.5 | M41: 1015.9876 | N41: =IF(OR($G$3="PkHP",$G$3="SpHP"),(HPWH!$Q$31+HPWH!$Q$32*CONVERT(F41,"F","C")+HPWH!$Q$33*CONVERT(F41,"F","C")^2+HPWH!$Q$34*CONVERT($N$4,"F","C")+HPWH!$Q$35*CONVERT($N$4,"F","C")^2+HPWH!$Q$36*CONVERT($N$4,"F","C")*CONVERT(F41,"F","C")),1) -> 1 | O41: 1015.9876 | P41: 0 | Q41: 0.02470480466 | R41: =IF(OR($G$3="PkHP",$G$3="SpHP"),(HPWH!$P$31+HPWH!$P$32*CONVERT(F41,"F","C")+HPWH!$P$33*CONVERT(F41,"F","C")^2+HPWH!$P$34*CONVERT($N$4,"F","C")+HPWH!$P$35*CONVERT($N$4,"F","C")^2+HPWH!$P$36*CONVERT($N$4,"F","C")*CONVERT(F41,"F","C")),1) -> 1 | S41: 0.76 | T41: 0 | U41: 0 | V41: 0 | W41: 0 | X41: 0 | Y41: 0 | Z41: 0.01336825789
A42: 1 | B42: 14 | C42: 1 | D42: =INDEX('Peak Period'!$F$6:$U$8765,$B42,$C$11) -> 0 | E42: =INDEX(Tamb!$F$8:$V$140167,($C$11-1)*8760+B42,$O$3) -> 27 | F42: =INDEX(Tamb!$F$8:$V$140167,($C$11-1)*8760+B42,$O$3+1) -> 27 | G42: =INDEX(Tmains!$D$32:$S$396,$A42,CZind) -> 45.67743169 | H42: =INDEX(HWgal!$C$8:$AE$8767,$B42,$N$9)*60 -> 0 | I42: 0 | J42: 0 | K42: 1262.1744 | L42: -234.5 | M42: 1027.6744 | N42: =IF(OR($G$3="PkHP",$G$3="SpHP"),(HPWH!$Q$31+HPWH!$Q$32*CONVERT(F42,"F","C")+HPWH!$Q$33*CONVERT(F42,"F","C")^2+HPWH!$Q$34*CONVERT($N$4,"F","C")+HPWH!$Q$35*CONVERT($N$4,"F","C")^2+HPWH!$Q$36*CONVERT($N$4,"F","C")*CONVERT(F42,"F","C")),1) -> 1 | O42: 1027.6744 | P42: 0 | Q42: 0.02498898146 | R42: =IF(OR($G$3="PkHP",$G$3="SpHP"),(HPWH!$P$31+HPWH!$P$32*CONVERT(F42,"F","C")+HPWH!$P$33*CONVERT(F42,"F","C")^2+HPWH!$P$34*CONVERT($N$4,"F","C")+HPWH!$P$35*CONVERT($N$4,"F","C")^2+HPWH!$P$36*CONVERT($N$4,"F","C")*CONVERT(F42,"F","C")),1) -> 1 | S42: 0.76 | T42: 0 | U42: 0 | V42: 0 | W42: 0 | X42: 0 | Y42: 0 | Z42: 0.01352203158
A43: 1 | B43: 15 | C43: 1 | D43: =INDEX('Peak Period'!$F$6:$U$8765,$B43,$C$11) -> 0 | E43: =INDEX(Tamb!$F$8:$V$140167,($C$11-1)*8760+B43,$O$3) -> 27 | F43: =INDEX(Tamb!$F$8:$V$140167,($C$11-1)*8760+B43,$O$3+1) -> 27 | G43: =INDEX(Tmains!$D$32:$S$396,$A43,CZind) -> 45.67743169 | H43: =INDEX(HWgal!$C$8:$AE$8767,$B43,$N$9)*60 -> 0 | I43: 0 | J43: 0 | K43: 1262.1744 | L43: -234.5 | M43: 1027.6744 | N43: =IF(OR($G$3="PkHP",$G$3="SpHP"),(HPWH!$Q$31+HPWH!$Q$32*CONVERT(F43,"F","C")+HPWH!$Q$33*CONVERT(F43,"F","C")^2+HPWH!$Q$34*CONVERT($N$4,"F","C")+HPWH!$Q$35*CONVERT($N$4,"F","C")^2+HPWH!$Q$36*CONVERT($N$4,"F","C")*CONVERT(F43,"F","C")),1) -> 1 | O43: 1027.6744 | P43: 0 | Q43: 0.02498898146 | R43: =IF(OR($G$3="PkHP",$G$3="SpHP"),(HPWH!$P$31+HPWH!$P$32*CONVERT(F43,"F","C")+HPWH!$P$33*CONVERT(F43,"F","C")^2+HPWH!$P$34*CONVERT($N$4,"F","C")+HPWH!$P$35*CONVERT($N$4,"F","C")^2+HPWH!$P$36*CONVERT($N$4,"F","C")*CONVERT(F43,"F","C")),1) -> 1 | S43: 0.76 | T43: 0 | U43: 0 | V43: 0 | W43: 0 | X43: 0 | Y43: 0 | Z43: 0.01352203158
A44: 1 | B44: 16 | C44: 1 | D44: =INDEX('Peak Period'!$F$6:$U$8765,$B44,$C$11) -> 0 | E44: =INDEX(Tamb!$F$8:$V$140167,($C$11-1)*8760+B44,$O$3) -> 27 | F44: =INDEX(Tamb!$F$8:$V$140167,($C$11-1)*8760+B44,$O$3+1) -> 27 | G44: =INDEX(Tmains!$D$32:$S$396,$A44,CZind) -> 45.67743169 | H44: =INDEX(HWgal!$C$8:$AE$8767,$B44,$N$9)*60 -> 0 | I44: 0 | J44: 0 | K44: 1262.1744 | L44: -234.5 | M44: 1027.6744 | N44: =IF(OR($G$3="PkHP",$G$3="SpHP"),(HPWH!$Q$31+HPWH!$Q$32*CONVERT(F44,"F","C")+HPWH!$Q$33*CONVERT(F44,"F","C")^2+HPWH!$Q$34*CONVERT($N$4,"F","C")+HPWH!$Q$35*CONVERT($N$4,"F","C")^2+HPWH!$Q$36*CONVERT($N$4,"F","C")*CONVERT(F44,"F","C")),1) -> 1 | O44: 1027.6744 | P44: 0 | Q44: 0.02498898146 | R44: =IF(OR($G$3="PkHP",$G$3="SpHP"),(HPWH!$P$31+HPWH!$P$32*CONVERT(F44,"F","C")+HPWH!$P$33*CONVERT(F44,"F","C")^2+HPWH!$P$34*CONVERT($N$4,"F","C")+HPWH!$P$35*CONVERT($N$4,"F","C")^2+HPWH!$P$36*CONVERT($N$4,"F","C")*CONVERT(F44,"F","C")),1) -> 1 | S44: 0.76 | T44: 0 | U44: 0 | V44: 0 | W44: 0 | X44: 0 | Y44: 0 | Z44: 0.01352203158
A45: 1 | B45: 17 | C45: 1 | D45: =INDEX('Peak Period'!$F$6:$U$8765,$B45,$C$11) -> 0 | E45: =INDEX(Tamb!$F$8:$V$140167,($C$11-1)*8760+B45,$O$3) -> 27 | F45: =INDEX(Tamb!$F$8:$V$140167,($C$11-1)*8760+B45,$O$3+1) -> 27 | G45: =INDEX(Tmains!$D$32:$S$396,$A45,CZind) -> 45.67743169 | H45: =INDEX(HWgal!$C$8:$AE$8767,$B45,$N$9)*60 -> 0 | I45: 0 | J45: 0 | K45: 1262.1744 | L45: -234.5 | M45: 1027.6744 | N45: =IF(OR($G$3="PkHP",$G$3="SpHP"),(HPWH!$Q$31+HPWH!$Q$32*CONVERT(F45,"F","C")+HPWH!$Q$33*CONVERT(F45,"F","C")^2+HPWH!$Q$34*CONVERT($N$4,"F","C")+HPWH!$Q$35*CONVERT($N$4,"F","C")^2+HPWH!$Q$36*CONVERT($N$4,"F","C")*CONVERT(F45,"F","C")),1) -> 1 | O45: 1027.6744 | P45: 0 | Q45: 0.02498898146 | R45: =IF(OR($G$3="PkHP",$G$3="SpHP"),(HPWH!$P$31+HPWH!$P$32*CONVERT(F45,"F","C")+HPWH!$P$33*CONVERT(F45,"F","C")^2+HPWH!$P$34*CONVERT($N$4,"F","C")+HPWH!$P$35*CONVERT($N$4,"F","C")^2+HPWH!$P$36*CONVERT($N$4,"F","C")*CONVERT(F45,"F","C")),1) -> 1 | S45: 0.76 | T45: 0 | U45: 0 | V45: 0 | W45: 0 | X45: 0 | Y45: 0 | Z45: 0.01352203158
A46: 1 | B46: 18 | C46: 1 | D46: =INDEX('Peak Period'!$F$6:$U$8765,$B46,$C$11) -> 0 | E46: =INDEX(Tamb!$F$8:$V$140167,($C$11-1)*8760+B46,$O$3) -> 27 | F46: =INDEX(Tamb!$F$8:$V$140167,($C$11-1)*8760+B46,$O$3+1) -> 27 | G46: =INDEX(Tmains!$D$32:$S$396,$A46,CZind) -> 45.67743169 | H46: =INDEX(HWgal!$C$8:$AE$8767,$B46,$N$9)*60 -> 0 | I46: 0 | J46: 0 | K46: 1262.1744 | L46: -234.5 | M46: 1027.6744 | N46: =IF(OR($G$3="PkHP",$G$3="SpHP"),(HPWH!$Q$31+HPWH!$Q$32*CONVERT(F46,"F","C")+HPWH!$Q$33*CONVERT(F46,"F","C")^2+HPWH!$Q$34*CONVERT($N$4,"F","C")+HPWH!$Q$35*CONVERT($N$4,"F","C")^2+HPWH!$Q$36*CONVERT($N$4,"F","C")*CONVERT(F46,"F","C")),1) -> 1 | O46: 1027.6744 | P46: 0 | Q46: 0.02498898146 | R46: =IF(OR($G$3="PkHP",$G$3="SpHP"),(HPWH!$P$31+HPWH!$P$32*CONVERT(F46,"F","C")+HPWH!$P$33*CONVERT(F46,"F","C")^2+HPWH!$P$34*CONVERT($N$4,"F","C")+HPWH!$P$35*CONVERT($N$4,"F","C")^2+HPWH!$P$36*CONVERT($N$4,"F","C")*CONVERT(F46,"F","C")),1) -> 1 | S46: 0.76 | T46: 0 | U46: 0 | V46: 0 | W46: 0 | X46: 0 | Y46: 0 | Z46: 0.01352203158
A47: 1 | B47: 19 | C47: 1 | D47: =INDEX('Peak Period'!$F$6:$U$8765,$B47,$C$11) -> 0 | E47: =INDEX(Tamb!$F$8:$V$140167,($C$11-1)*8760+B47,$O$3) -> 27 | F47: =INDEX(Tamb!$F$8:$V$140167,($C$11-1)*8760+B47,$O$3+1) -> 27 | G47: =INDEX(Tmains!$D$32:$S$396,$A47,CZind) -> 45.67743169 | H47: =INDEX(HWgal!$C$8:$AE$8767,$B47,$N$9)*60 -> 1.004689243 | I47: 1.004689243 | J47: 735.8796727 | K47: 1262.1744 | L47: -234.5 | M47: 1763.554073 | N47: =IF(OR($G$3="PkHP",$G$3="SpHP"),(HPWH!$Q$31+HPWH!$Q$32*CONVERT(F47,"F","C")+HPWH!$Q$33*CONVERT(F47,"F","C")^2+HPWH!$Q$34*CONVERT($N$4,"F","C")+HPWH!$Q$35*CONVERT($N$4,"F","C")^2+HPWH!$Q$36*CONVERT($N$4,"F","C")*CONVERT(F47,"F","C")),1) -> 1 | O47: 1763.554073 | P47: 0 | Q47: 0.04288266792 | R47: =IF(OR($G$3="PkHP",$G$3="SpHP"),(HPWH!$P$31+HPWH!$P$32*CONVERT(F47,"F","C")+HPWH!$P$33*CONVERT(F47,"F","C")^2+HPWH!$P$34*CONVERT($N$4,"F","C")+HPWH!$P$35*CONVERT($N$4,"F","C")^2+HPWH!$P$36*CONVERT($N$4,"F","C")*CONVERT(F47,"F","C")),1) -> 1 | S47: 0.76 | T47: 0 | U47: 0 | V47: 0 | W47: 0 | X47: 0 | Y47: 0 | Z47: 0.02320465885
A48: 1 | B48: 20 | C48: 1 | D48: =INDEX('Peak Period'!$F$6:$U$8765,$B48,$C$11) -> 0 | E48: =INDEX(Tamb!$F$8:$V$140167,($C$11-1)*8760+B48,$O$3) -> 27 | F48: =INDEX(Tamb!$F$8:$V$140167,($C$11-1)*8760+B48,$O$3+1) -> 27 | G48: =INDEX(Tmains!$D$32:$S$396,$A48,CZind) -> 45.67743169 | H48: =INDEX(HWgal!$C$8:$AE$8767,$B48,$N$9)*60 -> 0.8663944914 | I48: 0.8663944914 | J48: 634.5863653 | K48: 1262.1744 | L48: -234.5 | M48: 1662.260765 | N48: =IF(OR($G$3="PkHP",$G$3="SpHP"),(HPWH!$Q$31+HPWH!$Q$32*CONVERT(F48,"F","C")+HPWH!$Q$33*CONVERT(F48,"F","C")^2+HPWH!$Q$34*CONVERT($N$4,"F","C")+HPWH!$Q$35*CONVERT($N$4,"F","C")^2+HPWH!$Q$36*CONVERT($N$4,"F","C")*CONVERT(F48,"F","C")),1) -> 1 | O48: 1662.260765 | P48: 0 | Q48: 0.04041961486 | R48: =IF(OR($G$3="PkHP",$G$3="SpHP"),(HPWH!$P$31+HPWH!$P$32*CONVERT(F48,"F","C")+HPWH!$P$33*CONVERT(F48,"F","C")^2+HPWH!$P$34*CONVERT($N$4,"F","C")+HPWH!$P$35*CONVERT($N$4,"F","C")^2+HPWH!$P$36*CONVERT($N$4,"F","C")*CONVERT(F48,"F","C")),1) -> 1 | S48: 0.76 | T48: 0 | U48: 0 | V48: 0 | W48: 0 | X48: 0 | Y48: 0 | Z48: 0.02187185218
A49: 1 | B49: 21 | C49: 1 | D49: =INDEX('Peak Period'!$F$6:$U$8765,$B49,$C$11) -> 0 | E49: =INDEX(Tamb!$F$8:$V$140167,($C$11-1)*8760+B49,$O$3) -> 26 | F49: =INDEX(Tamb!$F$8:$V$140167,($C$11-1)*8760+B49,$O$3+1) -> 26 | G49: =INDEX(Tmains!$D$32:$S$396,$A49,CZind) -> 45.67743169 | H49: =INDEX(HWgal!$C$8:$AE$8767,$B49,$N$9)*60 -> 0.1836505381 | I49: 0.1836505381 | J49: 134.5139294 | K49: 1273.8612 | L49: -234.5 | M49: 1173.875129 | N49: =IF(OR($G$3="PkHP",$G$3="SpHP"),(HPWH!$Q$31+HPWH!$Q$32*CONVERT(F49,"F","C")+HPWH!$Q$33*CONVERT(F49,"F","C")^2+HPWH!$Q$34*CONVERT($N$4,"F","C")+HPWH!$Q$35*CONVERT($N$4,"F","C")^2+HPWH!$Q$36*CONVERT($N$4,"F","C")*CONVERT(F49,"F","C")),1) -> 1 | O49: 1173.875129 | P49: 0 | Q49: 0.02854400562 | R49: =IF(OR($G$3="PkHP",$G$3="SpHP"),(HPWH!$P$31+HPWH!$P$32*CONVERT(F49,"F","C")+HPWH!$P$33*CONVERT(F49,"F","C")^2+HPWH!$P$34*CONVERT($N$4,"F","C")+HPWH!$P$35*CONVERT($N$4,"F","C")^2+HPWH!$P$36*CONVERT($N$4,"F","C")*CONVERT(F49,"F","C")),1) -> 1 | S49: 0.76 | T49: 0 | U49: 0 | V49: 0 | W49: 0 | X49: 0 | Y49: 0 | Z49: 0.01544572539
A50: 1 | B50: 22 | C50: 1 | D50: =INDEX('Peak Period'!$F$6:$U$8765,$B50,$C$11) -> 0 | E50: =INDEX(Tamb!$F$8:$V$140167,($C$11-1)*8760+B50,$O$3) -> 26 | F50: =INDEX(Tamb!$F$8:$V$140167,($C$11-1)*8760+B50,$O$3+1) -> 26 | G50: =INDEX(Tmains!$D$32:$S$396,$A50,CZind) -> 45.67743169 | H50: =INDEX(HWgal!$C$8:$AE$8767,$B50,$N$9)*60 -> 0.2905609184 | I50: 0.2905609184 | J50: 212.8199093 | K50: 1273.8612 | L50: -234.5 | M50: 1252.181109 | N50: =IF(OR($G$3="PkHP",$G$3="SpHP"),(HPWH!$Q$31+HPWH!$Q$32*CONVERT(F50,"F","C")+HPWH!$Q$33*CONVERT(F50,"F","C")^2+HPWH!$Q$34*CONVERT($N$4,"F","C")+HPWH!$Q$35*CONVERT($N$4,"F","C")^2+HPWH!$Q$36*CONVERT($N$4,"F","C")*CONVERT(F50,"F","C")),1) -> 1 | O50: 1252.181109 | P50: 0 | Q50: 0.03044809769 | R50: =IF(OR($G$3="PkHP",$G$3="SpHP"),(HPWH!$P$31+HPWH!$P$32*CONVERT(F50,"F","C")+HPWH!$P$33*CONVERT(F50,"F","C")^2+HPWH!$P$34*CONVERT($N$4,"F","C")+HPWH!$P$35*CONVERT($N$4,"F","C")^2+HPWH!$P$36*CONVERT($N$4,"F","C")*CONVERT(F50,"F","C")),1) -> 1 | S50: 0.76 | T50: 0 | U50: 0 | V50: 0 | W50: 0 | X50: 0 | Y50: 0 | Z50: 0.01647606723
A51: 1 | B51: 23 | C51: 1 | D51: =INDEX('Peak Period'!$F$6:$U$8765,$B51,$C$11) -> 0 | E51: =INDEX(Tamb!$F$8:$V$140167,($C$11-1)*8760+B51,$O$3) -> 26 | F51: =INDEX(Tamb!$F$8:$V$140167,($C$11-1)*8760+B51,$O$3+1) -> 26 | G51: =INDEX(Tmains!$D$32:$S$396,$A51,CZind) -> 45.67743169 | H51: =INDEX(HWgal!$C$8:$AE$8767,$B51,$N$9)*60 -> 1.443719626 | I51: 1.443719626 | J51: 1057.445308 | K51: 1273.8612 | L51: -234.5 | M51: 2096.806508 | N51: =IF(OR($G$3="PkHP",$G$3="SpHP"),(HPWH!$Q$31+HPWH!$Q$32*CONVERT(F51,"F","C")+HPWH!$Q$33*CONVERT(F51,"F","C")^2+HPWH!$Q$34*CONVERT($N$4,"F","C")+HPWH!$Q$35*CONVERT($N$4,"F","C")^2+HPWH!$Q$36*CONVERT($N$4,"F","C")*CONVERT(F51,"F","C")),1) -> 1 | O51: 2096.806508 | P51: 0 | Q51: 0.05098605061 | R51: =IF(OR($G$3="PkHP",$G$3="SpHP"),(HPWH!$P$31+HPWH!$P$32*CONVERT(F51,"F","C")+HPWH!$P$33*CONVERT(F51,"F","C")^2+HPWH!$P$34*CONVERT($N$4,"F","C")+HPWH!$P$35*CONVERT($N$4,"F","C")^2+HPWH!$P$36*CONVERT($N$4,"F","C")*CONVERT(F51,"F","C")),1) -> 1 | S51: 0.76 | T51: 0 | U51: 0 | V51: 0 | W51: 0 | X51: 0 | Y51: 0 | Z51: 0.02758955932
A52: 1 | B52: 24 | C52: 1 | D52: =INDEX('Peak Period'!$F$6:$U$8765,$B52,$C$11) -> 0 | E52: =INDEX(Tamb!$F$8:$V$140167,($C$11-1)*8760+B52,$O$3) -> 26 | F52: =INDEX(Tamb!$F$8:$V$140167,($C$11-1)*8760+B52,$O$3+1) -> 26 | G52: =INDEX(Tmains!$D$32:$S$396,$A52,CZind) -> 45.67743169 | H52: =INDEX(HWgal!$C$8:$AE$8767,$B52,$N$9)*60 -> 0.30012607 | I52: 0.30012607 | J52: 219.8258574 | K52: 1273.8612 | L52: -234.5 | M52: 1259.187057 | N52: =IF(OR($G$3="PkHP",$G$3="SpHP"),(HPWH!$Q$31+HPWH!$Q$32*CONVERT(F52,"F","C")+HPWH!$Q$33*CONVERT(F52,"F","C")^2+HPWH!$Q$34*CONVERT($N$4,"F","C")+HPWH!$Q$35*CONVERT($N$4,"F","C")^2+HPWH!$Q$36*CONVERT($N$4,"F","C")*CONVERT(F52,"F","C")),1) -> 1 | O52: 1259.187057 | P52: 0 | Q52: 0.03061845467 | R52: =IF(OR($G$3="PkHP",$G$3="SpHP"),(HPWH!$P$31+HPWH!$P$32*CONVERT(F52,"F","C")+HPWH!$P$33*CONVERT(F52,"F","C")^2+HPWH!$P$34*CONVERT($N$4,"F","C")+HPWH!$P$35*CONVERT($N$4,"F","C")^2+HPWH!$P$36*CONVERT($N$4,"F","C")*CONVERT(F52,"F","C")),1) -> 1 | S52: 0.76 | T52: 0 | U52: 0 | V52: 0 | W52: 0 | X52: 0 | Y52: 0 | Z52: 0.01656825075
A53: 2 | B53: 25 | C53: 1 | D53: =INDEX('Peak Period'!$F$6:$U$8765,$B53,$C$11) -> 0 | E53: =INDEX(Tamb!$F$8:$V$140167,($C$11-1)*8760+B53,$O$3) -> 26 | F53: =INDEX(Tamb!$F$8:$V$140167,($C$11-1)*8760+B53,$O$3+1) -> 26 | G53: =INDEX(Tmains!$D$32:$S$396,$A53,CZind) -> 43.28147645 | H53: =INDEX(HWgal!$C$8:$AE$8767,$B53,$N$9)*60 -> 0 | I53: 0 | J53: 0 | K53: 1273.8612 | L53: -234.5 | M53: 1039.3612 | N53: =IF(OR($G$3="PkHP",$G$3="SpHP"),(HPWH!$Q$31+HPWH!$Q$32*CONVERT(F53,"F","C")+HPWH!$Q$33*CONVERT(F53,"F","C")^2+HPWH!$Q$34*CONVERT($N$4,"F","C")+HPWH!$Q$35*CONVERT($N$4,"F","C")^2+HPWH!$Q$36*CONVERT($N$4,"F","C")*CONVERT(F53,"F","C")),1) -> 1 | O53: 1039.3612 | P53: 0 | Q53: 0.02527315827 | R53: =IF(OR($G$3="PkHP",$G$3="SpHP"),(HPWH!$P$31+HPWH!$P$32*CONVERT(F53,"F","C")+HPWH!$P$33*CONVERT(F53,"F","C")^2+HPWH!$P$34*CONVERT($N$4,"F","C")+HPWH!$P$35*CONVERT($N$4,"F","C")^2+HPWH!$P$36*CONVERT($N$4,"F","C")*CONVERT(F53,"F","C")),1) -> 1 | S53: 0.76 | T53: 0 | U53: 0 | V53: 0 | W53: 0 | X53: 0 | Y53: 0 | Z53: 0.01367580526
A54: 2 | B54: 26 | C54: 1 | D54: =INDEX('Peak Period'!$F$6:$U$8765,$B54,$C$11) -> 0 | E54: =INDEX(Tamb!$F$8:$V$140167,($C$11-1)*8760+B54,$O$3) -> 26 | F54: =INDEX(Tamb!$F$8:$V$140167,($C$11-1)*8760+B54,$O$3+1) -> 26 | G54: =INDEX(Tmains!$D$32:$S$396,$A54,CZind) -> 43.28147645 | H54: =INDEX(HWgal!$C$8:$AE$8767,$B54,$N$9)*60 -> 0 | I54: 0 | J54: 0 | K54: 1273.8612 | L54: -234.5 | M54: 1039.3612 | N54: =IF(OR($G$3="PkHP",$G$3="SpHP"),(HPWH!$Q$31+HPWH!$Q$32*CONVERT(F54,"F","C")+HPWH!$Q$33*CONVERT(F54,"F","C")^2+HPWH!$Q$34*CONVERT($N$4,"F","C")+HPWH!$Q$35*CONVERT($N$4,"F","C")^2+HPWH!$Q$36*CONVERT($N$4,"F","C")*CONVERT(F54,"F","C")),1) -> 1 | O54: 1039.3612 | P54: 0 | Q54: 0.02527315827 | R54: =IF(OR($G$3="PkHP",$G$3="SpHP"),(HPWH!$P$31+HPWH!$P$32*CONVERT(F54,"F","C")+HPWH!$P$33*CONVERT(F54,"F","C")^2+HPWH!$P$34*CONVERT($N$4,"F","C")+HPWH!$P$35*CONVERT($N$4,"F","C")^2+HPWH!$P$36*CONVERT($N$4,"F","C")*CONVERT(F54,"F","C")),1) -> 1 | S54: 0.76 | T54: 0 | U54: 0 | V54: 0 | W54: 0 | X54: 0 | Y54: 0 | Z54: 0.01367580526
A55: 2 | B55: 27 | C55: 1 | D55: =INDEX('Peak Period'!$F$6:$U$8765,$B55,$C$11) -> 0 | E55: =INDEX(Tamb!$F$8:$V$140167,($C$11-1)*8760+B55,$O$3) -> 26 | F55: =INDEX(Tamb!$F$8:$V$140167,($C$11-1)*8760+B55,$O$3+1) -> 26 | G55: =INDEX(Tmains!$D$32:$S$396,$A55,CZind) -> 43.28147645 | H55: =INDEX(HWgal!$C$8:$AE$8767,$B55,$N$9)*60 -> 0 | I55: 0 | J55: 0 | K55: 1273.8612 | L55: -234.5 | M55: 1039.3612 | N55: =IF(OR($G$3="PkHP",$G$3="SpHP"),(HPWH!$Q$31+HPWH!$Q$32*CONVERT(F55,"F","C")+HPWH!$Q$33*CONVERT(F55,"F","C")^2+HPWH!$Q$34*CONVERT($N$4,"F","C")+HPWH!$Q$35*CONVERT($N$4,"F","C")^2+HPWH!$Q$36*CONVERT($N$4,"F","C")*CONVERT(F55,"F","C")),1) -> 1 | O55: 1039.3612 | P55: 0 | Q55: 0.02527315827 | R55: =IF(OR($G$3="PkHP",$G$3="SpHP"),(HPWH!$P$31+HPWH!$P$32*CONVERT(F55,"F","C")+HPWH!$P$33*CONVERT(F55,"F","C")^2+HPWH!$P$34*CONVERT($N$4,"F","C")+HPWH!$P$35*CONVERT($N$4,"F","C")^2+HPWH!$P$36*CONVERT($N$4,"F","C")*CONVERT(F55,"F","C")),1) -> 1 | S55: 0.76 | T55: 0 | U55: 0 | V55: 0 | W55: 0 | X55: 0 | Y55: 0 | Z55: 0.01367580526
A56: 2 | B56: 28 | C56: 1 | D56: =INDEX('Peak Period'!$F$6:$U$8765,$B56,$C$11) -> 0 | E56: =INDEX(Tamb!$F$8:$V$140167,($C$11-1)*8760+B56,$O$3) -> 26 | F56: =INDEX(Tamb!$F$8:$V$140167,($C$11-1)*8760+B56,$O$3+1) -> 26 | G56: =INDEX(Tmains!$D$32:$S$396,$A56,CZind) -> 43.28147645 | H56: =INDEX(HWgal!$C$8:$AE$8767,$B56,$N$9)*60 -> 0 | I56: 0 | J56: 0 | K56: 1273.8612 | L56: -234.5 | M56: 1039.3612 | N56: =IF(OR($G$3="PkHP",$G$3="SpHP"),(HPWH!$Q$31+HPWH!$Q$32*CONVERT(F56,"F","C")+HPWH!$Q$33*CONVERT(F56,"F","C")^2+HPWH!$Q$34*CONVERT($N$4,"F","C")+HPWH!$Q$35*CONVERT($N$4,"F","C")^2+HPWH!$Q$36*CONVERT($N$4,"F","C")*CONVERT(F56,"F","C")),1) -> 1 | O56: 1039.3612 | P56: 0 | Q56: 0.02527315827 | R56: =IF(OR($G$3="PkHP",$G$3="SpHP"),(HPWH!$P$31+HPWH!$P$32*CONVERT(F56,"F","C")+HPWH!$P$33*CONVERT(F56,"F","C")^2+HPWH!$P$34*CONVERT($N$4,"F","C")+HPWH!$P$35*CONVERT($N$4,"F","C")^2+HPWH!$P$36*CONVERT($N$4,"F","C")*CONVERT(F56,"F","C")),1) -> 1 | S56: 0.76 | T56: 0 | U56: 0 | V56: 0 | W56: 0 | X56: 0 | Y56: 0 | Z56: 0.01367580526
A57: 2 | B57: 29 | C57: 1 | D57: =INDEX('Peak Period'!$F$6:$U$8765,$B57,$C$11) -> 0 | E57: =INDEX(Tamb!$F$8:$V$140167,($C$11-1)*8760+B57,$O$3) -> 26 | F57: =INDEX(Tamb!$F$8:$V$140167,($C$11-1)*8760+B57,$O$3+1) -> 26 | G57: =INDEX(Tmains!$D$32:$S$396,$A57,CZind) -> 43.28147645 | H57: =INDEX(HWgal!$C$8:$AE$8767,$B57,$N$9)*60 -> 0.09993775912 | I57: 0.09993775912 | J57: 75.16237845 | K57: 1273.8612 | L57: -234.5 | M57: 1114.523578 | N57: =IF(OR($G$3="PkHP",$G$3="SpHP"),(HPWH!$Q$31+HPWH!$Q$32*CONVERT(F57,"F","C")+HPWH!$Q$33*CONVERT(F57,"F","C")^2+HPWH!$Q$34*CONVERT($N$4,"F","C")+HPWH!$Q$35*CONVERT($N$4,"F","C")^2+HPWH!$Q$36*CONVERT($N$4,"F","C")*CONVERT(F57,"F","C")),1) -> 1 | O57: 1114.523578 | P57: 0 | Q57: 0.02710081037 | R57: =IF(OR($G$3="PkHP",$G$3="SpHP"),(HPWH!$P$31+HPWH!$P$32*CONVERT(F57,"F","C")+HPWH!$P$33*CONVERT(F57,"F","C")^2+HPWH!$P$34*CONVERT($N$4,"F","C")+HPWH!$P$35*CONVERT($N$4,"F","C")^2+HPWH!$P$36*CONVERT($N$4,"F","C")*CONVERT(F57,"F","C")),1) -> 1 | S57: 0.76 | T57: 0 | U57: 0 | V57: 0 | W57: 0 | X57: 0 | Y57: 0 | Z57: 0.01466478393
A58: 2 | B58: 30 | C58: 1 | D58: =INDEX('Peak Period'!$F$6:$U$8765,$B58,$C$11) -> 0 | E58: =INDEX(Tamb!$F$8:$V$140167,($C$11-1)*8760+B58,$O$3) -> 26 | F58: =INDEX(Tamb!$F$8:$V$140167,($C$11-1)*8760+B58,$O$3+1) -> 26 | G58: =INDEX(Tmains!$D$32:$S$396,$A58,CZind) -> 43.28147645 | H58: =INDEX(HWgal!$C$8:$AE$8767,$B58,$N$9)*60 -> 0.5298506704 | I58: 0.5298506704 | J58: 398.4963938 | K58: 1273.8612 | L58: -234.5 | M58: 1437.857594 | N58: =IF(OR($G$3="PkHP",$G$3="SpHP"),(HPWH!$Q$31+HPWH!$Q$32*CONVERT(F58,"F","C")+HPWH!$Q$33*CONVERT(F58,"F","C")^2+HPWH!$Q$34*CONVERT($N$4,"F","C")+HPWH!$Q$35*CONVERT($N$4,"F","C")^2+HPWH!$Q$36*CONVERT($N$4,"F","C")*CONVERT(F58,"F","C")),1) -> 1 | O58: 1437.857594 | P58: 0 | Q58: 0.03496301626 | R58: =IF(OR($G$3="PkHP",$G$3="SpHP"),(HPWH!$P$31+HPWH!$P$32*CONVERT(F58,"F","C")+HPWH!$P$33*CONVERT(F58,"F","C")^2+HPWH!$P$34*CONVERT($N$4,"F","C")+HPWH!$P$35*CONVERT($N$4,"F","C")^2+HPWH!$P$36*CONVERT($N$4,"F","C")*CONVERT(F58,"F","C")),1) -> 1 | S58: 0.76 | T58: 0 | U58: 0 | V58: 0 | W58: 0 | X58: 0 | Y58: 0 | Z58: 0.01891917887
A59: 2 | B59: 31 | C59: 1 | D59: =INDEX('Peak Period'!$F$6:$U$8765,$B59,$C$11) -> 0 | E59: =INDEX(Tamb!$F$8:$V$140167,($C$11-1)*8760+B59,$O$3) -> 25 | F59: =INDEX(Tamb!$F$8:$V$140167,($C$11-1)*8760+B59,$O$3+1) -> 25 | G59: =INDEX(Tmains!$D$32:$S$396,$A59,CZind) -> 43.28147645 | H59: =INDEX(HWgal!$C$8:$AE$8767,$B59,$N$9)*60 -> 0.439516979 | I59: 0.439516979 | J59: 330.5571568 | K59: 1285.548 | L59: -234.5 | M59: 1381.605157 | N59: =IF(OR($G$3="PkHP",$G$3="SpHP"),(HPWH!$Q$31+HPWH!$Q$32*CONVERT(F59,"F","C")+HPWH!$Q$33*CONVERT(F59,"F","C")^2+HPWH!$Q$34*CONVERT($N$4,"F","C")+HPWH!$Q$35*CONVERT($N$4,"F","C")^2+HPWH!$Q$36*CONVERT($N$4,"F","C")*CONVERT(F59,"F","C")),1) -> 1 | O59: 1381.605157 | P59: 0 | Q59: 0.03359517922 | R59: =IF(OR($G$3="PkHP",$G$3="SpHP"),(HPWH!$P$31+HPWH!$P$32*CONVERT(F59,"F","C")+HPWH!$P$33*CONVERT(F59,"F","C")^2+HPWH!$P$34*CONVERT($N$4,"F","C")+HPWH!$P$35*CONVERT($N$4,"F","C")^2+HPWH!$P$36*CONVERT($N$4,"F","C")*CONVERT(F59,"F","C")),1) -> 1 | S59: 0.76 | T59: 0 | U59: 0 | V59: 0 | W59: 0 | X59: 0 | Y59: 0 | Z59: 0.01817901522
A60: 2 | B60: 32 | C60: 1 | D60: =INDEX('Peak Period'!$F$6:$U$8765,$B60,$C$11) -> 0 | E60: =INDEX(Tamb!$F$8:$V$140167,($C$11-1)*8760+B60,$O$3) -> 25 | F60: =INDEX(Tamb!$F$8:$V$140167,($C$11-1)*8760+B60,$O$3+1) -> 25 | G60: =INDEX(Tmains!$D$32:$S$396,$A60,CZind) -> 43.28147645 | H60: =INDEX(HWgal!$C$8:$AE$8767,$B60,$N$9)*60 -> 1.699923772 | I60: 1.699923772 | J60: 1278.498888 | K60: 1285.548 | L60: -234.5 | M60: 2329.546888 | N60: =IF(OR($G$3="PkHP",$G$3="SpHP"),(HPWH!$Q$31+HPWH!$Q$32*CONVERT(F60,"F","C")+HPWH!$Q$33*CONVERT(F60,"F","C")^2+HPWH!$Q$34*CONVERT($N$4,"F","C")+HPWH!$Q$35*CONVERT($N$4,"F","C")^2+HPWH!$Q$36*CONVERT($N$4,"F","C")*CONVERT(F60,"F","C")),1) -> 1 | O60: 2329.546888 | P60: 0 | Q60: 0.05664537718 | R60: =IF(OR($G$3="PkHP",$G$3="SpHP"),(HPWH!$P$31+HPWH!$P$32*CONVERT(F60,"F","C")+HPWH!$P$33*CONVERT(F60,"F","C")^2+HPWH!$P$34*CONVERT($N$4,"F","C")+HPWH!$P$35*CONVERT($N$4,"F","C")^2+HPWH!$P$36*CONVERT($N$4,"F","C")*CONVERT(F60,"F","C")),1) -> 1 | S60: 0.76 | T60: 0 | U60: 0 | V60: 0 | W60: 0 | X60: 0 | Y60: 0 | Z60: 0.03065193274
A61: 2 | B61: 33 | C61: 1 | D61: =INDEX('Peak Period'!$F$6:$U$8765,$B61,$C$11) -> 0 | E61: =INDEX(Tamb!$F$8:$V$140167,($C$11-1)*8760+B61,$O$3) -> 25 | F61: =INDEX(Tamb!$F$8:$V$140167,($C$11-1)*8760+B61,$O$3+1) -> 25 | G61: =INDEX(Tmains!$D$32:$S$396,$A61,CZind) -> 43.28147645 | H61: =INDEX(HWgal!$C$8:$AE$8767,$B61,$N$9)*60 -> 1.300547504 | I61: 1.300547504 | J61: 978.1312344 | K61: 1285.548 | L61: -234.5 | M61: 2029.179234 | N61: =IF(OR($G$3="PkHP",$G$3="SpHP"),(HPWH!$Q$31+HPWH!$Q$32*CONVERT(F61,"F","C")+HPWH!$Q$33*CONVERT(F61,"F","C")^2+HPWH!$Q$34*CONVERT($N$4,"F","C")+HPWH!$Q$35*CONVERT($N$4,"F","C")^2+HPWH!$Q$36*CONVERT($N$4,"F","C")*CONVERT(F61,"F","C")),1) -> 1 | O61: 2029.179234 | P61: 0 | Q61: 0.04934162248 | R61: =IF(OR($G$3="PkHP",$G$3="SpHP"),(HPWH!$P$31+HPWH!$P$32*CONVERT(F61,"F","C")+HPWH!$P$33*CONVERT(F61,"F","C")^2+HPWH!$P$34*CONVERT($N$4,"F","C")+HPWH!$P$35*CONVERT($N$4,"F","C")^2+HPWH!$P$36*CONVERT($N$4,"F","C")*CONVERT(F61,"F","C")),1) -> 1 | S61: 0.76 | T61: 0 | U61: 0 | V61: 0 | W61: 0 | X61: 0 | Y61: 0 | Z61: 0.02669972677
A62: 2 | B62: 34 | C62: 1 | D62: =INDEX('Peak Period'!$F$6:$U$8765,$B62,$C$11) -> 0 | E62: =INDEX(Tamb!$F$8:$V$140167,($C$11-1)*8760+B62,$O$3) -> 25 | F62: =INDEX(Tamb!$F$8:$V$140167,($C$11-1)*8760+B62,$O$3+1) -> 25 | G62: =INDEX(Tmains!$D$32:$S$396,$A62,CZind) -> 43.28147645 | H62: =INDEX(HWgal!$C$8:$AE$8767,$B62,$N$9)*60 -> 1.342399361 | I62: 1.342399361 | J62: 1009.607676 | K62: 1285.548 | L62: -234.5 | M62: 2060.655676 | N62: =IF(OR($G$3="PkHP",$G$3="SpHP"),(HPWH!$Q$31+HPWH!$Q$32*CONVERT(F62,"F","C")+HPWH!$Q$33*CONVERT(F62,"F","C")^2+HPWH!$Q$34*CONVERT($N$4,"F","C")+HPWH!$Q$35*CONVERT($N$4,"F","C")^2+HPWH!$Q$36*CONVERT($N$4,"F","C")*CONVERT(F62,"F","C")),1) -> 1 | O62: 2060.655676 | P62: 0 | Q62: 0.05010700519 | R62: =IF(OR($G$3="PkHP",$G$3="SpHP"),(HPWH!$P$31+HPWH!$P$32*CONVERT(F62,"F","C")+HPWH!$P$33*CONVERT(F62,"F","C")^2+HPWH!$P$34*CONVERT($N$4,"F","C")+HPWH!$P$35*CONVERT($N$4,"F","C")^2+HPWH!$P$36*CONVERT($N$4,"F","C")*CONVERT(F62,"F","C")),1) -> 1 | S62: 0.76 | T62: 0 | U62: 0 | V62: 0 | W62: 0 | X62: 0 | Y62: 0 | Z62: 0.02711389048
A63: 2 | B63: 35 | C63: 1 | D63: =INDEX('Peak Period'!$F$6:$U$8765,$B63,$C$11) -> 0 | E63: =INDEX(Tamb!$F$8:$V$140167,($C$11-1)*8760+B63,$O$3) -> 25 | F63: =INDEX(Tamb!$F$8:$V$140167,($C$11-1)*8760+B63,$O$3+1) -> 25 | G63: =INDEX(Tmains!$D$32:$S$396,$A63,CZind) -> 43.28147645 | H63: =INDEX(HWgal!$C$8:$AE$8767,$B63,$N$9)*60 -> 0.2177054942 | I63: 0.2177054942 | J63: 163.7345373 | K63: 1285.548 | L63: -234.5 | M63: 1214.782537 | N63: =IF(OR($G$3="PkHP",$G$3="SpHP"),(HPWH!$Q$31+HPWH!$Q$32*CONVERT(F63,"F","C")+HPWH!$Q$33*CONVERT(F63,"F","C")^2+HPWH!$Q$34*CONVERT($N$4,"F","C")+HPWH!$Q$35*CONVERT($N$4,"F","C")^2+HPWH!$Q$36*CONVERT($N$4,"F","C")*CONVERT(F63,"F","C")),1) -> 1 | O63: 1214.782537 | P63: 0 | Q63: 0.02953871217 | R63: =IF(OR($G$3="PkHP",$G$3="SpHP"),(HPWH!$P$31+HPWH!$P$32*CONVERT(F63,"F","C")+HPWH!$P$33*CONVERT(F63,"F","C")^2+HPWH!$P$34*CONVERT($N$4,"F","C")+HPWH!$P$35*CONVERT($N$4,"F","C")^2+HPWH!$P$36*CONVERT($N$4,"F","C")*CONVERT(F63,"F","C")),1) -> 1 | S63: 0.76 | T63: 0 | U63: 0 | V63: 0 | W63: 0 | X63: 0 | Y63: 0 | Z63: 0.01598398075
A64: 2 | B64: 36 | C64: 1 | D64: =INDEX('Peak Period'!$F$6:$U$8765,$B64,$C$11) -> 0 | E64: =INDEX(Tamb!$F$8:$V$140167,($C$11-1)*8760+B64,$O$3) -> 25 | F64: =INDEX(Tamb!$F$8:$V$140167,($C$11-1)*8760+B64,$O$3+1) -> 25 | G64: =INDEX(Tmains!$D$32:$S$396,$A64,CZind) -> 43.28147645 | H64: =INDEX(HWgal!$C$8:$AE$8767,$B64,$N$9)*60 -> 0.6023790751 | I64: 0.6023790751 | J64: 453.0444189 | K64: 1285.548 | L64: -234.5 | M64: 1504.092419 | N64: =IF(OR($G$3="PkHP",$G$3="SpHP"),(HPWH!$Q$31+HPWH!$Q$32*CONVERT(F64,"F","C")+HPWH!$Q$33*CONVERT(F64,"F","C")^2+HPWH!$Q$34*CONVERT($N$4,"F","C")+HPWH!$Q$35*CONVERT($N$4,"F","C")^2+HPWH!$Q$36*CONVERT($N$4,"F","C")*CONVERT(F64,"F","C")),1) -> 1 | O64: 1504.092419 | P64: 0 | Q64: 0.03657358554 | R64: =IF(OR($G$3="PkHP",$G$3="SpHP"),(HPWH!$P$31+HPWH!$P$32*CONVERT(F64,"F","C")+HPWH!$P$33*CONVERT(F64,"F","C")^2+HPWH!$P$34*CONVERT($N$4,"F","C")+HPWH!$P$35*CONVERT($N$4,"F","C")^2+HPWH!$P$36*CONVERT($N$4,"F","C")*CONVERT(F64,"F","C")),1) -> 1 | S64: 0.76 | T64: 0 | U64: 0 | V64: 0 | W64: 0 | X64: 0 | Y64: 0 | Z64: 0.01979068972
A65: 2 | B65: 37 | C65: 1 | D65: =INDEX('Peak Period'!$F$6:$U$8765,$B65,$C$11) -> 0 | E65: =INDEX(Tamb!$F$8:$V$140167,($C$11-1)*8760+B65,$O$3) -> 25 | F65: =INDEX(Tamb!$F$8:$V$140167,($C$11-1)*8760+B65,$O$3+1) -> 25 | G65: =INDEX(Tmains!$D$32:$S$396,$A65,CZind) -> 43.28147645 | H65: =INDEX(HWgal!$C$8:$AE$8767,$B65,$N$9)*60 -> 0.734865957 | I65: 0.734865957 | J65: 552.6867288 | K65: 1285.548 | L65: -234.5 | M65: 1603.734729 | N65: =IF(OR($G$3="PkHP",$G$3="SpHP"),(HPWH!$Q$31+HPWH!$Q$32*CONVERT(F65,"F","C")+HPWH!$Q$33*CONVERT(F65,"F","C")^2+HPWH!$Q$34*CONVERT($N$4,"F","C")+HPWH!$Q$35*CONVERT($N$4,"F","C")^2+HPWH!$Q$36*CONVERT($N$4,"F","C")*CONVERT(F65,"F","C")),1) -> 1 | O65: 1603.734729 | P65: 0 | Q65: 0.03899649287 | R65: =IF(OR($G$3="PkHP",$G$3="SpHP"),(HPWH!$P$31+HPWH!$P$32*CONVERT(F65,"F","C")+HPWH!$P$33*CONVERT(F65,"F","C")^2+HPWH!$P$34*CONVERT($N$4,"F","C")+HPWH!$P$35*CONVERT($N$4,"F","C")^2+HPWH!$P$36*CONVERT($N$4,"F","C")*CONVERT(F65,"F","C")),1) -> 1 | S65: 0.76 | T65: 0 | U65: 0 | V65: 0 | W65: 0 | X65: 0 | Y65: 0 | Z65: 0.02110177275
A66: 2 | B66: 38 | C66: 1 | D66: =INDEX('Peak Period'!$F$6:$U$8765,$B66,$C$11) -> 0 | E66: =INDEX(Tamb!$F$8:$V$140167,($C$11-1)*8760+B66,$O$3) -> 26 | F66: =INDEX(Tamb!$F$8:$V$140167,($C$11-1)*8760+B66,$O$3+1) -> 26 | G66: =INDEX(Tmains!$D$32:$S$396,$A66,CZind) -> 43.28147645 | H66: =INDEX(HWgal!$C$8:$AE$8767,$B66,$N$9)*60 -> 3.767364719 | I66: 3.767364719 | J66: 2833.404464 | K66: 1273.8612 | L66: -234.5 | M66: 3872.765664 | N66: =IF(OR($G$3="PkHP",$G$3="SpHP"),(HPWH!$Q$31+HPWH!$Q$32*CONVERT(F66,"F","C")+HPWH!$Q$33*CONVERT(F66,"F","C")^2+HPWH!$Q$34*CONVERT($N$4,"F","C")+HPWH!$Q$35*CONVERT($N$4,"F","C")^2+HPWH!$Q$36*CONVERT($N$4,"F","C")*CONVERT(F66,"F","C")),1) -> 1 | O66: 3872.765664 | P66: 0 | Q66: 0.09417036114 | R66: =IF(OR($G$3="PkHP",$G$3="SpHP"),(HPWH!$P$31+HPWH!$P$32*CONVERT(F66,"F","C")+HPWH!$P$33*CONVERT(F66,"F","C")^2+HPWH!$P$34*CONVERT($N$4,"F","C")+HPWH!$P$35*CONVERT($N$4,"F","C")^2+HPWH!$P$36*CONVERT($N$4,"F","C")*CONVERT(F66,"F","C")),1) -> 1 | S66: 0.76 | T66: 0 | U66: 0 | V66: 0 | W66: 0 | X66: 0 | Y66: 0 | Z66: 0.05095744295
A67: 2 | B67: 39 | C67: 1 | D67: =INDEX('Peak Period'!$F$6:$U$8765,$B67,$C$11) -> 0 | E67: =INDEX(Tamb!$F$8:$V$140167,($C$11-1)*8760+B67,$O$3) -> 26 | F67: =INDEX(Tamb!$F$8:$V$140167,($C$11-1)*8760+B67,$O$3+1) -> 26 | G67: =INDEX(Tmains!$D$32:$S$396,$A67,CZind) -> 43.28147645 | H67: =INDEX(HWgal!$C$8:$AE$8767,$B67,$N$9)*60 -> 3.001390471 | I67: 3.001390471 | J67: 2257.321442 | K67: 1273.8612 | L67: -234.5 | M67: 3296.682642 | N67: =IF(OR($G$3="PkHP",$G$3="SpHP"),(HPWH!$Q$31+HPWH!$Q$32*CONVERT(F67,"F","C")+HPWH!$Q$33*CONVERT(F67,"F","C")^2+HPWH!$Q$34*CONVERT($N$4,"F","C")+HPWH!$Q$35*CONVERT($N$4,"F","C")^2+HPWH!$Q$36*CONVERT($N$4,"F","C")*CONVERT(F67,"F","C")),1) -> 1 | O67: 3296.682642 | P67: 0 | Q67: 0.08016229792 | R67: =IF(OR($G$3="PkHP",$G$3="SpHP"),(HPWH!$P$31+HPWH!$P$32*CONVERT(F67,"F","C")+HPWH!$P$33*CONVERT(F67,"F","C")^2+HPWH!$P$34*CONVERT($N$4,"F","C")+HPWH!$P$35*CONVERT($N$4,"F","C")^2+HPWH!$P$36*CONVERT($N$4,"F","C")*CONVERT(F67,"F","C")),1) -> 1 | S67: 0.76 | T67: 0 | U67: 0 | V67: 0 | W67: 0 | X67: 0 | Y67: 0 | Z67: 0.04337740318
A68: 2 | B68: 40 | C68: 1 | D68: =INDEX('Peak Period'!$F$6:$U$8765,$B68,$C$11) -> 0 | E68: =INDEX(Tamb!$F$8:$V$140167,($C$11-1)*8760+B68,$O$3) -> 25 | F68: =INDEX(Tamb!$F$8:$V$140167,($C$11-1)*8760+B68,$O$3+1) -> 25 | G68: =INDEX(Tmains!$D$32:$S$396,$A68,CZind) -> 43.28147645 | H68: =INDEX(HWgal!$C$8:$AE$8767,$B68,$N$9)*60 -> 0.04066234746 | I68: 0.04066234746 | J68: 30.58182188 | K68: 1285.548 | L68: -234.5 | M68: 1081.629822 | N68: =IF(OR($G$3="PkHP",$G$3="SpHP"),(HPWH!$Q$31+HPWH!$Q$32*CONVERT(F68,"F","C")+HPWH!$Q$33*CONVERT(F68,"F","C")^2+HPWH!$Q$34*CONVERT($N$4,"F","C")+HPWH!$Q$35*CONVERT($N$4,"F","C")^2+HPWH!$Q$36*CONVERT($N$4,"F","C")*CONVERT(F68,"F","C")),1) -> 1 | O68: 1081.629822 | P68: 0 | Q68: 0.02630096417 | R68: =IF(OR($G$3="PkHP",$G$3="SpHP"),(HPWH!$P$31+HPWH!$P$32*CONVERT(F68,"F","C")+HPWH!$P$33*CONVERT(F68,"F","C")^2+HPWH!$P$34*CONVERT($N$4,"F","C")+HPWH!$P$35*CONVERT($N$4,"F","C")^2+HPWH!$P$36*CONVERT($N$4,"F","C")*CONVERT(F68,"F","C")),1) -> 1 | S68: 0.76 | T68: 0 | U68: 0 | V68: 0 | W68: 0 | X68: 0 | Y68: 0 | Z68: 0.01423197134
A69: 2 | B69: 41 | C69: 1 | D69: =INDEX('Peak Period'!$F$6:$U$8765,$B69,$C$11) -> 0 | E69: =INDEX(Tamb!$F$8:$V$140167,($C$11-1)*8760+B69,$O$3) -> 25 | F69: =INDEX(Tamb!$F$8:$V$140167,($C$11-1)*8760+B69,$O$3+1) -> 25 | G69: =INDEX(Tmains!$D$32:$S$396,$A69,CZind) -> 43.28147645 | H69: =INDEX(HWgal!$C$8:$AE$8767,$B69,$N$9)*60 -> 0 | I69: 0 | J69: 0 | K69: 1285.548 | L69: -234.5 | M69: 1051.048 | N69: =IF(OR($G$3="PkHP",$G$3="SpHP"),(HPWH!$Q$31+HPWH!$Q$32*CONVERT(F69,"F","C")+HPWH!$Q$33*CONVERT(F69,"F","C")^2+HPWH!$Q$34*CONVERT($N$4,"F","C")+HPWH!$Q$35*CONVERT($N$4,"F","C")^2+HPWH!$Q$36*CONVERT($N$4,"F","C")*CONVERT(F69,"F","C")),1) -> 1 | O69: 1051.048 | P69: 0 | Q69: 0.02555733507 | R69: =IF(OR($G$3="PkHP",$G$3="SpHP"),(HPWH!$P$31+HPWH!$P$32*CONVERT(F69,"F","C")+HPWH!$P$33*CONVERT(F69,"F","C")^2+HPWH!$P$34*CONVERT($N$4,"F","C")+HPWH!$P$35*CONVERT($N$4,"F","C")^2+HPWH!$P$36*CONVERT($N$4,"F","C")*CONVERT(F69,"F","C")),1) -> 1 | S69: 0.76 | T69: 0 | U69: 0 | V69: 0 | W69: 0 | X69: 0 | Y69: 0 | Z69: 0.01382957895
A70: 2 | B70: 42 | C70: 1 | D70: =INDEX('Peak Period'!$F$6:$U$8765,$B70,$C$11) -> 0 | E70: =INDEX(Tamb!$F$8:$V$140167,($C$11-1)*8760+B70,$O$3) -> 25 | F70: =INDEX(Tamb!$F$8:$V$140167,($C$11-1)*8760+B70,$O$3+1) -> 25 | G70: =INDEX(Tmains!$D$32:$S$396,$A70,CZind) -> 43.28147645 | H70: =INDEX(HWgal!$C$8:$AE$8767,$B70,$N$9)*60 -> 2.93315924 | I70: 2.93315924 | J70: 2206.005285 | K70: 1285.548 | L70: -234.5 | M70: 3257.053285 | N70: =IF(OR($G$3="PkHP",$G$3="SpHP"),(HPWH!$Q$31+HPWH!$Q$32*CONVERT(F70,"F","C")+HPWH!$Q$33*CONVERT(F70,"F","C")^2+HPWH!$Q$34*CONVERT($N$4,"F","C")+HPWH!$Q$35*CONVERT($N$4,"F","C")^2+HPWH!$Q$36*CONVERT($N$4,"F","C")*CONVERT(F70,"F","C")),1) -> 1 | O70: 3257.053285 | P70: 0 | Q70: 0.07919866854 | R70: =IF(OR($G$3="PkHP",$G$3="SpHP"),(HPWH!$P$31+HPWH!$P$32*CONVERT(F70,"F","C")+HPWH!$P$33*CONVERT(F70,"F","C")^2+HPWH!$P$34*CONVERT($N$4,"F","C")+HPWH!$P$35*CONVERT($N$4,"F","C")^2+HPWH!$P$36*CONVERT($N$4,"F","C")*CONVERT(F70,"F","C")),1) -> 1 | S70: 0.76 | T70: 0 | U70: 0 | V70: 0 | W70: 0 | X70: 0 | Y70: 0 | Z70: 0.04285596428
A71: 2 | B71: 43 | C71: 1 | D71: =INDEX('Peak Period'!$F$6:$U$8765,$B71,$C$11) -> 0 | E71: =INDEX(Tamb!$F$8:$V$140167,($C$11-1)*8760+B71,$O$3) -> 25 | F71: =INDEX(Tamb!$F$8:$V$140167,($C$11-1)*8760+B71,$O$3+1) -> 25 | G71: =INDEX(Tmains!$D$32:$S$396,$A71,CZind) -> 43.28147645 | H71: =INDEX(HWgal!$C$8:$AE$8767,$B71,$N$9)*60 -> 0.4665230778 | I71: 0.4665230778 | J71: 350.8682248 | K71: 1285.548 | L71: -234.5 | M71: 1401.916225 | N71: =IF(OR($G$3="PkHP",$G$3="SpHP"),(HPWH!$Q$31+HPWH!$Q$32*CONVERT(F71,"F","C")+HPWH!$Q$33*CONVERT(F71,"F","C")^2+HPWH!$Q$34*CONVERT($N$4,"F","C")+HPWH!$Q$35*CONVERT($N$4,"F","C")^2+HPWH!$Q$36*CONVERT($N$4,"F","C")*CONVERT(F71,"F","C")),1) -> 1 | O71: 1401.916225 | P71: 0 | Q71: 0.03408906416 | R71: =IF(OR($G$3="PkHP",$G$3="SpHP"),(HPWH!$P$31+HPWH!$P$32*CONVERT(F71,"F","C")+HPWH!$P$33*CONVERT(F71,"F","C")^2+HPWH!$P$34*CONVERT($N$4,"F","C")+HPWH!$P$35*CONVERT($N$4,"F","C")^2+HPWH!$P$36*CONVERT($N$4,"F","C")*CONVERT(F71,"F","C")),1) -> 1 | S71: 0.76 | T71: 0 | U71: 0 | V71: 0 | W71: 0 | X71: 0 | Y71: 0 | Z71: 0.01844626612
A72: 2 | B72: 44 | C72: 1 | D72: =INDEX('Peak Period'!$F$6:$U$8765,$B72,$C$11) -> 0 | E72: =INDEX(Tamb!$F$8:$V$140167,($C$11-1)*8760+B72,$O$3) -> 25 | F72: =INDEX(Tamb!$F$8:$V$140167,($C$11-1)*8760+B72,$O$3+1) -> 25 | G72: =INDEX(Tmains!$D$32:$S$396,$A72,CZind) -> 43.28147645 | H72: =INDEX(HWgal!$C$8:$AE$8767,$B72,$N$9)*60 -> 0.9665769268 | I72: 0.9665769268 | J72: 726.9546707 | K72: 1285.548 | L72: -234.5 | M72: 1778.002671 | N72: =IF(OR($G$3="PkHP",$G$3="SpHP"),(HPWH!$Q$31+HPWH!$Q$32*CONVERT(F72,"F","C")+HPWH!$Q$33*CONVERT(F72,"F","C")^2+HPWH!$Q$34*CONVERT($N$4,"F","C")+HPWH!$Q$35*CONVERT($N$4,"F","C")^2+HPWH!$Q$36*CONVERT($N$4,"F","C")*CONVERT(F72,"F","C")),1) -> 1 | O72: 1778.002671 | P72: 0 | Q72: 0.04323400075 | R72: =IF(OR($G$3="PkHP",$G$3="SpHP"),(HPWH!$P$31+HPWH!$P$32*CONVERT(F72,"F","C")+HPWH!$P$33*CONVERT(F72,"F","C")^2+HPWH!$P$34*CONVERT($N$4,"F","C")+HPWH!$P$35*CONVERT($N$4,"F","C")^2+HPWH!$P$36*CONVERT($N$4,"F","C")*CONVERT(F72,"F","C")),1) -> 1 | S72: 0.76 | T72: 0 | U72: 0 | V72: 0 | W72: 0 | X72: 0 | Y72: 0 | Z72: 0.02339477198
A73: 2 | B73: 45 | C73: 1 | D73: =INDEX('Peak Period'!$F$6:$U$8765,$B73,$C$11) -> 0 | E73: =INDEX(Tamb!$F$8:$V$140167,($C$11-1)*8760+B73,$O$3) -> 25 | F73: =INDEX(Tamb!$F$8:$V$140167,($C$11-1)*8760+B73,$O$3+1) -> 24 | G73: =INDEX(Tmains!$D$32:$S$396,$A73,CZind) -> 43.28147645 | H73: =INDEX(HWgal!$C$8:$AE$8767,$B73,$N$9)*60 -> 1.997786651 | I73: 1.997786651 | J73: 1502.519144 | K73: 1285.548 | L73: -234.5 | M73: 2553.567144 | N73: =IF(OR($G$3="PkHP",$G$3="SpHP"),(HPWH!$Q$31+HPWH!$Q$32*CONVERT(F73,"F","C")+HPWH!$Q$33*CONVERT(F73,"F","C")^2+HPWH!$Q$34*CONVERT($N$4,"F","C")+HPWH!$Q$35*CONVERT($N$4,"F","C")^2+HPWH!$Q$36*CONVERT($N$4,"F","C")*CONVERT(F73,"F","C")),1) -> 1 | O73: 2553.567144 | P73: 0 | Q73: 0.06209266479 | R73: =IF(OR($G$3="PkHP",$G$3="SpHP"),(HPWH!$P$31+HPWH!$P$32*CONVERT(F73,"F","C")+HPWH!$P$33*CONVERT(F73,"F","C")^2+HPWH!$P$34*CONVERT($N$4,"F","C")+HPWH!$P$35*CONVERT($N$4,"F","C")^2+HPWH!$P$36*CONVERT($N$4,"F","C")*CONVERT(F73,"F","C")),1) -> 1 | S73: 0.76 | T73: 0 | U73: 0 | V73: 0 | W73: 0 | X73: 0 | Y73: 0 | Z73: 0.03359956769
A74: 2 | B74: 46 | C74: 1 | D74: =INDEX('Peak Period'!$F$6:$U$8765,$B74,$C$11) -> 0 | E74: =INDEX(Tamb!$F$8:$V$140167,($C$11-1)*8760+B74,$O$3) -> 24 | F74: =INDEX(Tamb!$F$8:$V$140167,($C$11-1)*8760+B74,$O$3+1) -> 23 | G74: =INDEX(Tmains!$D$32:$S$396,$A74,CZind) -> 43.28147645 | H74: =INDEX(HWgal!$C$8:$AE$8767,$B74,$N$9)*60 -> 0.4718160453 | I74: 0.4718160453 | J74: 354.8490227 | K74: 1297.2348 | L74: -234.5 | M74: 1417.583823 | N74: =IF(OR($G$3="PkHP",$G$3="SpHP"),(HPWH!$Q$31+HPWH!$Q$32*CONVERT(F74,"F","C")+HPWH!$Q$33*CONVERT(F74,"F","C")^2+HPWH!$Q$34*CONVERT($N$4,"F","C")+HPWH!$Q$35*CONVERT($N$4,"F","C")^2+HPWH!$Q$36*CONVERT($N$4,"F","C")*CONVERT(F74,"F","C")),1) -> 1 | O74: 1417.583823 | P74: 0 | Q74: 0.03447003824 | R74: =IF(OR($G$3="PkHP",$G$3="SpHP"),(HPWH!$P$31+HPWH!$P$32*CONVERT(F74,"F","C")+HPWH!$P$33*CONVERT(F74,"F","C")^2+HPWH!$P$34*CONVERT($N$4,"F","C")+HPWH!$P$35*CONVERT($N$4,"F","C")^2+HPWH!$P$36*CONVERT($N$4,"F","C")*CONVERT(F74,"F","C")),1) -> 1 | S74: 0.76 | T74: 0 | U74: 0 | V74: 0 | W74: 0 | X74: 0 | Y74: 0 | Z74: 0.01865241872
A75: 2 | B75: 47 | C75: 1 | D75: =INDEX('Peak Period'!$F$6:$U$8765,$B75,$C$11) -> 0 | E75: =INDEX(Tamb!$F$8:$V$140167,($C$11-1)*8760+B75,$O$3) -> 22 | F75: =INDEX(Tamb!$F$8:$V$140167,($C$11-1)*8760+B75,$O$3+1) -> 22 | G75: =INDEX(Tmains!$D$32:$S$396,$A75,CZind) -> 43.28147645 | H75: =INDEX(HWgal!$C$8:$AE$8767,$B75,$N$9)*60 -> 0 | I75: 0 | J75: 0 | K75: 1320.6084 | L75: -234.5 | M75: 1086.1084 | N75: =IF(OR($G$3="PkHP",$G$3="SpHP"),(HPWH!$Q$31+HPWH!$Q$32*CONVERT(F75,"F","C")+HPWH!$Q$33*CONVERT(F75,"F","C")^2+HPWH!$Q$34*CONVERT($N$4,"F","C")+HPWH!$Q$35*CONVERT($N$4,"F","C")^2+HPWH!$Q$36*CONVERT($N$4,"F","C")*CONVERT(F75,"F","C")),1) -> 1 | O75: 1086.1084 | P75: 0 | Q75: 0.02640986549 | R75: =IF(OR($G$3="PkHP",$G$3="SpHP"),(HPWH!$P$31+HPWH!$P$32*CONVERT(F75,"F","C")+HPWH!$P$33*CONVERT(F75,"F","C")^2+HPWH!$P$34*CONVERT($N$4,"F","C")+HPWH!$P$35*CONVERT($N$4,"F","C")^2+HPWH!$P$36*CONVERT($N$4,"F","C")*CONVERT(F75,"F","C")),1) -> 1 | S75: 0.76 | T75: 0 | U75: 0 | V75: 0 | W75: 0 | X75: 0 | Y75: 0 | Z75: 0.0142909
A76: 2 | B76: 48 | C76: 1 | D76: =INDEX('Peak Period'!$F$6:$U$8765,$B76,$C$11) -> 0 | E76: =INDEX(Tamb!$F$8:$V$140167,($C$11-1)*8760+B76,$O$3) -> 21 | F76: =INDEX(Tamb!$F$8:$V$140167,($C$11-1)*8760+B76,$O$3+1) -> 21 | G76: =INDEX(Tmains!$D$32:$S$396,$A76,CZind) -> 43.28147645 | H76: =INDEX(HWgal!$C$8:$AE$8767,$B76,$N$9)*60 -> 0 | I76: 0 | J76: 0 | K76: 1332.2952 | L76: -234.5 | M76: 1097.7952 | N76: =IF(OR($G$3="PkHP",$G$3="SpHP"),(HPWH!$Q$31+HPWH!$Q$32*CONVERT(F76,"F","C")+HPWH!$Q$33*CONVERT(F76,"F","C")^2+HPWH!$Q$34*CONVERT($N$4,"F","C")+HPWH!$Q$35*CONVERT($N$4,"F","C")^2+HPWH!$Q$36*CONVERT($N$4,"F","C")*CONVERT(F76,"F","C")),1) -> 1 | O76: 1097.7952 | P76: 0 | Q76: 0.0266940423 | R76: =IF(OR($G$3="PkHP",$G$3="SpHP"),(HPWH!$P$31+HPWH!$P$32*CONVERT(F76,"F","C")+HPWH!$P$33*CONVERT(F76,"F","C")^2+HPWH!$P$34*CONVERT($N$4,"F","C")+HPWH!$P$35*CONVERT($N$4,"F","C")^2+HPWH!$P$36*CONVERT($N$4,"F","C")*CONVERT(F76,"F","C")),1) -> 1 | S76: 0.76 | T76: 0 | U76: 0 | V76: 0 | W76: 0 | X76: 0 | Y76: 0 | Z76: 0.01444467368
A77: 3 | B77: 49 | C77: 1 | D77: =INDEX('Peak Period'!$F$6:$U$8765,$B77,$C$11) -> 0 | E77: =INDEX(Tamb!$F$8:$V$140167,($C$11-1)*8760+B77,$O$3) -> 21 | F77: =INDEX(Tamb!$F$8:$V$140167,($C$11-1)*8760+B77,$O$3+1) -> 20 | G77: =INDEX(Tmains!$D$32:$S$396,$A77,CZind) -> 43.04872698 | H77: =INDEX(HWgal!$C$8:$AE$8767,$B77,$N$9)*60 -> 0 | I77: 0 | J77: 0 | K77: 1332.2952 | L77: -234.5 | M77: 1097.7952 | N77: =IF(OR($G$3="PkHP",$G$3="SpHP"),(HPWH!$Q$31+HPWH!$Q$32*CONVERT(F77,"F","C")+HPWH!$Q$33*CONVERT(F77,"F","C")^2+HPWH!$Q$34*CONVERT($N$4,"F","C")+HPWH!$Q$35*CONVERT($N$4,"F","C")^2+HPWH!$Q$36*CONVERT($N$4,"F","C")*CONVERT(F77,"F","C")),1) -> 1 | O77: 1097.7952 | P77: 0 | Q77: 0.0266940423 | R77: =IF(OR($G$3="PkHP",$G$3="SpHP"),(HPWH!$P$31+HPWH!$P$32*CONVERT(F77,"F","C")+HPWH!$P$33*CONVERT(F77,"F","C")^2+HPWH!$P$34*CONVERT($N$4,"F","C")+HPWH!$P$35*CONVERT($N$4,"F","C")^2+HPWH!$P$36*CONVERT($N$4,"F","C")*CONVERT(F77,"F","C")),1) -> 1 | S77: 0.76 | T77: 0 | U77: 0 | V77: 0 | W77: 0 | X77: 0 | Y77: 0 | Z77: 0.01444467368
A78: 3 | B78: 50 | C78: 1 | D78: =INDEX('Peak Period'!$F$6:$U$8765,$B78,$C$11) -> 0 | E78: =INDEX(Tamb!$F$8:$V$140167,($C$11-1)*8760+B78,$O$3) -> 20 | F78: =INDEX(Tamb!$F$8:$V$140167,($C$11-1)*8760+B78,$O$3+1) -> 19 | G78: =INDEX(Tmains!$D$32:$S$396,$A78,CZind) -> 43.04872698 | H78: =INDEX(HWgal!$C$8:$AE$8767,$B78,$N$9)*60 -> 0 | I78: 0 | J78: 0 | K78: 1343.982 | L78: -234.5 | M78: 1109.482 | N78: =IF(OR($G$3="PkHP",$G$3="SpHP"),(HPWH!$Q$31+HPWH!$Q$32*CONVERT(F78,"F","C")+HPWH!$Q$33*CONVERT(F78,"F","C")^2+HPWH!$Q$34*CONVERT($N$4,"F","C")+HPWH!$Q$35*CONVERT($N$4,"F","C")^2+HPWH!$Q$36*CONVERT($N$4,"F","C")*CONVERT(F78,"F","C")),1) -> 1 | O78: 1109.482 | P78: 0 | Q78: 0.0269782191 | R78: =IF(OR($G$3="PkHP",$G$3="SpHP"),(HPWH!$P$31+HPWH!$P$32*CONVERT(F78,"F","C")+HPWH!$P$33*CONVERT(F78,"F","C")^2+HPWH!$P$34*CONVERT($N$4,"F","C")+HPWH!$P$35*CONVERT($N$4,"F","C")^2+HPWH!$P$36*CONVERT($N$4,"F","C")*CONVERT(F78,"F","C")),1) -> 1 | S78: 0.76 | T78: 0 | U78: 0 | V78: 0 | W78: 0 | X78: 0 | Y78: 0 | Z78: 0.01459844737
A79: 3 | B79: 51 | C79: 1 | D79: =INDEX('Peak Period'!$F$6:$U$8765,$B79,$C$11) -> 0 | E79: =INDEX(Tamb!$F$8:$V$140167,($C$11-1)*8760+B79,$O$3) -> 20 | F79: =INDEX(Tamb!$F$8:$V$140167,($C$11-1)*8760+B79,$O$3+1) -> 20 | G79: =INDEX(Tmains!$D$32:$S$396,$A79,CZind) -> 43.04872698 | H79: =INDEX(HWgal!$C$8:$AE$8767,$B79,$N$9)*60 -> 0 | I79: 0 | J79: 0 | K79: 1343.982 | L79: -234.5 | M79: 1109.482 | N79: =IF(OR($G$3="PkHP",$G$3="SpHP"),(HPWH!$Q$31+HPWH!$Q$32*CONVERT(F79,"F","C")+HPWH!$Q$33*CONVERT(F79,"F","C")^2+HPWH!$Q$34*CONVERT($N$4,"F","C")+HPWH!$Q$35*CONVERT($N$4,"F","C")^2+HPWH!$Q$36*CONVERT($N$4,"F","C")*CONVERT(F79,"F","C")),1) -> 1 | O79: 1109.482 | P79: 0 | Q79: 0.0269782191 | R79: =IF(OR($G$3="PkHP",$G$3="SpHP"),(HPWH!$P$31+HPWH!$P$32*CONVERT(F79,"F","C")+HPWH!$P$33*CONVERT(F79,"F","C")^2+HPWH!$P$34*CONVERT($N$4,"F","C")+HPWH!$P$35*CONVERT($N$4,"F","C")^2+HPWH!$P$36*CONVERT($N$4,"F","C")*CONVERT(F79,"F","C")),1) -> 1 | S79: 0.76 | T79: 0 | U79: 0 | V79: 0 | W79: 0 | X79: 0 | Y79: 0 | Z79: 0.01459844737
A80: 3 | B80: 52 | C80: 1 | D80: =INDEX('Peak Period'!$F$6:$U$8765,$B80,$C$11) -> 0 | E80: =INDEX(Tamb!$F$8:$V$140167,($C$11-1)*8760+B80,$O$3) -> 20 | F80: =INDEX(Tamb!$F$8:$V$140167,($C$11-1)*8760+B80,$O$3+1) -> 19 | G80: =INDEX(Tmains!$D$32:$S$396,$A80,CZind) -> 43.04872698 | H80: =INDEX(HWgal!$C$8:$AE$8767,$B80,$N$9)*60 -> 0 | I80: 0 | J80: 0 | K80: 1343.982 | L80: -234.5 | M80: 1109.482 | N80: =IF(OR($G$3="PkHP",$G$3="SpHP"),(HPWH!$Q$31+HPWH!$Q$32*CONVERT(F80,"F","C")+HPWH!$Q$33*CONVERT(F80,"F","C")^2+HPWH!$Q$34*CONVERT($N$4,"F","C")+HPWH!$Q$35*CONVERT($N$4,"F","C")^2+HPWH!$Q$36*CONVERT($N$4,"F","C")*CONVERT(F80,"F","C")),1) -> 1 | O80: 1109.482 | P80: 0 | Q80: 0.0269782191 | R80: =IF(OR($G$3="PkHP",$G$3="SpHP"),(HPWH!$P$31+HPWH!$P$32*CONVERT(F80,"F","C")+HPWH!$P$33*CONVERT(F80,"F","C")^2+HPWH!$P$34*CONVERT($N$4,"F","C")+HPWH!$P$35*CONVERT($N$4,"F","C")^2+HPWH!$P$36*CONVERT($N$4,"F","C")*CONVERT(F80,"F","C")),1) -> 1 | S80: 0.76 | T80: 0 | U80: 0 | V80: 0 | W80: 0 | X80: 0 | Y80: 0 | Z80: 0.01459844737
A81: 3 | B81: 53 | C81: 1 | D81: =INDEX('Peak Period'!$F$6:$U$8765,$B81,$C$11) -> 0 | E81: =INDEX(Tamb!$F$8:$V$140167,($C$11-1)*8760+B81,$O$3) -> 18 | F81: =INDEX(Tamb!$F$8:$V$140167,($C$11-1)*8760+B81,$O$3+1) -> 18 | G81: =INDEX(Tmains!$D$32:$S$396,$A81,CZind) -> 43.04872698 | H81: =INDEX(HWgal!$C$8:$AE$8767,$B81,$N$9)*60 -> 0 | I81: 0 | J81: 0 | K81: 1367.3556 | L81: -234.5 | M81: 1132.8556 | N81: =IF(OR($G$3="PkHP",$G$3="SpHP"),(HPWH!$Q$31+HPWH!$Q$32*CONVERT(F81,"F","C")+HPWH!$Q$33*CONVERT(F81,"F","C")^2+HPWH!$Q$34*CONVERT($N$4,"F","C")+HPWH!$Q$35*CONVERT($N$4,"F","C")^2+HPWH!$Q$36*CONVERT($N$4,"F","C")*CONVERT(F81,"F","C")),1) -> 1 | O81: 1132.8556 | P81: 0 | Q81: 0.02754657272 | R81: =IF(OR($G$3="PkHP",$G$3="SpHP"),(HPWH!$P$31+HPWH!$P$32*CONVERT(F81,"F","C")+HPWH!$P$33*CONVERT(F81,"F","C")^2+HPWH!$P$34*CONVERT($N$4,"F","C")+HPWH!$P$35*CONVERT($N$4,"F","C")^2+HPWH!$P$36*CONVERT($N$4,"F","C")*CONVERT(F81,"F","C")),1) -> 1 | S81: 0.76 | T81: 0 | U81: 0 | V81: 0 | W81: 0 | X81: 0 | Y81: 0 | Z81: 0.01490599474
A82: 3 | B82: 54 | C82: 1 | D82: =INDEX('Peak Period'!$F$6:$U$8765,$B82,$C$11) -> 0 | E82: =INDEX(Tamb!$F$8:$V$140167,($C$11-1)*8760+B82,$O$3) -> 18 | F82: =INDEX(Tamb!$F$8:$V$140167,($C$11-1)*8760+B82,$O$3+1) -> 17 | G82: =INDEX(Tmains!$D$32:$S$396,$A82,CZind) -> 43.04872698 | H82: =INDEX(HWgal!$C$8:$AE$8767,$B82,$N$9)*60 -> 0 | I82: 0 | J82: 0 | K82: 1367.3556 | L82: -234.5 | M82: 1132.8556 | N82: =IF(OR($G$3="PkHP",$G$3="SpHP"),(HPWH!$Q$31+HPWH!$Q$32*CONVERT(F82,"F","C")+HPWH!$Q$33*CONVERT(F82,"F","C")^2+HPWH!$Q$34*CONVERT($N$4,"F","C")+HPWH!$Q$35*CONVERT($N$4,"F","C")^2+HPWH!$Q$36*CONVERT($N$4,"F","C")*CONVERT(F82,"F","C")),1) -> 1 | O82: 1132.8556 | P82: 0 | Q82: 0.02754657272 | R82: =IF(OR($G$3="PkHP",$G$3="SpHP"),(HPWH!$P$31+HPWH!$P$32*CONVERT(F82,"F","C")+HPWH!$P$33*CONVERT(F82,"F","C")^2+HPWH!$P$34*CONVERT($N$4,"F","C")+HPWH!$P$35*CONVERT($N$4,"F","C")^2+HPWH!$P$36*CONVERT($N$4,"F","C")*CONVERT(F82,"F","C")),1) -> 1 | S82: 0.76 | T82: 0 | U82: 0 | V82: 0 | W82: 0 | X82: 0 | Y82: 0 | Z82: 0.01490599474
A83: 3 | B83: 55 | C83: 1 | D83: =INDEX('Peak Period'!$F$6:$U$8765,$B83,$C$11) -> 0 | E83: =INDEX(Tamb!$F$8:$V$140167,($C$11-1)*8760+B83,$O$3) -> 17 | F83: =INDEX(Tamb!$F$8:$V$140167,($C$11-1)*8760+B83,$O$3+1) -> 16 | G83: =INDEX(Tmains!$D$32:$S$396,$A83,CZind) -> 43.04872698 | H83: =INDEX(HWgal!$C$8:$AE$8767,$B83,$N$9)*60 -> 0.2221294674 | I83: 0.2221294674 | J83: 167.4857159 | K83: 1379.0424 | L83: -234.5 | M83: 1312.028116 | N83: =IF(OR($G$3="PkHP",$G$3="SpHP"),(HPWH!$Q$31+HPWH!$Q$32*CONVERT(F83,"F","C")+HPWH!$Q$33*CONVERT(F83,"F","C")^2+HPWH!$Q$34*CONVERT($N$4,"F","C")+HPWH!$Q$35*CONVERT($N$4,"F","C")^2+HPWH!$Q$36*CONVERT($N$4,"F","C")*CONVERT(F83,"F","C")),1) -> 1 | O83: 1312.028116 | P83: 0 | Q83: 0.03190334046 | R83: =IF(OR($G$3="PkHP",$G$3="SpHP"),(HPWH!$P$31+HPWH!$P$32*CONVERT(F83,"F","C")+HPWH!$P$33*CONVERT(F83,"F","C")^2+HPWH!$P$34*CONVERT($N$4,"F","C")+HPWH!$P$35*CONVERT($N$4,"F","C")^2+HPWH!$P$36*CONVERT($N$4,"F","C")*CONVERT(F83,"F","C")),1) -> 1 | S83: 0.76 | T83: 0 | U83: 0 | V83: 0 | W83: 0 | X83: 0 | Y83: 0 | Z83: 0.01726352784
A84: 3 | B84: 56 | C84: 1 | D84: =INDEX('Peak Period'!$F$6:$U$8765,$B84,$C$11) -> 0 | E84: =INDEX(Tamb!$F$8:$V$140167,($C$11-1)*8760+B84,$O$3) -> 17 | F84: =INDEX(Tamb!$F$8:$V$140167,($C$11-1)*8760+B84,$O$3+1) -> 17 | G84: =INDEX(Tmains!$D$32:$S$396,$A84,CZind) -> 43.04872698 | H84: =INDEX(HWgal!$C$8:$AE$8767,$B84,$N$9)*60 -> 0.7379087167 | I84: 0.7379087167 | J84: 556.3834962 | K84: 1379.0424 | L84: -234.5 | M84: 1700.925896 | N84: =IF(OR($G$3="PkHP",$G$3="SpHP"),(HPWH!$Q$31+HPWH!$Q$32*CONVERT(F84,"F","C")+HPWH!$Q$33*CONVERT(F84,"F","C")^2+HPWH!$Q$34*CONVERT($N$4,"F","C")+HPWH!$Q$35*CONVERT($N$4,"F","C")^2+HPWH!$Q$36*CONVERT($N$4,"F","C")*CONVERT(F84,"F","C")),1) -> 1 | O84: 1700.925896 | P84: 0 | Q84: 0.04135979809 | R84: =IF(OR($G$3="PkHP",$G$3="SpHP"),(HPWH!$P$31+HPWH!$P$32*CONVERT(F84,"F","C")+HPWH!$P$33*CONVERT(F84,"F","C")^2+HPWH!$P$34*CONVERT($N$4,"F","C")+HPWH!$P$35*CONVERT($N$4,"F","C")^2+HPWH!$P$36*CONVERT($N$4,"F","C")*CONVERT(F84,"F","C")),1) -> 1 | S84: 0.76 | T84: 0 | U84: 0 | V84: 0 | W84: 0 | X84: 0 | Y84: 0 | Z84: 0.0223806039
A85: 3 | B85: 57 | C85: 1 | D85: =INDEX('Peak Period'!$F$6:$U$8765,$B85,$C$11) -> 0 | E85: =INDEX(Tamb!$F$8:$V$140167,($C$11-1)*8760+B85,$O$3) -> 20 | F85: =INDEX(Tamb!$F$8:$V$140167,($C$11-1)*8760+B85,$O$3+1) -> 19 | G85: =INDEX(Tmains!$D$32:$S$396,$A85,CZind) -> 43.04872698 | H85: =INDEX(HWgal!$C$8:$AE$8767,$B85,$N$9)*60 -> 1.426096434 | I85: 1.426096434 | J85: 1075.277337 | K85: 1343.982 | L85: -234.5 | M85: 2184.759337 | N85: =IF(OR($G$3="PkHP",$G$3="SpHP"),(HPWH!$Q$31+HPWH!$Q$32*CONVERT(F85,"F","C")+HPWH!$Q$33*CONVERT(F85,"F","C")^2+HPWH!$Q$34*CONVERT($N$4,"F","C")+HPWH!$Q$35*CONVERT($N$4,"F","C")^2+HPWH!$Q$36*CONVERT($N$4,"F","C")*CONVERT(F85,"F","C")),1) -> 1 | O85: 2184.759337 | P85: 0 | Q85: 0.05312471594 | R85: =IF(OR($G$3="PkHP",$G$3="SpHP"),(HPWH!$P$31+HPWH!$P$32*CONVERT(F85,"F","C")+HPWH!$P$33*CONVERT(F85,"F","C")^2+HPWH!$P$34*CONVERT($N$4,"F","C")+HPWH!$P$35*CONVERT($N$4,"F","C")^2+HPWH!$P$36*CONVERT($N$4,"F","C")*CONVERT(F85,"F","C")),1) -> 1 | S85: 0.76 | T85: 0 | U85: 0 | V85: 0 | W85: 0 | X85: 0 | Y85: 0 | Z85: 0.02874683338
A86: 3 | B86: 58 | C86: 1 | D86: =INDEX('Peak Period'!$F$6:$U$8765,$B86,$C$11) -> 0 | E86: =INDEX(Tamb!$F$8:$V$140167,($C$11-1)*8760+B86,$O$3) -> 22 | F86: =INDEX(Tamb!$F$8:$V$140167,($C$11-1)*8760+B86,$O$3+1) -> 20 | G86: =INDEX(Tmains!$D$32:$S$396,$A86,CZind) -> 43.04872698 | H86: =INDEX(HWgal!$C$8:$AE$8767,$B86,$N$9)*60 -> 1.559025171 | I86: 1.559025171 | J86: 1175.505663 | K86: 1320.6084 | L86: -234.5 | M86: 2261.614063 | N86: =IF(OR($G$3="PkHP",$G$3="SpHP"),(HPWH!$Q$31+HPWH!$Q$32*CONVERT(F86,"F","C")+HPWH!$Q$33*CONVERT(F86,"F","C")^2+HPWH!$Q$34*CONVERT($N$4,"F","C")+HPWH!$Q$35*CONVERT($N$4,"F","C")^2+HPWH!$Q$36*CONVERT($N$4,"F","C")*CONVERT(F86,"F","C")),1) -> 1 | O86: 2261.614063 | P86: 0 | Q86: 0.05499351925 | R86: =IF(OR($G$3="PkHP",$G$3="SpHP"),(HPWH!$P$31+HPWH!$P$32*CONVERT(F86,"F","C")+HPWH!$P$33*CONVERT(F86,"F","C")^2+HPWH!$P$34*CONVERT($N$4,"F","C")+HPWH!$P$35*CONVERT($N$4,"F","C")^2+HPWH!$P$36*CONVERT($N$4,"F","C")*CONVERT(F86,"F","C")),1) -> 1 | S86: 0.76 | T86: 0 | U86: 0 | V86: 0 | W86: 0 | X86: 0 | Y86: 0 | Z86: 0.02975807978
A87: 3 | B87: 59 | C87: 1 | D87: =INDEX('Peak Period'!$F$6:$U$8765,$B87,$C$11) -> 0 | E87: =INDEX(Tamb!$F$8:$V$140167,($C$11-1)*8760+B87,$O$3) -> 23 | F87: =INDEX(Tamb!$F$8:$V$140167,($C$11-1)*8760+B87,$O$3+1) -> 21 | G87: =INDEX(Tmains!$D$32:$S$396,$A87,CZind) -> 43.04872698 | H87: =INDEX(HWgal!$C$8:$AE$8767,$B87,$N$9)*60 -> 1.737645577 | I87: 1.737645577 | J87: 1310.185527 | K87: 1308.9216 | L87: -234.5 | M87: 2384.607127 | N87: =IF(OR($G$3="PkHP",$G$3="SpHP"),(HPWH!$Q$31+HPWH!$Q$32*CONVERT(F87,"F","C")+HPWH!$Q$33*CONVERT(F87,"F","C")^2+HPWH!$Q$34*CONVERT($N$4,"F","C")+HPWH!$Q$35*CONVERT($N$4,"F","C")^2+HPWH!$Q$36*CONVERT($N$4,"F","C")*CONVERT(F87,"F","C")),1) -> 1 | O87: 2384.607127 | P87: 0 | Q87: 0.05798422467 | R87: =IF(OR($G$3="PkHP",$G$3="SpHP"),(HPWH!$P$31+HPWH!$P$32*CONVERT(F87,"F","C")+HPWH!$P$33*CONVERT(F87,"F","C")^2+HPWH!$P$34*CONVERT($N$4,"F","C")+HPWH!$P$35*CONVERT($N$4,"F","C")^2+HPWH!$P$36*CONVERT($N$4,"F","C")*CONVERT(F87,"F","C")),1) -> 1 | S87: 0.76 | T87: 0 | U87: 0 | V87: 0 | W87: 0 | X87: 0 | Y87: 0 | Z87: 0.03137640957
A88: 3 | B88: 60 | C88: 1 | D88: =INDEX('Peak Period'!$F$6:$U$8765,$B88,$C$11) -> 0 | E88: =INDEX(Tamb!$F$8:$V$140167,($C$11-1)*8760+B88,$O$3) -> 24 | F88: =INDEX(Tamb!$F$8:$V$140167,($C$11-1)*8760+B88,$O$3+1) -> 21 | G88: =INDEX(Tmains!$D$32:$S$396,$A88,CZind) -> 43.04872698 | H88: =INDEX(HWgal!$C$8:$AE$8767,$B88,$N$9)*60 -> 0.8433374875 | I88: 0.8433374875 | J88: 635.8768355 | K88: 1297.2348 | L88: -234.5 | M88: 1698.611636 | N88: =IF(OR($G$3="PkHP",$G$3="SpHP"),(HPWH!$Q$31+HPWH!$Q$32*CONVERT(F88,"F","C")+HPWH!$Q$33*CONVERT(F88,"F","C")^2+HPWH!$Q$34*CONVERT($N$4,"F","C")+HPWH!$Q$35*CONVERT($N$4,"F","C")^2+HPWH!$Q$36*CONVERT($N$4,"F","C")*CONVERT(F88,"F","C")),1) -> 1 | O88: 1698.611636 | P88: 0 | Q88: 0.04130352442 | R88: =IF(OR($G$3="PkHP",$G$3="SpHP"),(HPWH!$P$31+HPWH!$P$32*CONVERT(F88,"F","C")+HPWH!$P$33*CONVERT(F88,"F","C")^2+HPWH!$P$34*CONVERT($N$4,"F","C")+HPWH!$P$35*CONVERT($N$4,"F","C")^2+HPWH!$P$36*CONVERT($N$4,"F","C")*CONVERT(F88,"F","C")),1) -> 1 | S88: 0.76 | T88: 0 | U88: 0 | V88: 0 | W88: 0 | X88: 0 | Y88: 0 | Z88: 0.0223501531
A89: 3 | B89: 61 | C89: 1 | D89: =INDEX('Peak Period'!$F$6:$U$8765,$B89,$C$11) -> 0 | E89: =INDEX(Tamb!$F$8:$V$140167,($C$11-1)*8760+B89,$O$3) -> 25 | F89: =INDEX(Tamb!$F$8:$V$140167,($C$11-1)*8760+B89,$O$3+1) -> 22 | G89: =INDEX(Tmains!$D$32:$S$396,$A89,CZind) -> 43.04872698 | H89: =INDEX(HWgal!$C$8:$AE$8767,$B89,$N$9)*60 -> 0.2944372368 | I89: 0.2944372368 | J89: 222.0058057 | K89: 1285.548 | L89: -234.5 | M89: 1273.053806 | N89: =IF(OR($G$3="PkHP",$G$3="SpHP"),(HPWH!$Q$31+HPWH!$Q$32*CONVERT(F89,"F","C")+HPWH!$Q$33*CONVERT(F89,"F","C")^2+HPWH!$Q$34*CONVERT($N$4,"F","C")+HPWH!$Q$35*CONVERT($N$4,"F","C")^2+HPWH!$Q$36*CONVERT($N$4,"F","C")*CONVERT(F89,"F","C")),1) -> 1 | O89: 1273.053806 | P89: 0 | Q89: 0.03095563921 | R89: =IF(OR($G$3="PkHP",$G$3="SpHP"),(HPWH!$P$31+HPWH!$P$32*CONVERT(F89,"F","C")+HPWH!$P$33*CONVERT(F89,"F","C")^2+HPWH!$P$34*CONVERT($N$4,"F","C")+HPWH!$P$35*CONVERT($N$4,"F","C")^2+HPWH!$P$36*CONVERT($N$4,"F","C")*CONVERT(F89,"F","C")),1) -> 1 | S89: 0.76 | T89: 0 | U89: 0 | V89: 0 | W89: 0 | X89: 0 | Y89: 0 | Z89: 0.01675070797
A90: 3 | B90: 62 | C90: 1 | D90: =INDEX('Peak Period'!$F$6:$U$8765,$B90,$C$11) -> 0 | E90: =INDEX(Tamb!$F$8:$V$140167,($C$11-1)*8760+B90,$O$3) -> 26 | F90: =INDEX(Tamb!$F$8:$V$140167,($C$11-1)*8760+B90,$O$3+1) -> 23 | G90: =INDEX(Tmains!$D$32:$S$396,$A90,CZind) -> 43.04872698 | H90: =INDEX(HWgal!$C$8:$AE$8767,$B90,$N$9)*60 -> 0.765623896 | I90: 0.765623896 | J90: 577.2807535 | K90: 1273.8612 | L90: -234.5 | M90: 1616.641953 | N90: =IF(OR($G$3="PkHP",$G$3="SpHP"),(HPWH!$Q$31+HPWH!$Q$32*CONVERT(F90,"F","C")+HPWH!$Q$33*CONVERT(F90,"F","C")^2+HPWH!$Q$34*CONVERT($N$4,"F","C")+HPWH!$Q$35*CONVERT($N$4,"F","C")^2+HPWH!$Q$36*CONVERT($N$4,"F","C")*CONVERT(F90,"F","C")),1) -> 1 | O90: 1616.641953 | P90: 0 | Q90: 0.03931034558 | R90: =IF(OR($G$3="PkHP",$G$3="SpHP"),(HPWH!$P$31+HPWH!$P$32*CONVERT(F90,"F","C")+HPWH!$P$33*CONVERT(F90,"F","C")^2+HPWH!$P$34*CONVERT($N$4,"F","C")+HPWH!$P$35*CONVERT($N$4,"F","C")^2+HPWH!$P$36*CONVERT($N$4,"F","C")*CONVERT(F90,"F","C")),1) -> 1 | S90: 0.76 | T90: 0 | U90: 0 | V90: 0 | W90: 0 | X90: 0 | Y90: 0 | Z90: 0.02127160465
A91: 3 | B91: 63 | C91: 1 | D91: =INDEX('Peak Period'!$F$6:$U$8765,$B91,$C$11) -> 0 | E91: =INDEX(Tamb!$F$8:$V$140167,($C$11-1)*8760+B91,$O$3) -> 25 | F91: =INDEX(Tamb!$F$8:$V$140167,($C$11-1)*8760+B91,$O$3+1) -> 22 | G91: =INDEX(Tmains!$D$32:$S$396,$A91,CZind) -> 43.04872698 | H91: =INDEX(HWgal!$C$8:$AE$8767,$B91,$N$9)*60 -> 0 | I91: 0 | J91: 0 | K91: 1285.548 | L91: -234.5 | M91: 1051.048 | N91: =IF(OR($G$3="PkHP",$G$3="SpHP"),(HPWH!$Q$31+HPWH!$Q$32*CONVERT(F91,"F","C")+HPWH!$Q$33*CONVERT(F91,"F","C")^2+HPWH!$Q$34*CONVERT($N$4,"F","C")+HPWH!$Q$35*CONVERT($N$4,"F","C")^2+HPWH!$Q$36*CONVERT($N$4,"F","C")*CONVERT(F91,"F","C")),1) -> 1 | O91: 1051.048 | P91: 0 | Q91: 0.02555733507 | R91: =IF(OR($G$3="PkHP",$G$3="SpHP"),(HPWH!$P$31+HPWH!$P$32*CONVERT(F91,"F","C")+HPWH!$P$33*CONVERT(F91,"F","C")^2+HPWH!$P$34*CONVERT($N$4,"F","C")+HPWH!$P$35*CONVERT($N$4,"F","C")^2+HPWH!$P$36*CONVERT($N$4,"F","C")*CONVERT(F91,"F","C")),1) -> 1 | S91: 0.76 | T91: 0 | U91: 0 | V91: 0 | W91: 0 | X91: 0 | Y91: 0 | Z91: 0.01382957895
A92: 3 | B92: 64 | C92: 1 | D92: =INDEX('Peak Period'!$F$6:$U$8765,$B92,$C$11) -> 0 | E92: =INDEX(Tamb!$F$8:$V$140167,($C$11-1)*8760+B92,$O$3) -> 24 | F92: =INDEX(Tamb!$F$8:$V$140167,($C$11-1)*8760+B92,$O$3+1) -> 22 | G92: =INDEX(Tmains!$D$32:$S$396,$A92,CZind) -> 43.04872698 | H92: =INDEX(HWgal!$C$8:$AE$8767,$B92,$N$9)*60 -> 0 | I92: 0 | J92: 0 | K92: 1297.2348 | L92: -234.5 | M92: 1062.7348 | N92: =IF(OR($G$3="PkHP",$G$3="SpHP"),(HPWH!$Q$31+HPWH!$Q$32*CONVERT(F92,"F","C")+HPWH!$Q$33*CONVERT(F92,"F","C")^2+HPWH!$Q$34*CONVERT($N$4,"F","C")+HPWH!$Q$35*CONVERT($N$4,"F","C")^2+HPWH!$Q$36*CONVERT($N$4,"F","C")*CONVERT(F92,"F","C")),1) -> 1 | O92: 1062.7348 | P92: 0 | Q92: 0.02584151188 | R92: =IF(OR($G$3="PkHP",$G$3="SpHP"),(HPWH!$P$31+HPWH!$P$32*CONVERT(F92,"F","C")+HPWH!$P$33*CONVERT(F92,"F","C")^2+HPWH!$P$34*CONVERT($N$4,"F","C")+HPWH!$P$35*CONVERT($N$4,"F","C")^2+HPWH!$P$36*CONVERT($N$4,"F","C")*CONVERT(F92,"F","C")),1) -> 1 | S92: 0.76 | T92: 0 | U92: 0 | V92: 0 | W92: 0 | X92: 0 | Y92: 0 | Z92: 0.01398335263
A93: 3 | B93: 65 | C93: 1 | D93: =INDEX('Peak Period'!$F$6:$U$8765,$B93,$C$11) -> 0 | E93: =INDEX(Tamb!$F$8:$V$140167,($C$11-1)*8760+B93,$O$3) -> 24 | F93: =INDEX(Tamb!$F$8:$V$140167,($C$11-1)*8760+B93,$O$3+1) -> 22 | G93: =INDEX(Tmains!$D$32:$S$396,$A93,CZind) -> 43.04872698 | H93: =INDEX(HWgal!$C$8:$AE$8767,$B93,$N$9)*60 -> 0 | I93: 0 | J93: =H93*$N$5*($N$4-$G93) -> 0 | K93: 1297.2348 | L93: -234.5 | M93: 1062.7348 | N93: =IF(OR($G$3="PkHP",$G$3="SpHP"),(HPWH!$Q$31+HPWH!$Q$32*CONVERT(F93,"F","C")+HPWH!$Q$33*CONVERT(F93,"F","C")^2+HPWH!$Q$34*CONVERT($N$4,"F","C")+HPWH!$Q$35*CONVERT($N$4,"F","C")^2+HPWH!$Q$36*CONVERT($N$4,"F","C")*CONVERT(F93,"F","C")),1) -> 1 | O93: 1062.7348 | P93: 0 | Q93: 0.02584151188 | R93: =IF(OR($G$3="PkHP",$G$3="SpHP"),(HPWH!$P$31+HPWH!$P$32*CONVERT(F93,"F","C")+HPWH!$P$33*CONVERT(F93,"F","C")^2+HPWH!$P$34*CONVERT($N$4,"F","C")+HPWH!$P$35*CONVERT($N$4,"F","C")^2+HPWH!$P$36*CONVERT($N$4,"F","C")*CONVERT(F93,"F","C")),1) -> 1 | S93: 0.76 | T93: 0 | U93: 0 | V93: 0 | W93: 0 | X93: 0 | Y93: 0 | Z93: =IF($G$5="Gas",O93/S93/100000,0) -> 0.01398335263
A94: 3 | B94: 66 | C94: 1 | D94: =INDEX('Peak Period'!$F$6:$U$8765,$B94,$C$11) -> 0 | E94: =INDEX(Tamb!$F$8:$V$140167,($C$11-1)*8760+B94,$O$3) -> 23 | F94: =INDEX(Tamb!$F$8:$V$140167,($C$11-1)*8760+B94,$O$3+1) -> 22 | G94: =INDEX(Tmains!$D$32:$S$396,$A94,CZind) -> 43.04872698 | H94: =INDEX(HWgal!$C$8:$AE$8767,$B94,$N$9)*60 -> 0 | I94: =H94/$T$9 -> 0 | J94: 0 | K94: =($N$4-$E94)*$G$10*$T$9 -> 1308.9216 | L94: =-$G$14*$G$13*$T$9 -> -234.5 | M94: =MAX(J94+K94+L94+P93*0.8,0) -> 1074.4216 | N94: =IF(OR($G$3="PkHP",$G$3="SpHP"),(HPWH!$Q$31+HPWH!$Q$32*CONVERT(F94,"F","C")+HPWH!$Q$33*CONVERT(F94,"F","C")^2+HPWH!$Q$34*CONVERT($N$4,"F","C")+HPWH!$Q$35*CONVERT($N$4,"F","C")^2+HPWH!$Q$36*CONVERT($N$4,"F","C")*CONVERT(F94,"F","C")),1) -> 1 | O94: =M94 -> 1074.4216 | P94: =MAX(M94-$N$7-N94,0) -> 0 | Q94: =M94/$N$7 -> 0.02612568869 | R94: =IF(OR($G$3="PkHP",$G$3="SpHP"),(HPWH!$P$31+HPWH!$P$32*CONVERT(F94,"F","C")+HPWH!$P$33*CONVERT(F94,"F","C")^2+HPWH!$P$34*CONVERT($N$4,"F","C")+HPWH!$P$35*CONVERT($N$4,"F","C")^2+HPWH!$P$36*CONVERT($N$4,"F","C")*CONVERT(F94,"F","C")),1) -> 1 | S94: =IF(OR($G$3="PkHP",$G$3="SpHP"),$K$6*R94,$G$8*R94) -> 0.76 | T94: =IF(OR($G$3="PkHP",$G$3="SpHP"),IF(OR(E94<$K$3,E94>$K$4,N94<Q94),1,IF(I94>$K$5,$K$7,0)),0) -> 0 | U94: =IF($G$5="Elec",M94*(1-T94)/S94/3413,0) -> 0 | V94: =IF($G$5="Elec",M94*T94/$K$8/3413,0) -> 0 | W94: =$G$11/1000*$T$9 -> 0 | X94: =$G$12*Q94/1000*$T$9 -> 0 | Y94: =U94+V94+W94+X94 -> 0 | Z94: 0.01413712632
A95: =IF(MOD(B95,24)=1,A94+1,A94) -> 3 | B95: 67 | C95: 1 | D95: =INDEX('Peak Period'!$F$6:$U$8765,$B95,$C$11) -> 0 | E95: =INDEX(Tamb!$F$8:$V$140167,($C$11-1)*8760+B95,$O$3) -> 21 | F95: =INDEX(Tamb!$F$8:$V$140167,($C$11-1)*8760+B95,$O$3+1) -> 21 | G95: =INDEX(Tmains!$D$32:$S$396,$A95,CZind) -> 43.04872698 | H95: =INDEX(HWgal!$C$8:$AE$8767,$B95,$N$9)*60 -> 0.8599698294 | I95: 0.8599698294 | J95: 648.4176287 | K95: 1332.2952 | L95: -234.5 | M95: 1746.212829 | N95: =IF(OR($G$3="PkHP",$G$3="SpHP"),(HPWH!$Q$31+HPWH!$Q$32*CONVERT(F95,"F","C")+HPWH!$Q$33*CONVERT(F95,"F","C")^2+HPWH!$Q$34*CONVERT($N$4,"F","C")+HPWH!$Q$35*CONVERT($N$4,"F","C")^2+HPWH!$Q$36*CONVERT($N$4,"F","C")*CONVERT(F95,"F","C")),1) -> 1 | O95: 1746.212829 | P95: 0 | Q95: 0.04246099738 | R95: =IF(OR($G$3="PkHP",$G$3="SpHP"),(HPWH!$P$31+HPWH!$P$32*CONVERT(F95,"F","C")+HPWH!$P$33*CONVERT(F95,"F","C")^2+HPWH!$P$34*CONVERT($N$4,"F","C")+HPWH!$P$35*CONVERT($N$4,"F","C")^2+HPWH!$P$36*CONVERT($N$4,"F","C")*CONVERT(F95,"F","C")),1) -> 1 | S95: 0.76 | T95: 0 | U95: 0 | V95: 0 | W95: 0 | X95: 0 | Y95: 0 | Z95: 0.02297648459
A96: 3 | B96: 68 | C96: 1 | D96: =INDEX('Peak Period'!$F$6:$U$8765,$B96,$C$11) -> 0 | E96: =INDEX(Tamb!$F$8:$V$140167,($C$11-1)*8760+B96,$O$3) -> 22 | F96: =INDEX(Tamb!$F$8:$V$140167,($C$11-1)*8760+B96,$O$3+1) -> 21 | G96: =INDEX(Tmains!$D$32:$S$396,$A96,CZind) -> 43.04872698 | H96: =INDEX(HWgal!$C$8:$AE$8767,$B96,$N$9)*60 -> 0 | I96: 0 | J96: 0 | K96: 1320.6084 | L96: -234.5 | M96: 1086.1084 | N96: =IF(OR($G$3="PkHP",$G$3="SpHP"),(HPWH!$Q$31+HPWH!$Q$32*CONVERT(F96,"F","C")+HPWH!$Q$33*CONVERT(F96,"F","C")^2+HPWH!$Q$34*CONVERT($N$4,"F","C")+HPWH!$Q$35*CONVERT($N$4,"F","C")^2+HPWH!$Q$36*CONVERT($N$4,"F","C")*CONVERT(F96,"F","C")),1) -> 1 | O96: 1086.1084 | P96: 0 | Q96: 0.02640986549 | R96: =IF(OR($G$3="PkHP",$G$3="SpHP"),(HPWH!$P$31+HPWH!$P$32*CONVERT(F96,"F","C")+HPWH!$P$33*CONVERT(F96,"F","C")^2+HPWH!$P$34*CONVERT($N$4,"F","C")+HPWH!$P$35*CONVERT($N$4,"F","C")^2+HPWH!$P$36*CONVERT($N$4,"F","C")*CONVERT(F96,"F","C")),1) -> 1 | S96: 0.76 | T96: 0 | U96: 0 | V96: 0 | W96: 0 | X96: 0 | Y96: 0 | Z96: 0.0142909
A97: 3 | B97: 69 | C97: 1 | D97: =INDEX('Peak Period'!$F$6:$U$8765,$B97,$C$11) -> 0 | E97: =INDEX(Tamb!$F$8:$V$140167,($C$11-1)*8760+B97,$O$3) -> 21 | F97: =INDEX(Tamb!$F$8:$V$140167,($C$11-1)*8760+B97,$O$3+1) -> 20 | G97: =INDEX(Tmains!$D$32:$S$396,$A97,CZind) -> 43.04872698 | H97: =INDEX(HWgal!$C$8:$AE$8767,$B97,$N$9)*60 -> 0 | I97: 0 | J97: 0 | K97: 1332.2952 | L97: -234.5 | M97: 1097.7952 | N97: =IF(OR($G$3="PkHP",$G$3="SpHP"),(HPWH!$Q$31+HPWH!$Q$32*CONVERT(F97,"F","C")+HPWH!$Q$33*CONVERT(F97,"F","C")^2+HPWH!$Q$34*CONVERT($N$4,"F","C")+HPWH!$Q$35*CONVERT($N$4,"F","C")^2+HPWH!$Q$36*CONVERT($N$4,"F","C")*CONVERT(F97,"F","C")),1) -> 1 | O97: 1097.7952 | P97: 0 | Q97: 0.0266940423 | R97: =IF(OR($G$3="PkHP",$G$3="SpHP"),(HPWH!$P$31+HPWH!$P$32*CONVERT(F97,"F","C")+HPWH!$P$33*CONVERT(F97,"F","C")^2+HPWH!$P$34*CONVERT($N$4,"F","C")+HPWH!$P$35*CONVERT($N$4,"F","C")^2+HPWH!$P$36*CONVERT($N$4,"F","C")*CONVERT(F97,"F","C")),1) -> 1 | S97: 0.76 | T97: 0 | U97: 0 | V97: 0 | W97: 0 | X97: 0 | Y97: 0 | Z97: 0.01444467368
A98: 3 | B98: 70 | C98: 1 | D98: =INDEX('Peak Period'!$F$6:$U$8765,$B98,$C$11) -> 0 | E98: =INDEX(Tamb!$F$8:$V$140167,($C$11-1)*8760+B98,$O$3) -> 20 | F98: =INDEX(Tamb!$F$8:$V$140167,($C$11-1)*8760+B98,$O$3+1) -> 18 | G98: =INDEX(Tmains!$D$32:$S$396,$A98,CZind) -> 43.04872698 | H98: =INDEX(HWgal!$C$8:$AE$8767,$B98,$N$9)*60 -> 0 | I98: 0 | J98: 0 | K98: 1343.982 | L98: -234.5 | M98: 1109.482 | N98: =IF(OR($G$3="PkHP",$G$3="SpHP"),(HPWH!$Q$31+HPWH!$Q$32*CONVERT(F98,"F","C")+HPWH!$Q$33*CONVERT(F98,"F","C")^2+HPWH!$Q$34*CONVERT($N$4,"F","C")+HPWH!$Q$35*CONVERT($N$4,"F","C")^2+HPWH!$Q$36*CONVERT($N$4,"F","C")*CONVERT(F98,"F","C")),1) -> 1 | O98: 1109.482 | P98: 0 | Q98: 0.0269782191 | R98: =IF(OR($G$3="PkHP",$G$3="SpHP"),(HPWH!$P$31+HPWH!$P$32*CONVERT(F98,"F","C")+HPWH!$P$33*CONVERT(F98,"F","C")^2+HPWH!$P$34*CONVERT($N$4,"F","C")+HPWH!$P$35*CONVERT($N$4,"F","C")^2+HPWH!$P$36*CONVERT($N$4,"F","C")*CONVERT(F98,"F","C")),1) -> 1 | S98: 0.76 | T98: 0 | U98: 0 | V98: 0 | W98: 0 | X98: 0 | Y98: 0 | Z98: 0.01459844737
A99: 3 | B99: 71 | C99: 1 | D99: =INDEX('Peak Period'!$F$6:$U$8765,$B99,$C$11) -> 0 | E99: =INDEX(Tamb!$F$8:$V$140167,($C$11-1)*8760+B99,$O$3) -> 19 | F99: =INDEX(Tamb!$F$8:$V$140167,($C$11-1)*8760+B99,$O$3+1) -> 17 | G99: =INDEX(Tmains!$D$32:$S$396,$A99,CZind) -> 43.04872698 | H99: =INDEX(HWgal!$C$8:$AE$8767,$B99,$N$9)*60 -> 0 | I99: 0 | J99: 0 | K99: 1355.6688 | L99: -234.5 | M99: 1121.1688 | N99: =IF(OR($G$3="PkHP",$G$3="SpHP"),(HPWH!$Q$31+HPWH!$Q$32*CONVERT(F99,"F","C")+HPWH!$Q$33*CONVERT(F99,"F","C")^2+HPWH!$Q$34*CONVERT($N$4,"F","C")+HPWH!$Q$35*CONVERT($N$4,"F","C")^2+HPWH!$Q$36*CONVERT($N$4,"F","C")*CONVERT(F99,"F","C")),1) -> 1 | O99: 1121.1688 | P99: 0 | Q99: 0.02726239591 | R99: =IF(OR($G$3="PkHP",$G$3="SpHP"),(HPWH!$P$31+HPWH!$P$32*CONVERT(F99,"F","C")+HPWH!$P$33*CONVERT(F99,"F","C")^2+HPWH!$P$34*CONVERT($N$4,"F","C")+HPWH!$P$35*CONVERT($N$4,"F","C")^2+HPWH!$P$36*CONVERT($N$4,"F","C")*CONVERT(F99,"F","C")),1) -> 1 | S99: 0.76 | T99: 0 | U99: 0 | V99: 0 | W99: 0 | X99: 0 | Y99: 0 | Z99: 0.01475222105
A100: 3 | B100: 72 | C100: 1 | D100: =INDEX('Peak Period'!$F$6:$U$8765,$B100,$C$11) -> 0 | E100: =INDEX(Tamb!$F$8:$V$140167,($C$11-1)*8760+B100,$O$3) -> 19 | F100: =INDEX(Tamb!$F$8:$V$140167,($C$11-1)*8760+B100,$O$3+1) -> 17 | G100: =INDEX(Tmains!$D$32:$S$396,$A100,CZind) -> 43.04872698 | H100: =INDEX(HWgal!$C$8:$AE$8767,$B100,$N$9)*60 -> 0 | I100: 0 | J100: 0 | K100: 1355.6688 | L100: -234.5 | M100: 1121.1688 | N100: =IF(OR($G$3="PkHP",$G$3="SpHP"),(HPWH!$Q$31+HPWH!$Q$32*CONVERT(F100,"F","C")+HPWH!$Q$33*CONVERT(F100,"F","C")^2+HPWH!$Q$34*CONVERT($N$4,"F","C")+HPWH!$Q$35*CONVERT($N$4,"F","C")^2+HPWH!$Q$36*CONVERT($N$4,"F","C")*CONVERT(F100,"F","C")),1) -> 1 | O100: 1121.1688 | P100: 0 | Q100: 0.02726239591 | R100: =IF(OR($G$3="PkHP",$G$3="SpHP"),(HPWH!$P$31+HPWH!$P$32*CONVERT(F100,"F","C")+HPWH!$P$33*CONVERT(F100,"F","C")^2+HPWH!$P$34*CONVERT($N$4,"F","C")+HPWH!$P$35*CONVERT($N$4,"F","C")^2+HPWH!$P$36*CONVERT($N$4,"F","C")*CONVERT(F100,"F","C")),1) -> 1 | S100: 0.76 | T100: 0 | U100: 0 | V100: 0 | W100: 0 | X100: 0 | Y100: 0 | Z100: 0.01475222105
A101: 4 | B101: 73 | C101: 1 | D101: =INDEX('Peak Period'!$F$6:$U$8765,$B101,$C$11) -> 0 | E101: =INDEX(Tamb!$F$8:$V$140167,($C$11-1)*8760+B101,$O$3) -> 18 | F101: =INDEX(Tamb!$F$8:$V$140167,($C$11-1)*8760+B101,$O$3+1) -> 17 | G101: =INDEX(Tmains!$D$32:$S$396,$A101,CZind) -> 42.67889958 | H101: =INDEX(HWgal!$C$8:$AE$8767,$B101,$N$9)*60 -> 0 | I101: 0 | J101: 0 | K101: 1367.3556 | L101: -234.5 | M101: 1132.8556 | N101: =IF(OR($G$3="PkHP",$G$3="SpHP"),(HPWH!$Q$31+HPWH!$Q$32*CONVERT(F101,"F","C")+HPWH!$Q$33*CONVERT(F101,"F","C")^2+HPWH!$Q$34*CONVERT($N$4,"F","C")+HPWH!$Q$35*CONVERT($N$4,"F","C")^2+HPWH!$Q$36*CONVERT($N$4,"F","C")*CONVERT(F101,"F","C")),1) -> 1 | O101: 1132.8556 | P101: 0 | Q101: 0.02754657272 | R101: =IF(OR($G$3="PkHP",$G$3="SpHP"),(HPWH!$P$31+HPWH!$P$32*CONVERT(F101,"F","C")+HPWH!$P$33*CONVERT(F101,"F","C")^2+HPWH!$P$34*CONVERT($N$4,"F","C")+HPWH!$P$35*CONVERT($N$4,"F","C")^2+HPWH!$P$36*CONVERT($N$4,"F","C")*CONVERT(F101,"F","C")),1) -> 1 | S101: 0.76 | T101: 0 | U101: 0 | V101: 0 | W101: 0 | X101: 0 | Y101: 0 | Z101: 0.01490599474
A102: 4 | B102: 74 | C102: 1 | D102: =INDEX('Peak Period'!$F$6:$U$8765,$B102,$C$11) -> 0 | E102: =INDEX(Tamb!$F$8:$V$140167,($C$11-1)*8760+B102,$O$3) -> 20 | F102: =INDEX(Tamb!$F$8:$V$140167,($C$11-1)*8760+B102,$O$3+1) -> 17 | G102: =INDEX(Tmains!$D$32:$S$396,$A102,CZind) -> 42.67889958 | H102: =INDEX(HWgal!$C$8:$AE$8767,$B102,$N$9)*60 -> 0 | I102: 0 | J102: 0 | K102: 1343.982 | L102: -234.5 | M102: 1109.482 | N102: =IF(OR($G$3="PkHP",$G$3="SpHP"),(HPWH!$Q$31+HPWH!$Q$32*CONVERT(F102,"F","C")+HPWH!$Q$33*CONVERT(F102,"F","C")^2+HPWH!$Q$34*CONVERT($N$4,"F","C")+HPWH!$Q$35*CONVERT($N$4,"F","C")^2+HPWH!$Q$36*CONVERT($N$4,"F","C")*CONVERT(F102,"F","C")),1) -> 1 | O102: 1109.482 | P102: 0 | Q102: 0.0269782191 | R102: =IF(OR($G$3="PkHP",$G$3="SpHP"),(HPWH!$P$31+HPWH!$P$32*CONVERT(F102,"F","C")+HPWH!$P$33*CONVERT(F102,"F","C")^2+HPWH!$P$34*CONVERT($N$4,"F","C")+HPWH!$P$35*CONVERT($N$4,"F","C")^2+HPWH!$P$36*CONVERT($N$4,"F","C")*CONVERT(F102,"F","C")),1) -> 1 | S102: 0.76 | T102: 0 | U102: 0 | V102: 0 | W102: 0 | X102: 0 | Y102: 0 | Z102: 0.01459844737
A103: 4 | B103: 75 | C103: 1 | D103: =INDEX('Peak Period'!$F$6:$U$8765,$B103,$C$11) -> 0 | E103: =INDEX(Tamb!$F$8:$V$140167,($C$11-1)*8760+B103,$O$3) -> 20 | F103: =INDEX(Tamb!$F$8:$V$140167,($C$11-1)*8760+B103,$O$3+1) -> 18 | G103: =INDEX(Tmains!$D$32:$S$396,$A103,CZind) -> 42.67889958 | H103: =INDEX(HWgal!$C$8:$AE$8767,$B103,$N$9)*60 -> 0 | I103: 0 | J103: 0 | K103: 1343.982 | L103: -234.5 | M103: 1109.482 | N103: =IF(OR($G$3="PkHP",$G$3="SpHP"),(HPWH!$Q$31+HPWH!$Q$32*CONVERT(F103,"F","C")+HPWH!$Q$33*CONVERT(F103,"F","C")^2+HPWH!$Q$34*CONVERT($N$4,"F","C")+HPWH!$Q$35*CONVERT($N$4,"F","C")^2+HPWH!$Q$36*CONVERT($N$4,"F","C")*CONVERT(F103,"F","C")),1) -> 1 | O103: 1109.482 | P103: 0 | Q103: 0.0269782191 | R103: =IF(OR($G$3="PkHP",$G$3="SpHP"),(HPWH!$P$31+HPWH!$P$32*CONVERT(F103,"F","C")+HPWH!$P$33*CONVERT(F103,"F","C")^2+HPWH!$P$34*CONVERT($N$4,"F","C")+HPWH!$P$35*CONVERT($N$4,"F","C")^2+HPWH!$P$36*CONVERT($N$4,"F","C")*CONVERT(F103,"F","C")),1) -> 1 | S103: 0.76 | T103: 0 | U103: 0 | V103: 0 | W103: 0 | X103: 0 | Y103: 0 | Z103: 0.01459844737
A104: 4 | B104: 76 | C104: 1 | D104: =INDEX('Peak Period'!$F$6:$U$8765,$B104,$C$11) -> 0 | E104: =INDEX(Tamb!$F$8:$V$140167,($C$11-1)*8760+B104,$O$3) -> 21 | F104: =INDEX(Tamb!$F$8:$V$140167,($C$11-1)*8760+B104,$O$3+1) -> 18 | G104: =INDEX(Tmains!$D$32:$S$396,$A104,CZind) -> 42.67889958 | H104: =INDEX(HWgal!$C$8:$AE$8767,$B104,$N$9)*60 -> 0 | I104: 0 | J104: 0 | K104: 1332.2952 | L104: -234.5 | M104: 1097.7952 | N104: =IF(OR($G$3="PkHP",$G$3="SpHP"),(HPWH!$Q$31+HPWH!$Q$32*CONVERT(F104,"F","C")+HPWH!$Q$33*CONVERT(F104,"F","C")^2+HPWH!$Q$34*CONVERT($N$4,"F","C")+HPWH!$Q$35*CONVERT($N$4,"F","C")^2+HPWH!$Q$36*CONVERT($N$4,"F","C")*CONVERT(F104,"F","C")),1) -> 1 | O104: 1097.7952 | P104: 0 | Q104: 0.0266940423 | R104: =IF(OR($G$3="PkHP",$G$3="SpHP"),(HPWH!$P$31+HPWH!$P$32*CONVERT(F104,"F","C")+HPWH!$P$33*CONVERT(F104,"F","C")^2+HPWH!$P$34*CONVERT($N$4,"F","C")+HPWH!$P$35*CONVERT($N$4,"F","C")^2+HPWH!$P$36*CONVERT($N$4,"F","C")*CONVERT(F104,"F","C")),1) -> 1 | S104: 0.76 | T104: 0 | U104: 0 | V104: 0 | W104: 0 | X104: 0 | Y104: 0 | Z104: 0.01444467368
A105: 4 | B105: 77 | C105: 1 | D105: =INDEX('Peak Period'!$F$6:$U$8765,$B105,$C$11) -> 0 | E105: =INDEX(Tamb!$F$8:$V$140167,($C$11-1)*8760+B105,$O$3) -> 20 | F105: =INDEX(Tamb!$F$8:$V$140167,($C$11-1)*8760+B105,$O$3+1) -> 18 | G105: =INDEX(Tmains!$D$32:$S$396,$A105,CZind) -> 42.67889958 | H105: =INDEX(HWgal!$C$8:$AE$8767,$B105,$N$9)*60 -> 0 | I105: 0 | J105: 0 | K105: 1343.982 | L105: -234.5 | M105: 1109.482 | N105: =IF(OR($G$3="PkHP",$G$3="SpHP"),(HPWH!$Q$31+HPWH!$Q$32*CONVERT(F105,"F","C")+HPWH!$Q$33*CONVERT(F105,"F","C")^2+HPWH!$Q$34*CONVERT($N$4,"F","C")+HPWH!$Q$35*CONVERT($N$4,"F","C")^2+HPWH!$Q$36*CONVERT($N$4,"F","C")*CONVERT(F105,"F","C")),1) -> 1 | O105: 1109.482 | P105: 0 | Q105: 0.0269782191 | R105: =IF(OR($G$3="PkHP",$G$3="SpHP"),(HPWH!$P$31+HPWH!$P$32*CONVERT(F105,"F","C")+HPWH!$P$33*CONVERT(F105,"F","C")^2+HPWH!$P$34*CONVERT($N$4,"F","C")+HPWH!$P$35*CONVERT($N$4,"F","C")^2+HPWH!$P$36*CONVERT($N$4,"F","C")*CONVERT(F105,"F","C")),1) -> 1 | S105: 0.76 | T105: 0 | U105: 0 | V105: 0 | W105: 0 | X105: 0 | Y105: 0 | Z105: 0.01459844737
A106: 4 | B106: 78 | C106: 1 | D106: =INDEX('Peak Period'!$F$6:$U$8765,$B106,$C$11) -> 0 | E106: =INDEX(Tamb!$F$8:$V$140167,($C$11-1)*8760+B106,$O$3) -> 20 | F106: =INDEX(Tamb!$F$8:$V$140167,($C$11-1)*8760+B106,$O$3+1) -> 17 | G106: =INDEX(Tmains!$D$32:$S$396,$A106,CZind) -> 42.67889958 | H106: =INDEX(HWgal!$C$8:$AE$8767,$B106,$N$9)*60 -> 0 | I106: 0 | J106: 0 | K106: 1343.982 | L106: -234.5 | M106: 1109.482 | N106: =IF(OR($G$3="PkHP",$G$3="SpHP"),(HPWH!$Q$31+HPWH!$Q$32*CONVERT(F106,"F","C")+HPWH!$Q$33*CONVERT(F106,"F","C")^2+HPWH!$Q$34*CONVERT($N$4,"F","C")+HPWH!$Q$35*CONVERT($N$4,"F","C")^2+HPWH!$Q$36*CONVERT($N$4,"F","C")*CONVERT(F106,"F","C")),1) -> 1 | O106: 1109.482 | P106: 0 | Q106: 0.0269782191 | R106: =IF(OR($G$3="PkHP",$G$3="SpHP"),(HPWH!$P$31+HPWH!$P$32*CONVERT(F106,"F","C")+HPWH!$P$33*CONVERT(F106,"F","C")^2+HPWH!$P$34*CONVERT($N$4,"F","C")+HPWH!$P$35*CONVERT($N$4,"F","C")^2+HPWH!$P$36*CONVERT($N$4,"F","C")*CONVERT(F106,"F","C")),1) -> 1 | S106: 0.76 | T106: 0 | U106: 0 | V106: 0 | W106: 0 | X106: 0 | Y106: 0 | Z106: 0.01459844737
A107: 4 | B107: 79 | C107: 1 | D107: =INDEX('Peak Period'!$F$6:$U$8765,$B107,$C$11) -> 0 | E107: =INDEX(Tamb!$F$8:$V$140167,($C$11-1)*8760+B107,$O$3) -> 21 | F107: =INDEX(Tamb!$F$8:$V$140167,($C$11-1)*8760+B107,$O$3+1) -> 18 | G107: =INDEX(Tmains!$D$32:$S$396,$A107,CZind) -> 42.67889958 | H107: =INDEX(HWgal!$C$8:$AE$8767,$B107,$N$9)*60 -> 0 | I107: 0 | J107: 0 | K107: 1332.2952 | L107: -234.5 | M107: 1097.7952 | N107: =IF(OR($G$3="PkHP",$G$3="SpHP"),(HPWH!$Q$31+HPWH!$Q$32*CONVERT(F107,"F","C")+HPWH!$Q$33*CONVERT(F107,"F","C")^2+HPWH!$Q$34*CONVERT($N$4,"F","C")+HPWH!$Q$35*CONVERT($N$4,"F","C")^2+HPWH!$Q$36*CONVERT($N$4,"F","C")*CONVERT(F107,"F","C")),1) -> 1 | O107: 1097.7952 | P107: 0 | Q107: 0.0266940423 | R107: =IF(OR($G$3="PkHP",$G$3="SpHP"),(HPWH!$P$31+HPWH!$P$32*CONVERT(F107,"F","C")+HPWH!$P$33*CONVERT(F107,"F","C")^2+HPWH!$P$34*CONVERT($N$4,"F","C")+HPWH!$P$35*CONVERT($N$4,"F","C")^2+HPWH!$P$36*CONVERT($N$4,"F","C")*CONVERT(F107,"F","C")),1) -> 1 | S107: 0.76 | T107: 0 | U107: 0 | V107: 0 | W107: 0 | X107: 0 | Y107: 0 | Z107: 0.01444467368
A108: 4 | B108: 80 | C108: 1 | D108: =INDEX('Peak Period'!$F$6:$U$8765,$B108,$C$11) -> 0 | E108: =INDEX(Tamb!$F$8:$V$140167,($C$11-1)*8760+B108,$O$3) -> 21 | F108: =INDEX(Tamb!$F$8:$V$140167,($C$11-1)*8760+B108,$O$3+1) -> 19 | G108: =INDEX(Tmains!$D$32:$S$396,$A108,CZind) -> 42.67889958 | H108: =INDEX(HWgal!$C$8:$AE$8767,$B108,$N$9)*60 -> 0 | I108: 0 | J108: 0 | K108: 1332.2952 | L108: -234.5 | M108: 1097.7952 | N108: =IF(OR($G$3="PkHP",$G$3="SpHP"),(HPWH!$Q$31+HPWH!$Q$32*CONVERT(F108,"F","C")+HPWH!$Q$33*CONVERT(F108,"F","C")^2+HPWH!$Q$34*CONVERT($N$4,"F","C")+HPWH!$Q$35*CONVERT($N$4,"F","C")^2+HPWH!$Q$36*CONVERT($N$4,"F","C")*CONVERT(F108,"F","C")),1) -> 1 | O108: 1097.7952 | P108: 0 | Q108: 0.0266940423 | R108: =IF(OR($G$3="PkHP",$G$3="SpHP"),(HPWH!$P$31+HPWH!$P$32*CONVERT(F108,"F","C")+HPWH!$P$33*CONVERT(F108,"F","C")^2+HPWH!$P$34*CONVERT($N$4,"F","C")+HPWH!$P$35*CONVERT($N$4,"F","C")^2+HPWH!$P$36*CONVERT($N$4,"F","C")*CONVERT(F108,"F","C")),1) -> 1 | S108: 0.76 | T108: 0 | U108: 0 | V108: 0 | W108: 0 | X108: 0 | Y108: 0 | Z108: 0.01444467368
A109: 4 | B109: 81 | C109: 1 | D109: =INDEX('Peak Period'!$F$6:$U$8765,$B109,$C$11) -> 0 | E109: =INDEX(Tamb!$F$8:$V$140167,($C$11-1)*8760+B109,$O$3) -> 22 | F109: =INDEX(Tamb!$F$8:$V$140167,($C$11-1)*8760+B109,$O$3+1) -> 20 | G109: =INDEX(Tmains!$D$32:$S$396,$A109,CZind) -> 42.67889958 | H109: =INDEX(HWgal!$C$8:$AE$8767,$B109,$N$9)*60 -> 26.57593224 | I109: 26.57593224 | J109: 20118.85833 | K109: 1320.6084 | L109: -234.5 | M109: 21204.96673 | N109: =IF(OR($G$3="PkHP",$G$3="SpHP"),(HPWH!$Q$31+HPWH!$Q$32*CONVERT(F109,"F","C")+HPWH!$Q$33*CONVERT(F109,"F","C")^2+HPWH!$Q$34*CONVERT($N$4,"F","C")+HPWH!$Q$35*CONVERT($N$4,"F","C")^2+HPWH!$Q$36*CONVERT($N$4,"F","C")*CONVERT(F109,"F","C")),1) -> 1 | O109: 21204.96673 | P109: 0 | Q109: 0.5156210183 | R109: =IF(OR($G$3="PkHP",$G$3="SpHP"),(HPWH!$P$31+HPWH!$P$32*CONVERT(F109,"F","C")+HPWH!$P$33*CONVERT(F109,"F","C")^2+HPWH!$P$34*CONVERT($N$4,"F","C")+HPWH!$P$35*CONVERT($N$4,"F","C")^2+HPWH!$P$36*CONVERT($N$4,"F","C")*CONVERT(F109,"F","C")),1) -> 1 | S109: 0.76 | T109: 0 | U109: 0 | V109: 0 | W109: 0 | X109: 0 | Y109: 0 | Z109: 0.2790127201
A110: 4 | B110: 82 | C110: 1 | D110: =INDEX('Peak Period'!$F$6:$U$8765,$B110,$C$11) -> 0 | E110: =INDEX(Tamb!$F$8:$V$140167,($C$11-1)*8760+B110,$O$3) -> 25 | F110: =INDEX(Tamb!$F$8:$V$140167,($C$11-1)*8760+B110,$O$3+1) -> 22 | G110: =INDEX(Tmains!$D$32:$S$396,$A110,CZind) -> 42.67889958 | H110: =INDEX(HWgal!$C$8:$AE$8767,$B110,$N$9)*60 -> 6.586399951 | I110: 6.586399951 | J110: 4986.122268 | K110: 1285.548 | L110: -234.5 | M110: 6037.170268 | N110: =IF(OR($G$3="PkHP",$G$3="SpHP"),(HPWH!$Q$31+HPWH!$Q$32*CONVERT(F110,"F","C")+HPWH!$Q$33*CONVERT(F110,"F","C")^2+HPWH!$Q$34*CONVERT($N$4,"F","C")+HPWH!$Q$35*CONVERT($N$4,"F","C")^2+HPWH!$Q$36*CONVERT($N$4,"F","C")*CONVERT(F110,"F","C")),1) -> 1 | O110: 6037.170268 | P110: 0 | Q110: 0.1468001304 | R110: =IF(OR($G$3="PkHP",$G$3="SpHP"),(HPWH!$P$31+HPWH!$P$32*CONVERT(F110,"F","C")+HPWH!$P$33*CONVERT(F110,"F","C")^2+HPWH!$P$34*CONVERT($N$4,"F","C")+HPWH!$P$35*CONVERT($N$4,"F","C")^2+HPWH!$P$36*CONVERT($N$4,"F","C")*CONVERT(F110,"F","C")),1) -> 1 | S110: 0.76 | T110: 0 | U110: 0 | V110: 0 | W110: 0 | X110: 0 | Y110: 0 | Z110: 0.0794364509
A111: 4 | B111: 83 | C111: 1 | D111: =INDEX('Peak Period'!$F$6:$U$8765,$B111,$C$11) -> 0 | E111: =INDEX(Tamb!$F$8:$V$140167,($C$11-1)*8760+B111,$O$3) -> 27 | F111: =INDEX(Tamb!$F$8:$V$140167,($C$11-1)*8760+B111,$O$3+1) -> 22 | G111: =INDEX(Tmains!$D$32:$S$396,$A111,CZind) -> 42.67889958 | H111: =INDEX(HWgal!$C$8:$AE$8767,$B111,$N$9)*60 -> 2.746769803 | I111: 2.746769803 | J111: 2079.395449 | K111: 1262.1744 | L111: -234.5 | M111: 3107.069849 | N111: =IF(OR($G$3="PkHP",$G$3="SpHP"),(HPWH!$Q$31+HPWH!$Q$32*CONVERT(F111,"F","C")+HPWH!$Q$33*CONVERT(F111,"F","C")^2+HPWH!$Q$34*CONVERT($N$4,"F","C")+HPWH!$Q$35*CONVERT($N$4,"F","C")^2+HPWH!$Q$36*CONVERT($N$4,"F","C")*CONVERT(F111,"F","C")),1) -> 1 | O111: 3107.069849 | P111: 0 | Q111: 0.07555166388 | R111: =IF(OR($G$3="PkHP",$G$3="SpHP"),(HPWH!$P$31+HPWH!$P$32*CONVERT(F111,"F","C")+HPWH!$P$33*CONVERT(F111,"F","C")^2+HPWH!$P$34*CONVERT($N$4,"F","C")+HPWH!$P$35*CONVERT($N$4,"F","C")^2+HPWH!$P$36*CONVERT($N$4,"F","C")*CONVERT(F111,"F","C")),1) -> 1 | S111: 0.76 | T111: 0 | U111: 0 | V111: 0 | W111: 0 | X111: 0 | Y111: 0 | Z111: 0.04088249801
A112: 4 | B112: 84 | C112: 1 | D112: =INDEX('Peak Period'!$F$6:$U$8765,$B112,$C$11) -> 0 | E112: =INDEX(Tamb!$F$8:$V$140167,($C$11-1)*8760+B112,$O$3) -> 25 | F112: =INDEX(Tamb!$F$8:$V$140167,($C$11-1)*8760+B112,$O$3+1) -> 21 | G112: =INDEX(Tmains!$D$32:$S$396,$A112,CZind) -> 42.67889958 | H112: =INDEX(HWgal!$C$8:$AE$8767,$B112,$N$9)*60 -> 3.276998 | I112: 3.276998 | J112: 2480.795704 | K112: 1285.548 | L112: -234.5 | M112: 3531.843704 | N112: =IF(OR($G$3="PkHP",$G$3="SpHP"),(HPWH!$Q$31+HPWH!$Q$32*CONVERT(F112,"F","C")+HPWH!$Q$33*CONVERT(F112,"F","C")^2+HPWH!$Q$34*CONVERT($N$4,"F","C")+HPWH!$Q$35*CONVERT($N$4,"F","C")^2+HPWH!$Q$36*CONVERT($N$4,"F","C")*CONVERT(F112,"F","C")),1) -> 1 | O112: 3531.843704 | P112: 0 | Q112: 0.08588048592 | R112: =IF(OR($G$3="PkHP",$G$3="SpHP"),(HPWH!$P$31+HPWH!$P$32*CONVERT(F112,"F","C")+HPWH!$P$33*CONVERT(F112,"F","C")^2+HPWH!$P$34*CONVERT($N$4,"F","C")+HPWH!$P$35*CONVERT($N$4,"F","C")^2+HPWH!$P$36*CONVERT($N$4,"F","C")*CONVERT(F112,"F","C")),1) -> 1 | S112: 0.76 | T112: 0 | U112: 0 | V112: 0 | W112: 0 | X112: 0 | Y112: 0 | Z112: 0.04647162768
A113: 4 | B113: 85 | C113: 1 | D113: =INDEX('Peak Period'!$F$6:$U$8765,$B113,$C$11) -> 0 | E113: =INDEX(Tamb!$F$8:$V$140167,($C$11-1)*8760+B113,$O$3) -> 26 | F113: =INDEX(Tamb!$F$8:$V$140167,($C$11-1)*8760+B113,$O$3+1) -> 22 | G113: =INDEX(Tmains!$D$32:$S$396,$A113,CZind) -> 42.67889958 | H113: =INDEX(HWgal!$C$8:$AE$8767,$B113,$N$9)*60 -> 0 | I113: 0 | J113: 0 | K113: 1273.8612 | L113: -234.5 | M113: 1039.3612 | N113: =IF(OR($G$3="PkHP",$G$3="SpHP"),(HPWH!$Q$31+HPWH!$Q$32*CONVERT(F113,"F","C")+HPWH!$Q$33*CONVERT(F113,"F","C")^2+HPWH!$Q$34*CONVERT($N$4,"F","C")+HPWH!$Q$35*CONVERT($N$4,"F","C")^2+HPWH!$Q$36*CONVERT($N$4,"F","C")*CONVERT(F113,"F","C")),1) -> 1 | O113: 1039.3612 | P113: 0 | Q113: 0.02527315827 | R113: =IF(OR($G$3="PkHP",$G$3="SpHP"),(HPWH!$P$31+HPWH!$P$32*CONVERT(F113,"F","C")+HPWH!$P$33*CONVERT(F113,"F","C")^2+HPWH!$P$34*CONVERT($N$4,"F","C")+HPWH!$P$35*CONVERT($N$4,"F","C")^2+HPWH!$P$36*CONVERT($N$4,"F","C")*CONVERT(F113,"F","C")),1) -> 1 | S113: 0.76 | T113: 0 | U113: 0 | V113: 0 | W113: 0 | X113: 0 | Y113: 0 | Z113: 0.01367580526
A114: 4 | B114: 86 | C114: 1 | D114: =INDEX('Peak Period'!$F$6:$U$8765,$B114,$C$11) -> 0 | E114: =INDEX(Tamb!$F$8:$V$140167,($C$11-1)*8760+B114,$O$3) -> 26 | F114: =INDEX(Tamb!$F$8:$V$140167,($C$11-1)*8760+B114,$O$3+1) -> 23 | G114: =INDEX(Tmains!$D$32:$S$396,$A114,CZind) -> 42.67889958 | H114: =INDEX(HWgal!$C$8:$AE$8767,$B114,$N$9)*60 -> 5.942656082 | I114: 5.942656082 | J114: 4498.786901 | K114: 1273.8612 | L114: -234.5 | M114: 5538.148101 | N114: =IF(OR($G$3="PkHP",$G$3="SpHP"),(HPWH!$Q$31+HPWH!$Q$32*CONVERT(F114,"F","C")+HPWH!$Q$33*CONVERT(F114,"F","C")^2+HPWH!$Q$34*CONVERT($N$4,"F","C")+HPWH!$Q$35*CONVERT($N$4,"F","C")^2+HPWH!$Q$36*CONVERT($N$4,"F","C")*CONVERT(F114,"F","C")),1) -> 1 | O114: 5538.148101 | P114: 0 | Q114: 0.1346658827 | R114: =IF(OR($G$3="PkHP",$G$3="SpHP"),(HPWH!$P$31+HPWH!$P$32*CONVERT(F114,"F","C")+HPWH!$P$33*CONVERT(F114,"F","C")^2+HPWH!$P$34*CONVERT($N$4,"F","C")+HPWH!$P$35*CONVERT($N$4,"F","C")^2+HPWH!$P$36*CONVERT($N$4,"F","C")*CONVERT(F114,"F","C")),1) -> 1 | S114: 0.76 | T114: 0 | U114: 0 | V114: 0 | W114: 0 | X114: 0 | Y114: 0 | Z114: 0.07287036975
A115: 4 | B115: 87 | C115: 1 | D115: =INDEX('Peak Period'!$F$6:$U$8765,$B115,$C$11) -> 0 | E115: =INDEX(Tamb!$F$8:$V$140167,($C$11-1)*8760+B115,$O$3) -> 27 | F115: =INDEX(Tamb!$F$8:$V$140167,($C$11-1)*8760+B115,$O$3+1) -> 23 | G115: =INDEX(Tmains!$D$32:$S$396,$A115,CZind) -> 42.67889958 | H115: =INDEX(HWgal!$C$8:$AE$8767,$B115,$N$9)*60 -> 0.1069975435 | I115: 0.1069975435 | J115: 81.00067386 | K115: 1262.1744 | L115: -234.5 | M115: 1108.675074 | N115: =IF(OR($G$3="PkHP",$G$3="SpHP"),(HPWH!$Q$31+HPWH!$Q$32*CONVERT(F115,"F","C")+HPWH!$Q$33*CONVERT(F115,"F","C")^2+HPWH!$Q$34*CONVERT($N$4,"F","C")+HPWH!$Q$35*CONVERT($N$4,"F","C")^2+HPWH!$Q$36*CONVERT($N$4,"F","C")*CONVERT(F115,"F","C")),1) -> 1 | O115: 1108.675074 | P115: 0 | Q115: 0.02695859785 | R115: =IF(OR($G$3="PkHP",$G$3="SpHP"),(HPWH!$P$31+HPWH!$P$32*CONVERT(F115,"F","C")+HPWH!$P$33*CONVERT(F115,"F","C")^2+HPWH!$P$34*CONVERT($N$4,"F","C")+HPWH!$P$35*CONVERT($N$4,"F","C")^2+HPWH!$P$36*CONVERT($N$4,"F","C")*CONVERT(F115,"F","C")),1) -> 1 | S115: 0.76 | T115: 0 | U115: 0 | V115: 0 | W115: 0 | X115: 0 | Y115: 0 | Z115: 0.01458782992
A116: 4 | B116: 88 | C116: 1 | D116: =INDEX('Peak Period'!$F$6:$U$8765,$B116,$C$11) -> 0 | E116: =INDEX(Tamb!$F$8:$V$140167,($C$11-1)*8760+B116,$O$3) -> 27 | F116: =INDEX(Tamb!$F$8:$V$140167,($C$11-1)*8760+B116,$O$3+1) -> 23 | G116: =INDEX(Tmains!$D$32:$S$396,$A116,CZind) -> 42.67889958 | H116: =INDEX(HWgal!$C$8:$AE$8767,$B116,$N$9)*60 -> 0.1360754469 | I116: 0.1360754469 | J116: 103.013607 | K116: 1262.1744 | L116: -234.5 | M116: 1130.688007 | N116: =IF(OR($G$3="PkHP",$G$3="SpHP"),(HPWH!$Q$31+HPWH!$Q$32*CONVERT(F116,"F","C")+HPWH!$Q$33*CONVERT(F116,"F","C")^2+HPWH!$Q$34*CONVERT($N$4,"F","C")+HPWH!$Q$35*CONVERT($N$4,"F","C")^2+HPWH!$Q$36*CONVERT($N$4,"F","C")*CONVERT(F116,"F","C")),1) -> 1 | O116: 1130.688007 | P116: 0 | Q116: 0.02749386542 | R116: =IF(OR($G$3="PkHP",$G$3="SpHP"),(HPWH!$P$31+HPWH!$P$32*CONVERT(F116,"F","C")+HPWH!$P$33*CONVERT(F116,"F","C")^2+HPWH!$P$34*CONVERT($N$4,"F","C")+HPWH!$P$35*CONVERT($N$4,"F","C")^2+HPWH!$P$36*CONVERT($N$4,"F","C")*CONVERT(F116,"F","C")),1) -> 1 | S116: 0.76 | T116: 0 | U116: 0 | V116: 0 | W116: 0 | X116: 0 | Y116: 0 | Z116: 0.01487747378
A117: 4 | B117: 89 | C117: 1 | D117: =INDEX('Peak Period'!$F$6:$U$8765,$B117,$C$11) -> 0 | E117: =INDEX(Tamb!$F$8:$V$140167,($C$11-1)*8760+B117,$O$3) -> 26 | F117: =INDEX(Tamb!$F$8:$V$140167,($C$11-1)*8760+B117,$O$3+1) -> 23 | G117: =INDEX(Tmains!$D$32:$S$396,$A117,CZind) -> 42.67889958 | H117: =INDEX(HWgal!$C$8:$AE$8767,$B117,$N$9)*60 -> 0.5773021205 | I117: 0.5773021205 | J117: 437.0367697 | K117: 1273.8612 | L117: -234.5 | M117: 1476.39797 | N117: =IF(OR($G$3="PkHP",$G$3="SpHP"),(HPWH!$Q$31+HPWH!$Q$32*CONVERT(F117,"F","C")+HPWH!$Q$33*CONVERT(F117,"F","C")^2+HPWH!$Q$34*CONVERT($N$4,"F","C")+HPWH!$Q$35*CONVERT($N$4,"F","C")^2+HPWH!$Q$36*CONVERT($N$4,"F","C")*CONVERT(F117,"F","C")),1) -> 1 | O117: 1476.39797 | P117: 0 | Q117: 0.03590016594 | R117: =IF(OR($G$3="PkHP",$G$3="SpHP"),(HPWH!$P$31+HPWH!$P$32*CONVERT(F117,"F","C")+HPWH!$P$33*CONVERT(F117,"F","C")^2+HPWH!$P$34*CONVERT($N$4,"F","C")+HPWH!$P$35*CONVERT($N$4,"F","C")^2+HPWH!$P$36*CONVERT($N$4,"F","C")*CONVERT(F117,"F","C")),1) -> 1 | S117: 0.76 | T117: 0 | U117: 0 | V117: 0 | W117: 0 | X117: 0 | Y117: 0 | Z117: 0.01942628907
A118: 4 | B118: 90 | C118: 1 | D118: =INDEX('Peak Period'!$F$6:$U$8765,$B118,$C$11) -> 0 | E118: =INDEX(Tamb!$F$8:$V$140167,($C$11-1)*8760+B118,$O$3) -> 25 | F118: =INDEX(Tamb!$F$8:$V$140167,($C$11-1)*8760+B118,$O$3+1) -> 23 | G118: =INDEX(Tmains!$D$32:$S$396,$A118,CZind) -> 42.67889958 | H118: =INDEX(HWgal!$C$8:$AE$8767,$B118,$N$9)*60 -> 0.1548163767 | I118: 0.1548163767 | J118: 117.2011097 | K118: 1285.548 | L118: -234.5 | M118: 1168.24911 | N118: =IF(OR($G$3="PkHP",$G$3="SpHP"),(HPWH!$Q$31+HPWH!$Q$32*CONVERT(F118,"F","C")+HPWH!$Q$33*CONVERT(F118,"F","C")^2+HPWH!$Q$34*CONVERT($N$4,"F","C")+HPWH!$Q$35*CONVERT($N$4,"F","C")^2+HPWH!$Q$36*CONVERT($N$4,"F","C")*CONVERT(F118,"F","C")),1) -> 1 | O118: 1168.24911 | P118: 0 | Q118: 0.02840720305 | R118: =IF(OR($G$3="PkHP",$G$3="SpHP"),(HPWH!$P$31+HPWH!$P$32*CONVERT(F118,"F","C")+HPWH!$P$33*CONVERT(F118,"F","C")^2+HPWH!$P$34*CONVERT($N$4,"F","C")+HPWH!$P$35*CONVERT($N$4,"F","C")^2+HPWH!$P$36*CONVERT($N$4,"F","C")*CONVERT(F118,"F","C")),1) -> 1 | S118: 0.76 | T118: 0 | U118: 0 | V118: 0 | W118: 0 | X118: 0 | Y118: 0 | Z118: 0.01537169881
A119: 4 | B119: 91 | C119: 1 | D119: =INDEX('Peak Period'!$F$6:$U$8765,$B119,$C$11) -> 0 | E119: =INDEX(Tamb!$F$8:$V$140167,($C$11-1)*8760+B119,$O$3) -> 24 | F119: =INDEX(Tamb!$F$8:$V$140167,($C$11-1)*8760+B119,$O$3+1) -> 22 | G119: =INDEX(Tmains!$D$32:$S$396,$A119,CZind) -> 42.67889958 | H119: =INDEX(HWgal!$C$8:$AE$8767,$B119,$N$9)*60 -> 0.2628619112 | I119: 0.2628619112 | J119: 198.9951474 | K119: 1297.2348 | L119: -234.5 | M119: 1261.729947 | N119: =IF(OR($G$3="PkHP",$G$3="SpHP"),(HPWH!$Q$31+HPWH!$Q$32*CONVERT(F119,"F","C")+HPWH!$Q$33*CONVERT(F119,"F","C")^2+HPWH!$Q$34*CONVERT($N$4,"F","C")+HPWH!$Q$35*CONVERT($N$4,"F","C")^2+HPWH!$Q$36*CONVERT($N$4,"F","C")*CONVERT(F119,"F","C")),1) -> 1 | O119: 1261.729947 | P119: 0 | Q119: 0.03068028771 | R119: =IF(OR($G$3="PkHP",$G$3="SpHP"),(HPWH!$P$31+HPWH!$P$32*CONVERT(F119,"F","C")+HPWH!$P$33*CONVERT(F119,"F","C")^2+HPWH!$P$34*CONVERT($N$4,"F","C")+HPWH!$P$35*CONVERT($N$4,"F","C")^2+HPWH!$P$36*CONVERT($N$4,"F","C")*CONVERT(F119,"F","C")),1) -> 1 | S119: 0.76 | T119: 0 | U119: 0 | V119: 0 | W119: 0 | X119: 0 | Y119: 0 | Z119: 0.01660170983
A120: 4 | B120: 92 | C120: 1 | D120: =INDEX('Peak Period'!$F$6:$U$8765,$B120,$C$11) -> 0 | E120: =INDEX(Tamb!$F$8:$V$140167,($C$11-1)*8760+B120,$O$3) -> 23 | F120: =INDEX(Tamb!$F$8:$V$140167,($C$11-1)*8760+B120,$O$3+1) -> 20 | G120: =INDEX(Tmains!$D$32:$S$396,$A120,CZind) -> 42.67889958 | H120: =INDEX(HWgal!$C$8:$AE$8767,$B120,$N$9)*60 -> 0.6054135152 | I120: 0.6054135152 | J120: 458.3180238 | K120: 1308.9216 | L120: -234.5 | M120: 1532.739624 | N120: =IF(OR($G$3="PkHP",$G$3="SpHP"),(HPWH!$Q$31+HPWH!$Q$32*CONVERT(F120,"F","C")+HPWH!$Q$33*CONVERT(F120,"F","C")^2+HPWH!$Q$34*CONVERT($N$4,"F","C")+HPWH!$Q$35*CONVERT($N$4,"F","C")^2+HPWH!$Q$36*CONVERT($N$4,"F","C")*CONVERT(F120,"F","C")),1) -> 1 | O120: 1532.739624 | P120: 0 | Q120: 0.03727017239 | R120: =IF(OR($G$3="PkHP",$G$3="SpHP"),(HPWH!$P$31+HPWH!$P$32*CONVERT(F120,"F","C")+HPWH!$P$33*CONVERT(F120,"F","C")^2+HPWH!$P$34*CONVERT($N$4,"F","C")+HPWH!$P$35*CONVERT($N$4,"F","C")^2+HPWH!$P$36*CONVERT($N$4,"F","C")*CONVERT(F120,"F","C")),1) -> 1 | S120: 0.76 | T120: 0 | U120: 0 | V120: 0 | W120: 0 | X120: 0 | Y120: 0 | Z120: 0.02016762663
A121: 4 | B121: 93 | C121: 1 | D121: =INDEX('Peak Period'!$F$6:$U$8765,$B121,$C$11) -> 0 | E121: =INDEX(Tamb!$F$8:$V$140167,($C$11-1)*8760+B121,$O$3) -> 23 | F121: =INDEX(Tamb!$F$8:$V$140167,($C$11-1)*8760+B121,$O$3+1) -> 20 | G121: =INDEX(Tmains!$D$32:$S$396,$A121,CZind) -> 42.67889958 | H121: =INDEX(HWgal!$C$8:$AE$8767,$B121,$N$9)*60 -> 0.09386761366 | I121: 0.09386761366 | J121: 71.06088337 | K121: 1308.9216 | L121: -234.5 | M121: 1145.482483 | N121: =IF(OR($G$3="PkHP",$G$3="SpHP"),(HPWH!$Q$31+HPWH!$Q$32*CONVERT(F121,"F","C")+HPWH!$Q$33*CONVERT(F121,"F","C")^2+HPWH!$Q$34*CONVERT($N$4,"F","C")+HPWH!$Q$35*CONVERT($N$4,"F","C")^2+HPWH!$Q$36*CONVERT($N$4,"F","C")*CONVERT(F121,"F","C")),1) -> 1 | O121: 1145.482483 | P121: 0 | Q121: 0.02785360864 | R121: =IF(OR($G$3="PkHP",$G$3="SpHP"),(HPWH!$P$31+HPWH!$P$32*CONVERT(F121,"F","C")+HPWH!$P$33*CONVERT(F121,"F","C")^2+HPWH!$P$34*CONVERT($N$4,"F","C")+HPWH!$P$35*CONVERT($N$4,"F","C")^2+HPWH!$P$36*CONVERT($N$4,"F","C")*CONVERT(F121,"F","C")),1) -> 1 | S121: 0.76 | T121: 0 | U121: 0 | V121: 0 | W121: 0 | X121: 0 | Y121: 0 | Z121: 0.01507213794
A122: 4 | B122: 94 | C122: 1 | D122: =INDEX('Peak Period'!$F$6:$U$8765,$B122,$C$11) -> 0 | E122: =INDEX(Tamb!$F$8:$V$140167,($C$11-1)*8760+B122,$O$3) -> 23 | F122: =INDEX(Tamb!$F$8:$V$140167,($C$11-1)*8760+B122,$O$3+1) -> 20 | G122: =INDEX(Tmains!$D$32:$S$396,$A122,CZind) -> 42.67889958 | H122: =INDEX(HWgal!$C$8:$AE$8767,$B122,$N$9)*60 -> 7.56366327 | I122: 7.56366327 | J122: 5725.942873 | K122: 1308.9216 | L122: -234.5 | M122: 6800.364473 | N122: =IF(OR($G$3="PkHP",$G$3="SpHP"),(HPWH!$Q$31+HPWH!$Q$32*CONVERT(F122,"F","C")+HPWH!$Q$33*CONVERT(F122,"F","C")^2+HPWH!$Q$34*CONVERT($N$4,"F","C")+HPWH!$Q$35*CONVERT($N$4,"F","C")^2+HPWH!$Q$36*CONVERT($N$4,"F","C")*CONVERT(F122,"F","C")),1) -> 1 | O122: 6800.364473 | P122: 0 | Q122: 0.1653579984 | R122: =IF(OR($G$3="PkHP",$G$3="SpHP"),(HPWH!$P$31+HPWH!$P$32*CONVERT(F122,"F","C")+HPWH!$P$33*CONVERT(F122,"F","C")^2+HPWH!$P$34*CONVERT($N$4,"F","C")+HPWH!$P$35*CONVERT($N$4,"F","C")^2+HPWH!$P$36*CONVERT($N$4,"F","C")*CONVERT(F122,"F","C")),1) -> 1 | S122: 0.76 | T122: 0 | U122: 0 | V122: 0 | W122: 0 | X122: 0 | Y122: 0 | Z122: 0.08947847991
A123: 4 | B123: 95 | C123: 1 | D123: =INDEX('Peak Period'!$F$6:$U$8765,$B123,$C$11) -> 0 | E123: =INDEX(Tamb!$F$8:$V$140167,($C$11-1)*8760+B123,$O$3) -> 25 | F123: =INDEX(Tamb!$F$8:$V$140167,($C$11-1)*8760+B123,$O$3+1) -> 20 | G123: =INDEX(Tmains!$D$32:$S$396,$A123,CZind) -> 42.67889958 | H123: =INDEX(HWgal!$C$8:$AE$8767,$B123,$N$9)*60 -> 0 | I123: 0 | J123: 0 | K123: 1285.548 | L123: -234.5 | M123: 1051.048 | N123: =IF(OR($G$3="PkHP",$G$3="SpHP"),(HPWH!$Q$31+HPWH!$Q$32*CONVERT(F123,"F","C")+HPWH!$Q$33*CONVERT(F123,"F","C")^2+HPWH!$Q$34*CONVERT($N$4,"F","C")+HPWH!$Q$35*CONVERT($N$4,"F","C")^2+HPWH!$Q$36*CONVERT($N$4,"F","C")*CONVERT(F123,"F","C")),1) -> 1 | O123: 1051.048 | P123: 0 | Q123: 0.02555733507 | R123: =IF(OR($G$3="PkHP",$G$3="SpHP"),(HPWH!$P$31+HPWH!$P$32*CONVERT(F123,"F","C")+HPWH!$P$33*CONVERT(F123,"F","C")^2+HPWH!$P$34*CONVERT($N$4,"F","C")+HPWH!$P$35*CONVERT($N$4,"F","C")^2+HPWH!$P$36*CONVERT($N$4,"F","C")*CONVERT(F123,"F","C")),1) -> 1 | S123: 0.76 | T123: 0 | U123: 0 | V123: 0 | W123: 0 | X123: 0 | Y123: 0 | Z123: 0.01382957895
A124: 4 | B124: 96 | C124: 1 | D124: =INDEX('Peak Period'!$F$6:$U$8765,$B124,$C$11) -> 0 | E124: =INDEX(Tamb!$F$8:$V$140167,($C$11-1)*8760+B124,$O$3) -> 26 | F124: =INDEX(Tamb!$F$8:$V$140167,($C$11-1)*8760+B124,$O$3+1) -> 20 | G124: =INDEX(Tmains!$D$32:$S$396,$A124,CZind) -> 42.67889958 | H124: =INDEX(HWgal!$C$8:$AE$8767,$B124,$N$9)*60 -> 0 | I124: 0 | J124: 0 | K124: 1273.8612 | L124: -234.5 | M124: 1039.3612 | N124: =IF(OR($G$3="PkHP",$G$3="SpHP"),(HPWH!$Q$31+HPWH!$Q$32*CONVERT(F124,"F","C")+HPWH!$Q$33*CONVERT(F124,"F","C")^2+HPWH!$Q$34*CONVERT($N$4,"F","C")+HPWH!$Q$35*CONVERT($N$4,"F","C")^2+HPWH!$Q$36*CONVERT($N$4,"F","C")*CONVERT(F124,"F","C")),1) -> 1 | O124: 1039.3612 | P124: 0 | Q124: 0.02527315827 | R124: =IF(OR($G$3="PkHP",$G$3="SpHP"),(HPWH!$P$31+HPWH!$P$32*CONVERT(F124,"F","C")+HPWH!$P$33*CONVERT(F124,"F","C")^2+HPWH!$P$34*CONVERT($N$4,"F","C")+HPWH!$P$35*CONVERT($N$4,"F","C")^2+HPWH!$P$36*CONVERT($N$4,"F","C")*CONVERT(F124,"F","C")),1) -> 1 | S124: 0.76 | T124: 0 | U124: 0 | V124: 0 | W124: 0 | X124: 0 | Y124: 0 | Z124: 0.01367580526
A125: 5 | B125: 97 | C125: 1 | D125: =INDEX('Peak Period'!$F$6:$U$8765,$B125,$C$11) -> 0 | E125: =INDEX(Tamb!$F$8:$V$140167,($C$11-1)*8760+B125,$O$3) -> 26 | F125: =INDEX(Tamb!$F$8:$V$140167,($C$11-1)*8760+B125,$O$3+1) -> 21 | G125: =INDEX(Tmains!$D$32:$S$396,$A125,CZind) -> 42.58547914 | H125: =INDEX(HWgal!$C$8:$AE$8767,$B125,$N$9)*60 -> 0 | I125: 0 | J125: 0 | K125: 1273.8612 | L125: -234.5 | M125: 1039.3612 | N125: =IF(OR($G$3="PkHP",$G$3="SpHP"),(HPWH!$Q$31+HPWH!$Q$32*CONVERT(F125,"F","C")+HPWH!$Q$33*CONVERT(F125,"F","C")^2+HPWH!$Q$34*CONVERT($N$4,"F","C")+HPWH!$Q$35*CONVERT($N$4,"F","C")^2+HPWH!$Q$36*CONVERT($N$4,"F","C")*CONVERT(F125,"F","C")),1) -> 1 | O125: 1039.3612 | P125: 0 | Q125: 0.02527315827 | R125: =IF(OR($G$3="PkHP",$G$3="SpHP"),(HPWH!$P$31+HPWH!$P$32*CONVERT(F125,"F","C")+HPWH!$P$33*CONVERT(F125,"F","C")^2+HPWH!$P$34*CONVERT($N$4,"F","C")+HPWH!$P$35*CONVERT($N$4,"F","C")^2+HPWH!$P$36*CONVERT($N$4,"F","C")*CONVERT(F125,"F","C")),1) -> 1 | S125: 0.76 | T125: 0 | U125: 0 | V125: 0 | W125: 0 | X125: 0 | Y125: 0 | Z125: 0.01367580526
A126: 5 | B126: 98 | C126: 1 | D126: =INDEX('Peak Period'!$F$6:$U$8765,$B126,$C$11) -> 0 | E126: =INDEX(Tamb!$F$8:$V$140167,($C$11-1)*8760+B126,$O$3) -> 28 | F126: =INDEX(Tamb!$F$8:$V$140167,($C$11-1)*8760+B126,$O$3+1) -> 22 | G126: =INDEX(Tmains!$D$32:$S$396,$A126,CZind) -> 42.58547914 | H126: =INDEX(HWgal!$C$8:$AE$8767,$B126,$N$9)*60 -> 0 | I126: 0 | J126: 0 | K126: 1250.4876 | L126: -234.5 | M126: 1015.9876 | N126: =IF(OR($G$3="PkHP",$G$3="SpHP"),(HPWH!$Q$31+HPWH!$Q$32*CONVERT(F126,"F","C")+HPWH!$Q$33*CONVERT(F126,"F","C")^2+HPWH!$Q$34*CONVERT($N$4,"F","C")+HPWH!$Q$35*CONVERT($N$4,"F","C")^2+HPWH!$Q$36*CONVERT($N$4,"F","C")*CONVERT(F126,"F","C")),1) -> 1 | O126: 1015.9876 | P126: 0 | Q126: 0.02470480466 | R126: =IF(OR($G$3="PkHP",$G$3="SpHP"),(HPWH!$P$31+HPWH!$P$32*CONVERT(F126,"F","C")+HPWH!$P$33*CONVERT(F126,"F","C")^2+HPWH!$P$34*CONVERT($N$4,"F","C")+HPWH!$P$35*CONVERT($N$4,"F","C")^2+HPWH!$P$36*CONVERT($N$4,"F","C")*CONVERT(F126,"F","C")),1) -> 1 | S126: 0.76 | T126: 0 | U126: 0 | V126: 0 | W126: 0 | X126: 0 | Y126: 0 | Z126: 0.01336825789
A127: 5 | B127: 99 | C127: 1 | D127: =INDEX('Peak Period'!$F$6:$U$8765,$B127,$C$11) -> 0 | E127: =INDEX(Tamb!$F$8:$V$140167,($C$11-1)*8760+B127,$O$3) -> 29 | F127: =INDEX(Tamb!$F$8:$V$140167,($C$11-1)*8760+B127,$O$3+1) -> 23 | G127: =INDEX(Tmains!$D$32:$S$396,$A127,CZind) -> 42.58547914 | H127: =INDEX(HWgal!$C$8:$AE$8767,$B127,$N$9)*60 -> 0 | I127: 0 | J127: 0 | K127: 1238.8008 | L127: -234.5 | M127: 1004.3008 | N127: =IF(OR($G$3="PkHP",$G$3="SpHP"),(HPWH!$Q$31+HPWH!$Q$32*CONVERT(F127,"F","C")+HPWH!$Q$33*CONVERT(F127,"F","C")^2+HPWH!$Q$34*CONVERT($N$4,"F","C")+HPWH!$Q$35*CONVERT($N$4,"F","C")^2+HPWH!$Q$36*CONVERT($N$4,"F","C")*CONVERT(F127,"F","C")),1) -> 1 | O127: 1004.3008 | P127: 0 | Q127: 0.02442062785 | R127: =IF(OR($G$3="PkHP",$G$3="SpHP"),(HPWH!$P$31+HPWH!$P$32*CONVERT(F127,"F","C")+HPWH!$P$33*CONVERT(F127,"F","C")^2+HPWH!$P$34*CONVERT($N$4,"F","C")+HPWH!$P$35*CONVERT($N$4,"F","C")^2+HPWH!$P$36*CONVERT($N$4,"F","C")*CONVERT(F127,"F","C")),1) -> 1 | S127: 0.76 | T127: 0 | U127: 0 | V127: 0 | W127: 0 | X127: 0 | Y127: 0 | Z127: 0.01321448421
A128: 5 | B128: 100 | C128: 1 | D128: =INDEX('Peak Period'!$F$6:$U$8765,$B128,$C$11) -> 0 | E128: =INDEX(Tamb!$F$8:$V$140167,($C$11-1)*8760+B128,$O$3) -> 31 | F128: =INDEX(Tamb!$F$8:$V$140167,($C$11-1)*8760+B128,$O$3+1) -> 24 | G128: =INDEX(Tmains!$D$32:$S$396,$A128,CZind) -> 42.58547914 | H128: =INDEX(HWgal!$C$8:$AE$8767,$B128,$N$9)*60 -> 0 | I128: 0 | J128: 0 | K128: 1215.4272 | L128: -234.5 | M128: 980.9272 | N128: =IF(OR($G$3="PkHP",$G$3="SpHP"),(HPWH!$Q$31+HPWH!$Q$32*CONVERT(F128,"F","C")+HPWH!$Q$33*CONVERT(F128,"F","C")^2+HPWH!$Q$34*CONVERT($N$4,"F","C")+HPWH!$Q$35*CONVERT($N$4,"F","C")^2+HPWH!$Q$36*CONVERT($N$4,"F","C")*CONVERT(F128,"F","C")),1) -> 1 | O128: 980.9272 | P128: 0 | Q128: 0.02385227424 | R128: =IF(OR($G$3="PkHP",$G$3="SpHP"),(HPWH!$P$31+HPWH!$P$32*CONVERT(F128,"F","C")+HPWH!$P$33*CONVERT(F128,"F","C")^2+HPWH!$P$34*CONVERT($N$4,"F","C")+HPWH!$P$35*CONVERT($N$4,"F","C")^2+HPWH!$P$36*CONVERT($N$4,"F","C")*CONVERT(F128,"F","C")),1) -> 1 | S128: 0.76 | T128: 0 | U128: 0 | V128: 0 | W128: 0 | X128: 0 | Y128: 0 | Z128: 0.01290693684
A129: 5 | B129: 101 | C129: 1 | D129: =INDEX('Peak Period'!$F$6:$U$8765,$B129,$C$11) -> 0 | E129: =INDEX(Tamb!$F$8:$V$140167,($C$11-1)*8760+B129,$O$3) -> 32 | F129: =INDEX(Tamb!$F$8:$V$140167,($C$11-1)*8760+B129,$O$3+1) -> 24 | G129: =INDEX(Tmains!$D$32:$S$396,$A129,CZind) -> 42.58547914 | H129: =INDEX(HWgal!$C$8:$AE$8767,$B129,$N$9)*60 -> 0 | I129: 0 | J129: 0 | K129: 1203.7404 | L129: -234.5 | M129: 969.2404 | N129: =IF(OR($G$3="PkHP",$G$3="SpHP"),(HPWH!$Q$31+HPWH!$Q$32*CONVERT(F129,"F","C")+HPWH!$Q$33*CONVERT(F129,"F","C")^2+HPWH!$Q$34*CONVERT($N$4,"F","C")+HPWH!$Q$35*CONVERT($N$4,"F","C")^2+HPWH!$Q$36*CONVERT($N$4,"F","C")*CONVERT(F129,"F","C")),1) -> 1 | O129: 969.2404 | P129: 0 | Q129: 0.02356809743 | R129: =IF(OR($G$3="PkHP",$G$3="SpHP"),(HPWH!$P$31+HPWH!$P$32*CONVERT(F129,"F","C")+HPWH!$P$33*CONVERT(F129,"F","C")^2+HPWH!$P$34*CONVERT($N$4,"F","C")+HPWH!$P$35*CONVERT($N$4,"F","C")^2+HPWH!$P$36*CONVERT($N$4,"F","C")*CONVERT(F129,"F","C")),1) -> 1 | S129: 0.76 | T129: 0 | U129: 0 | V129: 0 | W129: 0 | X129: 0 | Y129: 0 | Z129: 0.01275316316
A130: 5 | B130: 102 | C130: 1 | D130: =INDEX('Peak Period'!$F$6:$U$8765,$B130,$C$11) -> 0 | E130: =INDEX(Tamb!$F$8:$V$140167,($C$11-1)*8760+B130,$O$3) -> 33 | F130: =INDEX(Tamb!$F$8:$V$140167,($C$11-1)*8760+B130,$O$3+1) -> 25 | G130: =INDEX(Tmains!$D$32:$S$396,$A130,CZind) -> 42.58547914 | H130: =INDEX(HWgal!$C$8:$AE$8767,$B130,$N$9)*60 -> 0 | I130: 0 | J130: 0 | K130: 1192.0536 | L130: -234.5 | M130: 957.5536 | N130: =IF(OR($G$3="PkHP",$G$3="SpHP"),(HPWH!$Q$31+HPWH!$Q$32*CONVERT(F130,"F","C")+HPWH!$Q$33*CONVERT(F130,"F","C")^2+HPWH!$Q$34*CONVERT($N$4,"F","C")+HPWH!$Q$35*CONVERT($N$4,"F","C")^2+HPWH!$Q$36*CONVERT($N$4,"F","C")*CONVERT(F130,"F","C")),1) -> 1 | O130: 957.5536 | P130: 0 | Q130: 0.02328392063 | R130: =IF(OR($G$3="PkHP",$G$3="SpHP"),(HPWH!$P$31+HPWH!$P$32*CONVERT(F130,"F","C")+HPWH!$P$33*CONVERT(F130,"F","C")^2+HPWH!$P$34*CONVERT($N$4,"F","C")+HPWH!$P$35*CONVERT($N$4,"F","C")^2+HPWH!$P$36*CONVERT($N$4,"F","C")*CONVERT(F130,"F","C")),1) -> 1 | S130: 0.76 | T130: 0 | U130: 0 | V130: 0 | W130: 0 | X130: 0 | Y130: 0 | Z130: 0.01259938947
A131: 5 | B131: 103 | C131: 1 | D131: =INDEX('Peak Period'!$F$6:$U$8765,$B131,$C$11) -> 0 | E131: =INDEX(Tamb!$F$8:$V$140167,($C$11-1)*8760+B131,$O$3) -> 32 | F131: =INDEX(Tamb!$F$8:$V$140167,($C$11-1)*8760+B131,$O$3+1) -> 25 | G131: =INDEX(Tmains!$D$32:$S$396,$A131,CZind) -> 42.58547914 | H131: =INDEX(HWgal!$C$8:$AE$8767,$B131,$N$9)*60 -> 0.6497094102 | I131: 0.6497094102 | J131: 492.3491875 | K131: 1203.7404 | L131: -234.5 | M131: 1461.589588 | N131: =IF(OR($G$3="PkHP",$G$3="SpHP"),(HPWH!$Q$31+HPWH!$Q$32*CONVERT(F131,"F","C")+HPWH!$Q$33*CONVERT(F131,"F","C")^2+HPWH!$Q$34*CONVERT($N$4,"F","C")+HPWH!$Q$35*CONVERT($N$4,"F","C")^2+HPWH!$Q$36*CONVERT($N$4,"F","C")*CONVERT(F131,"F","C")),1) -> 1 | O131: 1461.589588 | P131: 0 | Q131: 0.03554008459 | R131: =IF(OR($G$3="PkHP",$G$3="SpHP"),(HPWH!$P$31+HPWH!$P$32*CONVERT(F131,"F","C")+HPWH!$P$33*CONVERT(F131,"F","C")^2+HPWH!$P$34*CONVERT($N$4,"F","C")+HPWH!$P$35*CONVERT($N$4,"F","C")^2+HPWH!$P$36*CONVERT($N$4,"F","C")*CONVERT(F131,"F","C")),1) -> 1 | S131: 0.76 | T131: 0 | U131: 0 | V131: 0 | W131: 0 | X131: 0 | Y131: 0 | Z131: 0.01923144194
A132: 5 | B132: 104 | C132: 1 | D132: =INDEX('Peak Period'!$F$6:$U$8765,$B132,$C$11) -> 0 | E132: =INDEX(Tamb!$F$8:$V$140167,($C$11-1)*8760+B132,$O$3) -> 33 | F132: =INDEX(Tamb!$F$8:$V$140167,($C$11-1)*8760+B132,$O$3+1) -> 25 | G132: =INDEX(Tmains!$D$32:$S$396,$A132,CZind) -> 42.58547914 | H132: =INDEX(HWgal!$C$8:$AE$8767,$B132,$N$9)*60 -> 1.787122129 | I132: 1.787122129 | J132: 1354.279489 | K132: 1192.0536 | L132: -234.5 | M132: 2311.833089 | N132: =IF(OR($G$3="PkHP",$G$3="SpHP"),(HPWH!$Q$31+HPWH!$Q$32*CONVERT(F132,"F","C")+HPWH!$Q$33*CONVERT(F132,"F","C")^2+HPWH!$Q$34*CONVERT($N$4,"F","C")+HPWH!$Q$35*CONVERT($N$4,"F","C")^2+HPWH!$Q$36*CONVERT($N$4,"F","C")*CONVERT(F132,"F","C")),1) -> 1 | O132: 2311.833089 | P132: 0 | Q132: 0.05621464757 | R132: =IF(OR($G$3="PkHP",$G$3="SpHP"),(HPWH!$P$31+HPWH!$P$32*CONVERT(F132,"F","C")+HPWH!$P$33*CONVERT(F132,"F","C")^2+HPWH!$P$34*CONVERT($N$4,"F","C")+HPWH!$P$35*CONVERT($N$4,"F","C")^2+HPWH!$P$36*CONVERT($N$4,"F","C")*CONVERT(F132,"F","C")),1) -> 1 | S132: 0.76 | T132: 0 | U132: 0 | V132: 0 | W132: 0 | X132: 0 | Y132: 0 | Z132: 0.03041885644
A133: 5 | B133: 105 | C133: 1 | D133: =INDEX('Peak Period'!$F$6:$U$8765,$B133,$C$11) -> 0 | E133: =INDEX(Tamb!$F$8:$V$140167,($C$11-1)*8760+B133,$O$3) -> 36 | F133: =INDEX(Tamb!$F$8:$V$140167,($C$11-1)*8760+B133,$O$3+1) -> 27 | G133: =INDEX(Tmains!$D$32:$S$396,$A133,CZind) -> 42.58547914 | H133: =INDEX(HWgal!$C$8:$AE$8767,$B133,$N$9)*60 -> 0.1500145188 | I133: 0.1500145188 | J133: 113.680863 | K133: 1156.9932 | L133: -234.5 | M133: 1036.174063 | N133: =IF(OR($G$3="PkHP",$G$3="SpHP"),(HPWH!$Q$31+HPWH!$Q$32*CONVERT(F133,"F","C")+HPWH!$Q$33*CONVERT(F133,"F","C")^2+HPWH!$Q$34*CONVERT($N$4,"F","C")+HPWH!$Q$35*CONVERT($N$4,"F","C")^2+HPWH!$Q$36*CONVERT($N$4,"F","C")*CONVERT(F133,"F","C")),1) -> 1 | O133: 1036.174063 | P133: 0 | Q133: 0.02519565969 | R133: =IF(OR($G$3="PkHP",$G$3="SpHP"),(HPWH!$P$31+HPWH!$P$32*CONVERT(F133,"F","C")+HPWH!$P$33*CONVERT(F133,"F","C")^2+HPWH!$P$34*CONVERT($N$4,"F","C")+HPWH!$P$35*CONVERT($N$4,"F","C")^2+HPWH!$P$36*CONVERT($N$4,"F","C")*CONVERT(F133,"F","C")),1) -> 1 | S133: 0.76 | T133: 0 | U133: 0 | V133: 0 | W133: 0 | X133: 0 | Y133: 0 | Z133: 0.01363386925
A134: 5 | B134: 106 | C134: 1 | D134: =INDEX('Peak Period'!$F$6:$U$8765,$B134,$C$11) -> 0 | E134: =INDEX(Tamb!$F$8:$V$140167,($C$11-1)*8760+B134,$O$3) -> 38 | F134: =INDEX(Tamb!$F$8:$V$140167,($C$11-1)*8760+B134,$O$3+1) -> 29 | G134: =INDEX(Tmains!$D$32:$S$396,$A134,CZind) -> 42.58547914 | H134: =INDEX(HWgal!$C$8:$AE$8767,$B134,$N$9)*60 -> 0 | I134: 0 | J134: 0 | K134: 1133.6196 | L134: -234.5 | M134: 899.1196 | N134: =IF(OR($G$3="PkHP",$G$3="SpHP"),(HPWH!$Q$31+HPWH!$Q$32*CONVERT(F134,"F","C")+HPWH!$Q$33*CONVERT(F134,"F","C")^2+HPWH!$Q$34*CONVERT($N$4,"F","C")+HPWH!$Q$35*CONVERT($N$4,"F","C")^2+HPWH!$Q$36*CONVERT($N$4,"F","C")*CONVERT(F134,"F","C")),1) -> 1 | O134: 899.1196 | P134: 0 | Q134: 0.0218630366 | R134: =IF(OR($G$3="PkHP",$G$3="SpHP"),(HPWH!$P$31+HPWH!$P$32*CONVERT(F134,"F","C")+HPWH!$P$33*CONVERT(F134,"F","C")^2+HPWH!$P$34*CONVERT($N$4,"F","C")+HPWH!$P$35*CONVERT($N$4,"F","C")^2+HPWH!$P$36*CONVERT($N$4,"F","C")*CONVERT(F134,"F","C")),1) -> 1 | S134: 0.76 | T134: 0 | U134: 0 | V134: 0 | W134: 0 | X134: 0 | Y134: 0 | Z134: 0.01183052105
A135: 5 | B135: 107 | C135: 1 | D135: =INDEX('Peak Period'!$F$6:$U$8765,$B135,$C$11) -> 0 | E135: =INDEX(Tamb!$F$8:$V$140167,($C$11-1)*8760+B135,$O$3) -> 40 | F135: =INDEX(Tamb!$F$8:$V$140167,($C$11-1)*8760+B135,$O$3+1) -> 31 | G135: =INDEX(Tmains!$D$32:$S$396,$A135,CZind) -> 42.58547914 | H135: =INDEX(HWgal!$C$8:$AE$8767,$B135,$N$9)*60 -> 0 | I135: 0 | J135: 0 | K135: 1110.246 | L135: -234.5 | M135: 875.746 | N135: =IF(OR($G$3="PkHP",$G$3="SpHP"),(HPWH!$Q$31+HPWH!$Q$32*CONVERT(F135,"F","C")+HPWH!$Q$33*CONVERT(F135,"F","C")^2+HPWH!$Q$34*CONVERT($N$4,"F","C")+HPWH!$Q$35*CONVERT($N$4,"F","C")^2+HPWH!$Q$36*CONVERT($N$4,"F","C")*CONVERT(F135,"F","C")),1) -> 1 | O135: 875.746 | P135: 0 | Q135: 0.02129468299 | R135: =IF(OR($G$3="PkHP",$G$3="SpHP"),(HPWH!$P$31+HPWH!$P$32*CONVERT(F135,"F","C")+HPWH!$P$33*CONVERT(F135,"F","C")^2+HPWH!$P$34*CONVERT($N$4,"F","C")+HPWH!$P$35*CONVERT($N$4,"F","C")^2+HPWH!$P$36*CONVERT($N$4,"F","C")*CONVERT(F135,"F","C")),1) -> 1 | S135: 0.76 | T135: 0 | U135: 0 | V135: 0 | W135: 0 | X135: 0 | Y135: 0 | Z135: 0.01152297368
A136: 5 | B136: 108 | C136: 1 | D136: =INDEX('Peak Period'!$F$6:$U$8765,$B136,$C$11) -> 0 | E136: =INDEX(Tamb!$F$8:$V$140167,($C$11-1)*8760+B136,$O$3) -> 42 | F136: =INDEX(Tamb!$F$8:$V$140167,($C$11-1)*8760+B136,$O$3+1) -> 32 | G136: =INDEX(Tmains!$D$32:$S$396,$A136,CZind) -> 42.58547914 | H136: =INDEX(HWgal!$C$8:$AE$8767,$B136,$N$9)*60 -> 0 | I136: 0 | J136: 0 | K136: 1086.8724 | L136: -234.5 | M136: 852.3724 | N136: =IF(OR($G$3="PkHP",$G$3="SpHP"),(HPWH!$Q$31+HPWH!$Q$32*CONVERT(F136,"F","C")+HPWH!$Q$33*CONVERT(F136,"F","C")^2+HPWH!$Q$34*CONVERT($N$4,"F","C")+HPWH!$Q$35*CONVERT($N$4,"F","C")^2+HPWH!$Q$36*CONVERT($N$4,"F","C")*CONVERT(F136,"F","C")),1) -> 1 | O136: 852.3724 | P136: 0 | Q136: 0.02072632937 | R136: =IF(OR($G$3="PkHP",$G$3="SpHP"),(HPWH!$P$31+HPWH!$P$32*CONVERT(F136,"F","C")+HPWH!$P$33*CONVERT(F136,"F","C")^2+HPWH!$P$34*CONVERT($N$4,"F","C")+HPWH!$P$35*CONVERT($N$4,"F","C")^2+HPWH!$P$36*CONVERT($N$4,"F","C")*CONVERT(F136,"F","C")),1) -> 1 | S136: 0.76 | T136: 0 | U136: 0 | V136: 0 | W136: 0 | X136: 0 | Y136: 0 | Z136: 0.01121542632
A137: 5 | B137: 109 | C137: 1 | D137: =INDEX('Peak Period'!$F$6:$U$8765,$B137,$C$11) -> 0 | E137: =INDEX(Tamb!$F$8:$V$140167,($C$11-1)*8760+B137,$O$3) -> 38 | F137: =INDEX(Tamb!$F$8:$V$140167,($C$11-1)*8760+B137,$O$3+1) -> 30 | G137: =INDEX(Tmains!$D$32:$S$396,$A137,CZind) -> 42.58547914 | H137: =INDEX(HWgal!$C$8:$AE$8767,$B137,$N$9)*60 -> 0 | I137: 0 | J137: 0 | K137: 1133.6196 | L137: -234.5 | M137: 899.1196 | N137: =IF(OR($G$3="PkHP",$G$3="SpHP"),(HPWH!$Q$31+HPWH!$Q$32*CONVERT(F137,"F","C")+HPWH!$Q$33*CONVERT(F137,"F","C")^2+HPWH!$Q$34*CONVERT($N$4,"F","C")+HPWH!$Q$35*CONVERT($N$4,"F","C")^2+HPWH!$Q$36*CONVERT($N$4,"F","C")*CONVERT(F137,"F","C")),1) -> 1 | O137: 899.1196 | P137: 0 | Q137: 0.0218630366 | R137: =IF(OR($G$3="PkHP",$G$3="SpHP"),(HPWH!$P$31+HPWH!$P$32*CONVERT(F137,"F","C")+HPWH!$P$33*CONVERT(F137,"F","C")^2+HPWH!$P$34*CONVERT($N$4,"F","C")+HPWH!$P$35*CONVERT($N$4,"F","C")^2+HPWH!$P$36*CONVERT($N$4,"F","C")*CONVERT(F137,"F","C")),1) -> 1 | S137: 0.76 | T137: 0 | U137: 0 | V137: 0 | W137: 0 | X137: 0 | Y137: 0 | Z137: 0.01183052105
A138: 5 | B138: 110 | C138: 1 | D138: =INDEX('Peak Period'!$F$6:$U$8765,$B138,$C$11) -> 0 | E138: =INDEX(Tamb!$F$8:$V$140167,($C$11-1)*8760+B138,$O$3) -> 40 | F138: =INDEX(Tamb!$F$8:$V$140167,($C$11-1)*8760+B138,$O$3+1) -> 32 | G138: =INDEX(Tmains!$D$32:$S$396,$A138,CZind) -> 42.58547914 | H138: =INDEX(HWgal!$C$8:$AE$8767,$B138,$N$9)*60 -> 0 | I138: 0 | J138: 0 | K138: 1110.246 | L138: -234.5 | M138: 875.746 | N138: =IF(OR($G$3="PkHP",$G$3="SpHP"),(HPWH!$Q$31+HPWH!$Q$32*CONVERT(F138,"F","C")+HPWH!$Q$33*CONVERT(F138,"F","C")^2+HPWH!$Q$34*CONVERT($N$4,"F","C")+HPWH!$Q$35*CONVERT($N$4,"F","C")^2+HPWH!$Q$36*CONVERT($N$4,"F","C")*CONVERT(F138,"F","C")),1) -> 1 | O138: 875.746 | P138: 0 | Q138: 0.02129468299 | R138: =IF(OR($G$3="PkHP",$G$3="SpHP"),(HPWH!$P$31+HPWH!$P$32*CONVERT(F138,"F","C")+HPWH!$P$33*CONVERT(F138,"F","C")^2+HPWH!$P$34*CONVERT($N$4,"F","C")+HPWH!$P$35*CONVERT($N$4,"F","C")^2+HPWH!$P$36*CONVERT($N$4,"F","C")*CONVERT(F138,"F","C")),1) -> 1 | S138: 0.76 | T138: 0 | U138: 0 | V138: 0 | W138: 0 | X138: 0 | Y138: 0 | Z138: 0.01152297368
A139: 5 | B139: 111 | C139: 1 | D139: =INDEX('Peak Period'!$F$6:$U$8765,$B139,$C$11) -> 0 | E139: =INDEX(Tamb!$F$8:$V$140167,($C$11-1)*8760+B139,$O$3) -> 39 | F139: =INDEX(Tamb!$F$8:$V$140167,($C$11-1)*8760+B139,$O$3+1) -> 33 | G139: =INDEX(Tmains!$D$32:$S$396,$A139,CZind) -> 42.58547914 | H139: =INDEX(HWgal!$C$8:$AE$8767,$B139,$N$9)*60 -> 0.1777807022 | I139: 0.1777807022 | J139: 134.722051 | K139: 1121.9328 | L139: -234.5 | M139: 1022.154851 | N139: =IF(OR($G$3="PkHP",$G$3="SpHP"),(HPWH!$Q$31+HPWH!$Q$32*CONVERT(F139,"F","C")+HPWH!$Q$33*CONVERT(F139,"F","C")^2+HPWH!$Q$34*CONVERT($N$4,"F","C")+HPWH!$Q$35*CONVERT($N$4,"F","C")^2+HPWH!$Q$36*CONVERT($N$4,"F","C")*CONVERT(F139,"F","C")),1) -> 1 | O139: 1022.154851 | P139: 0 | Q139: 0.02485476784 | R139: =IF(OR($G$3="PkHP",$G$3="SpHP"),(HPWH!$P$31+HPWH!$P$32*CONVERT(F139,"F","C")+HPWH!$P$33*CONVERT(F139,"F","C")^2+HPWH!$P$34*CONVERT($N$4,"F","C")+HPWH!$P$35*CONVERT($N$4,"F","C")^2+HPWH!$P$36*CONVERT($N$4,"F","C")*CONVERT(F139,"F","C")),1) -> 1 | S139: 0.76 | T139: 0 | U139: 0 | V139: 0 | W139: 0 | X139: 0 | Y139: 0 | Z139: 0.01344940593
A140: 5 | B140: 112 | C140: 1 | D140: =INDEX('Peak Period'!$F$6:$U$8765,$B140,$C$11) -> 0 | E140: =INDEX(Tamb!$F$8:$V$140167,($C$11-1)*8760+B140,$O$3) -> 39 | F140: =INDEX(Tamb!$F$8:$V$140167,($C$11-1)*8760+B140,$O$3+1) -> 33 | G140: =INDEX(Tmains!$D$32:$S$396,$A140,CZind) -> 42.58547914 | H140: =INDEX(HWgal!$C$8:$AE$8767,$B140,$N$9)*60 -> 0.7043317877 | I140: 0.7043317877 | J140: 533.7419744 | K140: 1121.9328 | L140: -234.5 | M140: 1421.174774 | N140: =IF(OR($G$3="PkHP",$G$3="SpHP"),(HPWH!$Q$31+HPWH!$Q$32*CONVERT(F140,"F","C")+HPWH!$Q$33*CONVERT(F140,"F","C")^2+HPWH!$Q$34*CONVERT($N$4,"F","C")+HPWH!$Q$35*CONVERT($N$4,"F","C")^2+HPWH!$Q$36*CONVERT($N$4,"F","C")*CONVERT(F140,"F","C")),1) -> 1 | O140: 1421.174774 | P140: 0 | Q140: 0.034557356 | R140: =IF(OR($G$3="PkHP",$G$3="SpHP"),(HPWH!$P$31+HPWH!$P$32*CONVERT(F140,"F","C")+HPWH!$P$33*CONVERT(F140,"F","C")^2+HPWH!$P$34*CONVERT($N$4,"F","C")+HPWH!$P$35*CONVERT($N$4,"F","C")^2+HPWH!$P$36*CONVERT($N$4,"F","C")*CONVERT(F140,"F","C")),1) -> 1 | S140: 0.76 | T140: 0 | U140: 0 | V140: 0 | W140: 0 | X140: 0 | Y140: 0 | Z140: 0.01869966808
A141: 5 | B141: 113 | C141: 1 | D141: =INDEX('Peak Period'!$F$6:$U$8765,$B141,$C$11) -> 0 | E141: =INDEX(Tamb!$F$8:$V$140167,($C$11-1)*8760+B141,$O$3) -> 39 | F141: =INDEX(Tamb!$F$8:$V$140167,($C$11-1)*8760+B141,$O$3+1) -> 33 | G141: =INDEX(Tmains!$D$32:$S$396,$A141,CZind) -> 42.58547914 | H141: =INDEX(HWgal!$C$8:$AE$8767,$B141,$N$9)*60 -> 0 | I141: 0 | J141: 0 | K141: 1121.9328 | L141: -234.5 | M141: 887.4328 | N141: =IF(OR($G$3="PkHP",$G$3="SpHP"),(HPWH!$Q$31+HPWH!$Q$32*CONVERT(F141,"F","C")+HPWH!$Q$33*CONVERT(F141,"F","C")^2+HPWH!$Q$34*CONVERT($N$4,"F","C")+HPWH!$Q$35*CONVERT($N$4,"F","C")^2+HPWH!$Q$36*CONVERT($N$4,"F","C")*CONVERT(F141,"F","C")),1) -> 1 | O141: 887.4328 | P141: 0 | Q141: 0.02157885979 | R141: =IF(OR($G$3="PkHP",$G$3="SpHP"),(HPWH!$P$31+HPWH!$P$32*CONVERT(F141,"F","C")+HPWH!$P$33*CONVERT(F141,"F","C")^2+HPWH!$P$34*CONVERT($N$4,"F","C")+HPWH!$P$35*CONVERT($N$4,"F","C")^2+HPWH!$P$36*CONVERT($N$4,"F","C")*CONVERT(F141,"F","C")),1) -> 1 | S141: 0.76 | T141: 0 | U141: 0 | V141: 0 | W141: 0 | X141: 0 | Y141: 0 | Z141: 0.01167674737
A142: 5 | B142: 114 | C142: 1 | D142: =INDEX('Peak Period'!$F$6:$U$8765,$B142,$C$11) -> 0 | E142: =INDEX(Tamb!$F$8:$V$140167,($C$11-1)*8760+B142,$O$3) -> 38 | F142: =INDEX(Tamb!$F$8:$V$140167,($C$11-1)*8760+B142,$O$3+1) -> 32 | G142: =INDEX(Tmains!$D$32:$S$396,$A142,CZind) -> 42.58547914 | H142: =INDEX(HWgal!$C$8:$AE$8767,$B142,$N$9)*60 -> 0.2277212683 | I142: 0.2277212683 | J142: 172.5669656 | K142: 1133.6196 | L142: -234.5 | M142: 1071.686566 | N142: =IF(OR($G$3="PkHP",$G$3="SpHP"),(HPWH!$Q$31+HPWH!$Q$32*CONVERT(F142,"F","C")+HPWH!$Q$33*CONVERT(F142,"F","C")^2+HPWH!$Q$34*CONVERT($N$4,"F","C")+HPWH!$Q$35*CONVERT($N$4,"F","C")^2+HPWH!$Q$36*CONVERT($N$4,"F","C")*CONVERT(F142,"F","C")),1) -> 1 | O142: 1071.686566 | P142: 0 | Q142: 0.02605918345 | R142: =IF(OR($G$3="PkHP",$G$3="SpHP"),(HPWH!$P$31+HPWH!$P$32*CONVERT(F142,"F","C")+HPWH!$P$33*CONVERT(F142,"F","C")^2+HPWH!$P$34*CONVERT($N$4,"F","C")+HPWH!$P$35*CONVERT($N$4,"F","C")^2+HPWH!$P$36*CONVERT($N$4,"F","C")*CONVERT(F142,"F","C")),1) -> 1 | S142: 0.76 | T142: 0 | U142: 0 | V142: 0 | W142: 0 | X142: 0 | Y142: 0 | Z142: 0.01410113902
A143: 5 | B143: 115 | C143: 1 | D143: =INDEX('Peak Period'!$F$6:$U$8765,$B143,$C$11) -> 0 | E143: =INDEX(Tamb!$F$8:$V$140167,($C$11-1)*8760+B143,$O$3) -> 38 | F143: =INDEX(Tamb!$F$8:$V$140167,($C$11-1)*8760+B143,$O$3+1) -> 30 | G143: =INDEX(Tmains!$D$32:$S$396,$A143,CZind) -> 42.58547914 | H143: =INDEX(HWgal!$C$8:$AE$8767,$B143,$N$9)*60 -> 0 | I143: 0 | J143: 0 | K143: 1133.6196 | L143: -234.5 | M143: 899.1196 | N143: =IF(OR($G$3="PkHP",$G$3="SpHP"),(HPWH!$Q$31+HPWH!$Q$32*CONVERT(F143,"F","C")+HPWH!$Q$33*CONVERT(F143,"F","C")^2+HPWH!$Q$34*CONVERT($N$4,"F","C")+HPWH!$Q$35*CONVERT($N$4,"F","C")^2+HPWH!$Q$36*CONVERT($N$4,"F","C")*CONVERT(F143,"F","C")),1) -> 1 | O143: 899.1196 | P143: 0 | Q143: 0.0218630366 | R143: =IF(OR($G$3="PkHP",$G$3="SpHP"),(HPWH!$P$31+HPWH!$P$32*CONVERT(F143,"F","C")+HPWH!$P$33*CONVERT(F143,"F","C")^2+HPWH!$P$34*CONVERT($N$4,"F","C")+HPWH!$P$35*CONVERT($N$4,"F","C")^2+HPWH!$P$36*CONVERT($N$4,"F","C")*CONVERT(F143,"F","C")),1) -> 1 | S143: 0.76 | T143: 0 | U143: 0 | V143: 0 | W143: 0 | X143: 0 | Y143: 0 | Z143: 0.01183052105
A144: 5 | B144: 116 | C144: 1 | D144: =INDEX('Peak Period'!$F$6:$U$8765,$B144,$C$11) -> 0 | E144: =INDEX(Tamb!$F$8:$V$140167,($C$11-1)*8760+B144,$O$3) -> 38 | F144: =INDEX(Tamb!$F$8:$V$140167,($C$11-1)*8760+B144,$O$3+1) -> 29 | G144: =INDEX(Tmains!$D$32:$S$396,$A144,CZind) -> 42.58547914 | H144: =INDEX(HWgal!$C$8:$AE$8767,$B144,$N$9)*60 -> 0 | I144: 0 | J144: 0 | K144: 1133.6196 | L144: -234.5 | M144: 899.1196 | N144: =IF(OR($G$3="PkHP",$G$3="SpHP"),(HPWH!$Q$31+HPWH!$Q$32*CONVERT(F144,"F","C")+HPWH!$Q$33*CONVERT(F144,"F","C")^2+HPWH!$Q$34*CONVERT($N$4,"F","C")+HPWH!$Q$35*CONVERT($N$4,"F","C")^2+HPWH!$Q$36*CONVERT($N$4,"F","C")*CONVERT(F144,"F","C")),1) -> 1 | O144: 899.1196 | P144: 0 | Q144: 0.0218630366 | R144: =IF(OR($G$3="PkHP",$G$3="SpHP"),(HPWH!$P$31+HPWH!$P$32*CONVERT(F144,"F","C")+HPWH!$P$33*CONVERT(F144,"F","C")^2+HPWH!$P$34*CONVERT($N$4,"F","C")+HPWH!$P$35*CONVERT($N$4,"F","C")^2+HPWH!$P$36*CONVERT($N$4,"F","C")*CONVERT(F144,"F","C")),1) -> 1 | S144: 0.76 | T144: 0 | U144: 0 | V144: 0 | W144: 0 | X144: 0 | Y144: 0 | Z144: 0.01183052105
A145: 5 | B145: 117 | C145: 1 | D145: =INDEX('Peak Period'!$F$6:$U$8765,$B145,$C$11) -> 0 | E145: =INDEX(Tamb!$F$8:$V$140167,($C$11-1)*8760+B145,$O$3) -> 37 | F145: =INDEX(Tamb!$F$8:$V$140167,($C$11-1)*8760+B145,$O$3+1) -> 29 | G145: =INDEX(Tmains!$D$32:$S$396,$A145,CZind) -> 42.58547914 | H145: =INDEX(HWgal!$C$8:$AE$8767,$B145,$N$9)*60 -> 0.08329855029 | I145: 0.08329855029 | J145: 63.12356403 | K145: 1145.3064 | L145: -234.5 | M145: 973.929964 | N145: =IF(OR($G$3="PkHP",$G$3="SpHP"),(HPWH!$Q$31+HPWH!$Q$32*CONVERT(F145,"F","C")+HPWH!$Q$33*CONVERT(F145,"F","C")^2+HPWH!$Q$34*CONVERT($N$4,"F","C")+HPWH!$Q$35*CONVERT($N$4,"F","C")^2+HPWH!$Q$36*CONVERT($N$4,"F","C")*CONVERT(F145,"F","C")),1) -> 1 | O145: 973.929964 | P145: 0 | Q145: 0.0236821291 | R145: =IF(OR($G$3="PkHP",$G$3="SpHP"),(HPWH!$P$31+HPWH!$P$32*CONVERT(F145,"F","C")+HPWH!$P$33*CONVERT(F145,"F","C")^2+HPWH!$P$34*CONVERT($N$4,"F","C")+HPWH!$P$35*CONVERT($N$4,"F","C")^2+HPWH!$P$36*CONVERT($N$4,"F","C")*CONVERT(F145,"F","C")),1) -> 1 | S145: 0.76 | T145: 0 | U145: 0 | V145: 0 | W145: 0 | X145: 0 | Y145: 0 | Z145: 0.01281486795
A146: 5 | B146: 118 | C146: 1 | D146: =INDEX('Peak Period'!$F$6:$U$8765,$B146,$C$11) -> 0 | E146: =INDEX(Tamb!$F$8:$V$140167,($C$11-1)*8760+B146,$O$3) -> 37 | F146: =INDEX(Tamb!$F$8:$V$140167,($C$11-1)*8760+B146,$O$3+1) -> 28 | G146: =INDEX(Tmains!$D$32:$S$396,$A146,CZind) -> 42.58547914 | H146: =INDEX(HWgal!$C$8:$AE$8767,$B146,$N$9)*60 -> 0 | I146: 0 | J146: 0 | K146: 1145.3064 | L146: -234.5 | M146: 910.8064 | N146: =IF(OR($G$3="PkHP",$G$3="SpHP"),(HPWH!$Q$31+HPWH!$Q$32*CONVERT(F146,"F","C")+HPWH!$Q$33*CONVERT(F146,"F","C")^2+HPWH!$Q$34*CONVERT($N$4,"F","C")+HPWH!$Q$35*CONVERT($N$4,"F","C")^2+HPWH!$Q$36*CONVERT($N$4,"F","C")*CONVERT(F146,"F","C")),1) -> 1 | O146: 910.8064 | P146: 0 | Q146: 0.0221472134 | R146: =IF(OR($G$3="PkHP",$G$3="SpHP"),(HPWH!$P$31+HPWH!$P$32*CONVERT(F146,"F","C")+HPWH!$P$33*CONVERT(F146,"F","C")^2+HPWH!$P$34*CONVERT($N$4,"F","C")+HPWH!$P$35*CONVERT($N$4,"F","C")^2+HPWH!$P$36*CONVERT($N$4,"F","C")*CONVERT(F146,"F","C")),1) -> 1 | S146: 0.76 | T146: 0 | U146: 0 | V146: 0 | W146: 0 | X146: 0 | Y146: 0 | Z146: 0.01198429474
A147: 5 | B147: 119 | C147: 1 | D147: =INDEX('Peak Period'!$F$6:$U$8765,$B147,$C$11) -> 0 | E147: =INDEX(Tamb!$F$8:$V$140167,($C$11-1)*8760+B147,$O$3) -> 36 | F147: =INDEX(Tamb!$F$8:$V$140167,($C$11-1)*8760+B147,$O$3+1) -> 27 | G147: =INDEX(Tmains!$D$32:$S$396,$A147,CZind) -> 42.58547914 | H147: =INDEX(HWgal!$C$8:$AE$8767,$B147,$N$9)*60 -> 0 | I147: 0 | J147: 0 | K147: 1156.9932 | L147: -234.5 | M147: 922.4932 | N147: =IF(OR($G$3="PkHP",$G$3="SpHP"),(HPWH!$Q$31+HPWH!$Q$32*CONVERT(F147,"F","C")+HPWH!$Q$33*CONVERT(F147,"F","C")^2+HPWH!$Q$34*CONVERT($N$4,"F","C")+HPWH!$Q$35*CONVERT($N$4,"F","C")^2+HPWH!$Q$36*CONVERT($N$4,"F","C")*CONVERT(F147,"F","C")),1) -> 1 | O147: 922.4932 | P147: 0 | Q147: 0.02243139021 | R147: =IF(OR($G$3="PkHP",$G$3="SpHP"),(HPWH!$P$31+HPWH!$P$32*CONVERT(F147,"F","C")+HPWH!$P$33*CONVERT(F147,"F","C")^2+HPWH!$P$34*CONVERT($N$4,"F","C")+HPWH!$P$35*CONVERT($N$4,"F","C")^2+HPWH!$P$36*CONVERT($N$4,"F","C")*CONVERT(F147,"F","C")),1) -> 1 | S147: 0.76 | T147: 0 | U147: 0 | V147: 0 | W147: 0 | X147: 0 | Y147: 0 | Z147: 0.01213806842
A148: 5 | B148: 120 | C148: 1 | D148: =INDEX('Peak Period'!$F$6:$U$8765,$B148,$C$11) -> 0 | E148: =INDEX(Tamb!$F$8:$V$140167,($C$11-1)*8760+B148,$O$3) -> 37 | F148: =INDEX(Tamb!$F$8:$V$140167,($C$11-1)*8760+B148,$O$3+1) -> 26 | G148: =INDEX(Tmains!$D$32:$S$396,$A148,CZind) -> 42.58547914 | H148: =INDEX(HWgal!$C$8:$AE$8767,$B148,$N$9)*60 -> 0 | I148: 0 | J148: 0 | K148: 1145.3064 | L148: -234.5 | M148: 910.8064 | N148: =IF(OR($G$3="PkHP",$G$3="SpHP"),(HPWH!$Q$31+HPWH!$Q$32*CONVERT(F148,"F","C")+HPWH!$Q$33*CONVERT(F148,"F","C")^2+HPWH!$Q$34*CONVERT($N$4,"F","C")+HPWH!$Q$35*CONVERT($N$4,"F","C")^2+HPWH!$Q$36*CONVERT($N$4,"F","C")*CONVERT(F148,"F","C")),1) -> 1 | O148: 910.8064 | P148: 0 | Q148: 0.0221472134 | R148: =IF(OR($G$3="PkHP",$G$3="SpHP"),(HPWH!$P$31+HPWH!$P$32*CONVERT(F148,"F","C")+HPWH!$P$33*CONVERT(F148,"F","C")^2+HPWH!$P$34*CONVERT($N$4,"F","C")+HPWH!$P$35*CONVERT($N$4,"F","C")^2+HPWH!$P$36*CONVERT($N$4,"F","C")*CONVERT(F148,"F","C")),1) -> 1 | S148: 0.76 | T148: 0 | U148: 0 | V148: 0 | W148: 0 | X148: 0 | Y148: 0 | Z148: 0.01198429474
A149: 6 | B149: 121 | C149: 1 | D149: =INDEX('Peak Period'!$F$6:$U$8765,$B149,$C$11) -> 0 | E149: =INDEX(Tamb!$F$8:$V$140167,($C$11-1)*8760+B149,$O$3) -> 36 | F149: =INDEX(Tamb!$F$8:$V$140167,($C$11-1)*8760+B149,$O$3+1) -> 26 | G149: =INDEX(Tmains!$D$32:$S$396,$A149,CZind) -> 42.95714569 | H149: =INDEX(HWgal!$C$8:$AE$8767,$B149,$N$9)*60 -> 0 | I149: 0 | J149: 0 | K149: 1156.9932 | L149: -234.5 | M149: 922.4932 | N149: =IF(OR($G$3="PkHP",$G$3="SpHP"),(HPWH!$Q$31+HPWH!$Q$32*CONVERT(F149,"F","C")+HPWH!$Q$33*CONVERT(F149,"F","C")^2+HPWH!$Q$34*CONVERT($N$4,"F","C")+HPWH!$Q$35*CONVERT($N$4,"F","C")^2+HPWH!$Q$36*CONVERT($N$4,"F","C")*CONVERT(F149,"F","C")),1) -> 1 | O149: 922.4932 | P149: 0 | Q149: 0.02243139021 | R149: =IF(OR($G$3="PkHP",$G$3="SpHP"),(HPWH!$P$31+HPWH!$P$32*CONVERT(F149,"F","C")+HPWH!$P$33*CONVERT(F149,"F","C")^2+HPWH!$P$34*CONVERT($N$4,"F","C")+HPWH!$P$35*CONVERT($N$4,"F","C")^2+HPWH!$P$36*CONVERT($N$4,"F","C")*CONVERT(F149,"F","C")),1) -> 1 | S149: 0.76 | T149: 0 | U149: 0 | V149: 0 | W149: 0 | X149: 0 | Y149: 0 | Z149: 0.01213806842
A150: 6 | B150: 122 | C150: 1 | D150: =INDEX('Peak Period'!$F$6:$U$8765,$B150,$C$11) -> 0 | E150: =INDEX(Tamb!$F$8:$V$140167,($C$11-1)*8760+B150,$O$3) -> 39 | F150: =INDEX(Tamb!$F$8:$V$140167,($C$11-1)*8760+B150,$O$3+1) -> 27 | G150: =INDEX(Tmains!$D$32:$S$396,$A150,CZind) -> 42.95714569 | H150: =INDEX(HWgal!$C$8:$AE$8767,$B150,$N$9)*60 -> 0 | I150: 0 | J150: 0 | K150: 1121.9328 | L150: -234.5 | M150: 887.4328 | N150: =IF(OR($G$3="PkHP",$G$3="SpHP"),(HPWH!$Q$31+HPWH!$Q$32*CONVERT(F150,"F","C")+HPWH!$Q$33*CONVERT(F150,"F","C")^2+HPWH!$Q$34*CONVERT($N$4,"F","C")+HPWH!$Q$35*CONVERT($N$4,"F","C")^2+HPWH!$Q$36*CONVERT($N$4,"F","C")*CONVERT(F150,"F","C")),1) -> 1 | O150: 887.4328 | P150: 0 | Q150: 0.02157885979 | R150: =IF(OR($G$3="PkHP",$G$3="SpHP"),(HPWH!$P$31+HPWH!$P$32*CONVERT(F150,"F","C")+HPWH!$P$33*CONVERT(F150,"F","C")^2+HPWH!$P$34*CONVERT($N$4,"F","C")+HPWH!$P$35*CONVERT($N$4,"F","C")^2+HPWH!$P$36*CONVERT($N$4,"F","C")*CONVERT(F150,"F","C")),1) -> 1 | S150: 0.76 | T150: 0 | U150: 0 | V150: 0 | W150: 0 | X150: 0 | Y150: 0 | Z150: 0.01167674737
A151: 6 | B151: 123 | C151: 1 | D151: =INDEX('Peak Period'!$F$6:$U$8765,$B151,$C$11) -> 0 | E151: =INDEX(Tamb!$F$8:$V$140167,($C$11-1)*8760+B151,$O$3) -> 37 | F151: =INDEX(Tamb!$F$8:$V$140167,($C$11-1)*8760+B151,$O$3+1) -> 27 | G151: =INDEX(Tmains!$D$32:$S$396,$A151,CZind) -> 42.95714569 | H151: =INDEX(HWgal!$C$8:$AE$8767,$B151,$N$9)*60 -> 0 | I151: 0 | J151: 0 | K151: 1145.3064 | L151: -234.5 | M151: 910.8064 | N151: =IF(OR($G$3="PkHP",$G$3="SpHP"),(HPWH!$Q$31+HPWH!$Q$32*CONVERT(F151,"F","C")+HPWH!$Q$33*CONVERT(F151,"F","C")^2+HPWH!$Q$34*CONVERT($N$4,"F","C")+HPWH!$Q$35*CONVERT($N$4,"F","C")^2+HPWH!$Q$36*CONVERT($N$4,"F","C")*CONVERT(F151,"F","C")),1) -> 1 | O151: 910.8064 | P151: 0 | Q151: 0.0221472134 | R151: =IF(OR($G$3="PkHP",$G$3="SpHP"),(HPWH!$P$31+HPWH!$P$32*CONVERT(F151,"F","C")+HPWH!$P$33*CONVERT(F151,"F","C")^2+HPWH!$P$34*CONVERT($N$4,"F","C")+HPWH!$P$35*CONVERT($N$4,"F","C")^2+HPWH!$P$36*CONVERT($N$4,"F","C")*CONVERT(F151,"F","C")),1) -> 1 | S151: 0.76 | T151: 0 | U151: 0 | V151: 0 | W151: 0 | X151: 0 | Y151: 0 | Z151: 0.01198429474
A152: 6 | B152: 124 | C152: 1 | D152: =INDEX('Peak Period'!$F$6:$U$8765,$B152,$C$11) -> 0 | E152: =INDEX(Tamb!$F$8:$V$140167,($C$11-1)*8760+B152,$O$3) -> 38 | F152: =INDEX(Tamb!$F$8:$V$140167,($C$11-1)*8760+B152,$O$3+1) -> 27 | G152: =INDEX(Tmains!$D$32:$S$396,$A152,CZind) -> 42.95714569 | H152: =INDEX(HWgal!$C$8:$AE$8767,$B152,$N$9)*60 -> 0 | I152: 0 | J152: 0 | K152: 1133.6196 | L152: -234.5 | M152: 899.1196 | N152: =IF(OR($G$3="PkHP",$G$3="SpHP"),(HPWH!$Q$31+HPWH!$Q$32*CONVERT(F152,"F","C")+HPWH!$Q$33*CONVERT(F152,"F","C")^2+HPWH!$Q$34*CONVERT($N$4,"F","C")+HPWH!$Q$35*CONVERT($N$4,"F","C")^2+HPWH!$Q$36*CONVERT($N$4,"F","C")*CONVERT(F152,"F","C")),1) -> 1 | O152: 899.1196 | P152: 0 | Q152: 0.0218630366 | R152: =IF(OR($G$3="PkHP",$G$3="SpHP"),(HPWH!$P$31+HPWH!$P$32*CONVERT(F152,"F","C")+HPWH!$P$33*CONVERT(F152,"F","C")^2+HPWH!$P$34*CONVERT($N$4,"F","C")+HPWH!$P$35*CONVERT($N$4,"F","C")^2+HPWH!$P$36*CONVERT($N$4,"F","C")*CONVERT(F152,"F","C")),1) -> 1 | S152: 0.76 | T152: 0 | U152: 0 | V152: 0 | W152: 0 | X152: 0 | Y152: 0 | Z152: 0.01183052105
A153: 6 | B153: 125 | C153: 1 | D153: =INDEX('Peak Period'!$F$6:$U$8765,$B153,$C$11) -> 0 | E153: =INDEX(Tamb!$F$8:$V$140167,($C$11-1)*8760+B153,$O$3) -> 39 | F153: =INDEX(Tamb!$F$8:$V$140167,($C$11-1)*8760+B153,$O$3+1) -> 27 | G153: =INDEX(Tmains!$D$32:$S$396,$A153,CZind) -> 42.95714569 | H153: =INDEX(HWgal!$C$8:$AE$8767,$B153,$N$9)*60 -> 0 | I153: 0 | J153: 0 | K153: 1121.9328 | L153: -234.5 | M153: 887.4328 | N153: =IF(OR($G$3="PkHP",$G$3="SpHP"),(HPWH!$Q$31+HPWH!$Q$32*CONVERT(F153,"F","C")+HPWH!$Q$33*CONVERT(F153,"F","C")^2+HPWH!$Q$34*CONVERT($N$4,"F","C")+HPWH!$Q$35*CONVERT($N$4,"F","C")^2+HPWH!$Q$36*CONVERT($N$4,"F","C")*CONVERT(F153,"F","C")),1) -> 1 | O153: 887.4328 | P153: 0 | Q153: 0.02157885979 | R153: =IF(OR($G$3="PkHP",$G$3="SpHP"),(HPWH!$P$31+HPWH!$P$32*CONVERT(F153,"F","C")+HPWH!$P$33*CONVERT(F153,"F","C")^2+HPWH!$P$34*CONVERT($N$4,"F","C")+HPWH!$P$35*CONVERT($N$4,"F","C")^2+HPWH!$P$36*CONVERT($N$4,"F","C")*CONVERT(F153,"F","C")),1) -> 1 | S153: 0.76 | T153: 0 | U153: 0 | V153: 0 | W153: 0 | X153: 0 | Y153: 0 | Z153: 0.01167674737
A154: 6 | B154: 126 | C154: 1 | D154: =INDEX('Peak Period'!$F$6:$U$8765,$B154,$C$11) -> 0 | E154: =INDEX(Tamb!$F$8:$V$140167,($C$11-1)*8760+B154,$O$3) -> 35 | F154: =INDEX(Tamb!$F$8:$V$140167,($C$11-1)*8760+B154,$O$3+1) -> 28 | G154: =INDEX(Tmains!$D$32:$S$396,$A154,CZind) -> 42.95714569 | H154: =INDEX(HWgal!$C$8:$AE$8767,$B154,$N$9)*60 -> 0 | I154: 0 | J154: 0 | K154: 1168.68 | L154: -234.5 | M154: 934.18 | N154: =IF(OR($G$3="PkHP",$G$3="SpHP"),(HPWH!$Q$31+HPWH!$Q$32*CONVERT(F154,"F","C")+HPWH!$Q$33*CONVERT(F154,"F","C")^2+HPWH!$Q$34*CONVERT($N$4,"F","C")+HPWH!$Q$35*CONVERT($N$4,"F","C")^2+HPWH!$Q$36*CONVERT($N$4,"F","C")*CONVERT(F154,"F","C")),1) -> 1 | O154: 934.18 | P154: 0 | Q154: 0.02271556701 | R154: =IF(OR($G$3="PkHP",$G$3="SpHP"),(HPWH!$P$31+HPWH!$P$32*CONVERT(F154,"F","C")+HPWH!$P$33*CONVERT(F154,"F","C")^2+HPWH!$P$34*CONVERT($N$4,"F","C")+HPWH!$P$35*CONVERT($N$4,"F","C")^2+HPWH!$P$36*CONVERT($N$4,"F","C")*CONVERT(F154,"F","C")),1) -> 1 | S154: 0.76 | T154: 0 | U154: 0 | V154: 0 | W154: 0 | X154: 0 | Y154: 0 | Z154: 0.01229184211
A155: 6 | B155: 127 | C155: 1 | D155: =INDEX('Peak Period'!$F$6:$U$8765,$B155,$C$11) -> 0 | E155: =INDEX(Tamb!$F$8:$V$140167,($C$11-1)*8760+B155,$O$3) -> 32 | F155: =INDEX(Tamb!$F$8:$V$140167,($C$11-1)*8760+B155,$O$3+1) -> 29 | G155: =INDEX(Tmains!$D$32:$S$396,$A155,CZind) -> 42.95714569 | H155: =INDEX(HWgal!$C$8:$AE$8767,$B155,$N$9)*60 -> 0 | I155: 0 | J155: 0 | K155: 1203.7404 | L155: -234.5 | M155: 969.2404 | N155: =IF(OR($G$3="PkHP",$G$3="SpHP"),(HPWH!$Q$31+HPWH!$Q$32*CONVERT(F155,"F","C")+HPWH!$Q$33*CONVERT(F155,"F","C")^2+HPWH!$Q$34*CONVERT($N$4,"F","C")+HPWH!$Q$35*CONVERT($N$4,"F","C")^2+HPWH!$Q$36*CONVERT($N$4,"F","C")*CONVERT(F155,"F","C")),1) -> 1 | O155: 969.2404 | P155: 0 | Q155: 0.02356809743 | R155: =IF(OR($G$3="PkHP",$G$3="SpHP"),(HPWH!$P$31+HPWH!$P$32*CONVERT(F155,"F","C")+HPWH!$P$33*CONVERT(F155,"F","C")^2+HPWH!$P$34*CONVERT($N$4,"F","C")+HPWH!$P$35*CONVERT($N$4,"F","C")^2+HPWH!$P$36*CONVERT($N$4,"F","C")*CONVERT(F155,"F","C")),1) -> 1 | S155: 0.76 | T155: 0 | U155: 0 | V155: 0 | W155: 0 | X155: 0 | Y155: 0 | Z155: 0.01275316316
A156: 6 | B156: 128 | C156: 1 | D156: =INDEX('Peak Period'!$F$6:$U$8765,$B156,$C$11) -> 0 | E156: =INDEX(Tamb!$F$8:$V$140167,($C$11-1)*8760+B156,$O$3) -> 34 | F156: =INDEX(Tamb!$F$8:$V$140167,($C$11-1)*8760+B156,$O$3+1) -> 30 | G156: =INDEX(Tmains!$D$32:$S$396,$A156,CZind) -> 42.95714569 | H156: =INDEX(HWgal!$C$8:$AE$8767,$B156,$N$9)*60 -> 0 | I156: 0 | J156: 0 | K156: 1180.3668 | L156: -234.5 | M156: 945.8668 | N156: =IF(OR($G$3="PkHP",$G$3="SpHP"),(HPWH!$Q$31+HPWH!$Q$32*CONVERT(F156,"F","C")+HPWH!$Q$33*CONVERT(F156,"F","C")^2+HPWH!$Q$34*CONVERT($N$4,"F","C")+HPWH!$Q$35*CONVERT($N$4,"F","C")^2+HPWH!$Q$36*CONVERT($N$4,"F","C")*CONVERT(F156,"F","C")),1) -> 1 | O156: 945.8668 | P156: 0 | Q156: 0.02299974382 | R156: =IF(OR($G$3="PkHP",$G$3="SpHP"),(HPWH!$P$31+HPWH!$P$32*CONVERT(F156,"F","C")+HPWH!$P$33*CONVERT(F156,"F","C")^2+HPWH!$P$34*CONVERT($N$4,"F","C")+HPWH!$P$35*CONVERT($N$4,"F","C")^2+HPWH!$P$36*CONVERT($N$4,"F","C")*CONVERT(F156,"F","C")),1) -> 1 | S156: 0.76 | T156: 0 | U156: 0 | V156: 0 | W156: 0 | X156: 0 | Y156: 0 | Z156: 0.01244561579
A157: 6 | B157: 129 | C157: 1 | D157: =INDEX('Peak Period'!$F$6:$U$8765,$B157,$C$11) -> 0 | E157: =INDEX(Tamb!$F$8:$V$140167,($C$11-1)*8760+B157,$O$3) -> 36 | F157: =INDEX(Tamb!$F$8:$V$140167,($C$11-1)*8760+B157,$O$3+1) -> 29 | G157: =INDEX(Tmains!$D$32:$S$396,$A157,CZind) -> 42.95714569 | H157: =INDEX(HWgal!$C$8:$AE$8767,$B157,$N$9)*60 -> 0.8975400134 | I157: 0.8975400134 | J157: =H157*$N$5*($N$4-$G157) -> 677.4195864 | K157: 1156.9932 | L157: -234.5 | M157: 1599.912786 | N157: =IF(OR($G$3="PkHP",$G$3="SpHP"),(HPWH!$Q$31+HPWH!$Q$32*CONVERT(F157,"F","C")+HPWH!$Q$33*CONVERT(F157,"F","C")^2+HPWH!$Q$34*CONVERT($N$4,"F","C")+HPWH!$Q$35*CONVERT($N$4,"F","C")^2+HPWH!$Q$36*CONVERT($N$4,"F","C")*CONVERT(F157,"F","C")),1) -> 1 | O157: 1599.912786 | P157: 0 | Q157: 0.03890355833 | R157: =IF(OR($G$3="PkHP",$G$3="SpHP"),(HPWH!$P$31+HPWH!$P$32*CONVERT(F157,"F","C")+HPWH!$P$33*CONVERT(F157,"F","C")^2+HPWH!$P$34*CONVERT($N$4,"F","C")+HPWH!$P$35*CONVERT($N$4,"F","C")^2+HPWH!$P$36*CONVERT($N$4,"F","C")*CONVERT(F157,"F","C")),1) -> 1 | S157: 0.76 | T157: 0 | U157: 0 | V157: 0 | W157: 0 | X157: 0 | Y157: 0 | Z157: =IF($G$5="Gas",O157/S157/100000,0) -> 0.02105148403
A158: 6 | B158: 130 | C158: 1 | D158: =INDEX('Peak Period'!$F$6:$U$8765,$B158,$C$11) -> 0 | E158: =INDEX(Tamb!$F$8:$V$140167,($C$11-1)*8760+B158,$O$3) -> 38 | F158: =INDEX(Tamb!$F$8:$V$140167,($C$11-1)*8760+B158,$O$3+1) -> 29 | G158: =INDEX(Tmains!$D$32:$S$396,$A158,CZind) -> 42.95714569 | H158: =INDEX(HWgal!$C$8:$AE$8767,$B158,$N$9)*60 -> 0.3009191229 | I158: =H158/$T$9 -> 0.3009191229 | J158: 227.1191309 | K158: =($N$4-$E158)*$G$10*$T$9 -> 1133.6196 | L158: =-$G$14*$G$13*$T$9 -> -234.5 | M158: =MAX(J158+K158+L158+P157*0.8,0) -> 1126.238731 | N158: =IF(OR($G$3="PkHP",$G$3="SpHP"),(HPWH!$Q$31+HPWH!$Q$32*CONVERT(F158,"F","C")+HPWH!$Q$33*CONVERT(F158,"F","C")^2+HPWH!$Q$34*CONVERT($N$4,"F","C")+HPWH!$Q$35*CONVERT($N$4,"F","C")^2+HPWH!$Q$36*CONVERT($N$4,"F","C")*CONVERT(F158,"F","C")),1) -> 1 | O158: =M158 -> 1126.238731 | P158: =MAX(M158-$N$7-N158,0) -> 0 | Q158: =M158/$N$7 -> 0.0273856766 | R158: =IF(OR($G$3="PkHP",$G$3="SpHP"),(HPWH!$P$31+HPWH!$P$32*CONVERT(F158,"F","C")+HPWH!$P$33*CONVERT(F158,"F","C")^2+HPWH!$P$34*CONVERT($N$4,"F","C")+HPWH!$P$35*CONVERT($N$4,"F","C")^2+HPWH!$P$36*CONVERT($N$4,"F","C")*CONVERT(F158,"F","C")),1) -> 1 | S158: =IF(OR($G$3="PkHP",$G$3="SpHP"),$K$6*R158,$G$8*R158) -> 0.76 | T158: =IF(OR($G$3="PkHP",$G$3="SpHP"),IF(OR(E158<$K$3,E158>$K$4,N158<Q158),1,IF(I158>$K$5,$K$7,0)),0) -> 0 | U158: =IF($G$5="Elec",M158*(1-T158)/S158/3413,0) -> 0 | V158: =IF($G$5="Elec",M158*T158/$K$8/3413,0) -> 0 | W158: =$G$11/1000*$T$9 -> 0 | X158: =$G$12*Q158/1000*$T$9 -> 0 | Y158: =U158+V158+W158+X158 -> 0 | Z158: 0.01481893067
A159: =IF(MOD(B159,24)=1,A158+1,A158) -> 6 | B159: 131 | C159: 1 | D159: =INDEX('Peak Period'!$F$6:$U$8765,$B159,$C$11) -> 0 | E159: =INDEX(Tamb!$F$8:$V$140167,($C$11-1)*8760+B159,$O$3) -> 39 | F159: =INDEX(Tamb!$F$8:$V$140167,($C$11-1)*8760+B159,$O$3+1) -> 31 | G159: =INDEX(Tmains!$D$32:$S$396,$A159,CZind) -> 42.95714569 | H159: =INDEX(HWgal!$C$8:$AE$8767,$B159,$N$9)*60 -> 0.8162436885 | I159: 0.8162436885 | J159: 616.061071 | K159: 1121.9328 | L159: -234.5 | M159: 1503.493871 | N159: =IF(OR($G$3="PkHP",$G$3="SpHP"),(HPWH!$Q$31+HPWH!$Q$32*CONVERT(F159,"F","C")+HPWH!$Q$33*CONVERT(F159,"F","C")^2+HPWH!$Q$34*CONVERT($N$4,"F","C")+HPWH!$Q$35*CONVERT($N$4,"F","C")^2+HPWH!$Q$36*CONVERT($N$4,"F","C")*CONVERT(F159,"F","C")),1) -> 1 | O159: 1503.493871 | P159: 0 | Q159: 0.03655903122 | R159: =IF(OR($G$3="PkHP",$G$3="SpHP"),(HPWH!$P$31+HPWH!$P$32*CONVERT(F159,"F","C")+HPWH!$P$33*CONVERT(F159,"F","C")^2+HPWH!$P$34*CONVERT($N$4,"F","C")+HPWH!$P$35*CONVERT($N$4,"F","C")^2+HPWH!$P$36*CONVERT($N$4,"F","C")*CONVERT(F159,"F","C")),1) -> 1 | S159: 0.76 | T159: 0 | U159: 0 | V159: 0 | W159: 0 | X159: 0 | Y159: 0 | Z159: 0.01978281409
A160: 6 | B160: 132 | C160: 1 | D160: =INDEX('Peak Period'!$F$6:$U$8765,$B160,$C$11) -> 0 | E160: =INDEX(Tamb!$F$8:$V$140167,($C$11-1)*8760+B160,$O$3) -> 40 | F160: =INDEX(Tamb!$F$8:$V$140167,($C$11-1)*8760+B160,$O$3+1) -> 33 | G160: =INDEX(Tmains!$D$32:$S$396,$A160,CZind) -> 42.95714569 | H160: =INDEX(HWgal!$C$8:$AE$8767,$B160,$N$9)*60 -> 2.330690576 | I160: 2.330690576 | J160: 1759.091988 | K160: 1110.246 | L160: -234.5 | M160: 2634.837988 | N160: =IF(OR($G$3="PkHP",$G$3="SpHP"),(HPWH!$Q$31+HPWH!$Q$32*CONVERT(F160,"F","C")+HPWH!$Q$33*CONVERT(F160,"F","C")^2+HPWH!$Q$34*CONVERT($N$4,"F","C")+HPWH!$Q$35*CONVERT($N$4,"F","C")^2+HPWH!$Q$36*CONVERT($N$4,"F","C")*CONVERT(F160,"F","C")),1) -> 1 | O160: 2634.837988 | P160: 0 | Q160: 0.06406885063 | R160: =IF(OR($G$3="PkHP",$G$3="SpHP"),(HPWH!$P$31+HPWH!$P$32*CONVERT(F160,"F","C")+HPWH!$P$33*CONVERT(F160,"F","C")^2+HPWH!$P$34*CONVERT($N$4,"F","C")+HPWH!$P$35*CONVERT($N$4,"F","C")^2+HPWH!$P$36*CONVERT($N$4,"F","C")*CONVERT(F160,"F","C")),1) -> 1 | S160: 0.76 | T160: 0 | U160: 0 | V160: 0 | W160: 0 | X160: 0 | Y160: 0 | Z160: 0.03466892089
A161: 6 | B161: 133 | C161: 1 | D161: =INDEX('Peak Period'!$F$6:$U$8765,$B161,$C$11) -> 0 | E161: =INDEX(Tamb!$F$8:$V$140167,($C$11-1)*8760+B161,$O$3) -> 40 | F161: =INDEX(Tamb!$F$8:$V$140167,($C$11-1)*8760+B161,$O$3+1) -> 32 | G161: =INDEX(Tmains!$D$32:$S$396,$A161,CZind) -> 42.95714569 | H161: =INDEX(HWgal!$C$8:$AE$8767,$B161,$N$9)*60 -> 1.050647128 | I161: 1.050647128 | J161: 792.9773961 | K161: 1110.246 | L161: -234.5 | M161: 1668.723396 | N161: =IF(OR($G$3="PkHP",$G$3="SpHP"),(HPWH!$Q$31+HPWH!$Q$32*CONVERT(F161,"F","C")+HPWH!$Q$33*CONVERT(F161,"F","C")^2+HPWH!$Q$34*CONVERT($N$4,"F","C")+HPWH!$Q$35*CONVERT($N$4,"F","C")^2+HPWH!$Q$36*CONVERT($N$4,"F","C")*CONVERT(F161,"F","C")),1) -> 1 | O161: 1668.723396 | P161: 0 | Q161: 0.04057676051 | R161: =IF(OR($G$3="PkHP",$G$3="SpHP"),(HPWH!$P$31+HPWH!$P$32*CONVERT(F161,"F","C")+HPWH!$P$33*CONVERT(F161,"F","C")^2+HPWH!$P$34*CONVERT($N$4,"F","C")+HPWH!$P$35*CONVERT($N$4,"F","C")^2+HPWH!$P$36*CONVERT($N$4,"F","C")*CONVERT(F161,"F","C")),1) -> 1 | S161: 0.76 | T161: 0 | U161: 0 | V161: 0 | W161: 0 | X161: 0 | Y161: 0 | Z161: 0.02195688679
A162: 6 | B162: 134 | C162: 1 | D162: =INDEX('Peak Period'!$F$6:$U$8765,$B162,$C$11) -> 0 | E162: =INDEX(Tamb!$F$8:$V$140167,($C$11-1)*8760+B162,$O$3) -> 38 | F162: =INDEX(Tamb!$F$8:$V$140167,($C$11-1)*8760+B162,$O$3+1) -> 31 | G162: =INDEX(Tmains!$D$32:$S$396,$A162,CZind) -> 42.95714569 | H162: =INDEX(HWgal!$C$8:$AE$8767,$B162,$N$9)*60 -> 0 | I162: 0 | J162: 0 | K162: 1133.6196 | L162: -234.5 | M162: 899.1196 | N162: =IF(OR($G$3="PkHP",$G$3="SpHP"),(HPWH!$Q$31+HPWH!$Q$32*CONVERT(F162,"F","C")+HPWH!$Q$33*CONVERT(F162,"F","C")^2+HPWH!$Q$34*CONVERT($N$4,"F","C")+HPWH!$Q$35*CONVERT($N$4,"F","C")^2+HPWH!$Q$36*CONVERT($N$4,"F","C")*CONVERT(F162,"F","C")),1) -> 1 | O162: 899.1196 | P162: 0 | Q162: 0.0218630366 | R162: =IF(OR($G$3="PkHP",$G$3="SpHP"),(HPWH!$P$31+HPWH!$P$32*CONVERT(F162,"F","C")+HPWH!$P$33*CONVERT(F162,"F","C")^2+HPWH!$P$34*CONVERT($N$4,"F","C")+HPWH!$P$35*CONVERT($N$4,"F","C")^2+HPWH!$P$36*CONVERT($N$4,"F","C")*CONVERT(F162,"F","C")),1) -> 1 | S162: 0.76 | T162: 0 | U162: 0 | V162: 0 | W162: 0 | X162: 0 | Y162: 0 | Z162: 0.01183052105
A163: 6 | B163: 135 | C163: 1 | D163: =INDEX('Peak Period'!$F$6:$U$8765,$B163,$C$11) -> 0 | E163: =INDEX(Tamb!$F$8:$V$140167,($C$11-1)*8760+B163,$O$3) -> 38 | F163: =INDEX(Tamb!$F$8:$V$140167,($C$11-1)*8760+B163,$O$3+1) -> 33 | G163: =INDEX(Tmains!$D$32:$S$396,$A163,CZind) -> 42.95714569 | H163: =INDEX(HWgal!$C$8:$AE$8767,$B163,$N$9)*60 -> 1.050693778 | I163: 1.050693778 | J163: 793.0126054 | K163: 1133.6196 | L163: -234.5 | M163: 1692.132205 | N163: =IF(OR($G$3="PkHP",$G$3="SpHP"),(HPWH!$Q$31+HPWH!$Q$32*CONVERT(F163,"F","C")+HPWH!$Q$33*CONVERT(F163,"F","C")^2+HPWH!$Q$34*CONVERT($N$4,"F","C")+HPWH!$Q$35*CONVERT($N$4,"F","C")^2+HPWH!$Q$36*CONVERT($N$4,"F","C")*CONVERT(F163,"F","C")),1) -> 1 | O163: 1692.132205 | P163: 0 | Q163: 0.04114597027 | R163: =IF(OR($G$3="PkHP",$G$3="SpHP"),(HPWH!$P$31+HPWH!$P$32*CONVERT(F163,"F","C")+HPWH!$P$33*CONVERT(F163,"F","C")^2+HPWH!$P$34*CONVERT($N$4,"F","C")+HPWH!$P$35*CONVERT($N$4,"F","C")^2+HPWH!$P$36*CONVERT($N$4,"F","C")*CONVERT(F163,"F","C")),1) -> 1 | S163: 0.76 | T163: 0 | U163: 0 | V163: 0 | W163: 0 | X163: 0 | Y163: 0 | Z163: 0.02226489744
A164: 6 | B164: 136 | C164: 1 | D164: =INDEX('Peak Period'!$F$6:$U$8765,$B164,$C$11) -> 0 | E164: =INDEX(Tamb!$F$8:$V$140167,($C$11-1)*8760+B164,$O$3) -> 38 | F164: =INDEX(Tamb!$F$8:$V$140167,($C$11-1)*8760+B164,$O$3+1) -> 33 | G164: =INDEX(Tmains!$D$32:$S$396,$A164,CZind) -> 42.95714569 | H164: =INDEX(HWgal!$C$8:$AE$8767,$B164,$N$9)*60 -> 0.2193814612 | I164: 0.2193814612 | J164: 165.5784661 | K164: 1133.6196 | L164: -234.5 | M164: 1064.698066 | N164: =IF(OR($G$3="PkHP",$G$3="SpHP"),(HPWH!$Q$31+HPWH!$Q$32*CONVERT(F164,"F","C")+HPWH!$Q$33*CONVERT(F164,"F","C")^2+HPWH!$Q$34*CONVERT($N$4,"F","C")+HPWH!$Q$35*CONVERT($N$4,"F","C")^2+HPWH!$Q$36*CONVERT($N$4,"F","C")*CONVERT(F164,"F","C")),1) -> 1 | O164: 1064.698066 | P164: 0 | Q164: 0.02588925076 | R164: =IF(OR($G$3="PkHP",$G$3="SpHP"),(HPWH!$P$31+HPWH!$P$32*CONVERT(F164,"F","C")+HPWH!$P$33*CONVERT(F164,"F","C")^2+HPWH!$P$34*CONVERT($N$4,"F","C")+HPWH!$P$35*CONVERT($N$4,"F","C")^2+HPWH!$P$36*CONVERT($N$4,"F","C")*CONVERT(F164,"F","C")),1) -> 1 | S164: 0.76 | T164: 0 | U164: 0 | V164: 0 | W164: 0 | X164: 0 | Y164: 0 | Z164: 0.01400918508
A165: 6 | B165: 137 | C165: 1 | D165: =INDEX('Peak Period'!$F$6:$U$8765,$B165,$C$11) -> 0 | E165: =INDEX(Tamb!$F$8:$V$140167,($C$11-1)*8760+B165,$O$3) -> 39 | F165: =INDEX(Tamb!$F$8:$V$140167,($C$11-1)*8760+B165,$O$3+1) -> 32 | G165: =INDEX(Tmains!$D$32:$S$396,$A165,CZind) -> 42.95714569 | H165: =INDEX(HWgal!$C$8:$AE$8767,$B165,$N$9)*60 -> 0.2193814612 | I165: 0.2193814612 | J165: 165.5784661 | K165: 1121.9328 | L165: -234.5 | M165: 1053.011266 | N165: =IF(OR($G$3="PkHP",$G$3="SpHP"),(HPWH!$Q$31+HPWH!$Q$32*CONVERT(F165,"F","C")+HPWH!$Q$33*CONVERT(F165,"F","C")^2+HPWH!$Q$34*CONVERT($N$4,"F","C")+HPWH!$Q$35*CONVERT($N$4,"F","C")^2+HPWH!$Q$36*CONVERT($N$4,"F","C")*CONVERT(F165,"F","C")),1) -> 1 | O165: 1053.011266 | P165: 0 | Q165: 0.02560507395 | R165: =IF(OR($G$3="PkHP",$G$3="SpHP"),(HPWH!$P$31+HPWH!$P$32*CONVERT(F165,"F","C")+HPWH!$P$33*CONVERT(F165,"F","C")^2+HPWH!$P$34*CONVERT($N$4,"F","C")+HPWH!$P$35*CONVERT($N$4,"F","C")^2+HPWH!$P$36*CONVERT($N$4,"F","C")*CONVERT(F165,"F","C")),1) -> 1 | S165: 0.76 | T165: 0 | U165: 0 | V165: 0 | W165: 0 | X165: 0 | Y165: 0 | Z165: 0.0138554114
A166: 6 | B166: 138 | C166: 1 | D166: =INDEX('Peak Period'!$F$6:$U$8765,$B166,$C$11) -> 0 | E166: =INDEX(Tamb!$F$8:$V$140167,($C$11-1)*8760+B166,$O$3) -> 38 | F166: =INDEX(Tamb!$F$8:$V$140167,($C$11-1)*8760+B166,$O$3+1) -> 31 | G166: =INDEX(Tmains!$D$32:$S$396,$A166,CZind) -> 42.95714569 | H166: =INDEX(HWgal!$C$8:$AE$8767,$B166,$N$9)*60 -> 0 | I166: 0 | J166: 0 | K166: 1133.6196 | L166: -234.5 | M166: 899.1196 | N166: =IF(OR($G$3="PkHP",$G$3="SpHP"),(HPWH!$Q$31+HPWH!$Q$32*CONVERT(F166,"F","C")+HPWH!$Q$33*CONVERT(F166,"F","C")^2+HPWH!$Q$34*CONVERT($N$4,"F","C")+HPWH!$Q$35*CONVERT($N$4,"F","C")^2+HPWH!$Q$36*CONVERT($N$4,"F","C")*CONVERT(F166,"F","C")),1) -> 1 | O166: 899.1196 | P166: 0 | Q166: 0.0218630366 | R166: =IF(OR($G$3="PkHP",$G$3="SpHP"),(HPWH!$P$31+HPWH!$P$32*CONVERT(F166,"F","C")+HPWH!$P$33*CONVERT(F166,"F","C")^2+HPWH!$P$34*CONVERT($N$4,"F","C")+HPWH!$P$35*CONVERT($N$4,"F","C")^2+HPWH!$P$36*CONVERT($N$4,"F","C")*CONVERT(F166,"F","C")),1) -> 1 | S166: 0.76 | T166: 0 | U166: 0 | V166: 0 | W166: 0 | X166: 0 | Y166: 0 | Z166: 0.01183052105
A167: 6 | B167: 139 | C167: 1 | D167: =INDEX('Peak Period'!$F$6:$U$8765,$B167,$C$11) -> 0 | E167: =INDEX(Tamb!$F$8:$V$140167,($C$11-1)*8760+B167,$O$3) -> 37 | F167: =INDEX(Tamb!$F$8:$V$140167,($C$11-1)*8760+B167,$O$3+1) -> 31 | G167: =INDEX(Tmains!$D$32:$S$396,$A167,CZind) -> 42.95714569 | H167: =INDEX(HWgal!$C$8:$AE$8767,$B167,$N$9)*60 -> 12.61244797 | I167: 12.61244797 | J167: 9519.262827 | K167: 1145.3064 | L167: -234.5 | M167: 10430.06923 | N167: =IF(OR($G$3="PkHP",$G$3="SpHP"),(HPWH!$Q$31+HPWH!$Q$32*CONVERT(F167,"F","C")+HPWH!$Q$33*CONVERT(F167,"F","C")^2+HPWH!$Q$34*CONVERT($N$4,"F","C")+HPWH!$Q$35*CONVERT($N$4,"F","C")^2+HPWH!$Q$36*CONVERT($N$4,"F","C")*CONVERT(F167,"F","C")),1) -> 1 | O167: 10430.06923 | P167: 0 | Q167: 0.2536180784 | R167: =IF(OR($G$3="PkHP",$G$3="SpHP"),(HPWH!$P$31+HPWH!$P$32*CONVERT(F167,"F","C")+HPWH!$P$33*CONVERT(F167,"F","C")^2+HPWH!$P$34*CONVERT($N$4,"F","C")+HPWH!$P$35*CONVERT($N$4,"F","C")^2+HPWH!$P$36*CONVERT($N$4,"F","C")*CONVERT(F167,"F","C")),1) -> 1 | S167: 0.76 | T167: 0 | U167: 0 | V167: 0 | W167: 0 | X167: 0 | Y167: 0 | Z167: 0.137237753
A168: 6 | B168: 140 | C168: 1 | D168: =INDEX('Peak Period'!$F$6:$U$8765,$B168,$C$11) -> 0 | E168: =INDEX(Tamb!$F$8:$V$140167,($C$11-1)*8760+B168,$O$3) -> 35 | F168: =INDEX(Tamb!$F$8:$V$140167,($C$11-1)*8760+B168,$O$3+1) -> 30 | G168: =INDEX(Tmains!$D$32:$S$396,$A168,CZind) -> 42.95714569 | H168: =INDEX(HWgal!$C$8:$AE$8767,$B168,$N$9)*60 -> 0.2040547021 | I168: 0.2040547021 | J168: 154.0105732 | K168: 1168.68 | L168: -234.5 | M168: 1088.190573 | N168: =IF(OR($G$3="PkHP",$G$3="SpHP"),(HPWH!$Q$31+HPWH!$Q$32*CONVERT(F168,"F","C")+HPWH!$Q$33*CONVERT(F168,"F","C")^2+HPWH!$Q$34*CONVERT($N$4,"F","C")+HPWH!$Q$35*CONVERT($N$4,"F","C")^2+HPWH!$Q$36*CONVERT($N$4,"F","C")*CONVERT(F168,"F","C")),1) -> 1 | O168: 1088.190573 | P168: 0 | Q168: 0.02646049572 | R168: =IF(OR($G$3="PkHP",$G$3="SpHP"),(HPWH!$P$31+HPWH!$P$32*CONVERT(F168,"F","C")+HPWH!$P$33*CONVERT(F168,"F","C")^2+HPWH!$P$34*CONVERT($N$4,"F","C")+HPWH!$P$35*CONVERT($N$4,"F","C")^2+HPWH!$P$36*CONVERT($N$4,"F","C")*CONVERT(F168,"F","C")),1) -> 1 | S168: 0.76 | T168: 0 | U168: 0 | V168: 0 | W168: 0 | X168: 0 | Y168: 0 | Z168: 0.01431829702
A169: 6 | B169: 141 | C169: 1 | D169: =INDEX('Peak Period'!$F$6:$U$8765,$B169,$C$11) -> 0 | E169: =INDEX(Tamb!$F$8:$V$140167,($C$11-1)*8760+B169,$O$3) -> 35 | F169: =INDEX(Tamb!$F$8:$V$140167,($C$11-1)*8760+B169,$O$3+1) -> 31 | G169: =INDEX(Tmains!$D$32:$S$396,$A169,CZind) -> 42.95714569 | H169: =INDEX(HWgal!$C$8:$AE$8767,$B169,$N$9)*60 -> 0 | I169: 0 | J169: 0 | K169: 1168.68 | L169: -234.5 | M169: 934.18 | N169: =IF(OR($G$3="PkHP",$G$3="SpHP"),(HPWH!$Q$31+HPWH!$Q$32*CONVERT(F169,"F","C")+HPWH!$Q$33*CONVERT(F169,"F","C")^2+HPWH!$Q$34*CONVERT($N$4,"F","C")+HPWH!$Q$35*CONVERT($N$4,"F","C")^2+HPWH!$Q$36*CONVERT($N$4,"F","C")*CONVERT(F169,"F","C")),1) -> 1 | O169: 934.18 | P169: 0 | Q169: 0.02271556701 | R169: =IF(OR($G$3="PkHP",$G$3="SpHP"),(HPWH!$P$31+HPWH!$P$32*CONVERT(F169,"F","C")+HPWH!$P$33*CONVERT(F169,"F","C")^2+HPWH!$P$34*CONVERT($N$4,"F","C")+HPWH!$P$35*CONVERT($N$4,"F","C")^2+HPWH!$P$36*CONVERT($N$4,"F","C")*CONVERT(F169,"F","C")),1) -> 1 | S169: 0.76 | T169: 0 | U169: 0 | V169: 0 | W169: 0 | X169: 0 | Y169: 0 | Z169: 0.01229184211
A170: 6 | B170: 142 | C170: 1 | D170: =INDEX('Peak Period'!$F$6:$U$8765,$B170,$C$11) -> 0 | E170: =INDEX(Tamb!$F$8:$V$140167,($C$11-1)*8760+B170,$O$3) -> 32 | F170: =INDEX(Tamb!$F$8:$V$140167,($C$11-1)*8760+B170,$O$3+1) -> 31 | G170: =INDEX(Tmains!$D$32:$S$396,$A170,CZind) -> 42.95714569 | H170: =INDEX(HWgal!$C$8:$AE$8767,$B170,$N$9)*60 -> 0 | I170: 0 | J170: 0 | K170: 1203.7404 | L170: -234.5 | M170: 969.2404 | N170: =IF(OR($G$3="PkHP",$G$3="SpHP"),(HPWH!$Q$31+HPWH!$Q$32*CONVERT(F170,"F","C")+HPWH!$Q$33*CONVERT(F170,"F","C")^2+HPWH!$Q$34*CONVERT($N$4,"F","C")+HPWH!$Q$35*CONVERT($N$4,"F","C")^2+HPWH!$Q$36*CONVERT($N$4,"F","C")*CONVERT(F170,"F","C")),1) -> 1 | O170: 969.2404 | P170: 0 | Q170: 0.02356809743 | R170: =IF(OR($G$3="PkHP",$G$3="SpHP"),(HPWH!$P$31+HPWH!$P$32*CONVERT(F170,"F","C")+HPWH!$P$33*CONVERT(F170,"F","C")^2+HPWH!$P$34*CONVERT($N$4,"F","C")+HPWH!$P$35*CONVERT($N$4,"F","C")^2+HPWH!$P$36*CONVERT($N$4,"F","C")*CONVERT(F170,"F","C")),1) -> 1 | S170: 0.76 | T170: 0 | U170: 0 | V170: 0 | W170: 0 | X170: 0 | Y170: 0 | Z170: 0.01275316316
A171: 6 | B171: 143 | C171: 1 | D171: =INDEX('Peak Period'!$F$6:$U$8765,$B171,$C$11) -> 0 | E171: =INDEX(Tamb!$F$8:$V$140167,($C$11-1)*8760+B171,$O$3) -> 30 | F171: =INDEX(Tamb!$F$8:$V$140167,($C$11-1)*8760+B171,$O$3+1) -> 30 | G171: =INDEX(Tmains!$D$32:$S$396,$A171,CZind) -> 42.95714569 | H171: =INDEX(HWgal!$C$8:$AE$8767,$B171,$N$9)*60 -> 0 | I171: 0 | J171: 0 | K171: 1227.114 | L171: -234.5 | M171: 992.614 | N171: =IF(OR($G$3="PkHP",$G$3="SpHP"),(HPWH!$Q$31+HPWH!$Q$32*CONVERT(F171,"F","C")+HPWH!$Q$33*CONVERT(F171,"F","C")^2+HPWH!$Q$34*CONVERT($N$4,"F","C")+HPWH!$Q$35*CONVERT($N$4,"F","C")^2+HPWH!$Q$36*CONVERT($N$4,"F","C")*CONVERT(F171,"F","C")),1) -> 1 | O171: 992.614 | P171: 0 | Q171: 0.02413645104 | R171: =IF(OR($G$3="PkHP",$G$3="SpHP"),(HPWH!$P$31+HPWH!$P$32*CONVERT(F171,"F","C")+HPWH!$P$33*CONVERT(F171,"F","C")^2+HPWH!$P$34*CONVERT($N$4,"F","C")+HPWH!$P$35*CONVERT($N$4,"F","C")^2+HPWH!$P$36*CONVERT($N$4,"F","C")*CONVERT(F171,"F","C")),1) -> 1 | S171: 0.76 | T171: 0 | U171: 0 | V171: 0 | W171: 0 | X171: 0 | Y171: 0 | Z171: 0.01306071053
A172: 6 | B172: 144 | C172: 1 | D172: =INDEX('Peak Period'!$F$6:$U$8765,$B172,$C$11) -> 0 | E172: =INDEX(Tamb!$F$8:$V$140167,($C$11-1)*8760+B172,$O$3) -> 30 | F172: =INDEX(Tamb!$F$8:$V$140167,($C$11-1)*8760+B172,$O$3+1) -> 30 | G172: =INDEX(Tmains!$D$32:$S$396,$A172,CZind) -> 42.95714569 | H172: =INDEX(HWgal!$C$8:$AE$8767,$B172,$N$9)*60 -> 0 | I172: 0 | J172: 0 | K172: 1227.114 | L172: -234.5 | M172: 992.614 | N172: =IF(OR($G$3="PkHP",$G$3="SpHP"),(HPWH!$Q$31+HPWH!$Q$32*CONVERT(F172,"F","C")+HPWH!$Q$33*CONVERT(F172,"F","C")^2+HPWH!$Q$34*CONVERT($N$4,"F","C")+HPWH!$Q$35*CONVERT($N$4,"F","C")^2+HPWH!$Q$36*CONVERT($N$4,"F","C")*CONVERT(F172,"F","C")),1) -> 1 | O172: 992.614 | P172: 0 | Q172: 0.02413645104 | R172: =IF(OR($G$3="PkHP",$G$3="SpHP"),(HPWH!$P$31+HPWH!$P$32*CONVERT(F172,"F","C")+HPWH!$P$33*CONVERT(F172,"F","C")^2+HPWH!$P$34*CONVERT($N$4,"F","C")+HPWH!$P$35*CONVERT($N$4,"F","C")^2+HPWH!$P$36*CONVERT($N$4,"F","C")*CONVERT(F172,"F","C")),1) -> 1 | S172: 0.76 | T172: 0 | U172: 0 | V172: 0 | W172: 0 | X172: 0 | Y172: 0 | Z172: 0.01306071053
A173: 7 | B173: 145 | C173: 1 | D173: =INDEX('Peak Period'!$F$6:$U$8765,$B173,$C$11) -> 0 | E173: =INDEX(Tamb!$F$8:$V$140167,($C$11-1)*8760+B173,$O$3) -> 30 | F173: =INDEX(Tamb!$F$8:$V$140167,($C$11-1)*8760+B173,$O$3+1) -> 30 | G173: =INDEX(Tmains!$D$32:$S$396,$A173,CZind) -> 43.24216077 | H173: =INDEX(HWgal!$C$8:$AE$8767,$B173,$N$9)*60 -> 0 | I173: 0 | J173: 0 | K173: 1227.114 | L173: -234.5 | M173: 992.614 | N173: =IF(OR($G$3="PkHP",$G$3="SpHP"),(HPWH!$Q$31+HPWH!$Q$32*CONVERT(F173,"F","C")+HPWH!$Q$33*CONVERT(F173,"F","C")^2+HPWH!$Q$34*CONVERT($N$4,"F","C")+HPWH!$Q$35*CONVERT($N$4,"F","C")^2+HPWH!$Q$36*CONVERT($N$4,"F","C")*CONVERT(F173,"F","C")),1) -> 1 | O173: 992.614 | P173: 0 | Q173: 0.02413645104 | R173: =IF(OR($G$3="PkHP",$G$3="SpHP"),(HPWH!$P$31+HPWH!$P$32*CONVERT(F173,"F","C")+HPWH!$P$33*CONVERT(F173,"F","C")^2+HPWH!$P$34*CONVERT($N$4,"F","C")+HPWH!$P$35*CONVERT($N$4,"F","C")^2+HPWH!$P$36*CONVERT($N$4,"F","C")*CONVERT(F173,"F","C")),1) -> 1 | S173: 0.76 | T173: 0 | U173: 0 | V173: 0 | W173: 0 | X173: 0 | Y173: 0 | Z173: 0.01306071053
A174: 7 | B174: 146 | C174: 1 | D174: =INDEX('Peak Period'!$F$6:$U$8765,$B174,$C$11) -> 0 | E174: =INDEX(Tamb!$F$8:$V$140167,($C$11-1)*8760+B174,$O$3) -> 30 | F174: =INDEX(Tamb!$F$8:$V$140167,($C$11-1)*8760+B174,$O$3+1) -> 30 | G174: =INDEX(Tmains!$D$32:$S$396,$A174,CZind) -> 43.24216077 | H174: =INDEX(HWgal!$C$8:$AE$8767,$B174,$N$9)*60 -> 0 | I174: 0 | J174: 0 | K174: 1227.114 | L174: -234.5 | M174: 992.614 | N174: =IF(OR($G$3="PkHP",$G$3="SpHP"),(HPWH!$Q$31+HPWH!$Q$32*CONVERT(F174,"F","C")+HPWH!$Q$33*CONVERT(F174,"F","C")^2+HPWH!$Q$34*CONVERT($N$4,"F","C")+HPWH!$Q$35*CONVERT($N$4,"F","C")^2+HPWH!$Q$36*CONVERT($N$4,"F","C")*CONVERT(F174,"F","C")),1) -> 1 | O174: 992.614 | P174: 0 | Q174: 0.02413645104 | R174: =IF(OR($G$3="PkHP",$G$3="SpHP"),(HPWH!$P$31+HPWH!$P$32*CONVERT(F174,"F","C")+HPWH!$P$33*CONVERT(F174,"F","C")^2+HPWH!$P$34*CONVERT($N$4,"F","C")+HPWH!$P$35*CONVERT($N$4,"F","C")^2+HPWH!$P$36*CONVERT($N$4,"F","C")*CONVERT(F174,"F","C")),1) -> 1 | S174: 0.76 | T174: 0 | U174: 0 | V174: 0 | W174: 0 | X174: 0 | Y174: 0 | Z174: 0.01306071053
A175: 7 | B175: 147 | C175: 1 | D175: =INDEX('Peak Period'!$F$6:$U$8765,$B175,$C$11) -> 0 | E175: =INDEX(Tamb!$F$8:$V$140167,($C$11-1)*8760+B175,$O$3) -> 30 | F175: =INDEX(Tamb!$F$8:$V$140167,($C$11-1)*8760+B175,$O$3+1) -> 30 | G175: =INDEX(Tmains!$D$32:$S$396,$A175,CZind) -> 43.24216077 | H175: =INDEX(HWgal!$C$8:$AE$8767,$B175,$N$9)*60 -> 0 | I175: 0 | J175: 0 | K175: 1227.114 | L175: -234.5 | M175: 992.614 | N175: =IF(OR($G$3="PkHP",$G$3="SpHP"),(HPWH!$Q$31+HPWH!$Q$32*CONVERT(F175,"F","C")+HPWH!$Q$33*CONVERT(F175,"F","C")^2+HPWH!$Q$34*CONVERT($N$4,"F","C")+HPWH!$Q$35*CONVERT($N$4,"F","C")^2+HPWH!$Q$36*CONVERT($N$4,"F","C")*CONVERT(F175,"F","C")),1) -> 1 | O175: 992.614 | P175: 0 | Q175: 0.02413645104 | R175: =IF(OR($G$3="PkHP",$G$3="SpHP"),(HPWH!$P$31+HPWH!$P$32*CONVERT(F175,"F","C")+HPWH!$P$33*CONVERT(F175,"F","C")^2+HPWH!$P$34*CONVERT($N$4,"F","C")+HPWH!$P$35*CONVERT($N$4,"F","C")^2+HPWH!$P$36*CONVERT($N$4,"F","C")*CONVERT(F175,"F","C")),1) -> 1 | S175: 0.76 | T175: 0 | U175: 0 | V175: 0 | W175: 0 | X175: 0 | Y175: 0 | Z175: 0.01306071053
A176: 7 | B176: 148 | C176: 1 | D176: =INDEX('Peak Period'!$F$6:$U$8765,$B176,$C$11) -> 0 | E176: =INDEX(Tamb!$F$8:$V$140167,($C$11-1)*8760+B176,$O$3) -> 30 | F176: =INDEX(Tamb!$F$8:$V$140167,($C$11-1)*8760+B176,$O$3+1) -> 30 | G176: =INDEX(Tmains!$D$32:$S$396,$A176,CZind) -> 43.24216077 | H176: =INDEX(HWgal!$C$8:$AE$8767,$B176,$N$9)*60 -> 0 | I176: 0 | J176: 0 | K176: 1227.114 | L176: -234.5 | M176: 992.614 | N176: =IF(OR($G$3="PkHP",$G$3="SpHP"),(HPWH!$Q$31+HPWH!$Q$32*CONVERT(F176,"F","C")+HPWH!$Q$33*CONVERT(F176,"F","C")^2+HPWH!$Q$34*CONVERT($N$4,"F","C")+HPWH!$Q$35*CONVERT($N$4,"F","C")^2+HPWH!$Q$36*CONVERT($N$4,"F","C")*CONVERT(F176,"F","C")),1) -> 1 | O176: 992.614 | P176: 0 | Q176: 0.02413645104 | R176: =IF(OR($G$3="PkHP",$G$3="SpHP"),(HPWH!$P$31+HPWH!$P$32*CONVERT(F176,"F","C")+HPWH!$P$33*CONVERT(F176,"F","C")^2+HPWH!$P$34*CONVERT($N$4,"F","C")+HPWH!$P$35*CONVERT($N$4,"F","C")^2+HPWH!$P$36*CONVERT($N$4,"F","C")*CONVERT(F176,"F","C")),1) -> 1 | S176: 0.76 | T176: 0 | U176: 0 | V176: 0 | W176: 0 | X176: 0 | Y176: 0 | Z176: 0.01306071053
A177: 7 | B177: 149 | C177: 1 | D177: =INDEX('Peak Period'!$F$6:$U$8765,$B177,$C$11) -> 0 | E177: =INDEX(Tamb!$F$8:$V$140167,($C$11-1)*8760+B177,$O$3) -> 30 | F177: =INDEX(Tamb!$F$8:$V$140167,($C$11-1)*8760+B177,$O$3+1) -> 30 | G177: =INDEX(Tmains!$D$32:$S$396,$A177,CZind) -> 43.24216077 | H177: =INDEX(HWgal!$C$8:$AE$8767,$B177,$N$9)*60 -> 0.1783647624 | I177: 0.1783647624 | J177: 134.2041946 | K177: 1227.114 | L177: -234.5 | M177: 1126.818195 | N177: =IF(OR($G$3="PkHP",$G$3="SpHP"),(HPWH!$Q$31+HPWH!$Q$32*CONVERT(F177,"F","C")+HPWH!$Q$33*CONVERT(F177,"F","C")^2+HPWH!$Q$34*CONVERT($N$4,"F","C")+HPWH!$Q$35*CONVERT($N$4,"F","C")^2+HPWH!$Q$36*CONVERT($N$4,"F","C")*CONVERT(F177,"F","C")),1) -> 1 | O177: 1126.818195 | P177: 0 | Q177: 0.02739976687 | R177: =IF(OR($G$3="PkHP",$G$3="SpHP"),(HPWH!$P$31+HPWH!$P$32*CONVERT(F177,"F","C")+HPWH!$P$33*CONVERT(F177,"F","C")^2+HPWH!$P$34*CONVERT($N$4,"F","C")+HPWH!$P$35*CONVERT($N$4,"F","C")^2+HPWH!$P$36*CONVERT($N$4,"F","C")*CONVERT(F177,"F","C")),1) -> 1 | S177: 0.76 | T177: 0 | U177: 0 | V177: 0 | W177: 0 | X177: 0 | Y177: 0 | Z177: 0.01482655519
A178: 7 | B178: 150 | C178: 1 | D178: =INDEX('Peak Period'!$F$6:$U$8765,$B178,$C$11) -> 0 | E178: =INDEX(Tamb!$F$8:$V$140167,($C$11-1)*8760+B178,$O$3) -> 30 | F178: =INDEX(Tamb!$F$8:$V$140167,($C$11-1)*8760+B178,$O$3+1) -> 30 | G178: =INDEX(Tmains!$D$32:$S$396,$A178,CZind) -> 43.24216077 | H178: =INDEX(HWgal!$C$8:$AE$8767,$B178,$N$9)*60 -> 18.30688664 | I178: 18.30688664 | J178: 13774.36296 | K178: 1227.114 | L178: -234.5 | M178: 14766.97696 | N178: =IF(OR($G$3="PkHP",$G$3="SpHP"),(HPWH!$Q$31+HPWH!$Q$32*CONVERT(F178,"F","C")+HPWH!$Q$33*CONVERT(F178,"F","C")^2+HPWH!$Q$34*CONVERT($N$4,"F","C")+HPWH!$Q$35*CONVERT($N$4,"F","C")^2+HPWH!$Q$36*CONVERT($N$4,"F","C")*CONVERT(F178,"F","C")),1) -> 1 | O178: 14766.97696 | P178: 0 | Q178: 0.3590745411 | R178: =IF(OR($G$3="PkHP",$G$3="SpHP"),(HPWH!$P$31+HPWH!$P$32*CONVERT(F178,"F","C")+HPWH!$P$33*CONVERT(F178,"F","C")^2+HPWH!$P$34*CONVERT($N$4,"F","C")+HPWH!$P$35*CONVERT($N$4,"F","C")^2+HPWH!$P$36*CONVERT($N$4,"F","C")*CONVERT(F178,"F","C")),1) -> 1 | S178: 0.76 | T178: 0 | U178: 0 | V178: 0 | W178: 0 | X178: 0 | Y178: 0 | Z178: 0.1943023285
A179: 7 | B179: 151 | C179: 1 | D179: =INDEX('Peak Period'!$F$6:$U$8765,$B179,$C$11) -> 0 | E179: =INDEX(Tamb!$F$8:$V$140167,($C$11-1)*8760+B179,$O$3) -> 31 | F179: =INDEX(Tamb!$F$8:$V$140167,($C$11-1)*8760+B179,$O$3+1) -> 31 | G179: =INDEX(Tmains!$D$32:$S$396,$A179,CZind) -> 43.24216077 | H179: =INDEX(HWgal!$C$8:$AE$8767,$B179,$N$9)*60 -> 0.5924447669 | I179: 0.5924447669 | J179: 445.7639037 | K179: 1215.4272 | L179: -234.5 | M179: 1426.691104 | N179: =IF(OR($G$3="PkHP",$G$3="SpHP"),(HPWH!$Q$31+HPWH!$Q$32*CONVERT(F179,"F","C")+HPWH!$Q$33*CONVERT(F179,"F","C")^2+HPWH!$Q$34*CONVERT($N$4,"F","C")+HPWH!$Q$35*CONVERT($N$4,"F","C")^2+HPWH!$Q$36*CONVERT($N$4,"F","C")*CONVERT(F179,"F","C")),1) -> 1 | O179: 1426.691104 | P179: 0 | Q179: 0.03469149134 | R179: =IF(OR($G$3="PkHP",$G$3="SpHP"),(HPWH!$P$31+HPWH!$P$32*CONVERT(F179,"F","C")+HPWH!$P$33*CONVERT(F179,"F","C")^2+HPWH!$P$34*CONVERT($N$4,"F","C")+HPWH!$P$35*CONVERT($N$4,"F","C")^2+HPWH!$P$36*CONVERT($N$4,"F","C")*CONVERT(F179,"F","C")),1) -> 1 | S179: 0.76 | T179: 0 | U179: 0 | V179: 0 | W179: 0 | X179: 0 | Y179: 0 | Z179: 0.01877225136
A180: 7 | B180: 152 | C180: 1 | D180: =INDEX('Peak Period'!$F$6:$U$8765,$B180,$C$11) -> 0 | E180: =INDEX(Tamb!$F$8:$V$140167,($C$11-1)*8760+B180,$O$3) -> 31 | F180: =INDEX(Tamb!$F$8:$V$140167,($C$11-1)*8760+B180,$O$3+1) -> 31 | G180: =INDEX(Tmains!$D$32:$S$396,$A180,CZind) -> 43.24216077 | H180: =INDEX(HWgal!$C$8:$AE$8767,$B180,$N$9)*60 -> 18.85273597 | I180: 18.85273597 | J180: 14185.06779 | K180: 1215.4272 | L180: -234.5 | M180: 15165.99499 | N180: =IF(OR($G$3="PkHP",$G$3="SpHP"),(HPWH!$Q$31+HPWH!$Q$32*CONVERT(F180,"F","C")+HPWH!$Q$33*CONVERT(F180,"F","C")^2+HPWH!$Q$34*CONVERT($N$4,"F","C")+HPWH!$Q$35*CONVERT($N$4,"F","C")^2+HPWH!$Q$36*CONVERT($N$4,"F","C")*CONVERT(F180,"F","C")),1) -> 1 | O180: 15165.99499 | P180: 0 | Q180: 0.3687770832 | R180: =IF(OR($G$3="PkHP",$G$3="SpHP"),(HPWH!$P$31+HPWH!$P$32*CONVERT(F180,"F","C")+HPWH!$P$33*CONVERT(F180,"F","C")^2+HPWH!$P$34*CONVERT($N$4,"F","C")+HPWH!$P$35*CONVERT($N$4,"F","C")^2+HPWH!$P$36*CONVERT($N$4,"F","C")*CONVERT(F180,"F","C")),1) -> 1 | S180: 0.76 | T180: 0 | U180: 0 | V180: 0 | W180: 0 | X180: 0 | Y180: 0 | Z180: 0.1995525657
A181: 7 | B181: 153 | C181: 1 | D181: =INDEX('Peak Period'!$F$6:$U$8765,$B181,$C$11) -> 0 | E181: =INDEX(Tamb!$F$8:$V$140167,($C$11-1)*8760+B181,$O$3) -> 32 | F181: =INDEX(Tamb!$F$8:$V$140167,($C$11-1)*8760+B181,$O$3+1) -> 32 | G181: =INDEX(Tmains!$D$32:$S$396,$A181,CZind) -> 43.24216077 | H181: =INDEX(HWgal!$C$8:$AE$8767,$B181,$N$9)*60 -> 0.3520035512 | I181: 0.3520035512 | J181: 264.8524992 | K181: 1203.7404 | L181: -234.5 | M181: 1234.092899 | N181: =IF(OR($G$3="PkHP",$G$3="SpHP"),(HPWH!$Q$31+HPWH!$Q$32*CONVERT(F181,"F","C")+HPWH!$Q$33*CONVERT(F181,"F","C")^2+HPWH!$Q$34*CONVERT($N$4,"F","C")+HPWH!$Q$35*CONVERT($N$4,"F","C")^2+HPWH!$Q$36*CONVERT($N$4,"F","C")*CONVERT(F181,"F","C")),1) -> 1 | O181: 1234.092899 | P181: 0 | Q181: 0.03000826388 | R181: =IF(OR($G$3="PkHP",$G$3="SpHP"),(HPWH!$P$31+HPWH!$P$32*CONVERT(F181,"F","C")+HPWH!$P$33*CONVERT(F181,"F","C")^2+HPWH!$P$34*CONVERT($N$4,"F","C")+HPWH!$P$35*CONVERT($N$4,"F","C")^2+HPWH!$P$36*CONVERT($N$4,"F","C")*CONVERT(F181,"F","C")),1) -> 1 | S181: 0.76 | T181: 0 | U181: 0 | V181: 0 | W181: 0 | X181: 0 | Y181: 0 | Z181: 0.01623806446
A182: 7 | B182: 154 | C182: 1 | D182: =INDEX('Peak Period'!$F$6:$U$8765,$B182,$C$11) -> 0 | E182: =INDEX(Tamb!$F$8:$V$140167,($C$11-1)*8760+B182,$O$3) -> 32 | F182: =INDEX(Tamb!$F$8:$V$140167,($C$11-1)*8760+B182,$O$3+1) -> 32 | G182: =INDEX(Tmains!$D$32:$S$396,$A182,CZind) -> 43.24216077 | H182: =INDEX(HWgal!$C$8:$AE$8767,$B182,$N$9)*60 -> 0 | I182: 0 | J182: 0 | K182: 1203.7404 | L182: -234.5 | M182: 969.2404 | N182: =IF(OR($G$3="PkHP",$G$3="SpHP"),(HPWH!$Q$31+HPWH!$Q$32*CONVERT(F182,"F","C")+HPWH!$Q$33*CONVERT(F182,"F","C")^2+HPWH!$Q$34*CONVERT($N$4,"F","C")+HPWH!$Q$35*CONVERT($N$4,"F","C")^2+HPWH!$Q$36*CONVERT($N$4,"F","C")*CONVERT(F182,"F","C")),1) -> 1 | O182: 969.2404 | P182: 0 | Q182: 0.02356809743 | R182: =IF(OR($G$3="PkHP",$G$3="SpHP"),(HPWH!$P$31+HPWH!$P$32*CONVERT(F182,"F","C")+HPWH!$P$33*CONVERT(F182,"F","C")^2+HPWH!$P$34*CONVERT($N$4,"F","C")+HPWH!$P$35*CONVERT($N$4,"F","C")^2+HPWH!$P$36*CONVERT($N$4,"F","C")*CONVERT(F182,"F","C")),1) -> 1 | S182: 0.76 | T182: 0 | U182: 0 | V182: 0 | W182: 0 | X182: 0 | Y182: 0 | Z182: 0.01275316316
A183: 7 | B183: 155 | C183: 1 | D183: =INDEX('Peak Period'!$F$6:$U$8765,$B183,$C$11) -> 0 | E183: =INDEX(Tamb!$F$8:$V$140167,($C$11-1)*8760+B183,$O$3) -> 32 | F183: =INDEX(Tamb!$F$8:$V$140167,($C$11-1)*8760+B183,$O$3+1) -> 32 | G183: =INDEX(Tmains!$D$32:$S$396,$A183,CZind) -> 43.24216077 | H183: =INDEX(HWgal!$C$8:$AE$8767,$B183,$N$9)*60 -> 0 | I183: 0 | J183: 0 | K183: 1203.7404 | L183: -234.5 | M183: 969.2404 | N183: =IF(OR($G$3="PkHP",$G$3="SpHP"),(HPWH!$Q$31+HPWH!$Q$32*CONVERT(F183,"F","C")+HPWH!$Q$33*CONVERT(F183,"F","C")^2+HPWH!$Q$34*CONVERT($N$4,"F","C")+HPWH!$Q$35*CONVERT($N$4,"F","C")^2+HPWH!$Q$36*CONVERT($N$4,"F","C")*CONVERT(F183,"F","C")),1) -> 1 | O183: 969.2404 | P183: 0 | Q183: 0.02356809743 | R183: =IF(OR($G$3="PkHP",$G$3="SpHP"),(HPWH!$P$31+HPWH!$P$32*CONVERT(F183,"F","C")+HPWH!$P$33*CONVERT(F183,"F","C")^2+HPWH!$P$34*CONVERT($N$4,"F","C")+HPWH!$P$35*CONVERT($N$4,"F","C")^2+HPWH!$P$36*CONVERT($N$4,"F","C")*CONVERT(F183,"F","C")),1) -> 1 | S183: 0.76 | T183: 0 | U183: 0 | V183: 0 | W183: 0 | X183: 0 | Y183: 0 | Z183: 0.01275316316
A184: 7 | B184: 156 | C184: 1 | D184: =INDEX('Peak Period'!$F$6:$U$8765,$B184,$C$11) -> 0 | E184: =INDEX(Tamb!$F$8:$V$140167,($C$11-1)*8760+B184,$O$3) -> 33 | F184: =INDEX(Tamb!$F$8:$V$140167,($C$11-1)*8760+B184,$O$3+1) -> 33 | G184: =INDEX(Tmains!$D$32:$S$396,$A184,CZind) -> 43.24216077 | H184: =INDEX(HWgal!$C$8:$AE$8767,$B184,$N$9)*60 -> 3.228573313 | I184: 3.228573313 | J184: 2429.22467 | K184: 1192.0536 | L184: -234.5 | M184: 3386.77827 | N184: =IF(OR($G$3="PkHP",$G$3="SpHP"),(HPWH!$Q$31+HPWH!$Q$32*CONVERT(F184,"F","C")+HPWH!$Q$33*CONVERT(F184,"F","C")^2+HPWH!$Q$34*CONVERT($N$4,"F","C")+HPWH!$Q$35*CONVERT($N$4,"F","C")^2+HPWH!$Q$36*CONVERT($N$4,"F","C")*CONVERT(F184,"F","C")),1) -> 1 | O184: 3386.77827 | P184: 0 | Q184: 0.08235306767 | R184: =IF(OR($G$3="PkHP",$G$3="SpHP"),(HPWH!$P$31+HPWH!$P$32*CONVERT(F184,"F","C")+HPWH!$P$33*CONVERT(F184,"F","C")^2+HPWH!$P$34*CONVERT($N$4,"F","C")+HPWH!$P$35*CONVERT($N$4,"F","C")^2+HPWH!$P$36*CONVERT($N$4,"F","C")*CONVERT(F184,"F","C")),1) -> 1 | S184: 0.76 | T184: 0 | U184: 0 | V184: 0 | W184: 0 | X184: 0 | Y184: 0 | Z184: 0.04456287197
A185: 7 | B185: 157 | C185: 1 | D185: =INDEX('Peak Period'!$F$6:$U$8765,$B185,$C$11) -> 0 | E185: =INDEX(Tamb!$F$8:$V$140167,($C$11-1)*8760+B185,$O$3) -> 34 | F185: =INDEX(Tamb!$F$8:$V$140167,($C$11-1)*8760+B185,$O$3+1) -> 33 | G185: =INDEX(Tmains!$D$32:$S$396,$A185,CZind) -> 43.24216077 | H185: =INDEX(HWgal!$C$8:$AE$8767,$B185,$N$9)*60 -> 2.637419201 | I185: 2.637419201 | J185: 1984.431873 | K185: 1180.3668 | L185: -234.5 | M185: 2930.298673 | N185: =IF(OR($G$3="PkHP",$G$3="SpHP"),(HPWH!$Q$31+HPWH!$Q$32*CONVERT(F185,"F","C")+HPWH!$Q$33*CONVERT(F185,"F","C")^2+HPWH!$Q$34*CONVERT($N$4,"F","C")+HPWH!$Q$35*CONVERT($N$4,"F","C")^2+HPWH!$Q$36*CONVERT($N$4,"F","C")*CONVERT(F185,"F","C")),1) -> 1 | O185: 2930.298673 | P185: 0 | Q185: 0.07125328725 | R185: =IF(OR($G$3="PkHP",$G$3="SpHP"),(HPWH!$P$31+HPWH!$P$32*CONVERT(F185,"F","C")+HPWH!$P$33*CONVERT(F185,"F","C")^2+HPWH!$P$34*CONVERT($N$4,"F","C")+HPWH!$P$35*CONVERT($N$4,"F","C")^2+HPWH!$P$36*CONVERT($N$4,"F","C")*CONVERT(F185,"F","C")),1) -> 1 | S185: 0.76 | T185: 0 | U185: 0 | V185: 0 | W185: 0 | X185: 0 | Y185: 0 | Z185: 0.03855656149
A186: 7 | B186: 158 | C186: 1 | D186: =INDEX('Peak Period'!$F$6:$U$8765,$B186,$C$11) -> 0 | E186: =INDEX(Tamb!$F$8:$V$140167,($C$11-1)*8760+B186,$O$3) -> 36 | F186: =INDEX(Tamb!$F$8:$V$140167,($C$11-1)*8760+B186,$O$3+1) -> 34 | G186: =INDEX(Tmains!$D$32:$S$396,$A186,CZind) -> 43.24216077 | H186: =INDEX(HWgal!$C$8:$AE$8767,$B186,$N$9)*60 -> 1.585808591 | I186: 1.585808591 | J186: 1193.185032 | K186: 1156.9932 | L186: -234.5 | M186: 2115.678232 | N186: =IF(OR($G$3="PkHP",$G$3="SpHP"),(HPWH!$Q$31+HPWH!$Q$32*CONVERT(F186,"F","C")+HPWH!$Q$33*CONVERT(F186,"F","C")^2+HPWH!$Q$34*CONVERT($N$4,"F","C")+HPWH!$Q$35*CONVERT($N$4,"F","C")^2+HPWH!$Q$36*CONVERT($N$4,"F","C")*CONVERT(F186,"F","C")),1) -> 1 | O186: 2115.678232 | P186: 0 | Q186: 0.05144493637 | R186: =IF(OR($G$3="PkHP",$G$3="SpHP"),(HPWH!$P$31+HPWH!$P$32*CONVERT(F186,"F","C")+HPWH!$P$33*CONVERT(F186,"F","C")^2+HPWH!$P$34*CONVERT($N$4,"F","C")+HPWH!$P$35*CONVERT($N$4,"F","C")^2+HPWH!$P$36*CONVERT($N$4,"F","C")*CONVERT(F186,"F","C")),1) -> 1 | S186: 0.76 | T186: 0 | U186: 0 | V186: 0 | W186: 0 | X186: 0 | Y186: 0 | Z186: 0.02783787147
A187: 7 | B187: 159 | C187: 1 | D187: =INDEX('Peak Period'!$F$6:$U$8765,$B187,$C$11) -> 0 | E187: =INDEX(Tamb!$F$8:$V$140167,($C$11-1)*8760+B187,$O$3) -> 38 | F187: =INDEX(Tamb!$F$8:$V$140167,($C$11-1)*8760+B187,$O$3+1) -> 35 | G187: =INDEX(Tmains!$D$32:$S$396,$A187,CZind) -> 43.24216077 | H187: =INDEX(HWgal!$C$8:$AE$8767,$B187,$N$9)*60 -> 0.3145216916 | I187: 0.3145216916 | J187: 236.6506127 | K187: 1133.6196 | L187: -234.5 | M187: 1135.770213 | N187: =IF(OR($G$3="PkHP",$G$3="SpHP"),(HPWH!$Q$31+HPWH!$Q$32*CONVERT(F187,"F","C")+HPWH!$Q$33*CONVERT(F187,"F","C")^2+HPWH!$Q$34*CONVERT($N$4,"F","C")+HPWH!$Q$35*CONVERT($N$4,"F","C")^2+HPWH!$Q$36*CONVERT($N$4,"F","C")*CONVERT(F187,"F","C")),1) -> 1 | O187: 1135.770213 | P187: 0 | Q187: 0.02761744458 | R187: =IF(OR($G$3="PkHP",$G$3="SpHP"),(HPWH!$P$31+HPWH!$P$32*CONVERT(F187,"F","C")+HPWH!$P$33*CONVERT(F187,"F","C")^2+HPWH!$P$34*CONVERT($N$4,"F","C")+HPWH!$P$35*CONVERT($N$4,"F","C")^2+HPWH!$P$36*CONVERT($N$4,"F","C")*CONVERT(F187,"F","C")),1) -> 1 | S187: 0.76 | T187: 0 | U187: 0 | V187: 0 | W187: 0 | X187: 0 | Y187: 0 | Z187: 0.0149443449
A188: 7 | B188: 160 | C188: 1 | D188: =INDEX('Peak Period'!$F$6:$U$8765,$B188,$C$11) -> 0 | E188: =INDEX(Tamb!$F$8:$V$140167,($C$11-1)*8760+B188,$O$3) -> 37 | F188: =INDEX(Tamb!$F$8:$V$140167,($C$11-1)*8760+B188,$O$3+1) -> 35 | G188: =INDEX(Tmains!$D$32:$S$396,$A188,CZind) -> 43.24216077 | H188: =INDEX(HWgal!$C$8:$AE$8767,$B188,$N$9)*60 -> 2.00422022 | I188: 2.00422022 | J188: 1508.003917 | K188: 1145.3064 | L188: -234.5 | M188: 2418.810317 | N188: =IF(OR($G$3="PkHP",$G$3="SpHP"),(HPWH!$Q$31+HPWH!$Q$32*CONVERT(F188,"F","C")+HPWH!$Q$33*CONVERT(F188,"F","C")^2+HPWH!$Q$34*CONVERT($N$4,"F","C")+HPWH!$Q$35*CONVERT($N$4,"F","C")^2+HPWH!$Q$36*CONVERT($N$4,"F","C")*CONVERT(F188,"F","C")),1) -> 1 | O188: 2418.810317 | P188: 0 | Q188: 0.05881591112 | R188: =IF(OR($G$3="PkHP",$G$3="SpHP"),(HPWH!$P$31+HPWH!$P$32*CONVERT(F188,"F","C")+HPWH!$P$33*CONVERT(F188,"F","C")^2+HPWH!$P$34*CONVERT($N$4,"F","C")+HPWH!$P$35*CONVERT($N$4,"F","C")^2+HPWH!$P$36*CONVERT($N$4,"F","C")*CONVERT(F188,"F","C")),1) -> 1 | S188: 0.76 | T188: 0 | U188: 0 | V188: 0 | W188: 0 | X188: 0 | Y188: 0 | Z188: 0.03182645154
A189: 7 | B189: 161 | C189: 1 | D189: =INDEX('Peak Period'!$F$6:$U$8765,$B189,$C$11) -> 0 | E189: =INDEX(Tamb!$F$8:$V$140167,($C$11-1)*8760+B189,$O$3) -> 36 | F189: =INDEX(Tamb!$F$8:$V$140167,($C$11-1)*8760+B189,$O$3+1) -> 34 | G189: =INDEX(Tmains!$D$32:$S$396,$A189,CZind) -> 43.24216077 | H189: =INDEX(HWgal!$C$8:$AE$8767,$B189,$N$9)*60 -> 0.8119711546 | I189: 0.8119711546 | J189: 610.9386931 | K189: 1156.9932 | L189: -234.5 | M189: 1533.431893 | N189: =IF(OR($G$3="PkHP",$G$3="SpHP"),(HPWH!$Q$31+HPWH!$Q$32*CONVERT(F189,"F","C")+HPWH!$Q$33*CONVERT(F189,"F","C")^2+HPWH!$Q$34*CONVERT($N$4,"F","C")+HPWH!$Q$35*CONVERT($N$4,"F","C")^2+HPWH!$Q$36*CONVERT($N$4,"F","C")*CONVERT(F189,"F","C")),1) -> 1 | O189: 1533.431893 | P189: 0 | Q189: 0.03728700564 | R189: =IF(OR($G$3="PkHP",$G$3="SpHP"),(HPWH!$P$31+HPWH!$P$32*CONVERT(F189,"F","C")+HPWH!$P$33*CONVERT(F189,"F","C")^2+HPWH!$P$34*CONVERT($N$4,"F","C")+HPWH!$P$35*CONVERT($N$4,"F","C")^2+HPWH!$P$36*CONVERT($N$4,"F","C")*CONVERT(F189,"F","C")),1) -> 1 | S189: 0.76 | T189: 0 | U189: 0 | V189: 0 | W189: 0 | X189: 0 | Y189: 0 | Z189: 0.02017673544
A190: 7 | B190: 162 | C190: 1 | D190: =INDEX('Peak Period'!$F$6:$U$8765,$B190,$C$11) -> 0 | E190: =INDEX(Tamb!$F$8:$V$140167,($C$11-1)*8760+B190,$O$3) -> 35 | F190: =INDEX(Tamb!$F$8:$V$140167,($C$11-1)*8760+B190,$O$3+1) -> 34 | G190: =INDEX(Tmains!$D$32:$S$396,$A190,CZind) -> 43.24216077 | H190: =INDEX(HWgal!$C$8:$AE$8767,$B190,$N$9)*60 -> 0 | I190: 0 | J190: 0 | K190: 1168.68 | L190: -234.5 | M190: 934.18 | N190: =IF(OR($G$3="PkHP",$G$3="SpHP"),(HPWH!$Q$31+HPWH!$Q$32*CONVERT(F190,"F","C")+HPWH!$Q$33*CONVERT(F190,"F","C")^2+HPWH!$Q$34*CONVERT($N$4,"F","C")+HPWH!$Q$35*CONVERT($N$4,"F","C")^2+HPWH!$Q$36*CONVERT($N$4,"F","C")*CONVERT(F190,"F","C")),1) -> 1 | O190: 934.18 | P190: 0 | Q190: 0.02271556701 | R190: =IF(OR($G$3="PkHP",$G$3="SpHP"),(HPWH!$P$31+HPWH!$P$32*CONVERT(F190,"F","C")+HPWH!$P$33*CONVERT(F190,"F","C")^2+HPWH!$P$34*CONVERT($N$4,"F","C")+HPWH!$P$35*CONVERT($N$4,"F","C")^2+HPWH!$P$36*CONVERT($N$4,"F","C")*CONVERT(F190,"F","C")),1) -> 1 | S190: 0.76 | T190: 0 | U190: 0 | V190: 0 | W190: 0 | X190: 0 | Y190: 0 | Z190: 0.01229184211
A191: 7 | B191: 163 | C191: 1 | D191: =INDEX('Peak Period'!$F$6:$U$8765,$B191,$C$11) -> 0 | E191: =INDEX(Tamb!$F$8:$V$140167,($C$11-1)*8760+B191,$O$3) -> 36 | F191: =INDEX(Tamb!$F$8:$V$140167,($C$11-1)*8760+B191,$O$3+1) -> 34 | G191: =INDEX(Tmains!$D$32:$S$396,$A191,CZind) -> 43.24216077 | H191: =INDEX(HWgal!$C$8:$AE$8767,$B191,$N$9)*60 -> 0.03756334193 | I191: 0.03756334193 | J191: 28.26319493 | K191: 1156.9932 | L191: -234.5 | M191: 950.7563949 | N191: =IF(OR($G$3="PkHP",$G$3="SpHP"),(HPWH!$Q$31+HPWH!$Q$32*CONVERT(F191,"F","C")+HPWH!$Q$33*CONVERT(F191,"F","C")^2+HPWH!$Q$34*CONVERT($N$4,"F","C")+HPWH!$Q$35*CONVERT($N$4,"F","C")^2+HPWH!$Q$36*CONVERT($N$4,"F","C")*CONVERT(F191,"F","C")),1) -> 1 | O191: 950.7563949 | P191: 0 | Q191: 0.02311863945 | R191: =IF(OR($G$3="PkHP",$G$3="SpHP"),(HPWH!$P$31+HPWH!$P$32*CONVERT(F191,"F","C")+HPWH!$P$33*CONVERT(F191,"F","C")^2+HPWH!$P$34*CONVERT($N$4,"F","C")+HPWH!$P$35*CONVERT($N$4,"F","C")^2+HPWH!$P$36*CONVERT($N$4,"F","C")*CONVERT(F191,"F","C")),1) -> 1 | S191: 0.76 | T191: 0 | U191: 0 | V191: 0 | W191: 0 | X191: 0 | Y191: 0 | Z191: 0.01250995256
A192: 7 | B192: 164 | C192: 1 | D192: =INDEX('Peak Period'!$F$6:$U$8765,$B192,$C$11) -> 0 | E192: =INDEX(Tamb!$F$8:$V$140167,($C$11-1)*8760+B192,$O$3) -> 35 | F192: =INDEX(Tamb!$F$8:$V$140167,($C$11-1)*8760+B192,$O$3+1) -> 35 | G192: =INDEX(Tmains!$D$32:$S$396,$A192,CZind) -> 43.24216077 | H192: =INDEX(HWgal!$C$8:$AE$8767,$B192,$N$9)*60 -> 0.9856099434 | I192: 0.9856099434 | J192: 741.5869976 | K192: 1168.68 | L192: -234.5 | M192: 1675.766998 | N192: =IF(OR($G$3="PkHP",$G$3="SpHP"),(HPWH!$Q$31+HPWH!$Q$32*CONVERT(F192,"F","C")+HPWH!$Q$33*CONVERT(F192,"F","C")^2+HPWH!$Q$34*CONVERT($N$4,"F","C")+HPWH!$Q$35*CONVERT($N$4,"F","C")^2+HPWH!$Q$36*CONVERT($N$4,"F","C")*CONVERT(F192,"F","C")),1) -> 1 | O192: 1675.766998 | P192: 0 | Q192: 0.04074803307 | R192: =IF(OR($G$3="PkHP",$G$3="SpHP"),(HPWH!$P$31+HPWH!$P$32*CONVERT(F192,"F","C")+HPWH!$P$33*CONVERT(F192,"F","C")^2+HPWH!$P$34*CONVERT($N$4,"F","C")+HPWH!$P$35*CONVERT($N$4,"F","C")^2+HPWH!$P$36*CONVERT($N$4,"F","C")*CONVERT(F192,"F","C")),1) -> 1 | S192: 0.76 | T192: 0 | U192: 0 | V192: 0 | W192: 0 | X192: 0 | Y192: 0 | Z192: 0.02204956576
A193: 7 | B193: 165 | C193: 1 | D193: =INDEX('Peak Period'!$F$6:$U$8765,$B193,$C$11) -> 0 | E193: =INDEX(Tamb!$F$8:$V$140167,($C$11-1)*8760+B193,$O$3) -> 36 | F193: =INDEX(Tamb!$F$8:$V$140167,($C$11-1)*8760+B193,$O$3+1) -> 36 | G193: =INDEX(Tmains!$D$32:$S$396,$A193,CZind) -> 43.24216077 | H193: =INDEX(HWgal!$C$8:$AE$8767,$B193,$N$9)*60 -> 0.1078825699 | I193: 0.1078825699 | J193: 81.17238631 | K193: 1156.9932 | L193: -234.5 | M193: 1003.665586 | N193: =IF(OR($G$3="PkHP",$G$3="SpHP"),(HPWH!$Q$31+HPWH!$Q$32*CONVERT(F193,"F","C")+HPWH!$Q$33*CONVERT(F193,"F","C")^2+HPWH!$Q$34*CONVERT($N$4,"F","C")+HPWH!$Q$35*CONVERT($N$4,"F","C")^2+HPWH!$Q$36*CONVERT($N$4,"F","C")*CONVERT(F193,"F","C")),1) -> 1 | O193: 1003.665586 | P193: 0 | Q193: 0.02440518196 | R193: =IF(OR($G$3="PkHP",$G$3="SpHP"),(HPWH!$P$31+HPWH!$P$32*CONVERT(F193,"F","C")+HPWH!$P$33*CONVERT(F193,"F","C")^2+HPWH!$P$34*CONVERT($N$4,"F","C")+HPWH!$P$35*CONVERT($N$4,"F","C")^2+HPWH!$P$36*CONVERT($N$4,"F","C")*CONVERT(F193,"F","C")),1) -> 1 | S193: 0.76 | T193: 0 | U193: 0 | V193: 0 | W193: 0 | X193: 0 | Y193: 0 | Z193: 0.01320612614
A194: 7 | B194: 166 | C194: 1 | D194: =INDEX('Peak Period'!$F$6:$U$8765,$B194,$C$11) -> 0 | E194: =INDEX(Tamb!$F$8:$V$140167,($C$11-1)*8760+B194,$O$3) -> 36 | F194: =INDEX(Tamb!$F$8:$V$140167,($C$11-1)*8760+B194,$O$3+1) -> 35 | G194: =INDEX(Tmains!$D$32:$S$396,$A194,CZind) -> 43.24216077 | H194: =INDEX(HWgal!$C$8:$AE$8767,$B194,$N$9)*60 -> 3.027134401 | I194: 3.027134401 | J194: 2277.659156 | K194: 1156.9932 | L194: -234.5 | M194: 3200.152356 | N194: =IF(OR($G$3="PkHP",$G$3="SpHP"),(HPWH!$Q$31+HPWH!$Q$32*CONVERT(F194,"F","C")+HPWH!$Q$33*CONVERT(F194,"F","C")^2+HPWH!$Q$34*CONVERT($N$4,"F","C")+HPWH!$Q$35*CONVERT($N$4,"F","C")^2+HPWH!$Q$36*CONVERT($N$4,"F","C")*CONVERT(F194,"F","C")),1) -> 1 | O194: 3200.152356 | P194: 0 | Q194: 0.07781506273 | R194: =IF(OR($G$3="PkHP",$G$3="SpHP"),(HPWH!$P$31+HPWH!$P$32*CONVERT(F194,"F","C")+HPWH!$P$33*CONVERT(F194,"F","C")^2+HPWH!$P$34*CONVERT($N$4,"F","C")+HPWH!$P$35*CONVERT($N$4,"F","C")^2+HPWH!$P$36*CONVERT($N$4,"F","C")*CONVERT(F194,"F","C")),1) -> 1 | S194: 0.76 | T194: 0 | U194: 0 | V194: 0 | W194: 0 | X194: 0 | Y194: 0 | Z194: 0.04210726784
A195: 7 | B195: 167 | C195: 1 | D195: =INDEX('Peak Period'!$F$6:$U$8765,$B195,$C$11) -> 0 | E195: =INDEX(Tamb!$F$8:$V$140167,($C$11-1)*8760+B195,$O$3) -> 36 | F195: =INDEX(Tamb!$F$8:$V$140167,($C$11-1)*8760+B195,$O$3+1) -> 36 | G195: =INDEX(Tmains!$D$32:$S$396,$A195,CZind) -> 43.24216077 | H195: =INDEX(HWgal!$C$8:$AE$8767,$B195,$N$9)*60 -> 2.85346539 | I195: 2.85346539 | J195: 2146.988112 | K195: 1156.9932 | L195: -234.5 | M195: 3069.481312 | N195: =IF(OR($G$3="PkHP",$G$3="SpHP"),(HPWH!$Q$31+HPWH!$Q$32*CONVERT(F195,"F","C")+HPWH!$Q$33*CONVERT(F195,"F","C")^2+HPWH!$Q$34*CONVERT($N$4,"F","C")+HPWH!$Q$35*CONVERT($N$4,"F","C")^2+HPWH!$Q$36*CONVERT($N$4,"F","C")*CONVERT(F195,"F","C")),1) -> 1 | O195: 3069.481312 | P195: 0 | Q195: 0.07463765917 | R195: =IF(OR($G$3="PkHP",$G$3="SpHP"),(HPWH!$P$31+HPWH!$P$32*CONVERT(F195,"F","C")+HPWH!$P$33*CONVERT(F195,"F","C")^2+HPWH!$P$34*CONVERT($N$4,"F","C")+HPWH!$P$35*CONVERT($N$4,"F","C")^2+HPWH!$P$36*CONVERT($N$4,"F","C")*CONVERT(F195,"F","C")),1) -> 1 | S195: 0.76 | T195: 0 | U195: 0 | V195: 0 | W195: 0 | X195: 0 | Y195: 0 | Z195: 0.040387912
A196: 7 | B196: 168 | C196: 1 | D196: =INDEX('Peak Period'!$F$6:$U$8765,$B196,$C$11) -> 0 | E196: =INDEX(Tamb!$F$8:$V$140167,($C$11-1)*8760+B196,$O$3) -> 37 | F196: =INDEX(Tamb!$F$8:$V$140167,($C$11-1)*8760+B196,$O$3+1) -> 37 | G196: =INDEX(Tmains!$D$32:$S$396,$A196,CZind) -> 43.24216077 | H196: =INDEX(HWgal!$C$8:$AE$8767,$B196,$N$9)*60 -> 0 | I196: 0 | J196: 0 | K196: 1145.3064 | L196: -234.5 | M196: 910.8064 | N196: =IF(OR($G$3="PkHP",$G$3="SpHP"),(HPWH!$Q$31+HPWH!$Q$32*CONVERT(F196,"F","C")+HPWH!$Q$33*CONVERT(F196,"F","C")^2+HPWH!$Q$34*CONVERT($N$4,"F","C")+HPWH!$Q$35*CONVERT($N$4,"F","C")^2+HPWH!$Q$36*CONVERT($N$4,"F","C")*CONVERT(F196,"F","C")),1) -> 1 | O196: 910.8064 | P196: 0 | Q196: 0.0221472134 | R196: =IF(OR($G$3="PkHP",$G$3="SpHP"),(HPWH!$P$31+HPWH!$P$32*CONVERT(F196,"F","C")+HPWH!$P$33*CONVERT(F196,"F","C")^2+HPWH!$P$34*CONVERT($N$4,"F","C")+HPWH!$P$35*CONVERT($N$4,"F","C")^2+HPWH!$P$36*CONVERT($N$4,"F","C")*CONVERT(F196,"F","C")),1) -> 1 | S196: 0.76 | T196: 0 | U196: 0 | V196: 0 | W196: 0 | X196: 0 | Y196: 0 | Z196: 0.01198429474
A197: 8 | B197: 169 | C197: 1 | D197: =INDEX('Peak Period'!$F$6:$U$8765,$B197,$C$11) -> 0 | E197: =INDEX(Tamb!$F$8:$V$140167,($C$11-1)*8760+B197,$O$3) -> 38 | F197: =INDEX(Tamb!$F$8:$V$140167,($C$11-1)*8760+B197,$O$3+1) -> 36 | G197: =INDEX(Tmains!$D$32:$S$396,$A197,CZind) -> 43.37186237 | H197: =INDEX(HWgal!$C$8:$AE$8767,$B197,$N$9)*60 -> 0 | I197: 0 | J197: 0 | K197: 1133.6196 | L197: -234.5 | M197: 899.1196 | N197: =IF(OR($G$3="PkHP",$G$3="SpHP"),(HPWH!$Q$31+HPWH!$Q$32*CONVERT(F197,"F","C")+HPWH!$Q$33*CONVERT(F197,"F","C")^2+HPWH!$Q$34*CONVERT($N$4,"F","C")+HPWH!$Q$35*CONVERT($N$4,"F","C")^2+HPWH!$Q$36*CONVERT($N$4,"F","C")*CONVERT(F197,"F","C")),1) -> 1 | O197: 899.1196 | P197: 0 | Q197: 0.0218630366 | R197: =IF(OR($G$3="PkHP",$G$3="SpHP"),(HPWH!$P$31+HPWH!$P$32*CONVERT(F197,"F","C")+HPWH!$P$33*CONVERT(F197,"F","C")^2+HPWH!$P$34*CONVERT($N$4,"F","C")+HPWH!$P$35*CONVERT($N$4,"F","C")^2+HPWH!$P$36*CONVERT($N$4,"F","C")*CONVERT(F197,"F","C")),1) -> 1 | S197: 0.76 | T197: 0 | U197: 0 | V197: 0 | W197: 0 | X197: 0 | Y197: 0 | Z197: 0.01183052105
A198: 8 | B198: 170 | C198: 1 | D198: =INDEX('Peak Period'!$F$6:$U$8765,$B198,$C$11) -> 0 | E198: =INDEX(Tamb!$F$8:$V$140167,($C$11-1)*8760+B198,$O$3) -> 39 | F198: =INDEX(Tamb!$F$8:$V$140167,($C$11-1)*8760+B198,$O$3+1) -> 35 | G198: =INDEX(Tmains!$D$32:$S$396,$A198,CZind) -> 43.37186237 | H198: =INDEX(HWgal!$C$8:$AE$8767,$B198,$N$9)*60 -> 0 | I198: 0 | J198: 0 | K198: 1121.9328 | L198: -234.5 | M198: 887.4328 | N198: =IF(OR($G$3="PkHP",$G$3="SpHP"),(HPWH!$Q$31+HPWH!$Q$32*CONVERT(F198,"F","C")+HPWH!$Q$33*CONVERT(F198,"F","C")^2+HPWH!$Q$34*CONVERT($N$4,"F","C")+HPWH!$Q$35*CONVERT($N$4,"F","C")^2+HPWH!$Q$36*CONVERT($N$4,"F","C")*CONVERT(F198,"F","C")),1) -> 1 | O198: 887.4328 | P198: 0 | Q198: 0.02157885979 | R198: =IF(OR($G$3="PkHP",$G$3="SpHP"),(HPWH!$P$31+HPWH!$P$32*CONVERT(F198,"F","C")+HPWH!$P$33*CONVERT(F198,"F","C")^2+HPWH!$P$34*CONVERT($N$4,"F","C")+HPWH!$P$35*CONVERT($N$4,"F","C")^2+HPWH!$P$36*CONVERT($N$4,"F","C")*CONVERT(F198,"F","C")),1) -> 1 | S198: 0.76 | T198: 0 | U198: 0 | V198: 0 | W198: 0 | X198: 0 | Y198: 0 | Z198: 0.01167674737
A199: 8 | B199: 171 | C199: 1 | D199: =INDEX('Peak Period'!$F$6:$U$8765,$B199,$C$11) -> 0 | E199: =INDEX(Tamb!$F$8:$V$140167,($C$11-1)*8760+B199,$O$3) -> 38 | F199: =INDEX(Tamb!$F$8:$V$140167,($C$11-1)*8760+B199,$O$3+1) -> 35 | G199: =INDEX(Tmains!$D$32:$S$396,$A199,CZind) -> 43.37186237 | H199: =INDEX(HWgal!$C$8:$AE$8767,$B199,$N$9)*60 -> 0 | I199: 0 | J199: 0 | K199: 1133.6196 | L199: -234.5 | M199: 899.1196 | N199: =IF(OR($G$3="PkHP",$G$3="SpHP"),(HPWH!$Q$31+HPWH!$Q$32*CONVERT(F199,"F","C")+HPWH!$Q$33*CONVERT(F199,"F","C")^2+HPWH!$Q$34*CONVERT($N$4,"F","C")+HPWH!$Q$35*CONVERT($N$4,"F","C")^2+HPWH!$Q$36*CONVERT($N$4,"F","C")*CONVERT(F199,"F","C")),1) -> 1 | O199: 899.1196 | P199: 0 | Q199: 0.0218630366 | R199: =IF(OR($G$3="PkHP",$G$3="SpHP"),(HPWH!$P$31+HPWH!$P$32*CONVERT(F199,"F","C")+HPWH!$P$33*CONVERT(F199,"F","C")^2+HPWH!$P$34*CONVERT($N$4,"F","C")+HPWH!$P$35*CONVERT($N$4,"F","C")^2+HPWH!$P$36*CONVERT($N$4,"F","C")*CONVERT(F199,"F","C")),1) -> 1 | S199: 0.76 | T199: 0 | U199: 0 | V199: 0 | W199: 0 | X199: 0 | Y199: 0 | Z199: 0.01183052105
